Workbook

Sheet Read Me (hidden)
B11: Smith-Wilson Risk-Free Interest Rate Extrapolation Tool (v1.2)
B13: How to use this workbook | D13: This workbook demonstrates the calculations of the Smith-Wilson extrapolation method as part of the technical documentation of the methodology to derive EIOPA's risk-free rate interest rate term structures.
D15: The calculations are implementing the specifications in subsection 7.E of that technical documentation.
D17: Note: all calculations and coding are documented and follow the structure of the specifications as closely as possible
B19: Worksheet: Smith-Wilson RFR | D19: All yellow cells are input by the user.
D20: The column with header "Liquid (1=Y/0=N)" defines if an input rate of the corresponding maturity is available. The last liquid maturity defines the Last Liquid Point.
D21: Input rates (not intensities) have to be stored in the worksheet INPUT DATA.
D22: Note that input data should be based on integer maturities only. It is not possible to enter input data based on non-integer maturities.
D23: Once data have been stored in the INPUT DATA sheet they can be selected by choosing the appropriate date from the "Calculation date" drop down list.
D24: The green cells are output from a UDF called SmithWilsonBruteForce(.) (see VBA code).
D25: The VBA-code is fully documented and has references to the technical documentation of the methodology to derive EIOPA's risk-free interest rate term structures.
D26: The discount factors are derived according to the Smith-Wilson method (see VBA code for more detailed references) and are based on an alpha precision of 6 decimals.
D27: The spot and forward intensities are derived according to the technical specifications (see VBA code for more detailed references)
D28: Continuously compounded (cc) rates are being calculated according to: zero(t) = -ln(discount(t))/t and forward(t)=t*zero(t)-(t-1)*zero(t-1) (see also Worksheet Graphs).
D29: As a result spot intensities and continuously compounded rates are equal. This does not hold for forward intensities and continuously compounded 1-year forward rates.
D30: Annual compounded (ac) rates are being calculated according to: zero(t) = (1/discount(t))^(1/t)-1 and forward(t)=discount(t-1)/discount(t)-1.
B32: Worksheet: Graphs | D32: Shows the output from the worksheet Smith-Wilson RFR graphically.
D33: Furthermore the mathematical relations between the several types of rates are shown.
B35: Worksheet: INPUT DATA | D35: Copy your input data into the format of the sheet, i.e. including dates and rates on the right place with the right format
D36: Make sure that column A numbers the entries 1,2,….
D37: Cell A6 gives the maximum number of entries and sets automatically the date list to choose from on the Smith-Wilson RFR worksheet
D38: The published version of the tool includes dummy data.
B40: © EIOPA - European Insurance and Occupational Pensions Authority, 2016.
B41: Reproduction is authorised provided that you acknowledge EIOPA as the source: "Source: EIOPA - European Insurance and Occupational Pensions Authority".
B43: Disclaimer: | C43: The content of this workbook is made available by EIOPA for public information purposes only. It is not intended to be used for any other purpose.
C44: EIOPA shall not be liable for any error or inaccuracy in the content of this workbook, for any action taken in reliance thereon.
C45: EIOPA expressly disclaims all warranties, expressed or implied, as to the accuracy of any of the content provided or as to the merchantability or fitness of the content provided.

Sheet Smith-Wilson RFR (hidden)
H2: input
H3: output
C4: Calculation date | D4: 2016-10-31
C7: Input annual rates | D7: Zero | E7: Zero, Bond, Swap | O7: Volatility adjustment | P7: =10000*INDEX(EIOPA_curves_euro!$C:$C,MATCH(CalcDate,EIOPA_curves_euro!$D:$D,0)) -> 11 | Q7: basispoints
C8: Coupon frequency | D8: 1 | E8: coupons per year (only used for Bond and Swap)
C9: CRA applied to input rates | D9: 0 | E9: basispoints
C10: UFR | D10: 0.042 | E10: Annual compounded rate
C11: Mininum alpha | D11: 0.05
C12: Bandwith convergence UFR | D12: 1 | E12: basispoint intensity
C13: Convergence at T= | D13: 60 | E13: years
H15: Optimal alpha | I15: =H140 -> 0.13281 | O15: Last Liquid Point | P15: =MAX($C$20:$C$69*$D$20:$D$69) -> 20 | Q15: years | T15: Optimal alpha | U15: =T140 -> 0.131856
C17: Liquid (1=Y/0=N) | E17: Input rates at calculation date | H17: Smith Wilson - No volatility adjustment | O17: Liquid (1=Y/0=N) | Q17: Input rates at calculation date | T17: Smith Wilson - With volatility adjustment
D18: Maturity | G18: T | H18: Discount factor | I18: Spot intensity = spot rate cc | J18: Spot rate ac | K18: Forward intensity | L18: Forward rate cc | M18: Forward rate ac | P18: Maturity | S18: T | T18: Discount factor | U18: Spot intensity = spot rate cc | V18: Spot rate ac | W18: Forward intensity | X18: Forward rate cc | Y18: Forward rate ac
G19: 0 | H19: =SmithWilsonBruteForce(InputAnnualRates,$C$20:$E$69,IF(InputAnnualRates="Zero",0,CouponFrequency),CRAapplied,UFRlevel,MinimumAlpha,BandwithCovergence,ConvergenceT) -> 1 | I19: -0.003620160181 | J19: 0 | K19: -0.003620160181 | L19: 0 | M19: 0 | S19: 0 | T19: =SmithWilsonBruteForce("Zero",$O$20:$Q$69,0,0,$D$10,$D$11,$D$12,$D$13) -> 1 | U19: -0.002489514043 | V19: 0 | W19: -0.002489514043 | X19: 0 | Y19: 0
C20: 1 | D20: 1 | E20: =TRANSPOSE(INDEX(BBDATA,MATCH(CalcDate,DateList,0),)) -> -0.002930000074 | G20: 1 | H20: 1.00293861 | I20: -0.002934300928 | J20: -0.002930000074 | K20: -0.002551556273 | L20: -0.002934300928 | M20: -0.002930000074 | O20: =IF(D20<=$P$15,1,0) -> 1 | P20: 1 | Q20: =IF(O20,J20+$P$7/10000,0) -> -0.001830000074 | S20: 1 | T20: 1.001833355 | U20: -0.001831676571 | V20: -0.001830000075 | W20: -0.001456195444 | X20: -0.001831676571 | Y20: -0.001830000075
C21: 1 | D21: 2 | E21: -0.002610000014 | G21: 2 | H21: 1.005240508 | I21: -0.002613412002 | J21: -0.002610000014 | K21: -0.001874363378 | L21: -0.002292523077 | M21: -0.002289897253 | O21: 1 | P21: 2 | Q21: =IF(O21,J21+$P$7/10000,0) -> -0.001510000014 | S21: 2 | T21: 1.003026854 | U21: -0.001511141213 | V21: -0.001510000014 | W21: -0.0007712061336 | X21: -0.001190605856 | Y21: -0.001189897366
C22: 1 | D22: 3 | E22: -0.002170000001 | G22: 3 | H22: 1.006538356 | I22: -0.002172357863 | J22: -0.002170000001 | K22: -0.0006928673822 | L22: -0.001290249584 | M22: -0.00128941757 | O22: 1 | P22: 3 | Q22: -0.001070000001 | S22: 3 | T22: 1.003216882 | U22: -0.00107057286 | V22: -0.001070000001 | W22: 0.0004069070052 | X22: -0.0001894361536 | Y22: -0.0001894182117
C23: 1 | D23: 4 | E23: -0.00161 | G23: 4 | H23: 1.006466005 | I23: -0.001611297443 | J23: -0.00161 | K23: 0.000985381409 | L23: 7.188381671e-05 | M23: 7.188640041e-05 | O23: 1 | P23: 4 | Q23: -0.00051 | S23: 4 | T23: 1.002042604 | U23: -0.0005101300947 | V23: -0.0005100000004 | W23: 0.002083744028 | X23: 0.001171198202 | Y23: 0.001171884322
C24: 1 | D24: 5 | E24: -0.0008700000038 | G24: 5 | H24: 1.004361377 | I24: -0.0008703786735 | J24: -0.0008700000038 | K24: 0.003251399527 | L24: 0.002093296404 | M24: 0.002095488878 | O24: 1 | P24: 5 | Q24: 0.0002299999962 | S24: 5 | T24: 0.9988507931 | U24: 0.0002299735499 | V24: 0.0002299999958 | W24: 0.004347272675 | X24: 0.003190388128 | Y24: 0.003195482833
C25: 1 | D25: 6 | E25: 4e-05 | G25: 6 | H25: 0.9997600336 | I25: 3.999920002e-05 | J25: 4e-05 | K25: 0.006062290774 | L25: 0.004591888568 | M25: 0.004602447443 | O25: 1 | P25: 6 | Q25: 0.00114 | S25: 6 | T25: 0.9931872088 | U25: 0.001139350693 | V25: 0.00114 | W25: 0.007154857321 | X25: 0.005686236409 | Y25: 0.005702433738
C26: 1 | D26: 7 | E26: 0.0011 | G26: 7 | H26: 0.9923337685 | I26: 0.001099395443 | J26: 0.0011 | K26: 0.008653837238 | L26: 0.007455772903 | M26: 0.007483636383 | O26: 1 | P26: 7 | Q26: 0.0022 | S26: 7 | T26: 0.9847346305 | U26: 0.002197583543 | V26: 0.0022 | W26: 0.009743981828 | X26: 0.008546980644 | Y26: 0.008583610366
C27: 1 | D27: 8 | E27: 0.00219 | G27: 8 | H27: 0.9826514067 | I27: 0.002187605445 | J27: 0.00219 | K27: 0.01109411121 | L27: 0.00980507546 | M27: 0.009853302708 | O27: 1 | P27: 8 | Q27: 0.00329 | S27: 8 | T27: 0.9740654326 | U27: 0.003284599791 | V27: 0.00329 | W27: 0.01218087887 | X27: 0.01089371353 | Y27: 0.01095326608
C28: 1 | D28: 9 | E28: 0.00326 | G28: 9 | H28: 0.9711325809 | I28: 0.003254697721 | J28: 0.00326 | K28: 0.01178328924 | L28: 0.01179143592 | M28: 0.01186122895 | O28: 1 | P28: 9 | Q28: 0.00436 | S28: 9 | T28: 0.9616019334 | U28: 0.004350522737 | V28: 0.00436 | W28: 0.01287042274 | X28: 0.01287790631 | Y28: 0.01296118364
C29: 1 | D29: 10 | E29: 0.00413 | G29: 10 | H29: 0.9596228372 | I29: 0.004121494959 | J29: 0.00413 | K29: 0.01287086186 | L29: 0.01192267011 | M29: 0.01199402845 | O29: 1 | P29: 10 | Q29: 0.00523 | S29: 10 | T29: 0.9491734645 | U29: 0.005216371049 | V29: 0.00523 | W29: 0.0139556752 | X29: 0.01300900585 | Y29: 0.0130939911
C30: 0 | D30: 11 | E30: 0.00506 | G30: 11 | H30: 0.9460100126 | I30: 0.005045647801 | J30: 0.005058398518 | K30: 0.01539582781 | L30: 0.01428717622 | M30: 0.01438972572 | O30: 1 | P30: 11 | Q30: 0.006158398518 | S30: 11 | T30: 0.9346953386 | U30: 0.006139513078 | V30: 0.006158398518 | W30: 0.0164785009 | X30: 0.01537093337 | Y30: 0.01548967377
C31: 1 | D31: 12 | E31: 0.00597 | G31: 12 | H31: 0.931064241 | I31: 0.005952250159 | J31: 0.00597 | K31: 0.01617962659 | L31: 0.0159248761 | M31: 0.01605235273 | O31: 1 | P31: 12 | Q31: 0.00707 | S31: 12 | T31: 0.9189335219 | U31: 0.007045124726 | V31: 0.00707 | W31: 0.01726132891 | X31: 0.01700685286 | Y31: 0.0171522927
C32: 0 | D32: 13 | E32: 0.00675 | G32: 13 | H32: 0.9162651709 | I32: 0.00672688218 | J32: 0.00674955847 | K32: 0.01572384022 | L32: 0.01602246642 | M32: 0.01615151444 | O32: 1 | P32: 13 | Q32: 0.00784955847 | S32: 13 | T32: 0.903349423 | U32: 0.007818910961 | V32: 0.00784955847 | W32: 0.01680606593 | X32: 0.01710434577 | Y32: 0.01725146268
C33: 0 | D33: 14 | E33: 0.00735 | G33: 14 | H33: 0.902485573 | I33: 0.007328755322 | J33: 0.007355676375 | K33: 0.01445136355 | L33: 0.01515310617 | M33: 0.01526849659 | O33: 1 | P33: 14 | Q33: 0.008455676375 | S33: 14 | T33: 0.8888011173 | U33: 0.008420127397 | V33: 0.008455676375 | W33: 0.01553490847 | X33: 0.01623594106 | Y33: 0.01636846017
C34: 1 | D34: 15 | E34: 0.00777 | G34: 15 | H34: 0.8903865941 | I34: 0.00773996901 | J34: 0.00777 | K34: 0.0124207717 | L34: 0.01349696065 | M34: 0.01358845579 | O34: 1 | P34: 15 | Q34: 0.00887 | S34: 15 | T34: 0.8759350019 | U34: 0.008830892635 | V34: 0.00887 | W34: 0.01350680625 | X34: 0.01458160597 | Y34: 0.0146884362
D35: 16 | E35: 0.00801 | G35: 16 | H35: 0.8802139929 | I35: 0.007974389207 | J35: 0.008006269334 | K35: 0.01081746717 | L35: 0.01149069216 | M35: 0.01155696375 | O35: 1 | P35: 16 | Q35: 0.009106269334 | S35: 16 | T35: 0.8649869004 | U35: 0.009065057266 | V35: 0.009106269333 | W35: 0.01190466356 | X35: 0.01257752674 | Y35: 0.01265695649
C36: 0 | D36: 17 | E36: 0.00816 | G36: 17 | H36: 0.8709119208 | I36: 0.008130260673 | J36: 0.008163400994 | K36: 0.01065498911 | L36: 0.01062420413 | M36: 0.01068084138 | O36: 1 | P36: 17 | Q36: 0.009263400994 | S36: 17 | T36: 0.8549152821 | U36: 0.009220758834 | V36: 0.009263400994 | W36: 0.01174396792 | X36: 0.01171198392 | Y36: 0.01178083775
C37: 0 | D37: 18 | E37: 0.00833 | G37: 18 | H37: 0.8612934557 | I37: 0.008295555632 | J37: 0.008330059096 | K37: 0.01175328024 | L37: 0.01110556994 | M37: 0.0111674657 | O37: 1 | P37: 18 | Q37: 0.009430059096 | S37: 18 | T37: 0.8445547397 | U37: 0.009385873653 | V37: 0.009430059096 | W37: 0.01283537698 | X37: 0.01219282557 | Y37: 0.0122674611
C38: 0 | D38: 19 | E38: 0.00857 | G38: 19 | H38: 0.8503610364 | I38: 0.008531277419 | J38: 0.008567772475 | K38: 0.01397303561 | L38: 0.01277426958 | M38: 0.01285620909 | O38: 1 | P38: 19 | Q38: 0.009667772475 | S38: 19 | T38: 0.8329302004 | U38: 0.009621338598 | V38: 0.009667772475 | W38: 0.01507334172 | X38: 0.01385970761 | Y38: 0.01395619862
C39: 1 | D39: 20 | E39: 0.00892 | G39: 20 | H39: 0.8372697017 | I39: 0.008880451806 | J39: 0.00892 | K39: 0.01722347171 | L39: 0.01551476516 | M39: 0.01563574397 | O39: 1 | P39: 20 | Q39: 0.01002 | S39: 20 | T39: 0.8192199657 | U39: 0.009970132637 | V39: 0.01002 | W39: 0.01824510497 | X39: 0.01659721939 | Y39: 0.0167357184
C40: 0 | D40: 21 | E40: 0.008998835908 | G40: 21 | H40: 0.8215192331 | I40: 0.009361901411 | J40: 0.009405861085 | K40: 0.02065700333 | L40: 0.0189908935 | M40: 0.01917236748 | O40: 0 | P40: 21 | Q40: 0 | S40: 21 | T40: 0.8030647533 | U40: 0.01044380614 | V40: 0.01049853304 | W40: 0.02149507072 | X40: 0.01991727626 | Y40: 0.02011694865
C41: 0 | D41: 22 | E41: 0.009070510261 | G41: 22 | H41: 0.803530099 | I41: 0.009942756122 | J41: 0.009992349551 | K41: 0.02354229811 | L41: 0.02214070507 | M41: 0.02238762948 | O41: 0 | P41: 22 | Q41: 0 | S41: 22 | T41: 0.7848814988 | U41: 0.01101011498 | V41: 0.01107094936 | W41: 0.02423333555 | X41: 0.02290260058 | Y41: 0.02316687884
C42: 0 | D42: 23 | E42: 0.009135956508 | G42: 23 | H42: 0.7838513277 | I42: 0.01058851781 | J42: 0.01064477455 | K42: 0.025981008 | L42: 0.024795275 | M42: 0.02510523437 | O42: 0 | P42: 23 | Q42: 0 | S42: 23 | T42: 0.7651775679 | U42: 0.01163684162 | V42: 0.01170481306 | W42: 0.0265532075 | X42: 0.02542482764 | Y42: 0.02575079527
C43: 0 | D43: 24 | E43: 0.00919595263 | G43: 24 | H43: 0.7629365655 | I43: 0.01127418289 | J43: 0.01133797601 | K43: 0.02805238797 | L43: 0.02704447977 | M43: 0.02741350086 | O43: 0 | P43: 24 | Q43: 0 | S43: 24 | T43: 0.7443722616 | U43: 0.01230058407 | V43: 0.0123765474 | W43: 0.02852780304 | X43: 0.02756666044 | Y43: 0.02795013643
C44: 0 | D44: 25 | E44: 0.009251152213 | G44: 25 | H44: 0.7411596168 | I44: 0.01198157078 | J44: 0.01205363734 | K44: 0.02981910759 | L44: 0.02895888013 | M44: 0.02938226554 | O44: 0 | P44: 25 | Q44: 0 | S44: 25 | T44: 0.7228111069 | U44: 0.01298429416 | V44: 0.01306895613 | W44: 0.0302151943 | X44: 0.02939333625 | Y44: 0.02982958413
C45: 0 | D45: 26 | E45: 0.009251754332 | G45: 26 | H45: 0.7188274908 | I45: 0.0126974569 | J45: 0.01277841189 | K45: 0.03133133567 | L45: 0.03059460987 | M45: 0.03106743459 | O45: 0 | P45: 26 | Q45: 0 | S45: 26 | T45: 0.7007778651 | U45: 0.01367555096 | V45: 0.01376948904 | W45: 0.03166205203 | X45: 0.03095697107 | Y45: 0.03144112112
C46: 0 | D46: 27 | E46: 0.009252311849 | G46: 27 | H46: 0.6961913525 | I46: 0.01341224906 | J46: 0.01350259674 | K46: 0.03262966937 | L46: 0.03199684522 | M46: 0.03251424794 | O46: 0 | P46: 27 | Q46: 0 | S46: 27 | T46: 0.6785046216 | U46: 0.0143653329 | V46: 0.01446901015 | W46: 0.03290627457 | X46: 0.03229966331 | Y46: 0.03282695928
C47: 0 | D47: 28 | E47: 0.009252829544 | G47: 28 | H47: 0.6734557146 | I47: 0.01411903712 | J47: 0.01421918148 | K47: 0.0337472732 | L47: 0.03320231467 | M47: 0.03375966284 | O47: 0 | P47: 28 | Q47: 0 | S47: 28 | T47: 0.6561802603 | U47: 0.0150471336 | V47: 0.01516091168 | W47: 0.03397891832 | X47: 0.03345575246 | Y47: 0.0340216898
C48: 0 | D48: 29 | E48: 0.009253311537 | G48: 29 | H48: 0.6507861499 | I48: 0.01481290295 | J48: 0.01492315772 | K48: 0.03471146651 | L48: 0.03424114617 | M48: 0.03483412293 | O48: 0 | P48: 29 | Q48: 0 | S48: 29 | T48: 0.6339575826 | U48: 0.01571631831 | V48: 0.01584046919 | W48: 0.03490563791 | X48: 0.03445349037 | Y48: 0.03505388728
C49: 0 | D49: 30 | E49: 0.009253761396 | G49: 30 | H49: 0.6283157618 | I49: 0.01549041445 | J49: 0.01561101282 | K49: 0.03554491951 | L49: 0.03513824798 | M49: 0.03576289103 | O49: 0 | P49: 30 | Q49: 0 | S49: 30 | T49: 0.6119592842 | U49: 0.01636965093 | V49: 0.01650436775 | W49: 0.03570777613 | X49: 0.03531629671 | Y49: 0.03594732372
C50: 0 | D50: 31 | E50: 0.009214799292 | G50: 31 | H50: 0.6061506119 | I50: 0.01614925127 | J50: 0.01628035522 | K50: 0.03626656646 | L50: 0.03591435582 | M50: 0.03656706675 | O50: 0 | P50: 31 | Q50: 0 | S50: 31 | T50: 0.5902829723 | U50: 0.01700494332 | V50: 0.01715035042 | W50: 0.03640319966 | X50: 0.03606371522 | Y50: 0.03672189935
C51: 0 | D51: 32 | E51: 0.009178273686 | G51: 32 | H51: 0.5843742709 | I51: 0.01678792583 | J51: 0.01692963495 | K51: 0.03689231171 | L51: 0.03658683725 | M51: 0.03726437329 | O51: 0 | P51: 32 | Q51: 0 | S51: 32 | T51: 0.5690053774 | U51: 0.01762079357 | V51: 0.01777695564 | W51: 0.03700694775 | X51: 0.03671215124 | Y51: 0.03739436518
C52: 0 | D52: 33 | E52: 0.009143962956 | G52: 33 | H52: 0.5630516336 | I52: 0.01740557405 | J52: 0.01755793374 | K52: 0.0374355818 | L52: 0.03717031702 | M52: 0.03786977267 | O52: =IF(D52<=$P$15,1,0) -> 0 | P52: 33 | Q52: 0 | S52: 33 | T52: 0.548185886 | U52: 0.01821638914 | V52: 0.01838331964 | W52: 0.0375317412 | X52: 0.03727544721 | Y52: 0.03797888986
C53: 0 | D53: 34 | E53: 0.009111671571 | G53: 34 | H53: 0.5422321153 | I53: 0.01800179742 | J53: 0.01816480646 | K53: 0.03790776177 | L53: 0.0376771686 | M53: 0.03839595194 | O53: 0 | P53: 34 | Q53: 0 | S53: 34 | T53: 0.5278695036 | U53: 0.01879135818 | V53: 0.01896902688 | W53: 0.03798838591 | X53: 0.03776533654 | Y53: 0.03848750921
C54: 0 | D54: 35 | E54: 0.009081226354 | G54: 35 | H54: 0.5219523303 | I54: 0.01857654333 | J54: 0.01875016072 | K54: 0.03831854325 | L54: 0.03811790441 | M54: 0.03885371109 | O54: 0 | P54: 35 | Q54: 0 | S54: 35 | T54: 0.5080893388 | U54: 0.01934565666 | V54: 0.01953399644 | W54: 0.03838609583 | X54: 0.03819180507 | Y54: 0.0389304859
C55: 0 | D55: 36 | E55: 0.009052473381 | G55: 36 | H55: 0.5022383329 | I55: 0.01913001403 | J55: 0.01931416515 | K55: 0.03867620471 | L55: 0.03850148853 | M55: 0.03925227532 | O55: 0 | P55: 36 | Q55: 0 | S55: 36 | T55: 0.4888686843 | U55: 0.01987948235 | V55: 0.02007839517 | W55: 0.03873275366 | X55: 0.03856338161 | Y55: 0.03931659983
C56: 0 | D56: 37 | E56: 0.009025275378 | G56: 37 | H56: 0.4831074943 | I56: 0.01966259715 | J56: 0.01985717925 | K56: 0.03898783891 | L56: 0.03883558953 | M56: 0.03959954854 | O56: 0 | P56: 37 | Q56: 0 | S56: 37 | T56: 0.4702227605 | U56: 0.02039320914 | V56: 0.02060257139 | W56: 0.03903512294 | X56: 0.03888737332 | Y56: 0.03965338435
C57: 0 | D57: 38 | E57: 0.008999509524 | G57: 38 | H57: 0.4645700704 | I57: 0.02017481266 | J57: 0.02037969972 | K57: 0.03925953893 | L57: 0.03912678628 | M57: 0.03990232064 | O57: 0 | P57: 38 | Q57: 0 | S57: 38 | T57: 0.4521601734 | U57: 0.02088733674 | V57: 0.02110700391 | W57: 0.03929902198 | X57: 0.03917005802 | Y57: 0.03994732
C58: 0 | D58: 39 | E58: 0.008975065604 | G58: 39 | H58: 0.4466305135 | I58: 0.02066727225 | J58: 0.02088231925 | K58: 0.03949655127 | L58: 0.03938073699 | M58: 0.04016643811 | O58: 0 | P58: 39 | Q58: 0 | S58: 39 | T58: 0.4346841349 | U58: 0.02136245227 | V58: 0.02159226297 | W58: 0.03952946731 | X58: 0.03941684226 | Y58: 0.04020399428
C59: 0 | D59: 40 | E59: 0.008951844429 | G59: 40 | H59: 0.4292885666 | I59: 0.02114064842 | J59: 0.021365695 | K59: 0.03970340282 | L59: 0.03960231875 | M59: 0.04039694555 | O59: 0 | P59: 40 | Q59: 0 | S59: 40 | T59: 0.4177934821 | U59: 0.02181920076 | V59: 0.02205898028 | W59: 0.0397307928 | X59: 0.0396323922 | Y59: 0.04042823435
C60: 0 | D60: 41 | E60: 0.008867940948 | G60: 41 | H60: 0.4125401766 | I60: 0.02159565073 | J60: 0.0218305245 | K60: 0.0398840066 | L60: 0.03979574345 | M60: 0.04059820349 | O60: 0 | P60: 41 | Q60: 0 | S60: 41 | T60: 0.4014835278 | U60: 0.02225826276 | V60: 0.02250782607 | W60: 0.0399067492 | X60: 0.03982074257 | Y60: 0.04062421785
C61: 0 | D61: 42 | E61: 0.008788039358 | G61: 42 | H61: 0.3963782548 | I61: 0.02203300797 | J61: 0.02227752722 | K61: 0.04004175038 | L61: 0.03996465474 | M61: 0.04077398711 | O61: 0 | P61: 42 | Q61: 0 | S61: 42 | T61: 0.38574677 | U61: 0.02268033717 | V61: 0.02293949154 | W61: 0.04006058756 | X61: 0.03998538791 | Y61: 0.04079556588
C62: 0 | D62: 43 | E62: 0.008711860014 | G62: 43 | H62: 0.3807933101 | I62: 0.02245345452 | J62: 0.02270743064 | K62: 0.04017957128 | L62: 0.04011220935 | M62: 0.04092756945 | O62: 0 | P62: 43 | Q62: 0 | S62: 43 | T62: 0.3705734826 | U62: 0.02308612838 | V62: 0.02335467563 | W62: 0.04019512969 | X62: 0.04012935924 | Y62: 0.04094542139
C63: 0 | D63: 44 | E63: 0.008639148734 | G63: 44 | H63: 0.3657739754 | I63: 0.02285772023 | J63: 0.02312095977 | K63: 0.04030001885 | L63: 0.0402411458 | M63: 0.0410617916 | O63: 0 | P63: 44 | Q63: 0 | S63: 44 | T63: 0.3559522063 | U63: 0.02347633657 | V63: 0.02375407493 | W63: 0.0403128277 | X63: 0.04025528897 | Y63: 0.04107651562
C64: 0 | D64: 45 | E64: 0.008569673964 | G64: 45 | H64: 0.3513074432 | I64: 0.02324652294 | J64: 0.02351882932 | K64: 0.04040530855 | L64: 0.04035384247 | M64: 0.04117912241 | O64: 0 | P64: 45 | Q64: 0 | S64: 45 | T64: 0.3418701559 | U64: 0.02385165056 | V64: 0.02413837626 | W64: 0.04041581472 | X64: 0.04036546582 | Y64: 0.04119122447
C65: 0 | D65: 46 | E65: 0.008503224314 | G65: 46 | H65: 0.3373798272 | I65: 0.02362056303 | J65: 0.02390173801 | K65: 0.04049736739 | L65: 0.0404523671 | M65: 0.04128170926 | O65: 0 | P65: 46 | Q65: 0 | S65: 46 | T65: 0.3283135583 | U65: 0.02421274254 | V65: 0.02450825119 | W65: 0.04050594808 | X65: 0.04046188171 | Y65: 0.04129161669
C66: 0 | D66: 47 | E66: 0.008439606411 | G66: 47 | H66: 0.3239764605 | I66: 0.02398051954 | J66: 0.02427036444 | K66: 0.04057787284 | L66: 0.04053851894 | M66: 0.04137142145 | O66: 0 | P66: 47 | Q66: 0 | S66: 47 | T66: 0.3152679306 | U66: 0.02456026444 | V66: 0.02486435212 | W66: 0.0405848463 | X66: 0.0405462717 | Y66: 0.04137949499
C67: 0 | D67: 48 | E67: 0.00837864302 | G67: 48 | H67: 0.3110821408 | I67: 0.02432704757 | J67: 0.02462536433 | K67: 0.04064828623 | L67: 0.0406138648 | M67: 0.04144988744 | O67: 0 | P67: 48 | Q67: 0 | S67: 48 | T67: 0.3027183097 | U67: 0.02489484535 | V67: 0.02520730954 | W67: 0.04065392077 | X67: 0.04062014831 | Y67: 0.04145643142
C68: 0 | D68: 49 | E68: 0.008320171393 | G68: 49 | H68: 0.2986813319 | I68: 0.0246607766 | J68: 0.02496736863 | K68: 0.04070988139 | L68: 0.04067977005 | M68: 0.04151852672 | O68: 0 | P68: 49 | Q68: 0 | S68: 49 | T68: 0.2906494411 | U68: 0.02521708995 | V68: 0.0255377303 | W68: 0.04071440305 | X68: 0.0406848309 | Y68: 0.0415237977
C69: 0 | D69: 50 | E69: 0.008264041821 | G69: 50 | H69: 0.2867583286 | I69: 0.02498230957 | J69: 0.02529698242 | K69: 0.04076376931 | L69: 0.04073742521 | M69: 0.04157857736 | O69: 0 | P69: 50 | Q69: 0 | S69: 50 | T69: 0.2790459323 | U69: 0.02552757757 | V69: 0.02585619651 | W69: 0.04076736833 | X69: 0.04074147104 | Y69: 0.04158279142
G70: 51 | H70: 0.27529739 | I70: 0.0252922225 | J70: 0.02561478445 | K70: 0.0408109195 | L70: 0.04078786887 | M70: 0.04163111972 | S70: 51 | T70: 0.2678923782 | U70: 0.02582686182 | V70: 0.02616326506 | W70: 0.0408137558 | X70: 0.04079107434 | Y70: 0.04163445864
G71: 52 | H71: 0.2642828481 | I71: 0.02559106452 | J71: 0.02592132705 | K71: 0.04085217828 | L71: 0.04083200751 | M71: 0.04167709692 | S71: 52 | T71: 0.257173462 | U71: 0.02611547062 | V71: 0.02645946755 | W71: 0.04085438614 | X71: 0.04083451937 | Y71: 0.04167971347
G72: 53 | H72: 0.2536991944 | I72: 0.02587935826 | J72: 0.02621713638 | K72: 0.04088828477 | L72: 0.04087063264 | M72: 0.04171733261 | S72: 53 | T72: 0.2468740364 | U72: 0.02639390654 | V72: 0.02674531052 | W72: 0.04088997677 | X72: 0.04087257401 | Y72: 0.04171935497
G73: 54 | H73: 0.2435311489 | I73: 0.02615760043 | J73: 0.02650271299 | K73: 0.04091988466 | L73: 0.04090443559 | M73: 0.04175254632 | S73: 54 | T73: 0.236979188 | U73: 0.02666264733 | V73: 0.02702127595 | W73: 0.04092115503 | X73: 0.04090590961 | Y73: 0.04175408189
G74: 55 | H74: 0.2337637139 | I74: 0.02642626261 | J74: 0.0267785325 | K74: 0.0409475422 | L74: 0.0409340204 | M74: 0.04178336683 | S74: 55 | T74: 0.2274742874 | U74: 0.02692214672 | V74: 0.02728782192 | W74: 0.04094846964 | X74: 0.04093511332 | Y74: 0.04178450542
G75: 56 | H75: 0.2243822163 | I75: 0.02668579212 | J75: 0.02704504641 | K75: 0.04097175057 | L75: 0.04095991497 | M75: 0.04181034371 | S75: 56 | T75: 0.2183450284 | U75: 0.02717283515 | V75: 0.02754538337 | W75: 0.04097240072 | X75: 0.04096069878 | Y75: 0.0418111603
G76: 57 | H76: 0.215372339 | I76: 0.02693661297 | J76: 0.02730268303 | K76: 0.04099294095 | L76: 0.04098258078 | M76: 0.04183395745 | S76: 57 | T76: 0.2095774573 | U76: 0.02741512076 | V76: 0.027794373 | W76: 0.0409933684 | X76: 0.04098311544 | Y76: 0.04183451448
G77: 58 | H77: 0.2067201442 | I77: 0.02717912691 | J77: 0.02755184846 | K77: 0.04101149036 | L77: 0.04100242132 | M77: 0.04185462821 | S77: 58 | T77: 0.2011579939 | U77: 0.02764939035 | V77: 0.02803518217 | W77: 0.0410117404 | X77: 0.04100275664 | Y77: 0.04185497756
G78: 59 | H78: 0.1984120897 | I78: 0.02741371441 | J78: 0.02779292756 | K78: 0.04102772856 | L78: 0.04101978945 | M78: 0.04187272343 | S78: 59 | T78: 0.1930734472 | U78: 0.02787601029 | V78: 0.02826818184 | W78: 0.04102783865 | X78: 0.04101996669 | Y78: 0.04187290809
G79: 60 | H79: 0.1904350392 | I79: 0.02764073573 | J79: 0.02802628496 | K79: 0.04104194398 | L79: 0.04103499381 | M79: 0.04188856455 | S79: 60 | T79: 0.1853110241 | U79: 0.02809532757 | V79: 0.02849372355 | W79: 0.04104194501 | X79: 0.04103504704 | Y79: 0.04188862002
G80: 61 | H80: 0.1827762689 | I80: 0.02786053194 | J80: 0.02825226607 | K80: 0.04105438895 | L80: 0.04104830436 | M80: 0.04190243276 | S80: 61 | T80: 0.1778583351 | U80: 0.02830767075 | V80: 0.02871214037 | W80: 0.04105430629 | X80: 0.04104826163 | Y80: 0.04190238824
G81: 62 | H81: 0.1754234689 | I81: 0.0280734259 | J81: 0.02847119807 | K81: 0.04106528425 | L81: 0.0410599573 | M81: 0.04191457406 | S81: 62 | T81: 0.1707033956 | U81: 0.02851335092 | V81: 0.02892374782 | W81: 0.04106513865 | X81: 0.04105984161 | Y81: 0.04191445352
G82: 63 | H82: 0.1683647428 | I82: 0.02827972325 | J82: 0.02868339084 | K82: 0.04107482305 | L82: 0.0410701593 | M82: 0.04192520373 | S82: 63 | T82: 0.1638346246 | U82: 0.02871266264 | V82: 0.02912884483 | W82: 0.04107463139 | X82: 0.04106998941 | Y82: 0.04192502671
G83: 64 | H83: 0.1615886039 | I83: 0.02847971338 | J83: 0.02888913794 | K83: 0.04108317439 | L83: 0.04107909121 | M83: 0.04193451015 | S83: 64 | T83: 0.1572408412 | U83: 0.02890588483 | V83: 0.02932771456 | W83: 0.04108295034 | X83: 0.04107888234 | Y83: 0.04193429252
G84: 65 | H84: 0.1550839699 | I84: 0.02867367027 | J84: 0.02908871743 | K84: 0.04109048623 | L84: 0.04108691128 | M84: 0.04194265818 | S84: 65 | T84: 0.1509112589 | U84: 0.02909328161 | V84: 0.02952062534 | W84: 0.04109024077 | X84: 0.04108667571 | Y84: 0.04194241273
G85: 66 | H85: 0.1488401563 | I85: 0.02886185342 | J85: 0.02928239281 | K85: 0.04109688805 | L85: 0.04109375802 | M85: 0.04194979212 | S85: 66 | T85: 0.1448354787 | U85: 0.02927510319 | V85: 0.02970783142 | W85: 0.04109662993 | X85: 0.04109350558 | Y85: 0.04194952909
G86: 67 | H86: 0.1428468677 | I86: 0.02904450863 | J86: 0.02947041377 | K86: 0.04110249317 | L86: 0.04109975267 | M86: 0.04195603826 | S86: 67 | T86: 0.1390034812 | U86: 0.02945158659 | V86: 0.0298895738 | W86: 0.04110222931 | X86: 0.04109949116 | Y86: 0.04195576578
G87: 68 | H87: 0.1370941889 | I87: 0.02922186881 | J87: 0.02965301703 | K87: 0.04110740081 | L87: 0.04110500132 | M87: 0.04196150714 | S87: 68 | T87: 0.1334056172 | U87: 0.02962295645 | V87: 0.03006608095 | W87: 0.04110713659 | X87: 0.04110473688 | Y87: 0.0419612316
G88: 69 | H88: 0.1315725753 | I88: 0.02939415473 | J88: 0.02983042702 | K88: 0.04111169779 | L88: 0.04110959687 | M88: 0.04196629553 | S88: 69 | T88: 0.1280325984 | U88: 0.02978942569 | V88: 0.03023756954 | W88: 0.04111143735 | X88: 0.04110933424 | Y88: 0.04196602188
G89: 70 | H89: 0.1262728425 | I89: 0.02956157567 | J89: 0.03000285663 | K89: 0.04111546014 | L89: 0.04111362061 | M89: 0.04197048814 | S89: 70 | T89: 0.1228754872 | U89: 0.02995119623 | V89: 0.03040424511 | W89: 0.04111520661 | X89: 0.0411133634 | Y89: 0.04197022014
G90: 71 | H90: 0.1211861555 | I90: 0.02972433015 | J90: 0.03017050786 | K90: 0.04111875439 | L90: 0.04111714372 | M90: 0.04197415913 | S90: 71 | T90: 0.1179256862 | U90: 0.03010845959 | V90: 0.03056630269 | W90: 0.04111851006 | X90: 0.04111689463 | Y90: 0.04197389958
G91: 72 | H91: 0.1163040183 | I91: 0.02988260652 | J91: 0.03033357241 | K91: 0.0411216388 | L91: 0.04112022852 | M91: 0.04197737341 | S91: 72 | T91: 0.1131749282 | U91: 0.0302613975 | V91: 0.0307239274 | W91: 0.04112140529 | X91: 0.04111998949 | Y91: 0.04197712434
G92: 73 | H92: 0.1116182626 | I92: 0.03003658354 | J92: 0.03049223232 | K92: 0.04112416439 | L92: 0.04112292955 | M92: 0.04198018782 | S92: 73 | T92: 0.1086152648 | U92: 0.03041018249 | V92: 0.03087729506 | W92: 0.04112394275 | X92: 0.0411227019 | Y92: 0.04197995062
G93: 74 | H93: 0.1071210374 | I93: 0.03018643099 | J93: 0.03064666052 | K93: 0.04112637579 | L93: 0.04112529456 | M93: 0.04198265213 | S93: 74 | T93: 0.1042390561 | U93: 0.03055497839 | V93: 0.03102657267 | W93: 0.04112616668 | X93: 0.04112507915 | Y93: 0.04198242768
G94: 75 | H94: 0.1028047975 | I94: 0.03033231011 | J94: 0.03079702132 | K94: 0.0411283121 | L94: 0.04112736537 | M94: 0.04198480988 | S94: 75 | T94: 0.1000389605 | U94: 0.03069594085 | V94: 0.03117191896 | W94: 0.04112811582 | X94: 0.04112716267 | Y94: 0.04198459866
G95: 76 | H95: 0.09866229348 | I95: 0.03047437417 | J95: 0.03094347093 | K95: 0.04113000755 | L95: 0.04112917859 | M95: 0.04198669922 | S95: 76 | T95: 0.09600792369 | U95: 0.0308332178 | V95: 0.03131348481 | W95: 0.04112982413 | X95: 0.04112898874 | Y95: 0.04198650141
G96: 77 | H96: 0.09468656069 | I96: 0.03061276888 | J96: 0.03108615792 | K96: 0.0411314921 | L96: 0.04113076625 | M96: 0.04198835355 | S96: 77 | T96: 0.0921391687 | U96: 0.03096694989 | V96: 0.03145141374 | W96: 0.04113132137 | X96: 0.0411305892 | Y96: 0.04198816906
G97: 78 | H97: 0.0908709092 | I97: 0.03074763282 | J97: 0.03122522364 | K97: 0.04113279199 | L97: 0.04113215643 | M97: 0.0419898021 | S97: 78 | T97: 0.08842618581 | U97: 0.03109727094 | V97: 0.03158584233 | W97: 0.04113263362 | X97: 0.04113199191 | Y97: 0.04198963067
G98: 79 | H98: 0.08720891356 | I98: 0.03087909789 | J98: 0.03136080265 | K98: 0.0411339302 | L98: 0.04113337369 | M98: 0.04199107048 | S98: 79 | T98: 0.08486272272 | U98: 0.03122430829 | V98: 0.03171690059 | W98: 0.04113378375 | X98: 0.04113322132 | Y98: 0.0419909117
G99: 80 | H99: 0.08369440303 | I99: 0.03100728966 | J99: 0.0314930231 | K99: 0.04113492684 | L99: 0.04113443955 | M99: 0.04199218109 | S99: 80 | T99: 0.0814427749 | U99: 0.03134818317 | V99: 0.03184471231 | W99: 0.04113479178 | X99: 0.04113429884 | Y99: 0.04199203447
G100: 81 | H100: 0.08032145197 | I100: 0.03113232773 | J100: 0.03162200705 | K100: 0.04113579951 | L100: 0.04113537283 | M100: 0.04199315356 | S100: 81 | T100: 0.07816057637 | U100: 0.03146901107 | V100: 0.03196939548 | W100: 0.04113567527 | X100: 0.04113524323 | Y100: 0.04199301852
G101: 82 | H101: 0.07708437052 | I101: 0.03125432605 | J101: 0.03174787088 | K101: 0.04113656364 | L101: 0.04113619003 | M101: 0.04199400507 | S101: 82 | T101: 0.07501059056 | U101: 0.03158690205 | V101: 0.03209106253 | W101: 0.04113644961 | X101: 0.04113607095 | Y101: 0.041993881
G102: 83 | H102: 0.07397769563 | I102: 0.03137339327 | J102: 0.03187072555 | K102: 0.04113723273 | L102: 0.04113690558 | M102: 0.04199475068 | S102: 83 | T102: 0.07198750157 | U102: 0.03170196102 | V102: 0.03220982069 | W102: 0.04113712829 | X102: 0.04113679641 | Y102: 0.04199463692
G103: 84 | H103: 0.07099618231 | I103: 0.03148963302 | J103: 0.03199067691 | K103: 0.04113781859 | L103: 0.04113753214 | M103: 0.04199540355 | S103: 84 | T103: 0.06908620567 | U103: 0.03181428805 | V103: 0.03232577227 | W103: 0.04113772313 | X103: 0.04113743225 | Y103: 0.04199529946
G104: 85 | H104: 0.06813479514 | I104: 0.03160314417 | J104: 0.03210782601 | K104: 0.0411383316 | L104: 0.04113808077 | M104: 0.04199597522 | S104: 85 | T104: 0.0663018031 | U104: 0.03192397866 | V104: 0.03243901492 | W104: 0.04113824448 | X104: 0.04113798953 | Y104: 0.04199588015
G105: 86 | H105: 0.06538870018 | I105: 0.03171402111 | J105: 0.03222226931 | K105: 0.04113878079 | L105: 0.04113856117 | M105: 0.04199647579 | S105: 86 | T105: 0.06362959007 | U105: 0.032031124 | V105: 0.03254964188 | W105: 0.04113870142 | X105: 0.04113847797 | Y105: 0.0419963891
G106: 87 | H106: 0.06275325703 | I106: 0.03182235399 | J106: 0.03233409898 | K106: 0.04113917412 | L106: 0.04113898181 | M106: 0.0419969141 | S106: 87 | T106: 0.06106505118 | U106: 0.03213581115 | V106: 0.03265774222 | W106: 0.04113910191 | X106: 0.04113890606 | Y106: 0.04199683517
G107: 88 | H107: 0.06022401129 | I107: 0.03192822895 | J107: 0.0324434031 | K107: 0.04113951853 | L107: 0.04113935014 | M107: 0.0419972979 | S107: 88 | T107: 0.05860385196 | U107: 0.03223812331 | V107: 0.03276340107 | W107: 0.04113945292 | X107: 0.04113928127 | Y107: 0.04199722614
G108: 89 | H108: 0.05779668718 | I108: 0.03203172832 | J108: 0.03255026587 | K108: 0.0411398201 | L108: 0.04113967265 | M108: 0.04199763396 | S108: 89 | T108: 0.05624183176 | U108: 0.03233814002 | V108: 0.03286669983 | W108: 0.04113976058 | X108: 0.04113961013 | Y108: 0.04199756881
G109: 90 | H109: 0.05546718051 | I109: 0.03213293084 | J109: 0.03265476784 | K109: 0.04114008417 | L109: 0.04113995506 | M109: 0.04199792822 | S109: 90 | T109: 0.0539749969 | U109: 0.03243593733 | V109: 0.03296771636 | W109: 0.04114003022 | X109: 0.04113989836 | Y109: 0.04199786914
G110: 91 | H110: 0.0532315519 | I110: 0.03223191184 | J110: 0.03275698611 | K110: 0.04114031539 | L110: 0.04114020234 | M110: 0.04199818589 | S110: 91 | T110: 0.05179951406 | U110: 0.03253158803 | V110: 0.03306652517 | W110: 0.04114026656 | X110: 0.04114015099 | Y110: 0.04199813238
G111: 92 | H111: 0.0510860202 | I111: 0.03232874344 | J111: 0.03285699446 | K111: 0.04114051786 | L111: 0.04114041887 | M111: 0.04199841151 | S111: 92 | T111: 0.04971170387 | U111: 0.03262516178 | V111: 0.03316319759 | W111: 0.0411404737 | X111: 0.0411403724 | Y111: 0.04199836309
G112: 93 | H112: 0.04902695623 | I112: 0.03242349468 | J112: 0.03295486358 | K112: 0.04114069515 | L112: 0.04114060847 | M112: 0.04199860907 | S112: 93 | T112: 0.04770803485 | U112: 0.03271672527 | V112: 0.03325780195 | W112: 0.04114065525 | X112: 0.04114056646 | Y112: 0.04199856531
G113: 94 | H113: 0.04705087671 | I113: 0.0325162317 | J113: 0.03305066117 | K113: 0.04114085038 | L113: 0.04114077448 | M113: 0.04199878206 | S113: 94 | T113: 0.04578511749 | U113: 0.03280634241 | V113: 0.03335040371 | W113: 0.04114081437 | X113: 0.04114073655 | Y113: 0.04199874254
G114: 95 | H114: 0.04515443846 | I114: 0.03260701789 | J114: 0.03314445216 | K114: 0.04114098631 | L114: 0.04114091985 | M114: 0.04199893353 | S114: 95 | T114: 0.04393969858 | U114: 0.03289407444 | V114: 0.03344106562 | W114: 0.04114095383 | X114: 0.04114088563 | Y114: 0.04199889788
G115: 96 | H115: 0.04333443275 | I115: 0.03269591403 | J115: 0.0332362988 | K115: 0.04114110534 | L115: 0.04114104714 | M115: 0.04199906617 | S115: 96 | T115: 0.04216865577 | U115: 0.03297998009 | V115: 0.03352984786 | W115: 0.04114107607 | X115: 0.04114101629 | Y115: 0.04199903403
G116: 97 | H116: 0.04158777999 | I116: 0.0327829784 | J116: 0.03332626079 | K116: 0.04114120956 | L116: 0.0411411586 | M116: 0.04199918231 | S116: 97 | T116: 0.04046899235 | U116: 0.03306411566 | V116: 0.03361680814 | W116: 0.04114118321 | X116: 0.04114113081 | Y116: 0.04199915336
G117: 98 | H117: 0.03991152454 | I117: 0.03286826695 | J117: 0.03341439545 | K117: 0.04114130082 | L117: 0.0411412562 | M117: 0.04199928401 | S117: 98 | T117: 0.03883783222 | U117: 0.03314653521 | V117: 0.03370200188 | W117: 0.04114127711 | X117: 0.04114123119 | Y117: 0.04199925795
G118: 99 | H118: 0.03830282971 | I118: 0.03295183336 | J118: 0.03350075779 | K118: 0.04114138072 | L118: 0.04114134165 | M118: 0.04199937305 | S118: 99 | T118: 0.03727241503 | U118: 0.0332272906 | V118: 0.03378548226 | W118: 0.04114135941 | X118: 0.04114131916 | Y118: 0.04199934961
G119: 100 | H119: 0.03675897302 | I119: 0.03303372919 | J119: 0.03358540066 | K119: 0.0411414507 | L119: 0.04114141648 | M119: 0.04199945103 | S119: 100 | T119: 0.03577009157 | U119: 0.03330643166 | V119: 0.03386730038 | W119: 0.04114143154 | X119: 0.04114139627 | Y119: 0.04199942996
G120: 101 | H120: 0.03527734163 | I120: 0.03311400397 | J120: 0.03366837483 | K120: 0.04114151196 | L120: 0.04114148201 | M120: 0.0419995193 | S120: 101 | T120: 0.03432831931 | U120: 0.03338400623 | V120: 0.0339475053 | W120: 0.04114149476 | X120: 0.04114146385 | Y120: 0.04199950038
G121: 102 | H121: 0.03385542791 | I121: 0.0331927053 | J121: 0.0337497291 | K121: 0.04114156561 | L121: 0.04114153938 | M121: 0.04199957909 | S121: 102 | T121: 0.0329446581 | U121: 0.03346006032 | V121: 0.03402614423 | W121: 0.04114155018 | X121: 0.04114152308 | Y121: 0.0419995621
G122: 103 | H122: 0.03249082522 | I122: 0.03326987894 | J122: 0.0338295104 | K122: 0.04114161259 | L122: 0.04114158962 | M122: 0.04199963143 | S122: 103 | T122: 0.03161676606 | U122: 0.03353463813 | V122: 0.03410326251 | W122: 0.04114159874 | X122: 0.04114157499 | Y122: 0.04199961619
G123: 104 | H123: 0.03118122388 | I123: 0.03334556888 | J123: 0.03390776387 | K123: 0.04114165372 | L123: 0.04114163361 | M123: 0.04199967727 | S123: 104 | T123: 0.03034239565 | U123: 0.03360778219 | V123: 0.03417890379 | W123: 0.04114164131 | X123: 0.0411416205 | Y123: 0.04199966361
G124: 105 | H124: 0.02992440723 | I124: 0.03341981749 | J124: 0.03398453292 | K124: 0.04114168974 | L124: 0.04114167213 | M124: 0.04199971741 | S124: 105 | T124: 0.02911938986 | U124: 0.03367953341 | V124: 0.03425311005 | W124: 0.04114167862 | X124: 0.04114166038 | Y124: 0.04199970516
G125: 106 | H125: 0.02871824793 | I125: 0.03349266549 | J125: 0.03405985938 | K125: 0.04114172128 | L125: 0.04114170586 | M125: 0.04199975255 | S125: 106 | T125: 0.02794567858 | U125: 0.03374993117 | V125: 0.03432592171 | W125: 0.04114171132 | X125: 0.04114169533 | Y125: 0.04199974158
G126: 107 | H126: 0.02756070432 | I126: 0.03356415213 | J126: 0.03413378348 | K126: 0.0411417489 | L126: 0.04114173539 | M126: 0.04199978333 | S126: 107 | T126: 0.0268192751 | U126: 0.03381901336 | V126: 0.03439737768 | W126: 0.04114173998 | X126: 0.04114172597 | Y126: 0.04199977351
G127: 108 | H127: 0.02644981702 | I127: 0.03363431517 | J127: 0.034206344 | K127: 0.04114177308 | L127: 0.04114176125 | M127: 0.04199981028 | S127: 108 | T127: 0.02573827275 | U127: 0.03388681651 | V127: 0.03446751545 | W127: 0.0411417651 | X127: 0.04114175282 | Y127: 0.04199980149
G128: 109 | H128: 0.0253837056 | I128: 0.03370319103 | J128: 0.03427757831 | K128: 0.04114179425 | L128: 0.0411417839 | M128: 0.04199983387 | S128: 109 | T128: 0.0247008417 | U128: 0.03395337577 | V128: 0.03453637114 | W128: 0.04114178712 | X128: 0.04114177635 | Y128: 0.04199982601
G129: 110 | H129: 0.0243605654 | I129: 0.03377081478 | J129: 0.0343475224 | K129: 0.04114181279 | L129: 0.04114180373 | M129: 0.04199985453 | S129: 110 | T129: 0.02370522583 | U129: 0.03401872505 | V129: 0.03460397956 | W129: 0.04114180642 | X129: 0.04114179698 | Y129: 0.0419998475
G130: 111 | H130: 0.02337866447 | I130: 0.03383722025 | J130: 0.03441621101 | K130: 0.04114182903 | L130: 0.04114182109 | M130: 0.04199987262 | S130: 111 | T130: 0.0227497398 | U130: 0.03408289704 | V130: 0.03467037428 | W130: 0.04114182333 | X130: 0.04114181506 | Y130: 0.04199986634
G131: 112 | H131: 0.02243634066 | I131: 0.03390244003 | J131: 0.03448367761 | K131: 0.04114184324 | L131: 0.04114183629 | M131: 0.04199988847 | S131: 112 | T131: 0.02183276618 | U131: 0.03414592323 | V131: 0.03473558767 | W131: 0.04114183815 | X131: 0.04114183091 | Y131: 0.04199988285
G132: 113 | H132: 0.02153199882 | I132: 0.0339665056 | J132: 0.03454995452 | K132: 0.04114185569 | L132: 0.04114184961 | M132: 0.04199990234 | S132: 113 | T132: 0.02095275272 | U132: 0.03420783404 | V132: 0.03479965097 | W132: 0.04114185115 | X132: 0.04114184479 | Y132: 0.04199989732
G133: 114 | H133: 0.02066410805 | I133: 0.03402944732 | J133: 0.03461507292 | K133: 0.04114186659 | L133: 0.04114186126 | M133: 0.04199991448 | S133: 114 | T133: 0.02010820972 | U133: 0.0342686588 | V133: 0.03486259433 | W133: 0.04114186254 | X133: 0.04114185697 | Y133: 0.04199991001
G134: 115 | H134: 0.01983119917 | I134: 0.03409129449 | J134: 0.03467906291 | K134: 0.04114187613 | L134: 0.04114187147 | M134: 0.04199992512 | S134: 115 | T134: 0.01929770752 | U134: 0.03432842584 | V134: 0.03492444685 | W134: 0.04114187252 | X134: 0.04114186764 | Y134: 0.04199992112
G135: 116 | H135: 0.0190318622 | I135: 0.0341520754 | J135: 0.03474195356 | K135: 0.04114188449 | L135: 0.04114188041 | M135: 0.04199993443 | S135: 116 | T135: 0.01851987409 | U135: 0.03438716249 | V135: 0.03498523663 | W135: 0.04114188126 | X135: 0.04114187699 | Y135: 0.04199993087
G136: 117 | H136: 0.018264744 | I136: 0.03421181739 | J136: 0.03480377295 | K136: 0.04114189181 | L136: 0.04114188823 | M136: 0.04199994259 | S136: 117 | T136: 0.01777339268 | U136: 0.03444489516 | V136: 0.03504499081 | W136: 0.04114188893 | X136: 0.04114188518 | Y136: 0.04199993941
G137: 118 | H137: 0.01752854595 | I137: 0.03427054686 | J137: 0.03486454821 | K137: 0.04114189822 | L137: 0.04114189508 | M137: 0.04199994973 | S137: 118 | T137: 0.0170569996 | U137: 0.03450164937 | V137: 0.03510373565 | W137: 0.04114189565 | X137: 0.04114189237 | Y137: 0.04199994689
G138: 119 | H138: 0.01682202178 | I138: 0.03432828933 | J138: 0.03492430558 | K138: 0.04114190383 | L138: 0.04114190108 | M138: 0.04199995598 | S138: 119 | T138: 0.01636948211 | U138: 0.03455744979 | V138: 0.03516149647 | W138: 0.04114190154 | X138: 0.04114189866 | Y138: 0.04199995345
G139: 120 | H139: 0.01614397543 | I139: 0.03438506948 | J139: 0.03498307039 | K139: 0.04114190874 | L139: 0.04114190634 | M139: 0.04199996145 | S139: 120 | T139: 0.01570967635 | U139: 0.03461232024 | V139: 0.03521829781 | W139: 0.0411419067 | X139: 0.04114190418 | Y139: 0.0419999592
H140: 0.13281 | I140: 0 | J140: 0 | K140: 0 | L140: 0 | M140: 0 | T140: 0.131856 | U140: 0 | V140: 0 | W140: 0 | X140: 0 | Y140: 0
A589: 0.1476645236
A590: 0.1476645236
A591: 0.1476645236
A592: 0.1275497743
A593: 0.1258593643
A594: 0.1198306662
A595: 0.1255641782
A596: 0.1320981513
A597: 0.1320981513
A598: 0.1320981513
A599: 0.1268930512
A600: 0.1286673761
A601: 0.1246613651
A602: 0.1169655961
A603: 0.1236334957
A604: 0.1236334957
A605: 0.1236334957
A606: 0.1260596568

Sheet Graphs (hidden)
A1: Title 1 | B1: ='Smith-Wilson RFR'!$H$17&" Forward levels" -> Smith Wilson - No volatility adjustment Forward levels
A2: Title 2 | B2: ='Smith-Wilson RFR'!$H$17&" Spot levels" -> Smith Wilson - No volatility adjustment Spot levels
A3: Title 3 | B3: ='Smith-Wilson RFR'!$H$17&" Annual Compounded Rates" -> Smith Wilson - No volatility adjustment Annual Compounded Rates
A4: Title 4 | B4: ='Smith-Wilson RFR'!$T$17&" Forward levels" -> Smith Wilson - With volatility adjustment Forward levels
A5: Title 5 | B5: ='Smith-Wilson RFR'!$T$17&" Spot levels" -> Smith Wilson - With volatility adjustment Spot levels
A6: Title 6 | B6: ='Smith-Wilson RFR'!$T$17&" Annual Compounded Rates" -> Smith Wilson - With volatility adjustment Annual Compounded Rates

Sheet INPUT DATA (hidden)
B1: 0 | C1: HOW TO USE THIS SHEET
B2: 1 | C2: Copy your input data into the format of this sheet, i.e. including dates and rates on the right place with the right format
B3: 2 | C3: Make sure the column A numbers the entries 1,2,….
B4: 3 | C4: Cell A6 gives the maximum number of entries and is used to automatically set the date list to choose from on the Smith-Wilson Basic RFR worksheet
B5: Liquidity | C5: =TRANSPOSE('Smith-Wilson RFR'!C20:C69) -> 1 | D5: 1 | E5: 1 | F5: 1 | G5: 1 | H5: 1 | I5: 1 | J5: 1 | K5: 1 | L5: 1 | M5: 0 | N5: 1 | O5: 0 | P5: 0 | Q5: 1 | R5: 0 | S5: 0 | T5: 0 | U5: 0 | V5: 1 | W5: 0 | X5: 0 | Y5: 0 | Z5: 0 | AA5: 0 | AB5: 0 | AC5: 0 | AD5: 0 | AE5: 0 | AF5: 0 | AG5: 0 | AH5: 0 | AI5: 0 | AJ5: 0 | AK5: 0 | AL5: 0 | AM5: 0 | AN5: 0 | AO5: 0 | AP5: 0 | AQ5: 0 | AR5: 0 | AS5: 0 | AT5: 0 | AU5: 0 | AV5: 0 | AW5: 0 | AX5: 0 | AY5: 0 | AZ5: 0
A6: =MAX($A$8:$A$1048576) -> 11 | B6: Maturity | C6: 1 | D6: 2 | E6: 3 | F6: 4 | G6: 5 | H6: 6 | I6: 7 | J6: 8 | K6: 9 | L6: 10 | M6: 11 | N6: 12 | O6: 13 | P6: 14 | Q6: 15 | R6: 16 | S6: 17 | T6: 18 | U6: 19 | V6: 20 | W6: 21 | X6: 22 | Y6: 23 | Z6: 24 | AA6: 25 | AB6: 26 | AC6: 27 | AD6: 28 | AE6: 29 | AF6: 30 | AG6: 31 | AH6: 32 | AI6: 33 | AJ6: 34 | AK6: 35 | AL6: 36 | AM6: 37 | AN6: 38 | AO6: 39 | AP6: 40 | AQ6: 41 | AR6: 42 | AS6: 43 | AT6: 44 | AU6: 45 | AV6: 46 | AW6: 47 | AX6: 48 | AY6: 49 | AZ6: 50
B7: Date | C7: Ticker M=1 | D7: Ticker M=2 | E7: Ticker M=3 | F7: Ticker M=4 | G7: Ticker M=5 | H7: Ticker M=6 | I7: Ticker M=7 | J7: Ticker M=8 | K7: Ticker M=9 | L7: Ticker M=10 | M7: Ticker M=11 | N7: Ticker M=12 | O7: Ticker M=13 | P7: Ticker M=14 | Q7: Ticker M=15 | R7: Ticker M=16 | S7: Ticker M=17 | T7: Ticker M=18 | U7: Ticker M=19 | V7: Ticker M=20 | W7: Ticker M=21 | X7: Ticker M=22 | Y7: Ticker M=23 | Z7: Ticker M=24 | AA7: Ticker M=25 | AB7: Ticker M=26 | AC7: Ticker M=27 | AD7: Ticker M=28 | AE7: Ticker M=29 | AF7: Ticker M=30 | AG7: Ticker M=31 | AH7: Ticker M=32 | AI7: Ticker M=33 | AJ7: Ticker M=34 | AK7: Ticker M=35 | AL7: Ticker M=36 | AM7: Ticker M=37 | AN7: Ticker M=38 | AO7: Ticker M=39 | AP7: Ticker M=40 | AQ7: Ticker M=41 | AR7: Ticker M=42 | AS7: Ticker M=43 | AT7: Ticker M=44 | AU7: Ticker M=45 | AV7: Ticker M=46 | AW7: Ticker M=47 | AX7: Ticker M=48 | AY7: Ticker M=49 | AZ7: Ticker M=50
A8: =+A7+1 -> 1 | B8: =termstructure_alternative!D3 -> 2015-12-31 | C8: =termstructure_alternative!F3 -> -0.001570000006 | D8: =termstructure_alternative!G3 -> -0.001290000001 | E8: =termstructure_alternative!H3 -> -0.0003800000014 | F8: =termstructure_alternative!I3 -> 0.00096 | G8: =termstructure_alternative!J3 -> 0.00232 | H8: =termstructure_alternative!K3 -> 0.00381 | I8: =termstructure_alternative!L3 -> 0.00526 | J8: =termstructure_alternative!M3 -> 0.00667 | K8: =termstructure_alternative!N3 -> 0.00801 | L8: =termstructure_alternative!O3 -> 0.00921 | M8: =termstructure_alternative!P3 -> 0.01026 | N8: =termstructure_alternative!Q3 -> 0.0112 | O8: =termstructure_alternative!R3 -> 0.01208 | P8: =termstructure_alternative!S3 -> 0.01284 | Q8: =termstructure_alternative!T3 -> 0.01344 | R8: =termstructure_alternative!U3 -> 0.01388 | S8: =termstructure_alternative!V3 -> 0.01422 | T8: =termstructure_alternative!W3 -> 0.01454 | U8: =termstructure_alternative!X3 -> 0.01488 | V8: =termstructure_alternative!Y3 -> 0.01527 | W8: =termstructure_alternative!Z3 -> 0.01536660991 | X8: =termstructure_alternative!AA3 -> 0.01545444508 | Y8: =termstructure_alternative!AB3 -> 0.01553464904 | Z8: =termstructure_alternative!AC3 -> 0.0156081749 | AA8: =termstructure_alternative!AD3 -> 0.0156758234 | AB8: =termstructure_alternative!AE3 -> 0.01566751963 | AC8: =termstructure_alternative!AF3 -> 0.01565983103 | AD8: =termstructure_alternative!AG3 -> 0.01565269166 | AE8: =termstructure_alternative!AH3 -> 0.0156460447 | AF8: =termstructure_alternative!AI3 -> 0.01563984091 | AG8: =termstructure_alternative!AJ3 -> 0.01562169569 | AH8: =termstructure_alternative!AK3 -> 0.01560468483 | AI8: =termstructure_alternative!AL3 -> 0.01558870519 | AJ8: =termstructure_alternative!AM3 -> 0.01557366576 | AK8: =termstructure_alternative!AN3 -> 0.01555948593 | AL8: =termstructure_alternative!AO3 -> 0.01554609405 | AM8: =termstructure_alternative!AP3 -> 0.01553342622 | AN8: =termstructure_alternative!AQ3 -> 0.01552142526 | AO8: =termstructure_alternative!AR3 -> 0.01551003987 | AP8: =termstructure_alternative!AS3 -> 0.01549922387 | AQ8: =termstructure_alternative!AT3 -> 0.01541301238 | AR8: =termstructure_alternative!AU3 -> 0.015330913 | AS8: =termstructure_alternative!AV3 -> 0.01525263838 | AT8: =termstructure_alternative!AW3 -> 0.01517792733 | AU8: =termstructure_alternative!AX3 -> 0.0151065419 | AV8: =termstructure_alternative!AY3 -> 0.01503826489 | AW8: =termstructure_alternative!AZ3 -> 0.01497289758 | AX8: =termstructure_alternative!BA3 -> 0.01491025787 | AY8: =termstructure_alternative!BB3 -> 0.0148501785 | AZ8: =termstructure_alternative!BC3 -> 0.01479250566
A9: =+A8+1 -> 2 | B9: =termstructure_alternative!D4 -> 2016-01-31 | C9: =termstructure_alternative!F4 -> -0.002540000042 | D9: =termstructure_alternative!G4 -> -0.002750000039 | E9: =termstructure_alternative!H4 -> -0.002230000001 | F9: =termstructure_alternative!I4 -> -0.001350000001 | G9: =termstructure_alternative!J4 -> -0.00023 | H9: =termstructure_alternative!K4 -> 0.00099 | I9: =termstructure_alternative!L4 -> 0.00224 | J9: =termstructure_alternative!M4 -> 0.00351 | K9: =termstructure_alternative!N4 -> 0.0047 | L9: =termstructure_alternative!O4 -> 0.0058 | M9: =termstructure_alternative!P4 -> 0.0068 | N9: =termstructure_alternative!Q4 -> 0.00771 | O9: =termstructure_alternative!R4 -> 0.00854 | P9: =termstructure_alternative!S4 -> 0.00923 | Q9: =termstructure_alternative!T4 -> 0.00977 | R9: =termstructure_alternative!U4 -> 0.01014 | S9: =termstructure_alternative!V4 -> 0.01043 | T9: =termstructure_alternative!W4 -> 0.01071 | U9: =termstructure_alternative!X4 -> 0.01104 | V9: =termstructure_alternative!Y4 -> 0.01145 | W9: =termstructure_alternative!Z4 -> 0.01155408796 | X9: =termstructure_alternative!AA4 -> 0.01164872267 | Y9: =termstructure_alternative!AB4 -> 0.01173513601 | Z9: =termstructure_alternative!AC4 -> 0.01181435472 | AA9: =termstructure_alternative!AD4 -> 0.01188724141 | AB9: =termstructure_alternative!AE4 -> 0.01190449768 | AC9: =termstructure_alternative!AF4 -> 0.01192047596 | AD9: =termstructure_alternative!AG4 -> 0.01193531317 | AE9: =termstructure_alternative!AH4 -> 0.01194912731 | AF9: =termstructure_alternative!AI4 -> 0.01196202069 | AG9: =termstructure_alternative!AJ4 -> 0.01195480126 | AH9: =termstructure_alternative!AK4 -> 0.0119480331 | AI9: =termstructure_alternative!AL4 -> 0.01194167517 | AJ9: =termstructure_alternative!AM4 -> 0.01193569127 | AK9: =termstructure_alternative!AN4 -> 0.01193004934 | AL9: =termstructure_alternative!AO4 -> 0.01192472088 | AM9: =termstructure_alternative!AP4 -> 0.01191968047 | AN9: =termstructure_alternative!AQ4 -> 0.01191490537 | AO9: =termstructure_alternative!AR4 -> 0.01191037517 | AP9: =termstructure_alternative!AS4 -> 0.01190607149 | AQ9: =termstructure_alternative!AT4 -> 0.01182959218 | AR9: =termstructure_alternative!AU4 -> 0.01175676012 | AS9: =termstructure_alternative!AV4 -> 0.01168732048 | AT9: =termstructure_alternative!AW4 -> 0.01162104163 | AU9: =termstructure_alternative!AX4 -> 0.01155771256 | AV9: =termstructure_alternative!AY4 -> 0.01149714064 | AW9: =termstructure_alternative!AZ4 -> 0.01143914965 | AX9: =termstructure_alternative!BA4 -> 0.01138357807 | AY9: =termstructure_alternative!BB4 -> 0.01133027759 | AZ9: =termstructure_alternative!BC4 -> 0.01127911177
A10: 3 | B10: =termstructure_alternative!D5 -> 2016-02-29 | C10: =termstructure_alternative!F5 -> -0.002900000071 | D10: =termstructure_alternative!G5 -> -0.00317 | E10: =termstructure_alternative!H5 -> -0.002840000008 | F10: =termstructure_alternative!I5 -> -0.00216 | G10: =termstructure_alternative!J5 -> -0.001300000004 | H10: =termstructure_alternative!K5 -> -0.00028 | I10: =termstructure_alternative!L5 -> 0.00087 | J10: =termstructure_alternative!M5 -> 0.00202 | K10: =termstructure_alternative!N5 -> 0.0031 | L10: =termstructure_alternative!O5 -> 0.00408 | M10: =termstructure_alternative!P5 -> 0.00497 | N10: =termstructure_alternative!Q5 -> 0.00577 | O10: =termstructure_alternative!R5 -> 0.0065 | P10: =termstructure_alternative!S5 -> 0.0071 | Q10: =termstructure_alternative!T5 -> 0.00753 | R10: =termstructure_alternative!U5 -> 0.0078 | S10: =termstructure_alternative!V5 -> 0.008 | T10: =termstructure_alternative!W5 -> 0.0082 | U10: =termstructure_alternative!X5 -> 0.00848 | V10: =termstructure_alternative!Y5 -> 0.00887 | W10: =termstructure_alternative!Z5 -> 0.008953957881 | X10: =termstructure_alternative!AA5 -> 0.00903028929 | Y10: =termstructure_alternative!AB5 -> 0.009099988228 | Z10: =termstructure_alternative!AC5 -> 0.009163883151 | AA10: =termstructure_alternative!AD5 -> 0.009222670054 | AB10: =termstructure_alternative!AE5 -> 0.009222837439 | AC10: =termstructure_alternative!AF5 -> 0.009222992426 | AD10: =termstructure_alternative!AG5 -> 0.009223136342 | AE10: =termstructure_alternative!AH5 -> 0.009223270333 | AF10: =termstructure_alternative!AI5 -> 0.009223395391 | AG10: =termstructure_alternative!AJ5 -> 0.009196179883 | AH10: =termstructure_alternative!AK5 -> 0.00917066601 | AI10: =termstructure_alternative!AL5 -> 0.009146699019 | AJ10: =termstructure_alternative!AM5 -> 0.009124142372 | AK10: =termstructure_alternative!AN5 -> 0.009102875138 | AL10: =termstructure_alternative!AO5 -> 0.009082789829 | AM10: =termstructure_alternative!AP5 -> 0.009063790579 | AN10: =termstructure_alternative!AQ5 -> 0.009045791621 | AO10: =termstructure_alternative!AR5 -> 0.009028715982 | AP10: =termstructure_alternative!AS5 -> 0.009012494393 | AQ10: =termstructure_alternative!AT5 -> 0.008922037356 | AR10: =termstructure_alternative!AU5 -> 0.008835895337 | AS10: =termstructure_alternative!AV5 -> 0.008753766772 | AT10: =termstructure_alternative!AW5 -> 0.008675377561 | AU10: =termstructure_alternative!AX5 -> 0.008600478007 | AV10: =termstructure_alternative!AY5 -> 0.008528840159 | AW10: =termstructure_alternative!AZ5 -> 0.008460255498 | AX10: =termstructure_alternative!BA5 -> 0.008394532908 | AY10: =termstructure_alternative!BB5 -> 0.008331496898 | AZ10: =termstructure_alternative!BC5 -> 0.008270986035
A11: 4 | B11: =termstructure_alternative!D6 -> 2016-03-31 | C11: =termstructure_alternative!F6 -> -0.002480000038 | D11: =termstructure_alternative!G6 -> -0.00249000002 | E11: =termstructure_alternative!H6 -> -0.002160000002 | F11: =termstructure_alternative!I6 -> -0.00151 | G11: =termstructure_alternative!J6 -> -0.0007100000077 | H11: =termstructure_alternative!K6 -> 0.00029 | I11: =termstructure_alternative!L6 -> 0.0014 | J11: =termstructure_alternative!M6 -> 0.00255 | K11: =termstructure_alternative!N6 -> 0.00353 | L11: =termstructure_alternative!O6 -> 0.00464 | M11: =termstructure_alternative!P6 -> 0.00549 | N11: =termstructure_alternative!Q6 -> 0.00622 | O11: =termstructure_alternative!R6 -> 0.007 | P11: =termstructure_alternative!S6 -> 0.00771 | Q11: =termstructure_alternative!T6 -> 0.00823 | R11: =termstructure_alternative!U6 -> 0.00851 | S11: =termstructure_alternative!V6 -> 0.00866 | T11: =termstructure_alternative!W6 -> 0.00879 | U11: =termstructure_alternative!X6 -> 0.00899 | V11: =termstructure_alternative!Y6 -> 0.00931 | W11: =termstructure_alternative!Z6 -> 0.009389521599 | X11: =termstructure_alternative!AA6 -> 0.009461819399 | Y11: =termstructure_alternative!AB6 -> 0.009527834955 | Z11: =termstructure_alternative!AC6 -> 0.009588353008 | AA11: =termstructure_alternative!AD6 -> 0.009644032821 | AB11: =termstructure_alternative!AE6 -> 0.009630817566 | AC11: =termstructure_alternative!AF6 -> 0.009618581374 | AD11: =termstructure_alternative!AG6 -> 0.009607219327 | AE11: =termstructure_alternative!AH6 -> 0.009596640985 | AF11: =termstructure_alternative!AI6 -> 0.009586767966 | AG11: =termstructure_alternative!AJ6 -> 0.009530937553 | AH11: =termstructure_alternative!AK6 -> 0.009478599344 | AI11: =termstructure_alternative!AL6 -> 0.00942943562 | AJ11: =termstructure_alternative!AM6 -> 0.009383166067 | AK11: =termstructure_alternative!AN6 -> 0.009339542431 | AL11: =termstructure_alternative!AO6 -> 0.009298344061 | AM11: =termstructure_alternative!AP6 -> 0.009259374178 | AN11: =termstructure_alternative!AQ6 -> 0.00922245673 | AO11: =termstructure_alternative!AR6 -> 0.009187433732 | AP11: =termstructure_alternative!AS6 -> 0.00915416301 | AQ11: =termstructure_alternative!AT6 -> 0.009037289574 | AR11: =termstructure_alternative!AU6 -> 0.008925994124 | AS11: =termstructure_alternative!AV6 -> 0.008819886639 | AT11: =termstructure_alternative!AW6 -> 0.008718612631 | AU11: =termstructure_alternative!AX6 -> 0.00862184919 | AV11: =termstructure_alternative!AY6 -> 0.00852930154 | AW11: =termstructure_alternative!AZ6 -> 0.008440700046 | AX11: =termstructure_alternative!BA6 -> 0.008355797584 | AY11: =termstructure_alternative!BB6 -> 0.008274367246 | AZ11: =termstructure_alternative!BC6 -> 0.008196200308
A12: 5 | B12: =termstructure_alternative!D7 -> 2016-04-30 | C12: =termstructure_alternative!F7 -> -0.002450000036 | D12: =termstructure_alternative!G7 -> -0.002370000014 | E12: =termstructure_alternative!H7 -> -0.001970000001 | F12: =termstructure_alternative!I7 -> -0.00119 | G12: =termstructure_alternative!J7 -> -0.00022 | H12: =termstructure_alternative!K7 -> 0.00096 | I12: =termstructure_alternative!L7 -> 0.00219 | J12: =termstructure_alternative!M7 -> 0.00346 | K12: =termstructure_alternative!N7 -> 0.00468 | L12: =termstructure_alternative!O7 -> 0.00576 | M12: =termstructure_alternative!P7 -> 0.00676 | N12: =termstructure_alternative!Q7 -> 0.0077 | O12: =termstructure_alternative!R7 -> 0.00855 | P12: =termstructure_alternative!S7 -> 0.00925 | Q12: =termstructure_alternative!T7 -> 0.00976 | R12: =termstructure_alternative!U7 -> 0.01009 | S12: =termstructure_alternative!V7 -> 0.01033 | T12: =termstructure_alternative!W7 -> 0.01055 | U12: =termstructure_alternative!X7 -> 0.01083 | V12: =termstructure_alternative!Y7 -> 0.0112 | W12: =termstructure_alternative!Z7 -> 0.01134395473 | X12: =termstructure_alternative!AA7 -> 0.01147484044 | Y12: =termstructure_alternative!AB7 -> 0.01159435959 | Z12: =termstructure_alternative!AC7 -> 0.01170393121 | AA12: =termstructure_alternative!AD7 -> 0.01180474758 | AB12: =termstructure_alternative!AE7 -> 0.01180541371 | AC12: =termstructure_alternative!AF7 -> 0.0118060305 | AD12: =termstructure_alternative!AG7 -> 0.01180660323 | AE12: =termstructure_alternative!AH7 -> 0.01180713647 | AF12: =termstructure_alternative!AI7 -> 0.01180763415 | AG12: =termstructure_alternative!AJ7 -> 0.01175656527 | AH12: =termstructure_alternative!AK7 -> 0.01170869054 | AI12: =termstructure_alternative!AL7 -> 0.01166371937 | AJ12: =termstructure_alternative!AM7 -> 0.01162139538 | AK12: =termstructure_alternative!AN7 -> 0.01158149154 | AL12: =termstructure_alternative!AO7 -> 0.01154380601 | AM12: =termstructure_alternative!AP7 -> 0.01150815884 | AN12: =termstructure_alternative!AQ7 -> 0.01147438899 | AO12: =termstructure_alternative!AR7 -> 0.01144235197 | AP12: =termstructure_alternative!AS7 -> 0.01141191774 | AQ12: =termstructure_alternative!AT7 -> 0.01129856116 | AR12: =termstructure_alternative!AU7 -> 0.01119061432 | AS12: =termstructure_alternative!AV7 -> 0.01108769899 | AT12: =termstructure_alternative!AW7 -> 0.01098947141 | AU12: =termstructure_alternative!AX7 -> 0.01089561841 | AV12: =termstructure_alternative!AY7 -> 0.01080585413 | AW12: =termstructure_alternative!AZ7 -> 0.01071991707 | AX12: =termstructure_alternative!BA7 -> 0.01063756758 | AY12: =termstructure_alternative!BB7 -> 0.0105585856 | AZ12: =termstructure_alternative!BC7 -> 0.01048276871
A13: 6 | B13: =termstructure_alternative!D8 -> 2016-05-31 | C13: =termstructure_alternative!F8 -> -0.002610000047 | D13: =termstructure_alternative!G8 -> -0.002610000023 | E13: =termstructure_alternative!H8 -> -0.002290000003 | F13: =termstructure_alternative!I8 -> -0.00176 | G13: =termstructure_alternative!J8 -> -0.0009600000051 | H13: =termstructure_alternative!K8 -> 0 | I13: =termstructure_alternative!L8 -> 0.0011 | J13: =termstructure_alternative!M8 -> 0.00226 | K13: =termstructure_alternative!N8 -> 0.00341 | L13: =termstructure_alternative!O8 -> 0.00447 | M13: =termstructure_alternative!P8 -> 0.00544 | N13: =termstructure_alternative!Q8 -> 0.00634 | O13: =termstructure_alternative!R8 -> 0.00716 | P13: =termstructure_alternative!S8 -> 0.00784 | Q13: =termstructure_alternative!T8 -> 0.00835 | R13: =termstructure_alternative!U8 -> 0.00868 | S13: =termstructure_alternative!V8 -> 0.00892 | T13: =termstructure_alternative!W8 -> 0.00915 | U13: =termstructure_alternative!X8 -> 0.00945 | V13: =termstructure_alternative!Y8 -> 0.00984 | W13: =termstructure_alternative!Z8 -> 0.009974078016 | X13: =termstructure_alternative!AA8 -> 0.01009598257 | Y13: =termstructure_alternative!AB8 -> 0.01020729958 | Z13: =termstructure_alternative!AC8 -> 0.01030935094 | AA13: =termstructure_alternative!AD8 -> 0.0104032473 | AB13: =termstructure_alternative!AE8 -> 0.01041139837 | AC13: =termstructure_alternative!AF8 -> 0.01041894571 | AD13: =termstructure_alternative!AG8 -> 0.010425954 | AE13: =termstructure_alternative!AH8 -> 0.01043247901 | AF13: =termstructure_alternative!AI8 -> 0.01043856905 | AG13: =termstructure_alternative!AJ8 -> 0.01041002023 | AH13: =termstructure_alternative!AK8 -> 0.01038325644 | AI13: =termstructure_alternative!AL8 -> 0.01035811534 | AJ13: =termstructure_alternative!AM8 -> 0.0103344537 | AK13: =termstructure_alternative!AN8 -> 0.01031214466 | AL13: =termstructure_alternative!AO8 -> 0.01029107547 | AM13: =termstructure_alternative!AP8 -> 0.01027114556 | AN13: =termstructure_alternative!AQ8 -> 0.01025226495 | AO13: =termstructure_alternative!AR8 -> 0.0102343529 | AP13: =termstructure_alternative!AS8 -> 0.01021733675 | AQ13: =termstructure_alternative!AT8 -> 0.01012602136 | AR13: =termstructure_alternative!AU8 -> 0.010039062 | AS13: =termstructure_alternative!AV8 -> 0.009956154225 | AT13: =termstructure_alternative!AW8 -> 0.009877021337 | AU13: =termstructure_alternative!AX8 -> 0.009801411259 | AV13: =termstructure_alternative!AY8 -> 0.009729093873 | AW13: =termstructure_alternative!AZ8 -> 0.009659858676 | AX13: =termstructure_alternative!BA8 -> 0.009593512733 | AY13: =termstructure_alternative!BB8 -> 0.009529878885 | AZ13: =termstructure_alternative!BC8 -> 0.009468794163
A14: 7 | B14: =termstructure_alternative!D9 -> 2016-06-30 | C14: =termstructure_alternative!F9 -> -0.002920000073 | D14: =termstructure_alternative!G9 -> -0.00304 | E14: =termstructure_alternative!H9 -> -0.00295000002 | F14: =termstructure_alternative!I9 -> -0.002510000001 | G14: =termstructure_alternative!J9 -> -0.00183 | H14: =termstructure_alternative!K9 -> -0.00091 | I14: =termstructure_alternative!L9 -> 0.0001 | J14: =termstructure_alternative!M9 -> 0.00116 | K14: =termstructure_alternative!N9 -> 0.00219 | L14: =termstructure_alternative!O9 -> 0.00324 | M14: =termstructure_alternative!P9 -> 0.00412 | N14: =termstructure_alternative!Q9 -> 0.00489 | O14: =termstructure_alternative!R9 -> 0.0056 | P14: =termstructure_alternative!S9 -> 0.00619 | Q14: =termstructure_alternative!T9 -> 0.00661 | R14: =termstructure_alternative!U9 -> 0.00685 | S14: =termstructure_alternative!V9 -> 0.00702 | T14: =termstructure_alternative!W9 -> 0.0072 | U14: =termstructure_alternative!X9 -> 0.00746 | V14: =termstructure_alternative!Y9 -> 0.00783 | W14: =termstructure_alternative!Z9 -> 0.007852220282 | X14: =termstructure_alternative!AA9 -> 0.007872420963 | Y14: =termstructure_alternative!AB9 -> 0.007890865417 | Z14: =termstructure_alternative!AC9 -> 0.007907773129 | AA14: =termstructure_alternative!AD9 -> 0.007923328476 | AB14: =termstructure_alternative!AE9 -> 0.007915507391 | AC14: =termstructure_alternative!AF9 -> 0.0079082657 | AD14: =termstructure_alternative!AG9 -> 0.00790154132 | AE14: =termstructure_alternative!AH9 -> 0.00789528073 | AF14: =termstructure_alternative!AI9 -> 0.007889437548 | AG14: =termstructure_alternative!AJ9 -> 0.007861806706 | AH14: =termstructure_alternative!AK9 -> 0.007835903481 | AI14: =termstructure_alternative!AL9 -> 0.007811570754 | AJ14: =termstructure_alternative!AM9 -> 0.007788669901 | AK14: =termstructure_alternative!AN9 -> 0.007767078144 | AL14: =termstructure_alternative!AO9 -> 0.007746686355 | AM14: =termstructure_alternative!AP9 -> 0.007727397204 | AN14: =termstructure_alternative!AQ9 -> 0.007709123612 | AO14: =termstructure_alternative!AR9 -> 0.007691787434 | AP14: =termstructure_alternative!AS9 -> 0.007675318341 | AQ14: =termstructure_alternative!AT9 -> 0.00760981045 | AR14: =termstructure_alternative!AU9 -> 0.007547425943 | AS14: =termstructure_alternative!AV9 -> 0.007487946638 | AT14: =termstructure_alternative!AW9 -> 0.007431174213 | AU14: =termstructure_alternative!AX9 -> 0.007376927995 | AV14: =termstructure_alternative!AY9 -> 0.007325043043 | AW14: =termstructure_alternative!AZ9 -> 0.007275368464 | AX14: =termstructure_alternative!BA9 -> 0.007227765959 | AY14: =termstructure_alternative!BB9 -> 0.007182108527 | AZ14: =termstructure_alternative!BC9 -> 0.007138279339
A15: 8 | B15: =termstructure_alternative!D10 -> 2016-07-31 | C15: =termstructure_alternative!F10 -> -0.003010000083 | D15: =termstructure_alternative!G10 -> -0.00315 | E15: =termstructure_alternative!H10 -> -0.00317 | F15: =termstructure_alternative!I10 -> -0.002960000007 | G15: =termstructure_alternative!J10 -> -0.00249 | H15: =termstructure_alternative!K10 -> -0.001820000001 | I15: =termstructure_alternative!L10 -> -0.00099 | J15: =termstructure_alternative!M10 -> -5e-05 | K15: =termstructure_alternative!N10 -> 0.00088 | L15: =termstructure_alternative!O10 -> 0.00177 | M15: =termstructure_alternative!P10 -> 0.00258 | N15: =termstructure_alternative!Q10 -> 0.00332 | O15: =termstructure_alternative!R10 -> 0.00401 | P15: =termstructure_alternative!S10 -> 0.00458 | Q15: =termstructure_alternative!T10 -> 0.00498 | R15: =termstructure_alternative!U10 -> 0.0052 | S15: =termstructure_alternative!V10 -> 0.00535 | T15: =termstructure_alternative!W10 -> 0.00553 | U15: =termstructure_alternative!X10 -> 0.00579 | V15: =termstructure_alternative!Y10 -> 0.00618 | W15: =termstructure_alternative!Z10 -> 0.006201437414 | X15: =termstructure_alternative!AA10 -> 0.006220926369 | Y15: =termstructure_alternative!AB10 -> 0.006238720961 | Z15: =termstructure_alternative!AC10 -> 0.006255032947 | AA15: =termstructure_alternative!AD10 -> 0.006270040208 | AB15: =termstructure_alternative!AE10 -> 0.006254074489 | AC15: =termstructure_alternative!AF10 -> 0.006239291642 | AD15: =termstructure_alternative!AG10 -> 0.006225564907 | AE15: =termstructure_alternative!AH10 -> 0.006212785011 | AF15: =termstructure_alternative!AI10 -> 0.006200857255 | AG15: =termstructure_alternative!AJ10 -> 0.006166817013 | AH15: =termstructure_alternative!AK10 -> 0.006134905331 | AI15: =termstructure_alternative!AL10 -> 0.006104928613 | AJ15: =termstructure_alternative!AM10 -> 0.006076716046 | AK15: =termstructure_alternative!AN10 -> 0.006050116352 | AL15: =termstructure_alternative!AO10 -> 0.006024995063 | AM15: =termstructure_alternative!AP10 -> 0.00600123226 | AN15: =termstructure_alternative!AQ10 -> 0.005978720648 | AO15: =termstructure_alternative!AR10 -> 0.005957363943 | AP15: =termstructure_alternative!AS10 -> 0.005937075494 | AQ15: =termstructure_alternative!AT10 -> 0.00586670478 | AR15: =termstructure_alternative!AU10 -> 0.00579968963 | AS15: =termstructure_alternative!AV10 -> 0.005735795622 | AT15: =termstructure_alternative!AW10 -> 0.005674809673 | AU15: =termstructure_alternative!AX10 -> 0.005616537666 | AV15: =termstructure_alternative!AY10 -> 0.005560802383 | AW15: =termstructure_alternative!AZ10 -> 0.00550744171 | AX15: =termstructure_alternative!BA10 -> 0.005456307055 | AY15: =termstructure_alternative!BB10 -> 0.005407261973 | AZ15: =termstructure_alternative!BC10 -> 0.005360180944
A16: 9 | B16: =termstructure_alternative!D11 -> 2016-08-31 | C16: =termstructure_alternative!F11 -> -0.003020000084 | D16: =termstructure_alternative!G11 -> -0.003080000049 | E16: =termstructure_alternative!H11 -> -0.002950000018 | F16: =termstructure_alternative!I11 -> -0.002690000003 | G16: =termstructure_alternative!J11 -> -0.00223 | H16: =termstructure_alternative!K11 -> -0.001590000001 | I16: =termstructure_alternative!L11 -> -0.00079 | J16: =termstructure_alternative!M11 -> 0.00013 | K16: =termstructure_alternative!N11 -> 0.00106 | L16: =termstructure_alternative!O11 -> 0.00196 | M16: =termstructure_alternative!P11 -> 0.00277 | N16: =termstructure_alternative!Q11 -> 0.00351 | O16: =termstructure_alternative!R11 -> 0.00419 | P16: =termstructure_alternative!S11 -> 0.00476 | Q16: =termstructure_alternative!T11 -> 0.00517 | R16: =termstructure_alternative!U11 -> 0.00542 | S16: =termstructure_alternative!V11 -> 0.0056 | T16: =termstructure_alternative!W11 -> 0.0058 | U16: =termstructure_alternative!X11 -> 0.00608 | V16: =termstructure_alternative!Y11 -> 0.00649 | W16: =termstructure_alternative!Z11 -> 0.006506781104 | X16: =termstructure_alternative!AA11 -> 0.006522036895 | Y16: =termstructure_alternative!AB11 -> 0.006535966298 | Z16: =termstructure_alternative!AC11 -> 0.006548735087 | AA16: =termstructure_alternative!AD11 -> 0.006560482516 | AB16: =termstructure_alternative!AE11 -> 0.006554309638 | AC16: =termstructure_alternative!AF11 -> 0.006548594044 | AD16: =termstructure_alternative!AG11 -> 0.006543286736 | AE16: =termstructure_alternative!AH11 -> 0.006538345475 | AF16: =termstructure_alternative!AI11 -> 0.006533733653 | AG16: =termstructure_alternative!AJ11 -> 0.00650053702 | AH16: =termstructure_alternative!AK11 -> 0.006469416171 | AI16: =termstructure_alternative!AL11 -> 0.006440182311 | AJ16: =termstructure_alternative!AM11 -> 0.006412668865 | AK16: =termstructure_alternative!AN11 -> 0.006386728305 | AL16: =termstructure_alternative!AO11 -> 0.006362229502 | AM16: =termstructure_alternative!AP11 -> 0.006339055507 | AN16: =termstructure_alternative!AQ11 -> 0.006317101688 | AO16: =termstructure_alternative!AR11 -> 0.006296274148 | AP16: =termstructure_alternative!AS11 -> 0.006276488385 | AQ16: =termstructure_alternative!AT11 -> 0.006205351099 | AR16: =termstructure_alternative!AU11 -> 0.006137605979 | AS16: =termstructure_alternative!AV11 -> 0.006073016042 | AT16: =termstructure_alternative!AW11 -> 0.00601136588 | AU16: =termstructure_alternative!AX11 -> 0.005952459254 | AV16: =termstructure_alternative!AY11 -> 0.005896117014 | AW16: =termstructure_alternative!AZ11 -> 0.005842175273 | AX16: =termstructure_alternative!BA11 -> 0.005790483818 | AY16: =termstructure_alternative!BB11 -> 0.005740904715 | AZ16: =termstructure_alternative!BC11 -> 0.005693311076
A17: 10 | B17: =termstructure_alternative!D12 -> 2016-09-30 | C17: =termstructure_alternative!F12 -> -0.00307000009 | D17: =termstructure_alternative!G12 -> -0.00322 | E17: =termstructure_alternative!H12 -> -0.003090000022 | F17: =termstructure_alternative!I12 -> -0.002900000008 | G17: =termstructure_alternative!J12 -> -0.00239 | H17: =termstructure_alternative!K12 -> -0.001700000002 | I17: =termstructure_alternative!L12 -> -0.00086 | J17: =termstructure_alternative!M12 -> 9e-05 | K17: =termstructure_alternative!N12 -> 0.00105 | L17: =termstructure_alternative!O12 -> 0.00187 | M17: =termstructure_alternative!P12 -> 0.00275 | N17: =termstructure_alternative!Q12 -> 0.00361 | O17: =termstructure_alternative!R12 -> 0.00437 | P17: =termstructure_alternative!S12 -> 0.00496 | Q17: =termstructure_alternative!T12 -> 0.00536 | R17: =termstructure_alternative!U12 -> 0.00558 | S17: =termstructure_alternative!V12 -> 0.00573 | T17: =termstructure_alternative!W12 -> 0.00589 | U17: =termstructure_alternative!X12 -> 0.00614 | V17: =termstructure_alternative!Y12 -> 0.00652 | W17: =termstructure_alternative!Z12 -> 0.006599420286 | X17: =termstructure_alternative!AA12 -> 0.006671625984 | Y17: =termstructure_alternative!AB12 -> 0.00673755745 | Z17: =termstructure_alternative!AC12 -> 0.00679799842 | AA17: =termstructure_alternative!AD12 -> 0.006853607317 | AB17: =termstructure_alternative!AE12 -> 0.006862011348 | AC17: =termstructure_alternative!AF12 -> 0.006869792921 | AD17: =termstructure_alternative!AG12 -> 0.006877018722 | AE17: =termstructure_alternative!AH12 -> 0.006883746238 | AF17: =termstructure_alternative!AI12 -> 0.006890025293 | AG17: =termstructure_alternative!AJ12 -> 0.00685430675 | AH17: =termstructure_alternative!AK12 -> 0.006820821767 | AI17: =termstructure_alternative!AL12 -> 0.006789367191 | AJ17: =termstructure_alternative!AM12 -> 0.006759763782 | AK17: =termstructure_alternative!AN12 -> 0.006731852793 | AL17: =termstructure_alternative!AO12 -> 0.006705493125 | AM17: =termstructure_alternative!AP12 -> 0.00668055894 | AN17: =termstructure_alternative!AQ12 -> 0.00665693765 | AO17: =termstructure_alternative!AR12 -> 0.00663452822 | AP17: =termstructure_alternative!AS12 -> 0.006613239724 | AQ17: =termstructure_alternative!AT12 -> 0.006538335863 | AR17: =termstructure_alternative!AU12 -> 0.006467004035 | AS17: =termstructure_alternative!AV12 -> 0.006398994674 | AT17: =termstructure_alternative!AW12 -> 0.006334080934 | AU17: =termstructure_alternative!AX12 -> 0.006272056162 | AV17: =termstructure_alternative!AY12 -> 0.006212731696 | AW17: =termstructure_alternative!AZ12 -> 0.006155934952 | AX17: =termstructure_alternative!BA12 -> 0.006101507749 | AY17: =termstructure_alternative!BB12 -> 0.00604930483 | AZ17: =termstructure_alternative!BC12 -> 0.005999192576
A18: 11 | B18: =termstructure_alternative!D13 -> 2016-10-31 | C18: =termstructure_alternative!F13 -> -0.002930000074 | D18: =termstructure_alternative!G13 -> -0.002610000014 | E18: =termstructure_alternative!H13 -> -0.002170000001 | F18: =termstructure_alternative!I13 -> -0.00161 | G18: =termstructure_alternative!J13 -> -0.0008700000038 | H18: =termstructure_alternative!K13 -> 4e-05 | I18: =termstructure_alternative!L13 -> 0.0011 | J18: =termstructure_alternative!M13 -> 0.00219 | K18: =termstructure_alternative!N13 -> 0.00326 | L18: =termstructure_alternative!O13 -> 0.00413 | M18: =termstructure_alternative!P13 -> 0.00506 | N18: =termstructure_alternative!Q13 -> 0.00597 | O18: =termstructure_alternative!R13 -> 0.00675 | P18: =termstructure_alternative!S13 -> 0.00735 | Q18: =termstructure_alternative!T13 -> 0.00777 | R18: =termstructure_alternative!U13 -> 0.00801 | S18: =termstructure_alternative!V13 -> 0.00816 | T18: =termstructure_alternative!W13 -> 0.00833 | U18: =termstructure_alternative!X13 -> 0.00857 | V18: =termstructure_alternative!Y13 -> 0.00892 | W18: =termstructure_alternative!Z13 -> 0.008998835908 | X18: =termstructure_alternative!AA13 -> 0.009070510261 | Y18: =termstructure_alternative!AB13 -> 0.009135956508 | Z18: =termstructure_alternative!AC13 -> 0.00919595263 | AA18: =termstructure_alternative!AD13 -> 0.009251152213 | AB18: =termstructure_alternative!AE13 -> 0.009251754332 | AC18: =termstructure_alternative!AF13 -> 0.009252311849 | AD18: =termstructure_alternative!AG13 -> 0.009252829544 | AE18: =termstructure_alternative!AH13 -> 0.009253311537 | AF18: =termstructure_alternative!AI13 -> 0.009253761396 | AG18: =termstructure_alternative!AJ13 -> 0.009214799292 | AH18: =termstructure_alternative!AK13 -> 0.009178273686 | AI18: =termstructure_alternative!AL13 -> 0.009143962956 | AJ18: =termstructure_alternative!AM13 -> 0.009111671571 | AK18: =termstructure_alternative!AN13 -> 0.009081226354 | AL18: =termstructure_alternative!AO13 -> 0.009052473381 | AM18: =termstructure_alternative!AP13 -> 0.009025275378 | AN18: =termstructure_alternative!AQ13 -> 0.008999509524 | AO18: =termstructure_alternative!AR13 -> 0.008975065604 | AP18: =termstructure_alternative!AS13 -> 0.008951844429 | AQ18: =termstructure_alternative!AT13 -> 0.008867940948 | AR18: =termstructure_alternative!AU13 -> 0.008788039358 | AS18: =termstructure_alternative!AV13 -> 0.008711860014 | AT18: =termstructure_alternative!AW13 -> 0.008639148734 | AU18: =termstructure_alternative!AX13 -> 0.008569673964 | AV18: =termstructure_alternative!AY13 -> 0.008503224314 | AW18: =termstructure_alternative!AZ13 -> 0.008439606411 | AX18: =termstructure_alternative!BA13 -> 0.00837864302 | AY18: =termstructure_alternative!BB13 -> 0.008320171393 | AZ18: =termstructure_alternative!BC13 -> 0.008264041821

Sheet LOG (hidden)
B11: Smith-Wilson Risk-Free Interest Rate Extrapolation Tool (v1.1)
B13: 2015-12-07 | C13: - | D13: In the original VBA code a ReDim Preserve statement was used to lower by one both the lowerbound and upperbound of the array variable named tempdiscount.
D14: On some computers the ReDim Preserve statement turned out not to work properly, leading to spurious results without an error message. A work around has been created to solve this issue, no longer using the ReDim Preserve statement.
C16: - | D16: Some references to the Technical Documentation have been updated.
B18: 2016-01-08 | C18: - | D18: In the earlier version, the configuration of the VBA-editor was referring to some specific VBA-reference files/tools that were not available on all computers causing the tool not to work.
D19: As these reference files/tools are not needed to run the calculations properly, the references to them were removed to improve the compatibility of the tool.

Sheet kwartaal_impact_UFR_LTG
B2: Ieder kwartaal
C3: T=0 | E3: SII inclusief LTG | F3: SII exclusief LTG | G3: Alt. Extrapolatie | H3: Impact
E4: C0010 | F4: C0020 | G4: C0030 | H4: C0040
C5: Beste Schatting | D5: R0010 | H5: =G5-IF(E5="",F5,E5) -> 0
C6: Risicomarge | D6: R0020 | H6: =G6-IF(E6="",F6,E6) -> 0
C7: TV | D7: R0030 | E7: =IF(E5="","",SUM(E5:E6)) ->  | F7: =SUM(F5:F6) -> 0 | G7: =SUM(G5:G6) -> 0 | H7: =SUM(H5:H6) -> 0

Sheet jaar_uitloop_impact_UFR_LTG
B2: Eens per jaar
C3: Beste Schatting
E4: SII inclusief LTG | F4: SII exclusief LTG | G4: Alt. Extrapolatie | H4: Impact
E5: C0010 | F5: C0020 | G5: C0030 | H5: C0040
C6: T=0 | D6: R0010 | H6: =G6-IF(E6="",F6,E6) -> 0
C7: T=1 | D7: R0020 | H7: =G7-IF(E7="",F7,E7) -> 0
C8: T=2 | D8: R0030 | H8: 0
C9: T=3 | D9: R0040 | H9: 0
C10: T=4 | D10: R0050 | H10: 0
C11: T=5 | D11: R0060 | H11: 0
C12: T=6 | D12: R0070 | H12: 0
C13: T=7 | D13: R0080 | H13: 0
C14: T=8 | D14: R0090 | H14: 0
C15: T=9 | D15: R0100 | H15: 0
C16: T=10 | D16: R0110 | H16: 0
C17: T=11 | D17: R0120 | H17: 0
C18: T=12 | D18: R0130 | H18: 0
C19: T=13 | D19: R0140 | H19: 0
C20: T=14 | D20: R0150 | H20: 0
C21: T=15 | D21: R0160 | H21: 0
C22: T=16 | D22: R0170 | H22: 0
C23: T=17 | D23: R0180 | H23: 0
C24: T=18 | D24: R0190 | H24: 0
C25: T=19 | D25: R0200 | H25: 0
C26: T=20 | D26: R0210 | H26: 0

Sheet Invulinstructie
A1: Algemeen Dit bestand bevat verschillende rentetermijnstructuren die verzekeraars nodig hebben voor het invullen van de nationale staten met de impact op de waardering van de technische voorzieningen van een alternatieve extrapolatiemethode én de uitloop er van. Een uitgebreidere toelichting voor de rapportages vindt u onder het kopje ‘Downloads’, ‘Gebruikersdocumentatie’, ‘Specificaties Nationale Staten’ op http://www.dnb.nl/statistiek/digitaal-loket-rapportages/toezicht-rapportages/verzekeraars/index.jsp vindt u de invulinstructie voor deze nationale staten.
A2: Kwartaalrapportage Het tabblad "kwartaal_impact_UFR_LTG" bevat de nationale staat waarmee verzekeraars ieder kwartaaal de impact van een alternatieve extrapolatiemethode op de waardering van de technische voorzieningen rapporteren. * Het tabblad "termstructure_incl_VA" bevat de EIOPA rentetermijnstructuur inclusief toepassing van de Volatiliteitsaanpassing. Verzekeraars die gebruik maken van deze Volatiliteitsaanpassing gebruiken deze rentetermijnstructuur (of die van de EIOPA website) voor de waardering van de beste schatting van de technische voorzieningen in kolom 1; voor de waardering van de risicomarge als onderdeel van de technische voorzieningen gebruikt de verzekeraar de rentetermijnstructuur op het tabblad "termstructure_excl_LTG". * Het tabblad "termstructure_excl_LTG" bevat de EIOPA rentetermijnstructuur zonder toepassing van LTG maatregelen; verzekeraars gebruiken deze rentetermijnstructuur (of die van de EIOPA website) voor het rapporteren van de waardering van hun technische voorzieningen in kolom 2. * Het tabblad "termstructure_alternative" bevat de alternatieve rentetermijnstructuur die verzekeraars voor kolom 3 voor deze kwartaalrapportage hanteren.
A3: Jaarrapportage Het tabblad "jaar_uitloop_impact_UFR_LTG" bevat de nationale staat waarmee verzekeraars ieder jaar de uitloop van de impact van de alternatieve extrapolatiemethode op de beste schatting van de technische voorzieningen rapporteren. * Het tabblad "termstructure_incl_VA_proj" bevat de rentetermijnstructuren voor de rapportage van de uitloop van de beste schatting van de technische voorzieningen die de verzekeraar in in kolom 1 rapporteert. * Het tabblad "termstructure_excl_LTG_proj" bevat de rentetermijnstructuren voor de rapportage van de uitloop van de beste schatting van de technische voorzieningen die de verzekeraar in in kolom 2 rapporteert. * Het tabblad "termstructure_alternative_proj" bevat de rentetermijnstructuren voor de rapportage van de uitloop van de beste schatting van de technische voorzieningen die de verzekeraar in in kolom 3 rapporteert. Let op dat de datum op het tabblad "termstructure_alternative_proj" in cel D3 op de juiste datum wordt ingesteld, voor de jaarrapportage per 31/12/2016 moet dit dan zijn 31/12/2016, voor de jaarrapportage per 31/12/2017 moet dit dan zijn 31/12/2017 etc...
A4: Overig * Dit bestand is mede gebaseerd op EIOPA's "Smith-Wilson risk​-free interest rate extrapolation tool" dat te vinden is op https://eiopa.europa.eu/regulation-supervision/insurance/solvency-ii-technical-information/risk-free-interest-rate-term-structures. * De par swap rates op tabblad "swaprates" zijn gebaseerd op de risicovrije rentetermijnstructuren die EIOPA maandelijks publiceert op, eveneens, https://eiopa.europa.eu/regulation-supervision/insurance/solvency-ii-technical-information/risk-free-interest-rate-term-structures en op par swap rates (Bron: Thomson Reuters Datastream en ICAP). * De jaar-op-jaar veranderingen in de consumentenprijsindices op tabblad UFRlevel zijn afkomstig van de OECD (http://stats.oecd.org/Index.aspx?DataSetCode=MEI_PRICES). * De korte-termijn rentes op tabblad UFRlevel zijn van afkomstig van de website van AMECO (http://ec.europa.eu/economy_finance/ameco/user/serie/ResultSerie.cfm; short-term nominal (isn) of the monetary variables (13)) óf van de website van Eurostat (http://ec.europa.eu/eurostat/web/interest-rates/data/database) * Op https://eiopa.europa.eu/publications/reports is achtergrondinformatie te vinden over de methode om het niveau van de UFR af te leiden (04.2017). Deze methode voorziet in een niveau van de UFR en de maximale jaarlijkse aanpassingen; deze methode en de maximale jaarlijkse aanpassingen leiden tot de verwachte ontwikkeling van het niveau van de UFR voor de jaarrapportage.
A5: Bruto Technische Voorziening * Nationale staten moeten bruto (voor herverzekering) worden gevuld, zodat er geen vermenging plaatsheeft en we het zuivere effect zien van UFR op de Technische Voorziening. We beseffen dat voor het herrekenen van de SCR-ratio eigenlijk het netto bedrag voor de Technische Voorziening gevuld moet worden, maar omdat het effect van herverzekering waarschijnlijk klein is (en vaak wel geschaald kan worden) en we nog meer balanseffecten niet meenemen (Tiering kapitaal, DTL/DTA, SCR, etc.) laten we dat nu bewust buiten beschouwing.

Sheet UFRlevel
D1: 2017
C2: 0.0015 | D2: 0.022 | E2: 0.02 | I2: real rate | Q2: inflation (OECD) | Y2: nominal rate (AMECO)
F3: real_rate_rounded | G3: real_rate_avg | I3: Belgium | J3: France | K3: Germany | L3: Italy | M3: Netherlands | N3: United Kingdom | O3: United States | Q3: Belgium | R3: France | S3: Germany | T3: Italy | U3: Netherlands | V3: United Kingdom | W3: United States | Y3: Belgium | Z3: France | AA3: Germany | AB3: Italy | AC3: Netherlands | AD3: United Kingdom | AE3: United States
A4: 1961 | B4: 1961-12-31 | C4: =D4 -> 0.042 | D4: =IF(A4<=D$1,E$2+D$2,E4) -> 0.042 | E4: =E$2+F4 -> 0.0355 | F4: =ROUND(G4*2000,0)/2000 -> 0.0155 | G4: =AVERAGE(H$4:H4) -> 0.01572821649 | H4: =AVERAGE(I4:O4) -> 0.01572821649 | I4: =(Y4-Q4)/(1+Q4) -> 0.03594059406 | J4: =(Z4-R4)/(1+R4) -> 0.01220703125 | K4: =(AA4-S4)/(1+S4) -> 0.01260997067 | L4: =(AB4-T4)/(1+T4) -> 0.01371204701 | M4: =(AC4-U4)/(1+U4) -> 0.005367793241 | N4: =(AD4-V4)/(1+V4) -> 0.01769825919 | O4: =(AE4-W4)/(1+W4) -> 0.01256181998 | Q4: 0.01 | R4: 0.024 | S4: 0.023 | T4: 0.021 | U4: 0.006 | V4: 0.034 | W4: 0.011 | Y4: 0.0463 | Z4: 0.0365 | AA4: 0.0359 | AB4: 0.035 | AC4: 0.0114 | AD4: 0.0523 | AE4: 0.0237
A5: =+A4+1 -> 1962 | B5: 1962-12-31 | C5: =IF(ROUND(D5-C4,5)>=C$2,C4+C$2,IF(ROUND(C4-D5,5)>=C$2,C4-C$2,C4)) -> 0.042 | D5: 0.042 | E5: =IF(F5="",E4,E$2+F5) -> 0.0285 | F5: =IF(G5<F4,CEILING(G5,0.0005),FLOOR(G5,0.0005)) -> 0.0085 | G5: =AVERAGE(H$4:H5) -> 0.008401091877 | H5: =AVERAGE(I5:O5) -> 0.001073967267 | I5: 0.01932938856 | J5: -0.01604938272 | K5: 0.006031128405 | L5: -0.01146131805 | M5: -0.005078125 | N5: -0.0007677543186 | O5: 0.01551383399 | Q5: 0.014 | R5: 0.053 | S5: 0.028 | T5: 0.047 | U5: 0.024 | V5: 0.042 | W5: 0.012 | Y5: 0.0336 | Z5: 0.0361 | AA5: 0.0342 | AB5: 0.035 | AC5: 0.0188 | AD5: 0.0412 | AE5: 0.0277
A6: =+A5+1 -> 1963 | B6: 1963-12-31 | C6: 0.042 | D6: 0.042 | E6: =IF(F6="",E5,E$2+F6) -> 0.026 | F6: 0.006 | G6: =AVERAGE(H$4:H6) -> 0.00566261843 | H6: 0.0001856715378 | I6: 0.01469147894 | J6: -0.009714285714 | K6: 0.009514563107 | L6: -0.03720930233 | M6: -0.01182170543 | N6: 0.01637254902 | O6: 0.01946640316 | Q6: 0.021 | R6: 0.05 | S6: 0.03 | T6: 0.075 | U6: 0.032 | V6: 0.02 | W6: 0.012 | Y6: 0.036 | Z6: 0.0398 | AA6: 0.0398 | AB6: 0.035 | AC6: 0.0198 | AD6: 0.0367 | AE6: 0.0317
A7: 1964 | B7: 1964-12-31 | C7: 0.042 | D7: 0.042 | E7: 0.0255 | F7: 0.0055 | G7: =AVERAGE(H$4:H7) -> 0.005399158204 | H7: 0.004608777525 | I7: 0.006238003839 | J7: 0.01453488372 | K7: 0.01749755621 | L7: -0.02266288952 | M7: -0.02221172023 | N7: 0.01645692159 | O7: 0.02240868707 | Q7: 0.042 | R7: 0.032 | S7: 0.023 | T7: 0.059 | U7: 0.058 | V7: 0.033 | W7: 0.013 | Y7: 0.0485 | Z7: 0.047 | AA7: 0.0409 | AB7: 0.035 | AC7: 0.0345 | AD7: 0.05 | AE7: 0.0357
A8: 1965 | B8: 1965-12-31 | C8: 0.042 | D8: 0.042 | E8: 0.026 | F8: 0.006 | G8: =AVERAGE(H$4:H8) -> 0.006489143523 | H8: 0.0108490848 | I8: 0.008933717579 | J8: 0.01441090555 | K8: 0.01879844961 | L8: -0.00956937799 | M8: 0.0005774783446 | N8: 0.01946564885 | O8: 0.02332677165 | Q8: 0.041 | R8: 0.027 | S8: 0.032 | T8: 0.045 | U8: 0.039 | V8: 0.048 | W8: 0.016 | Y8: 0.0503 | Z8: 0.0418 | AA8: 0.0514 | AB8: 0.035 | AC8: 0.0396 | AD8: 0.0684 | AE8: 0.0397
A9: 1966 | B9: 1966-12-31 | C9: 0.042 | D9: 0.042 | E9: 0.028 | F9: 0.008 | G9: =AVERAGE(H$4:H9) -> 0.008154693364 | H9: 0.01648244257 | I9: 0.01295585413 | J9: 0.02134502924 | K9: 0.03024154589 | L9: 0.01173020528 | M9: -0.008790170132 | N9: 0.02983638114 | O9: 0.01805825243 | Q9: 0.042 | R9: 0.026 | S9: 0.035 | T9: 0.023 | U9: 0.058 | V9: 0.039 | W9: 0.03 | Y9: 0.0555 | Z9: 0.0479 | AA9: 0.0663 | AB9: 0.035 | AC9: 0.0487 | AD9: 0.07 | AE9: 0.0486
A10: 1967 | B10: 1967-12-31 | C10: 0.042 | D10: 0.042 | E10: 0.0295 | F10: 0.0095 | G10: =AVERAGE(H$4:H10) -> 0.009684053219 | H10: 0.01886021235 | I10: 0.02736124635 | J10: 0.01916342412 | K10: 0.0242632613 | L10: -0.001928640309 | M10: 0.01149758454 | N10: 0.03707317073 | O10: 0.01459143969 | Q10: 0.027 | R10: 0.028 | S10: 0.018 | T10: 0.037 | U10: 0.035 | V10: 0.025 | W10: 0.028 | Y10: 0.0551 | Z10: 0.0477 | AA10: 0.0427 | AB10: 0.035 | AC10: 0.0469 | AD10: 0.063 | AE10: 0.043
A11: 1968 | B11: 1968-12-31 | C11: 0.042 | D11: 0.042 | E11: 0.0305 | F11: 0.0105 | G11: =AVERAGE(H$4:H11) -> 0.01074128389 | H11: 0.01814189861 | I11: 0.01733203505 | J11: 0.01636363636 | K11: 0.02256157635 | L11: 0.02171767029 | M11: 0.008196721311 | N11: 0.03075453677 | O11: 0.01006711409 | Q11: 0.027 | R11: 0.045 | S11: 0.015 | T11: 0.013 | U11: 0.037 | V11: 0.047 | W11: 0.043 | Y11: 0.0448 | Z11: 0.0621 | AA11: 0.0379 | AB11: 0.035 | AC11: 0.0455 | AD11: 0.0792 | AE11: 0.0535
A12: 1969 | B12: 1969-12-31 | C12: 0.042 | D12: 0.042 | E12: 0.0315 | F12: 0.0115 | G12: =AVERAGE(H$4:H12) -> 0.01185587445 | H12: 0.02077259895 | I12: 0.03400770713 | J12: 0.03141509434 | K12: 0.03817468106 | L12: 0.009834469328 | M12: -0.01573556797 | N12: 0.03595825427 | O12: 0.0117535545 | Q12: 0.038 | R12: 0.06 | S12: 0.019 | T12: 0.027 | U12: 0.074 | V12: 0.054 | W12: 0.055 | Y12: 0.0733 | Z12: 0.0933 | AA12: 0.0579 | AB12: 0.0371 | AC12: 0.0571 | AD12: 0.0919 | AE12: 0.0674
A13: 1970 | B13: 1970-12-31 | C13: 0.042 | D13: 0.042 | E13: 0.033 | F13: 0.013 | G13: =AVERAGE(H$4:H13) -> 0.01316074259 | H13: 0.02490455578 | I13: 0.04023099134 | J13: 0.0314339981 | K13: 0.05652173913 | L13: 0.002380952381 | M13: 0.02362584378 | N13: 0.01560150376 | O13: 0.004536862004 | Q13: 0.039 | R13: 0.053 | S13: 0.035 | T13: 0.05 | U13: 0.037 | V13: 0.064 | W13: 0.058 | Y13: 0.0808 | Z13: 0.0861 | AA13: 0.0935 | AB13: 0.0525 | AC13: 0.0615 | AD13: 0.0806 | AE13: 0.0628
A14: 1971 | B14: 1971-12-31 | C14: 0.042 | D14: 0.042 | E14: 0.032 | F14: 0.012 | G14: =AVERAGE(H$4:H14) -> 0.01176674553 | H14: -0.002173225024 | I14: 0.01006711409 | J14: 0.0055028463 | K14: 0.01815589354 | L14: 0.008492366412 | M14: -0.02837209302 | N14: -0.02925045704 | O14: 0.0001917545542 | Q14: 0.043 | R14: 0.054 | S14: 0.052 | T14: 0.048 | U14: 0.075 | V14: 0.094 | W14: 0.043 | Y14: 0.0535 | Z14: 0.0598 | AA14: 0.0711 | AB14: 0.0569 | AC14: 0.0445 | AD14: 0.062 | AE14: 0.0432
A15: 1972 | B15: 1972-12-31 | C15: 0.042 | D15: 0.042 | E15: 0.0305 | F15: 0.0105 | G15: =AVERAGE(H$4:H15) -> 0.01002961909 | H15: -0.009078771811 | I15: -0.01157495256 | J15: -0.007445805844 | K15: 0.001516587678 | L15: -0.004919583728 | M15: -0.04693877551 | N15: -0.002707749767 | O15: 0.008518877057 | Q15: 0.054 | R15: 0.061 | S15: 0.055 | T15: 0.057 | U15: 0.078 | V15: 0.071 | W15: 0.033 | Y15: 0.0418 | Z15: 0.0531 | AA15: 0.0566 | AB15: 0.0518 | AC15: 0.0274 | AD15: 0.0681 | AE15: 0.0418
A16: 1973 | B16: 1973-12-31 | C16: 0.042 | D16: 0.042 | E16: 0.03 | F16: 0.01 | G16: =AVERAGE(H$4:H16) -> 0.009875760232 | H16: 0.008029453978 | I16: -0.003831775701 | J16: 0.01722532588 | K16: 0.04869158879 | L16: -0.0344765343 | M16: -0.004259259259 | N16: 0.02353479853 | O16: 0.009322033898 | Q16: 0.07 | R16: 0.074 | S16: 0.07 | T16: 0.108 | U16: 0.08 | V16: 0.092 | W16: 0.062 | Y16: 0.0659 | Z16: 0.0925 | AA16: 0.1221 | AB16: 0.0698 | AC16: 0.0754 | AD16: 0.1177 | AE16: 0.0719
A17: 1974 | B17: 1974-12-31 | C17: 0.042 | D17: 0.042 | E17: 0.0285 | F17: 0.0085 | G17: =AVERAGE(H$4:H17) -> 0.008372494733 | H17: -0.01116995675 | I17: -0.01854480923 | J17: -0.005457746479 | K17: 0.0261682243 | L17: -0.03624161074 | M17: 0.006934306569 | N17: -0.02215517241 | O17: -0.02889288929 | Q17: 0.127 | R17: 0.136 | S17: 0.07 | T17: 0.192 | U17: 0.096 | V17: 0.16 | W17: 0.111 | Y17: 0.1061 | Z17: 0.1298 | AA17: 0.098 | AB17: 0.1488 | AC17: 0.1036 | AD17: 0.1343 | AE17: 0.0789
A18: 1975 | B18: 1975-12-31 | C18: 0.042 | D18: 0.042 | E18: 0.025 | F18: 0.005 | G18: =AVERAGE(H$4:H18) -> 0.004602825234 | H18: -0.04817254775 | I18: -0.05132978723 | J18: -0.03661593554 | K18: -0.009159584514 | L18: -0.05606837607 | M18: -0.04401088929 | N18: -0.1095008052 | O18: -0.03052245646 | Q18: 0.128 | R18: 0.117 | S18: 0.059 | T18: 0.17 | U18: 0.102 | V18: 0.242 | W18: 0.091 | Y18: 0.0701 | Z18: 0.0761 | AA18: 0.0493 | AB18: 0.1044 | AC18: 0.0535 | AD18: 0.106 | AE18: 0.0577
A19: 1976 | B19: 1976-12-31 | C19: 0.042 | D19: 0.042 | E19: 0.024 | F19: 0.004 | G19: =AVERAGE(H$4:H19) -> 0.003737101303 | H19: -0.009248757653 | I19: 0.01127406049 | J19: -0.00848540146 | K19: 0.0008637236084 | L19: -0.005403087479 | M19: -0.01314338235 | N19: -0.04322469983 | O19: -0.006622516556 | Q19: 0.091 | R19: 0.096 | S19: 0.042 | T19: 0.166 | U19: 0.088 | V19: 0.166 | W19: 0.057 | Y19: 0.1033 | Z19: 0.0867 | AA19: 0.0429 | AB19: 0.1597 | AC19: 0.0737 | AD19: 0.1156 | AE19: 0.05
A20: 1977 | B20: 1977-12-31 | C20: 0.042 | D20: 0.042 | E20: 0.023 | F20: 0.003 | G20: =AVERAGE(H$4:H20) -> 0.002544992401 | H20: -0.01652875004 | I20: 0.002987861811 | J20: -0.003926940639 | K20: 0.006075216972 | L20: -0.0269000854 | M20: -0.0155075188 | N20: -0.06744386874 | O20: -0.01098591549 | Q20: 0.071 | R20: 0.095 | S20: 0.037 | T20: 0.171 | U20: 0.064 | V20: 0.158 | W20: 0.065 | Y20: 0.0742 | Z20: 0.0907 | AA20: 0.0433 | AB20: 0.1395 | AC20: 0.0475 | AD20: 0.0799 | AE20: 0.0533
A21: 1978 | B21: 1978-12-31 | C21: 0.042 | D21: 0.042 | E21: 0.023 | F21: 0.003 | G21: =AVERAGE(H$4:H21) -> 0.002830573454 | H21: 0.007685451351 | I21: 0.02679425837 | J21: -0.01372369625 | K21: 0.0100292113 | L21: -0.005352363961 | M21: 0.02756964457 | N21: 0.01061865189 | O21: -0.002137546468 | Q21: 0.045 | R21: 0.093 | S21: 0.027 | T21: 0.121 | U21: 0.041 | V21: 0.083 | W21: 0.076 | Y21: 0.073 | Z21: 0.078 | AA21: 0.0373 | AB21: 0.115 | AC21: 0.0697 | AD21: 0.0945 | AE21: 0.0737
A22: 1979 | B22: 1979-12-31 | C22: 0.042 | D22: 0.042 | E22: 0.023 | F22: 0.003 | G22: =AVERAGE(H$4:H22) -> 0.003444940258 | H22: 0.01450354274 | I22: 0.0614354067 | J22: -0.008318264014 | K22: 0.02788461538 | L22: -0.02482578397 | M22: 0.05163147793 | N22: 0.004409171076 | O22: -0.0106918239 | Q22: 0.045 | R22: 0.106 | S22: 0.04 | T22: 0.148 | U22: 0.042 | V22: 0.134 | W22: 0.113 | Y22: 0.1092 | Z22: 0.0968 | AA22: 0.069 | AB22: 0.1195 | AC22: 0.0958 | AD22: 0.139 | AE22: 0.1011
A23: 1980 | B23: 1980-12-31 | C23: 0.042 | D23: 0.042 | E23: 0.0235 | F23: 0.0035 | G23: =AVERAGE(H$4:H23) -> 0.003800412331 | H23: 0.01055438172 | I23: 0.07251407129 | J23: -0.01382042254 | K23: 0.03927893738 | L23: -0.03443435178 | M23: 0.03802816901 | N23: -0.01059322034 | O23: -0.01709251101 | Q23: 0.066 | R23: 0.136 | S23: 0.054 | T23: 0.211 | U23: 0.065 | V23: 0.18 | W23: 0.135 | Y23: 0.1433 | Z23: 0.1203 | AA23: 0.0954 | AB23: 0.1693 | AC23: 0.1055 | AD23: 0.1675 | AE23: 0.1156
A24: 1981 | B24: 1981-12-31 | C24: 0.042 | D24: 0.042 | E24: 0.025 | F24: 0.005 | G24: =AVERAGE(H$4:H24) -> 0.005393039556 | H24: 0.03724558405 | I24: 0.07397769517 | J24: 0.01782877317 | K24: 0.05691439323 | L24: 0.01110169492 | M24: 0.04751640112 | N24: 0.02010723861 | O24: 0.03327289211 | Q24: 0.076 | R24: 0.133 | S24: 0.063 | T24: 0.18 | U24: 0.067 | V24: 0.119 | W24: 0.103 | Y24: 0.1556 | Z24: 0.1532 | AA24: 0.1235 | AB24: 0.1931 | AC24: 0.1177 | AD24: 0.1415 | AE24: 0.1397
A25: 1982 | B25: 1982-12-31 | C25: 0.042 | D25: 0.042 | E25: 0.0265 | F25: 0.0065 | G25: =AVERAGE(H$4:H25) -> 0.006671771778 | H25: 0.03352514844 | I25: 0.05105795768 | J25: 0.02339285714 | K25: 0.03374524715 | L25: 0.02901287554 | M25: 0.02181303116 | N25: 0.0332412523 | O25: 0.0424128181 | Q25: 0.087 | R25: 0.12 | S25: 0.052 | T25: 0.165 | U25: 0.059 | V25: 0.086 | W25: 0.061 | Y25: 0.1425 | Z25: 0.1462 | AA25: 0.0875 | AB25: 0.1988 | AC25: 0.0821 | AD25: 0.1221 | AE25: 0.106
A26: 1983 | B26: 1983-12-31 | C26: 0.042 | D26: 0.042 | E26: 0.0275 | F26: 0.0075 | G26: =AVERAGE(H$4:H26) -> 0.007895042442 | H26: 0.03480699706 | I26: 0.0252553389 | J26: 0.02712328767 | K26: 0.02420135528 | L26: 0.03237347295 | M26: 0.02891918208 | N26: 0.05277246654 | O26: 0.05300387597 | Q26: 0.077 | R26: 0.095 | S26: 0.033 | T26: 0.146 | U26: 0.027 | V26: 0.046 | W26: 0.032 | Y26: 0.1042 | Z26: 0.1247 | AA26: 0.058 | AB26: 0.1831 | AC26: 0.0567 | AD26: 0.1012 | AE26: 0.0867
A27: 1984 | B27: 1984-12-31 | C27: 0.042 | D27: 0.042 | E27: 0.029 | F27: 0.009 | G27: =AVERAGE(H$4:H27) -> 0.009378363588 | H27: 0.04349474994 | I27: 0.04920037629 | J27: 0.03714020427 | K27: 0.03486328125 | L27: 0.05839350181 | M27: 0.02691190707 | N27: 0.04771428571 | O27: 0.05023969319 | Q27: 0.063 | R27: 0.077 | S27: 0.024 | T27: 0.108 | U27: 0.033 | V27: 0.05 | W27: 0.043 | Y27: 0.1153 | Z27: 0.117 | AA27: 0.0597 | AB27: 0.1727 | AC27: 0.0608 | AD27: 0.1001 | AE27: 0.0954
A28: 1985 | B28: 1985-12-31 | C28: 0.042 | D28: 0.042 | E28: 0.0305 | F28: 0.0105 | G28: =AVERAGE(H$4:H28) -> 0.01079397695 | H28: 0.0447686976 | I28: 0.04432793136 | J28: 0.03922495274 | K28: 0.03271302644 | L28: 0.05347985348 | M28: 0.03870967742 | N28: 0.05777568332 | O28: 0.04714975845 | Q28: 0.049 | R28: 0.058 | S28: 0.021 | T28: 0.092 | U28: 0.023 | V28: 0.061 | W28: 0.035 | Y28: 0.0955 | Z28: 0.0995 | AA28: 0.0544 | AB28: 0.1504 | AC28: 0.0626 | AD28: 0.1223 | AE28: 0.0838
A29: 1986 | B29: 1986-12-31 | C29: 0.042 | D29: 0.042 | E29: 0.0325 | F29: 0.0125 | G29: =AVERAGE(H$4:H29) -> 0.01262215189 | H29: 0.05832652536 | I29: 0.06663376111 | J29: 0.05082926829 | K29: 0.04704704705 | L29: 0.06644612476 | M29: 0.05554445554 | N29: 0.07340425532 | O29: 0.04838076546 | Q29: 0.013 | R29: 0.025 | S29: -0.001 | T29: 0.058 | U29: 0.001 | V29: 0.034 | W29: 0.019 | Y29: 0.0805 | Z29: 0.0771 | AA29: 0.046 | AB29: 0.1283 | AC29: 0.0566 | AD29: 0.1099 | AE29: 0.0683
A30: 1987 | B30: 1987-12-31 | C30: 0.042 | D30: 0.042 | E30: 0.034 | F30: 0.014 | G30: =AVERAGE(H$4:H30) -> 0.01401429347 | H30: 0.0502099747 | I30: 0.05364173228 | J30: 0.04791868345 | K30: 0.0378243513 | L30: 0.06389684814 | M30: 0.06102719033 | N30: 0.053506244 | O30: 0.03365477338 | Q30: 0.016 | R30: 0.033 | S30: 0.002 | T30: 0.047 | U30: -0.007 | V30: 0.041 | W30: 0.037 | Y30: 0.0705 | Z30: 0.0825 | AA30: 0.0399 | AB30: 0.1139 | AC30: 0.0536 | AD30: 0.0967 | AE30: 0.0719
A31: 1988 | B31: 1988-12-31 | C31: 0.042 | D31: 0.042 | E31: 0.035 | F31: 0.015 | G31: =AVERAGE(H$4:H31) -> 0.01521910154 | H31: 0.04774891935 | I31: 0.05464426877 | J31: 0.05102239533 | K31: 0.02931885489 | L31: 0.05889628925 | M31: 0.04091360477 | N31: 0.06217516843 | O31: 0.03727185399 | Q31: 0.012 | R31: 0.027 | S31: 0.013 | T31: 0.051 | U31: 0.007 | V31: 0.039 | W31: 0.041 | Y31: 0.0673 | Z31: 0.0794 | AA31: 0.0427 | AB31: 0.1129 | AC31: 0.0482 | AD31: 0.1036 | AE31: 0.0798
A32: 1989 | B32: 1989-12-31 | C32: 0.042 | D32: 0.042 | E32: 0.0365 | F32: 0.0165 | G32: =AVERAGE(H$4:H32) -> 0.01667071555 | H32: 0.05731590795 | I32: 0.0546071775 | J32: 0.05700483092 | K32: 0.04153696498 | L32: 0.06001881468 | M32: 0.06221562809 | N32: 0.08307984791 | O32: 0.0427480916 | Q32: 0.031 | R32: 0.035 | S32: 0.028 | T32: 0.063 | U32: 0.011 | V32: 0.052 | W32: 0.048 | Y32: 0.0873 | Z32: 0.094 | AA32: 0.0707 | AB32: 0.1268 | AC32: 0.0739 | AD32: 0.1394 | AE32: 0.0928
A33: 1990 | B33: 1990-12-31 | C33: 0.042 | D33: 0.042 | E33: 0.038 | F33: 0.018 | G33: =AVERAGE(H$4:H33) -> 0.0180303793 | H33: 0.05746062797 | I33: 0.06208897485 | J33: 0.06899224806 | K33: 0.05579357352 | L33: 0.05474178404 | M33: 0.06029268293 | N33: 0.07299065421 | O33: 0.02732447818 | Q33: 0.034 | R33: 0.032 | S33: 0.027 | T33: 0.065 | U33: 0.025 | V33: 0.07 | W33: 0.054 | Y33: 0.0982 | Z33: 0.1032 | AA33: 0.0843 | AB33: 0.1233 | AC33: 0.0868 | AD33: 0.1481 | AE33: 0.0828
A34: 1991 | B34: 1991-12-31 | C34: 0.042 | D34: 0.042 | E34: 0.039 | F34: 0.019 | G34: =AVERAGE(H$4:H34) -> 0.01902183543 | H34: 0.04876551925 | I34: 0.05998062016 | J34: 0.06220930233 | K34: 0.04980769231 | L34: 0.05550329257 | M34: 0.05891472868 | N34: 0.03786046512 | O34: 0.01708253359 | Q34: 0.032 | R34: 0.032 | S34: 0.04 | T34: 0.063 | U34: 0.032 | V34: 0.075 | W34: 0.042 | Y34: 0.0939 | Z34: 0.0962 | AA34: 0.0918 | AB34: 0.122 | AC34: 0.0928 | AD34: 0.1157 | AE34: 0.0598
A35: 1992 | B35: 1992-12-31 | C35: 0.042 | D35: 0.042 | E35: 0.04 | F35: 0.02 | G35: =AVERAGE(H$4:H35) -> 0.02016505656 | H35: 0.05560491172 | I35: 0.0681640625 | J35: 0.07763671875 | K35: 0.04148430067 | L35: 0.08271604938 | M35: 0.05959302326 | N35: 0.05158197507 | O35: 0.008058252427 | Q35: 0.024 | R35: 0.024 | S35: 0.051 | T35: 0.053 | U35: 0.032 | V35: 0.043 | W35: 0.03 | Y35: 0.0938 | Z35: 0.1035 | AA35: 0.0946 | AB35: 0.1401 | AC35: 0.0935 | AD35: 0.0968 | AE35: 0.0383
A36: 1993 | B36: 1993-12-31 | C36: 0.042 | D36: 0.042 | E36: 0.0405 | F36: 0.0205 | G36: =AVERAGE(H$4:H36) -> 0.02073569633 | H36: 0.03899616886 | I36: =(Y36-Q36)/(1+Q36) -> 0.0513618677 | J36: =(Z36-R36)/(1+R36) -> 0.06356513222 | K36: =(AA36-S36)/(1+S36) -> 0.02622009569 | L36: =(AB36-T36)/(1+T36) -> 0.0534416826 | M36: =(AC36-U36)/(1+U36) -> 0.04142300195 | N36: =(AD36-V36)/(1+V36) -> 0.03404878049 | O36: =(AE36-W36)/(1+W36) -> 0.002912621359 | Q36: 0.028 | R36: 0.021 | S36: 0.045 | T36: 0.046 | U36: 0.026 | V36: 0.025 | W36: 0.03 | Y36: 0.0808 | Z36: 0.0859 | AA36: 0.0724 | AB36: 0.1019 | AC36: 0.0685 | AD36: 0.0599 | AE36: 0.033
A37: 1994 | B37: 1994-12-31 | C37: =IF(ROUND(D37-C36,5)>=C$2,C36+C$2,IF(ROUND(C36-D37,5)>=C$2,C36-C$2,C36)) -> 0.042 | D37: 0.042 | E37: 0.041 | F37: 0.021 | G37: =AVERAGE(H$4:H37) -> 0.02104290626 | H37: 0.03118083405 | I37: 0.0310546875 | J37: 0.04080629302 | K37: 0.02551119766 | L37: 0.04178674352 | M37: 0.02315175097 | N37: 0.035 | O37: 0.02095516569 | Q37: 0.024 | R37: 0.017 | S37: 0.027 | T37: 0.041 | U37: 0.028 | V37: 0.02 | W37: 0.026 | Y37: 0.0558 | Z37: 0.0585 | AA37: 0.0532 | AB37: 0.0845 | AC37: 0.0518 | AD37: 0.0557 | AE37: 0.0475
A38: 1995 | B38: 1995-12-31 | C38: 0.042 | D38: 0.042 | E38: 0.041 | F38: 0.021 | G38: =AVERAGE(H$4:H38) -> 0.02146529983 | H38: 0.03582668124 | I38: 0.0315270936 | J38: 0.04695481336 | K38: 0.0273352999 | L38: 0.04876425856 | M38: 0.02423945044 | N38: 0.04044834308 | O38: 0.03151750973 | Q38: 0.015 | R38: 0.018 | S38: 0.017 | T38: 0.052 | U38: 0.019 | V38: 0.026 | W38: 0.028 | Y38: 0.047 | Z38: 0.0658 | AA38: 0.0448 | AB38: 0.1033 | AC38: 0.0437 | AD38: 0.0675 | AE38: 0.0604
A39: 1996 | B39: 1996-12-31 | C39: 0.042 | D39: 0.042 | E39: 0.0415 | F39: 0.0215 | G39: =AVERAGE(H$4:H39) -> 0.02151363011 | H39: 0.02320518985 | I39: 0.01057786484 | J39: 0.01901960784 | K39: 0.0184418146 | L39: 0.04509615385 | M39: 0.008716944172 | N39: 0.0352195122 | O39: 0.02536443149 | Q39: 0.021 | R39: 0.02 | S39: 0.014 | T39: 0.04 | U39: 0.021 | V39: 0.025 | W39: 0.029 | Y39: 0.0318 | Z39: 0.0394 | AA39: 0.0327 | AB39: 0.0869 | AC39: 0.0299 | AD39: 0.0611 | AE39: 0.0551
A40: 1997 | B40: 1997-12-31 | C40: 0.042 | D40: 0.042 | E40: 0.0415 | F40: 0.0215 | G40: =AVERAGE(H$4:H40) -> 0.02169246756 | H40: 0.02813061577 | I40: 0.01811023622 | J40: 0.02233201581 | K40: 0.01373895976 | L40: 0.0468627451 | M40: 0.01194906954 | N40: 0.05029469548 | O40: 0.03362658847 | Q40: 0.016 | R40: 0.012 | S40: 0.019 | T40: 0.02 | U40: 0.021 | V40: 0.018 | W40: 0.023 | Y40: 0.0344 | Z40: 0.0346 | AA40: 0.033 | AB40: 0.0678 | AC40: 0.0332 | AD40: 0.0692 | AE40: 0.0574
A41: 1998 | B41: 1998-12-31 | C41: 0.042 | D41: 0.042 | E41: 0.0415 | F41: 0.0215 | G41: =AVERAGE(H$4:H41) -> 0.02194583434 | H41: 0.03132040531 | I41: 0.02616451933 | J41: 0.02840119166 | K41: 0.02596630327 | L41: 0.02852941176 | M41: 0.01392156863 | N41: 0.05728346457 | O41: 0.03897637795 | Q41: 0.009 | R41: 0.007 | S41: 0.009 | T41: 0.02 | U41: 0.02 | V41: 0.016 | W41: 0.016 | Y41: 0.0354 | Z41: 0.0356 | AA41: 0.0352 | AB41: 0.0491 | AC41: 0.0342 | AD41: 0.0742 | AE41: 0.0556
A42: 1999 | B42: 1999-12-31 | C42: 0.042 | D42: 0.042 | E42: 0.0415 | F42: 0.0215 | G42: =AVERAGE(H$4:H42) -> 0.02196745711 | H42: 0.02278912209 | I42: 0.01839762611 | J42: 0.02447761194 | K42: 0.02345924453 | L42: 0.01238938053 | M42: 0.007436399217 | N42: 0.04195459033 | O42: 0.03140900196 | Q42: 0.011 | R42: 0.005 | S42: 0.006 | T42: 0.017 | U42: 0.022 | V42: 0.013 | W42: 0.022 | Y42: 0.0296 | Z42: 0.0296 | AA42: 0.0296 | AB42: 0.0296 | AC42: 0.0296 | AD42: 0.0555 | AE42: 0.0541
A43: 2000 | B43: 2000-12-31 | C43: 0.042 | D43: 0.042 | E43: 0.042 | F43: 0.022 | G43: =AVERAGE(H$4:H43) -> 0.02211824276 | H43: 0.02799888306 | I43: 0.01843902439 | J43: 0.02645034415 | K43: 0.02948717949 | L43: 0.01843902439 | M43: 0.01943359375 | N43: 0.05347222222 | O43: 0.03027079304 | Q43: 0.025 | R43: 0.017 | S43: 0.014 | T43: 0.025 | U43: 0.024 | V43: 0.008 | W43: 0.034 | Y43: 0.0439 | Z43: 0.0439 | AA43: 0.0439 | AB43: 0.0439 | AC43: 0.0439 | AD43: 0.0619 | AE43: 0.0653
A44: 2001 | B44: 2001-12-31 | C44: 0.042 | D44: 0.042 | E44: 0.042 | F44: 0.022 | G44: =AVERAGE(H$4:H44) -> 0.02202360725 | H44: 0.01823818698 | I44: 0.01717073171 | J44: 0.02618110236 | K44: 0.02215686275 | L44: 0.01420233463 | M44: 0.000575815739 | N44: 0.03794466403 | O44: 0.009435797665 | Q44: 0.025 | R44: 0.016 | S44: 0.02 | T44: 0.028 | U44: 0.042 | V44: 0.012 | W44: 0.028 | Y44: 0.0426 | Z44: 0.0426 | AA44: 0.0426 | AB44: 0.0426 | AC44: 0.0426 | AD44: 0.0504 | AE44: 0.0377
A45: 2002 | B45: 2002-12-31 | C45: 0.042 | D45: 0.042 | E45: 0.042 | F45: 0.022 | G45: =AVERAGE(H$4:H45) -> 0.02179552398 | H45: 0.01244410998 | I45: 0.01692913386 | J45: 0.01393523062 | K45: 0.01893491124 | L45: 0.008 | M45: 0.0001936108422 | N45: 0.02724580454 | O45: 0.00187007874 | Q45: 0.016 | R45: 0.019 | S45: 0.014 | T45: 0.025 | U45: 0.033 | V45: 0.013 | W45: 0.016 | Y45: 0.0332 | Z45: 0.0332 | AA45: 0.0332 | AB45: 0.0332 | AC45: 0.0332 | AD45: 0.0406 | AE45: 0.0179
A46: 2003 | B46: 2003-12-31 | C46: 0.042 | D46: 0.042 | E46: 0.0415 | F46: 0.0215 | G46: =AVERAGE(H$4:H46) -> 0.0214005355 | H46: 0.004811019384 | I46: 0.00718503937 | J46: 0.002252693438 | K46: 0.01316831683 | L46: -0.003602726388 | M46: 0.002252693438 | N46: 0.02297830375 | O46: -0.01055718475 | Q46: 0.016 | R46: 0.021 | S46: 0.01 | T46: 0.027 | U46: 0.021 | V46: 0.014 | W46: 0.023 | Y46: 0.0233 | Z46: 0.0233 | AA46: 0.0233 | AB46: 0.0233 | AC46: 0.0233 | AD46: 0.0373 | AE46: 0.0122
A47: 2004 | B47: 2004-12-31 | C47: 0.042 | D47: 0.042 | E47: 0.0415 | F47: 0.0215 | G47: =AVERAGE(H$4:H47) -> 0.02102389373 | H47: 0.004828297506 | I47: 9.794319295e-05 | J47: 9.794319295e-05 | K47: 0.004031465093 | L47: -0.0008806262231 | M47: 0.007996051333 | N47: 0.03297137216 | O47: -0.01051606621 | Q47: 0.021 | R47: 0.021 | S47: 0.017 | T47: 0.022 | U47: 0.013 | V47: 0.013 | W47: 0.027 | Y47: 0.0211 | Z47: 0.0211 | AA47: 0.0211 | AB47: 0.0211 | AC47: 0.0211 | AD47: 0.0464 | AE47: 0.0162
A48: 2005 | B48: 2005-12-31 | C48: 0.042 | D48: 0.042 | E48: 0.041 | F48: 0.021 | G48: =AVERAGE(H$4:H48) -> 0.02068356398 | H48: 0.005709055068 | I48: -0.00593385214 | J48: 0.004818092429 | K48: 0.006798029557 | L48: 0.001862745098 | M48: 0.004818092429 | N48: 0.02605288932 | O48: 0.001547388781 | Q48: 0.028 | R48: 0.017 | S48: 0.015 | T48: 0.02 | U48: 0.017 | V48: 0.021 | W48: 0.034 | Y48: 0.0219 | Z48: 0.0219 | AA48: 0.0219 | AB48: 0.0219 | AC48: 0.0219 | AD48: 0.0476 | AE48: 0.0356
A49: 2006 | B49: 2006-12-31 | C49: 0.042 | D49: 0.042 | E49: 0.041 | F49: 0.021 | G49: =AVERAGE(H$4:H49) -> 0.02058857799 | H49: 0.01631420834 | I49: 0.01257367387 | J49: 0.01356932153 | K49: 0.01456692913 | L49: 0.009598432909 | M49: 0.01958456973 | N49: 0.02492668622 | O49: 0.01937984496 | Q49: 0.018 | R49: 0.017 | S49: 0.016 | T49: 0.021 | U49: 0.011 | V49: 0.023 | W49: 0.032 | Y49: 0.0308 | Z49: 0.0308 | AA49: 0.0308 | AB49: 0.0308 | AC49: 0.0308 | AD49: 0.0485 | AE49: 0.052
A50: 2007 | B50: 2007-12-31 | C50: 0.042 | D50: 0.042 | E50: 0.041 | F50: 0.021 | G50: =AVERAGE(H$4:H50) -> 0.02070169848 | H50: 0.0259052412 | I50: 0.02436149312 | J50: 0.02738916256 | K50: 0.01935483871 | L50: 0.02436149312 | M50: 0.02637795276 | N50: 0.03616813294 | O50: 0.02332361516 | Q50: 0.018 | R50: 0.015 | S50: 0.023 | T50: 0.018 | U50: 0.016 | V50: 0.023 | W50: 0.029 | Y50: 0.0428 | Z50: 0.0428 | AA50: 0.0428 | AB50: 0.0428 | AC50: 0.0428 | AD50: 0.06 | AE50: 0.053
A51: 2008 | B51: 2008-12-31 | C51: 0.042 | D51: 0.042 | E51: 0.041 | F51: 0.021 | G51: =AVERAGE(H$4:H51) -> 0.02051549903 | H51: 0.01176412453 | I51: 0.001244019139 | J51: 0.01780155642 | K51: 0.01978557505 | L51: 0.01287512101 | M51: 0.0207804878 | N51: 0.01843629344 | O51: -0.008574181118 | Q51: 0.045 | R51: 0.028 | S51: 0.026 | T51: 0.033 | U51: 0.025 | V51: 0.036 | W51: 0.038 | Y51: 0.0463 | Z51: 0.0463 | AA51: 0.0463 | AB51: 0.0463 | AC51: 0.0463 | AD51: 0.0551 | AE51: 0.0291
A52: 2009 | B52: 2009-12-31 | C52: 0.042 | D52: 0.042 | E52: 0.0405 | F52: 0.0205 | G52: =AVERAGE(H$4:H52) -> 0.02021108852 | H52: 0.005599384104 | I52: 0.01321321321 | J52: 0.01118881119 | K52: 0.009172482552 | L52: 0.004166666667 | M52: 0.0001976284585 | N52: -0.009686888454 | O52: 0.0109437751 | Q52: -0.001 | R52: 0.001 | S52: 0.003 | T52: 0.008 | U52: 0.012 | V52: 0.022 | W52: -0.004 | Y52: 0.0122 | Z52: 0.0122 | AA52: 0.0122 | AB52: 0.0122 | AC52: 0.0122 | AD52: 0.0121 | AE52: 0.0069
A53: 2010 | B53: 2010-12-31 | C53: 0.042 | D53: 0.042 | E53: 0.04 | F53: 0.02 | G53: =AVERAGE(H$4:H53) -> 0.01959979992 | H53: -0.01035334153 | I53: -0.01360078278 | J53: -0.006798029557 | K53: -0.002868447082 | L53: -0.006798029557 | M53: -0.004837117473 | N53: -0.02516940949 | O53: -0.0124015748 | Q53: 0.022 | R53: 0.015 | S53: 0.011 | T53: 0.015 | U53: 0.013 | V53: 0.033 | W53: 0.016 | Y53: 0.0081 | Z53: 0.0081 | AA53: 0.0081 | AB53: 0.0081 | AC53: 0.0081 | AD53: 0.007 | AE53: 0.0034
A54: 2011 | B54: 2011-12-31 | C54: 0.042 | D54: 0.042 | E54: 0.039 | F54: 0.019 | G54: =AVERAGE(H$4:H54) -> 0.01888142823 | H54: -0.01703715606 | I54: -0.02038647343 | J54: -0.006953966699 | K54: -0.006953966699 | L54: -0.01371595331 | M54: -0.00889540567 | N54: -0.03464114833 | O54: -0.02771317829 | Q54: 0.035 | R54: 0.021 | S54: 0.021 | T54: 0.028 | U54: 0.023 | V54: 0.045 | W54: 0.032 | Y54: 0.0139 | Z54: 0.0139 | AA54: 0.0139 | AB54: 0.0139 | AC54: 0.0139 | AD54: 0.0088 | AE54: 0.0034
A55: 2012 | B55: 2012-12-31 | C55: 0.042 | D55: 0.042 | E55: 0.0385 | F55: 0.0185 | G55: =AVERAGE(H$4:H55) -> 0.01816757312 | H55: -0.01823903733 | I55: -0.021692607 | J55: -0.01401960784 | K55: -0.01401960784 | L55: -0.02359223301 | M55: -0.01882926829 | N55: -0.01916342412 | O55: -0.01635651322 | Q55: 0.028 | R55: 0.02 | S55: 0.02 | T55: 0.03 | U55: 0.025 | V55: 0.028 | W55: 0.021 | Y55: 0.0057 | Z55: 0.0057 | AA55: 0.0057 | AB55: 0.0057 | AC55: 0.0057 | AD55: 0.0083 | AE55: 0.0043
A56: 2013 | B56: 2013-12-31 | C56: 0.042 | D56: 0.042 | E56: 0.038 | F56: 0.018 | G56: =AVERAGE(H$4:H56) -> 0.01757554147 | H56: -0.01321010435 | I56: -0.008704253215 | J56: -0.006739345887 | K56: -0.01261083744 | L56: -0.009683794466 | M56: -0.02224390244 | N56: -0.02037037037 | O56: -0.0121182266 | Q56: 0.011 | R56: 0.009 | S56: 0.015 | T56: 0.012 | U56: 0.025 | V56: 0.026 | W56: 0.015 | Y56: 0.0022 | Z56: 0.0022 | AA56: 0.0022 | AB56: 0.0022 | AC56: 0.0022 | AD56: 0.0051 | AE56: 0.0027
A57: 2014 | B57: 2014-12-31 | C57: 0.042 | D57: 0.042 | E57: 0.0375 | F57: 0.0175 | G57: =AVERAGE(H$4:H57) -> 0.01714084706 | H57: -0.005897956565 | I57: -0.0008973080758 | J57: -0.002885572139 | K57: -0.006838453915 | L57: 9.98003992e-05 | M57: -0.007821782178 | N57: -0.009458128079 | O57: -0.01348425197 | Q57: 0.003 | R57: 0.005 | S57: 0.009 | T57: 0.002 | U57: 0.01 | V57: 0.015 | W57: 0.016 | Y57: 0.0021 | Z57: 0.0021 | AA57: 0.0021 | AB57: 0.0021 | AC57: 0.0021 | AD57: 0.0054 | AE57: 0.0023
A58: 2015 | B58: 2015-12-31 | C58: 0.042 | D58: 0.042 | E58: 0.037 | F58: 0.017 | G58: =AVERAGE(H$4:H58) -> 0.01681088905 | H58: -0.001006843802 | I58: -0.006160536779 | J58: -0.0001975 | K58: -0.002193113772 | L58: -0.0001975 | M58: -0.006160536779 | N58: 0.0057 | O58: 0.002161280719 | Q58: 0.006 | R58: 0 | S58: 0.002 | T58: 0 | U58: 0.006 | V58: 0 | W58: 0.001 | Y58: -0.0001975 | Z58: -0.0001975 | AA58: -0.0001975 | AB58: -0.0001975 | AC58: -0.0001975 | AD58: 0.0057 | AE58: 0.003163442
A59: 2016 | B59: 2016-12-31 | C59: 0.042 | D59: 0.042 | E59: 0.0365 | F59: 0.0165 | G59: =AVERAGE(H$4:H59) -> 0.01638522727 | H59: -0.007026170424 | I59: -0.02219771275 | J59: -0.004632402196 | K59: -0.007603648756 | L59: -0.00164331031 | M59: -0.005624792622 | N59: -0.001986097319 | O59: -0.005495229023 | Q59: 0.02 | R59: 0.002 | S59: 0.005 | T59: -0.001 | U59: 0.003 | V59: 0.007 | W59: 0.013 | Y59: -0.002641667 | Z59: -0.002641667 | AA59: -0.002641667 | AB59: -0.002641667 | AC59: -0.002641667 | AD59: 0.005 | AE59: 0.007433333
A60: =+A59+1 -> 2017 | B60: 2017-12-31 | C60: 0.042 | D60: =IF(A60<=D$1,E$2+D$2,E60) -> 0.042 | E60: 0.036 | F60: =IF(G60<F59,CEILING(G60,0.0005),FLOOR(G60,0.0005)) -> 0.016 | G60: =AVERAGE(H$4:H60) -> 0.01579675307 | H60: =AVERAGE(I60:O60) -> -0.01715780241 | I60: =(Y60-Q60)/(1+Q60) -> -0.02380019589 | J60: -0.01316831683 | K60: -0.01996066863 | L60: -0.01511857708 | M60: -0.01706114398 | N60: -0.02278481013 | O60: -0.008210904342 | Q60: 0.021 | R60: 0.01 | S60: 0.017 | T60: 0.012 | U60: 0.014 | V60: 0.027 | W60: 0.021 | Y60: -0.0033 | Z60: -0.0033 | AA60: -0.0033 | AB60: -0.0033 | AC60: -0.0033 | AD60: 0.0036 | AE60: 0.01261666667
A61: =+A60+1 -> 2018 | B61: =EOMONTH(DATE(A61,12,1),0) -> 2018-12-31 | C61: 0.0405 | D61: =IF(A61<=D$1,E$2+D$2,E61) -> 0.036 | E61: 0.036 | F61: =IF(G61<F60,CEILING(G61,0.0005),FLOOR(G61,0.0005)) -> 0.016 | G61: =AVERAGE(H$4:H61) -> 0.01552439526 | H61: =AVERAGE(I61:O61) -> 0 | I61: =(Y61-Q61)/(1+Q61) -> 0 | J61: 0 | K61: 0 | L61: 0 | M61: 0 | N61: 0 | O61: 0
A62: =+A61+1 -> 2019 | B62: =EOMONTH(DATE(A62,12,1),0) -> 2019-12-31 | C62: 0.039 | D62: 0.036 | E62: 0.036
A63: 2020 | B63: 2020-12-31 | C63: 0.0375 | D63: 0.036 | E63: 0.036
A64: 2021 | B64: 2021-12-31 | C64: 0.036 | D64: 0.0345 | E64: 0.0345
A65: 2022 | B65: 2022-12-31 | C65: 0.0345 | D65: 0.0345 | E65: 0.0345
A66: 2023 | B66: 2023-12-31 | C66: 0.0345 | D66: 0.0345 | E66: 0.0345
A67: 2024 | B67: 2024-12-31 | C67: 0.033 | D67: 0.033 | E67: 0.033
A68: 2025 | B68: 2025-12-31 | C68: 0.033 | D68: 0.033 | E68: 0.033
A69: 2026 | B69: 2026-12-31 | C69: =IF(ROUND(D69-C68,5)>=C$2,C68+C$2,IF(ROUND(C68-D69,5)>=C$2,C68-C$2,C68)) -> 0.033 | D69: 0.033 | E69: 0.033
A70: 2027 | B70: 2027-12-31 | C70: 0.033 | D70: 0.033 | E70: =IF(F70="",E69,E$2+F70) -> 0.033
A71: 2028 | B71: 2028-12-31 | C71: 0.033 | D71: 0.033 | E71: 0.033
A72: 2029 | B72: 2029-12-31 | C72: 0.033 | D72: 0.033 | E72: 0.033
A73: 2030 | B73: 2030-12-31 | C73: 0.033 | D73: 0.033 | E73: 0.033
A74: 2031 | B74: 2031-12-31 | C74: 0.033 | D74: 0.033 | E74: 0.033
A75: 2032 | B75: 2032-12-31 | C75: 0.033 | D75: 0.033 | E75: 0.033
A76: 2033 | B76: 2033-12-31 | C76: 0.033 | D76: 0.033 | E76: 0.033
A77: 2034 | B77: 2034-12-31 | C77: 0.033 | D77: 0.033 | E77: 0.033
A78: 2035 | B78: 2035-12-31 | C78: 0.033 | D78: 0.033 | E78: 0.033
A79: 2036 | B79: 2036-12-31 | C79: 0.033 | D79: 0.033 | E79: 0.033
A80: 2037 | B80: 2037-12-31 | C80: 0.033 | D80: 0.033 | E80: 0.033
A81: 2038 | B81: 2038-12-31 | C81: 0.033 | D81: 0.033 | E81: 0.033
A82: 2039 | B82: =EOMONTH(DATE(A82,12,1),0) -> 2039-12-31 | C82: =IF(ROUND(D82-C81,5)>=C$2,C81+C$2,IF(ROUND(C81-D82,5)>=C$2,C81-C$2,C81)) -> 0.033 | D82: =IF(A82<=D$1,E$2+D$2,E82) -> 0.033 | E82: =IF(F82="",E81,E$2+F82) -> 0.033
A83: 2040 | B83: =EOMONTH(DATE(A83,12,1),0) -> 2040-12-31 | C83: =IF(ROUND(D83-C82,5)>=C$2,C82+C$2,IF(ROUND(C82-D83,5)>=C$2,C82-C$2,C82)) -> 0.033 | D83: =IF(A83<=D$1,E$2+D$2,E83) -> 0.033 | E83: =IF(F83="",E82,E$2+F83) -> 0.033
A84: 2041 | B84: =EOMONTH(DATE(A84,12,1),0) -> 2041-12-31 | C84: =IF(ROUND(D84-C83,5)>=C$2,C83+C$2,IF(ROUND(C83-D84,5)>=C$2,C83-C$2,C83)) -> 0.033 | D84: =IF(A84<=D$1,E$2+D$2,E84) -> 0.033 | E84: =IF(F84="",E83,E$2+F84) -> 0.033
A85: 2042 | B85: 2042-12-31 | C85: 0.033 | D85: 0.033 | E85: 0.033
A86: 2043 | B86: 2043-12-31 | C86: 0.033 | D86: 0.033 | E86: 0.033
A87: 2044 | B87: 2044-12-31 | C87: 0.033 | D87: 0.033 | E87: 0.033
A88: 2045 | B88: 2045-12-31 | C88: 0.033 | D88: 0.033 | E88: 0.033
A89: 2046 | B89: 2046-12-31 | C89: 0.033 | D89: 0.033 | E89: 0.033
A90: 2047 | B90: 2047-12-31 | C90: 0.033 | D90: 0.033 | E90: 0.033
A91: 2048 | B91: 2048-12-31 | C91: 0.033 | D91: 0.033 | E91: 0.033
A92: 2049 | B92: 2049-12-31 | C92: 0.033 | D92: 0.033 | E92: 0.033
A93: 2050 | B93: 2050-12-31 | C93: 0.033 | D93: 0.033 | E93: 0.033
A94: 2051 | B94: 2051-12-31 | C94: 0.033 | D94: 0.033 | E94: 0.033
A95: 2052 | B95: 2052-12-31 | C95: 0.033 | D95: 0.033 | E95: 0.033
A96: 2053 | B96: 2053-12-31 | C96: 0.033 | D96: 0.033 | E96: 0.033
A97: 2054 | B97: 2054-12-31 | C97: 0.033 | D97: 0.033 | E97: 0.033
A98: 2055 | B98: 2055-12-31 | C98: 0.033 | D98: 0.033 | E98: 0.033
A99: 2056 | B99: 2056-12-31 | C99: 0.033 | D99: 0.033 | E99: 0.033
A100: 2057 | B100: 2057-12-31 | C100: 0.033 | D100: 0.033 | E100: 0.033
A101: 2058 | B101: 2058-12-31 | C101: 0.033 | D101: 0.033 | E101: 0.033
A102: 2059 | B102: 2059-12-31 | C102: 0.033 | D102: 0.033 | E102: 0.033
A103: 2060 | B103: 2060-12-31 | C103: 0.033 | D103: 0.033 | E103: 0.033
A104: 2061 | B104: 2061-12-31 | C104: 0.033 | D104: 0.033 | E104: 0.033
A105: 2062 | B105: 2062-12-31 | C105: 0.033 | D105: 0.033 | E105: 0.033
A106: 2063 | B106: 2063-12-31 | C106: 0.033 | D106: 0.033 | E106: 0.033
A107: 2064 | B107: 2064-12-31 | C107: 0.033 | D107: 0.033 | E107: 0.033
A108: 2065 | B108: 2065-12-31 | C108: 0.033 | D108: 0.033 | E108: 0.033
A109: 2066 | B109: 2066-12-31 | C109: 0.033 | D109: 0.033 | E109: 0.033
A110: 2067 | B110: 2067-12-31 | C110: 0.033 | D110: 0.033 | E110: 0.033
A111: 2068 | B111: 2068-12-31 | C111: 0.033 | D111: 0.033 | E111: 0.033
A112: 2069 | B112: 2069-12-31 | C112: 0.033 | D112: 0.033 | E112: 0.033
A113: 2070 | B113: 2070-12-31 | C113: 0.033 | D113: 0.033 | E113: 0.033
A114: 2071 | B114: 2071-12-31 | C114: 0.033 | D114: 0.033 | E114: 0.033
A115: 2072 | B115: 2072-12-31 | C115: 0.033 | D115: 0.033 | E115: 0.033
A116: 2073 | B116: 2073-12-31 | C116: 0.033 | D116: 0.033 | E116: 0.033
A117: 2074 | B117: 2074-12-31 | C117: 0.033 | D117: 0.033 | E117: 0.033
A118: 2075 | B118: 2075-12-31 | C118: 0.033 | D118: 0.033 | E118: 0.033
A119: 2076 | B119: 2076-12-31 | C119: 0.033 | D119: 0.033 | E119: 0.033
A120: 2077 | B120: 2077-12-31 | C120: 0.033 | D120: 0.033 | E120: 0.033
A121: 2078 | B121: 2078-12-31 | C121: 0.033 | D121: 0.033 | E121: 0.033
A122: 2079 | B122: 2079-12-31 | C122: 0.033 | D122: 0.033 | E122: 0.033
A123: 2080 | B123: 2080-12-31 | C123: 0.033 | D123: 0.033 | E123: 0.033
A124: 2081 | B124: 2081-12-31 | C124: 0.033 | D124: 0.033 | E124: 0.033
A125: 2082 | B125: 2082-12-31 | C125: 0.033 | D125: 0.033 | E125: 0.033
A126: =+A125+1 -> 2083 | B126: 2083-12-31 | C126: 0.033 | D126: 0.033 | E126: 0.033
A127: 2084 | B127: 2084-12-31 | C127: 0.033 | D127: 0.033 | E127: 0.033
A128: 2085 | B128: 2085-12-31 | C128: 0.033 | D128: 0.033 | E128: 0.033

Sheet EIOPA_curves_euro
EY1: DF | FS1: swaprates | GG1: forwards
A2: UFR | B2: CRA | C2: VA | D2: date | E2: 1 | F2: 2 | G2: 3 | H2: 4 | I2: 5 | J2: 6 | K2: 7 | L2: 8 | M2: 9 | N2: 10 | O2: 11 | P2: 12 | Q2: 13 | R2: 14 | S2: 15 | T2: 16 | U2: 17 | V2: 18 | W2: 19 | X2: 20 | Y2: 21 | Z2: 22 | AA2: 23 | AB2: 24 | AC2: 25 | AD2: 26 | AE2: 27 | AF2: 28 | AG2: 29 | AH2: 30 | AI2: 31 | AJ2: 32 | AK2: 33 | AL2: 34 | AM2: 35 | AN2: 36 | AO2: 37 | AP2: 38 | AQ2: 39 | AR2: 40 | AS2: 41 | AT2: 42 | AU2: 43 | AV2: 44 | AW2: 45 | AX2: 46 | AY2: 47 | AZ2: 48 | BA2: 49 | BB2: 50 | BC2: 51 | BD2: 52 | BE2: 53 | BF2: 54 | BG2: 55 | BH2: 56 | BI2: 57 | BJ2: 58 | BK2: 59 | BL2: 60 | BM2: 61 | BN2: 62 | BO2: 63 | BP2: 64 | BQ2: 65 | BR2: 66 | BS2: 67 | BT2: 68 | BU2: 69 | BV2: 70 | BW2: 71 | BX2: 72 | BY2: 73 | BZ2: 74 | CA2: 75 | CB2: 76 | CC2: 77 | CD2: 78 | CE2: 79 | CF2: 80 | CG2: 81 | CH2: 82 | CI2: 83 | CJ2: 84 | CK2: 85 | CL2: 86 | CM2: 87 | CN2: 88 | CO2: 89 | CP2: 90 | CQ2: 91 | CR2: 92 | CS2: 93 | CT2: 94 | CU2: 95 | CV2: 96 | CW2: 97 | CX2: 98 | CY2: 99 | CZ2: 100 | DA2: 101 | DB2: 102 | DC2: 103 | DD2: 104 | DE2: 105 | DF2: 106 | DG2: 107 | DH2: 108 | DI2: 109 | DJ2: 110 | DK2: 111 | DL2: 112 | DM2: 113 | DN2: 114 | DO2: 115 | DP2: 116 | DQ2: 117 | DR2: 118 | DS2: 119 | DT2: 120 | DU2: 121 | DV2: 122 | DW2: 123 | DX2: 124 | DY2: 125 | DZ2: 126 | EA2: 127 | EB2: 128 | EC2: 129 | ED2: 130 | EE2: 131 | EF2: 132 | EG2: 133 | EH2: 134 | EI2: 135 | EJ2: 136 | EK2: 137 | EL2: 138 | EM2: 139 | EN2: 140 | EO2: 141 | EP2: 142 | EQ2: 143 | ER2: 144 | ES2: 145 | ET2: 146 | EU2: 147 | EV2: 148 | EW2: 149 | EX2: 150 | EY2: 1 | EZ2: 2 | FA2: 3 | FB2: 4 | FC2: 5 | FD2: 6 | FE2: 7 | FF2: 8 | FG2: 9 | FH2: 10 | FI2: 11 | FJ2: 12 | FK2: 13 | FL2: 14 | FM2: 15 | FN2: 16 | FO2: 17 | FP2: 18 | FQ2: 19 | FR2: 20 | FS2: 0 | FT2: 1 | FU2: 2 | FV2: 3 | FW2: 4 | FX2: 5 | FY2: 6 | FZ2: 7 | GA2: 8 | GB2: 9 | GC2: 10 | GD2: 12 | GE2: 15 | GF2: 20 | GG2: 1 | GH2: 2 | GI2: 3 | GJ2: 4 | GK2: 5 | GL2: 6 | GM2: 7 | GN2: 8 | GO2: 9 | GP2: 10 | GQ2: 11 | GR2: 12 | GS2: 13 | GT2: 14 | GU2: 15 | GV2: 16 | GW2: 17 | GX2: 18 | GY2: 19 | GZ2: 20
A3: 0.042 | B3: 0.001 | C3: 0.0022 | D3: 2015-12-31 | E3: -0.00157 | F3: -0.00129 | G3: -0.00038 | H3: 0.00096 | I3: 0.00232 | J3: 0.00381 | K3: 0.00526 | L3: 0.00667 | M3: 0.00801 | N3: 0.00921 | O3: 0.01026 | P3: 0.0112 | Q3: 0.01208 | R3: 0.01284 | S3: 0.01344 | T3: 0.01388 | U3: 0.01422 | V3: 0.01454 | W3: 0.01488 | X3: 0.01527 | Y3: 0.01574 | Z3: 0.01627 | AA3: 0.01683 | AB3: 0.01741 | AC3: 0.018 | AD3: 0.01859 | AE3: 0.01918 | AF3: 0.01976 | AG3: 0.02033 | AH3: 0.02088 | AI3: 0.02141 | AJ3: 0.02193 | AK3: 0.02243 | AL3: 0.02292 | AM3: 0.02338 | AN3: 0.02383 | AO3: 0.02426 | AP3: 0.02468 | AQ3: 0.02508 | AR3: 0.02547 | AS3: 0.02584 | AT3: 0.02619 | AU3: 0.02654 | AV3: 0.02687 | AW3: 0.02719 | AX3: 0.02749 | AY3: 0.02779 | AZ3: 0.02807 | BA3: 0.02834 | BB3: 0.02861 | BC3: 0.02886 | BD3: 0.02911 | BE3: 0.02934 | BF3: 0.02957 | BG3: 0.02979 | BH3: 0.03001 | BI3: 0.03021 | BJ3: 0.03041 | BK3: 0.03061 | BL3: 0.03079 | BM3: 0.03097 | BN3: 0.03115 | BO3: 0.03132 | BP3: 0.03148 | BQ3: 0.03164 | BR3: 0.0318 | BS3: 0.03195 | BT3: 0.0321 | BU3: 0.03224 | BV3: 0.03238 | BW3: 0.03251 | BX3: 0.03264 | BY3: 0.03277 | BZ3: 0.03289 | CA3: 0.03301 | CB3: 0.03313 | CC3: 0.03325 | CD3: 0.03336 | CE3: 0.03347 | CF3: 0.03357 | CG3: 0.03368 | CH3: 0.03378 | CI3: 0.03388 | CJ3: 0.03397 | CK3: 0.03407 | CL3: 0.03416 | CM3: 0.03425 | CN3: 0.03434 | CO3: 0.03442 | CP3: 0.03451 | CQ3: 0.03459 | CR3: 0.03467 | CS3: 0.03475 | CT3: 0.03482 | CU3: 0.0349 | CV3: 0.03497 | CW3: 0.03504 | CX3: 0.03512 | CY3: 0.03518 | CZ3: 0.03525 | DA3: 0.03532 | DB3: 0.03538 | DC3: 0.03545 | DD3: 0.03551 | DE3: 0.03557 | DF3: 0.03563 | DG3: 0.03569 | DH3: 0.03575 | DI3: 0.03581 | DJ3: 0.03586 | DK3: 0.03592 | DL3: 0.03597 | DM3: 0.03603 | DN3: 0.03608 | DO3: 0.03613 | DP3: 0.03618 | DQ3: 0.03623 | DR3: 0.03628 | DS3: 0.03633 | DT3: 0.03637 | DU3: 0.03642 | DV3: 0.03647 | DW3: 0.03651 | DX3: 0.03656 | DY3: 0.0366 | DZ3: 0.03664 | EA3: 0.03668 | EB3: 0.03672 | EC3: 0.03677 | ED3: 0.03681 | EE3: 0.03685 | EF3: 0.03688 | EG3: 0.03692 | EH3: 0.03696 | EI3: 0.037 | EJ3: 0.03703 | EK3: 0.03707 | EL3: 0.03711 | EM3: 0.03714 | EN3: 0.03718 | EO3: 0.03721 | EP3: 0.03724 | EQ3: 0.03728 | ER3: 0.03731 | ES3: 0.03734 | ET3: 0.03737 | EU3: 0.03741 | EV3: 0.03744 | EW3: 0.03747 | EX3: 0.0375 | EY3: =(1+E3)^(-EY$2) -> 1.001572469 | EZ3: =(1+F3)^(-EZ$2) -> 1.002585001 | FA3: =(1+G3)^(-FA$2) -> 1.001140867 | FB3: =(1+H3)^(-FB$2) -> 0.9961691983 | FC3: =(1+I3)^(-FC$2) -> 0.988480301 | FD3: =(1+J3)^(-FD$2) -> 0.9774417673 | FE3: =(1+K3)^(-FE$2) -> 0.9639426271 | FF3: =(1+L3)^(-FF$2) -> 0.9482066343 | FG3: =(1+M3)^(-FG$2) -> 0.9307144033 | FH3: =(1+N3)^(-FH$2) -> 0.9123984697 | FI3: =(1+O3)^(-FI$2) -> 0.8937895286 | FJ3: =(1+P3)^(-FJ$2) -> 0.8748936587 | FK3: =(1+Q3)^(-FK$2) -> 0.8554744526 | FL3: =(1+R3)^(-FL$2) -> 0.8364272554 | FM3: =(1+S3)^(-FM$2) -> 0.818520149 | FN3: =(1+T3)^(-FN$2) -> 0.8020752244 | FO3: =(1+U3)^(-FO$2) -> 0.7865984805 | FP3: =(1+V3)^(-FP$2) -> 0.7711784031 | FQ3: =(1+W3)^(-FQ$2) -> 0.7553023101 | FR3: =(1+X3)^(-FR$2) -> 0.7385313408 | FT3: =(1-OFFSET($EY3,0,EY$2-1))/SUM(OFFSET($EY3,0,0,1,EY$2))+$B3 -> -0.00057 | FU3: =(1-OFFSET($EY3,0,EZ$2-1))/SUM(OFFSET($EY3,0,0,1,EZ$2))+$B3 -> -0.0002898192581 | FV3: =(1-OFFSET($EY3,0,FA$2-1))/SUM(OFFSET($EY3,0,0,1,FA$2))+$B3 -> 0.0006203814659 | FW3: =(1-OFFSET($EY3,0,FB$2-1))/SUM(OFFSET($EY3,0,0,1,FB$2))+$B3 -> 0.00195734918 | FX3: =(1-OFFSET($EY3,0,FC$2-1))/SUM(OFFSET($EY3,0,0,1,FC$2))+$B3 -> 0.003308581053 | FY3: =(1-OFFSET($EY3,0,FD$2-1))/SUM(OFFSET($EY3,0,0,1,FD$2))+$B3 -> 0.004780251367 | FZ3: =(1-OFFSET($EY3,0,FE$2-1))/SUM(OFFSET($EY3,0,0,1,FE$2))+$B3 -> 0.006202084064 | GA3: =(1-OFFSET($EY3,0,FF$2-1))/SUM(OFFSET($EY3,0,0,1,FF$2))+$B3 -> 0.007573146799 | GB3: =(1-OFFSET($EY3,0,FG$2-1))/SUM(OFFSET($EY3,0,0,1,FG$2))+$B3 -> 0.008864200332 | GC3: =(1-OFFSET($EY3,0,FH$2-1))/SUM(OFFSET($EY3,0,0,1,FH$2))+$B3 -> 0.01001004506 | GD3: =(1-OFFSET($EY3,0,FI$2-1))/SUM(OFFSET($EY3,0,0,1,FI$2))+$B3 -> 0.01100433843 | GE3: =(1-OFFSET($EY3,0,FJ$2-1))/SUM(OFFSET($EY3,0,0,1,FJ$2))+$B3 -> 0.01188701549 | GF3: =(1-OFFSET($EY3,0,FK$2-1))/SUM(OFFSET($EY3,0,0,1,FK$2))+$B3 -> 0.01270549759 | GG3: =FromParToForwards(FT3:GF3,$FS$2:$GF$2,20,20,0.0000000001) -> -0.0005700000001 | GH3: -9.641310302e-06 | GI3: 0.002445225467 | GJ3: 0.005998877876 | GK3: 0.008792254445 | GL3: 0.01231604975 | GM3: 0.01503536213 | GN3: 0.01763647999 | GO3: 0.019845009 | GP3: 0.02113181216 | GQ3: 0.01645863696 | GR3: 0.01645863696 | GS3: 0.0158575598 | GT3: 0.0158575598 | GU3: 0.0158575598 | GV3: 0.01557822035 | GW3: 0.01557822035 | GX3: 0.01557822035 | GY3: 0.01557822035 | GZ3: 0.01557822035
A4: 0.042 | B4: 0.001 | C4: 0.0029 | D4: 2016-01-31 | E4: -0.00254 | F4: -0.00275 | G4: -0.00223 | H4: -0.00135 | I4: -0.00023 | J4: 0.00099 | K4: 0.00224 | L4: 0.00351 | M4: 0.0047 | N4: 0.0058 | O4: 0.0068 | P4: 0.00771 | Q4: 0.00854 | R4: 0.00923 | S4: 0.00977 | T4: 0.01014 | U4: 0.01043 | V4: 0.01071 | W4: 0.01104 | X4: 0.01145 | Y4: 0.01196 | Z4: 0.01254 | AA4: 0.01318 | AB4: 0.01384 | AC4: 0.01451 | AD4: 0.01519 | AE4: 0.01586 | AF4: 0.01653 | AG4: 0.01718 | AH4: 0.01781 | AI4: 0.01843 | AJ4: 0.01903 | AK4: 0.0196 | AL4: 0.02016 | AM4: 0.0207 | AN4: 0.02121 | AO4: 0.02171 | AP4: 0.02219 | AQ4: 0.02265 | AR4: 0.02309 | AS4: 0.02352 | AT4: 0.02393 | AU4: 0.02432 | AV4: 0.0247 | AW4: 0.02506 | AX4: 0.02541 | AY4: 0.02575 | AZ4: 0.02608 | BA4: 0.02639 | BB4: 0.02669 | BC4: 0.02698 | BD4: 0.02726 | BE4: 0.02753 | BF4: 0.02779 | BG4: 0.02805 | BH4: 0.02829 | BI4: 0.02853 | BJ4: 0.02876 | BK4: 0.02898 | BL4: 0.02919 | BM4: 0.0294 | BN4: 0.0296 | BO4: 0.02979 | BP4: 0.02998 | BQ4: 0.03016 | BR4: 0.03034 | BS4: 0.03051 | BT4: 0.03068 | BU4: 0.03084 | BV4: 0.031 | BW4: 0.03116 | BX4: 0.03131 | BY4: 0.03145 | BZ4: 0.03159 | CA4: 0.03173 | CB4: 0.03187 | CC4: 0.032 | CD4: 0.03212 | CE4: 0.03225 | CF4: 0.03237 | CG4: 0.03249 | CH4: 0.0326 | CI4: 0.03272 | CJ4: 0.03283 | CK4: 0.03293 | CL4: 0.03304 | CM4: 0.03314 | CN4: 0.03324 | CO4: 0.03334 | CP4: 0.03343 | CQ4: 0.03353 | CR4: 0.03362 | CS4: 0.03371 | CT4: 0.0338 | CU4: 0.03388 | CV4: 0.03397 | CW4: 0.03405 | CX4: 0.03413 | CY4: 0.03421 | CZ4: 0.03429 | DA4: 0.03436 | DB4: 0.03444 | DC4: 0.03451 | DD4: 0.03458 | DE4: 0.03465 | DF4: 0.03472 | DG4: 0.03479 | DH4: 0.03486 | DI4: 0.03492 | DJ4: 0.03499 | DK4: 0.03505 | DL4: 0.03511 | DM4: 0.03517 | DN4: 0.03523 | DO4: 0.03529 | DP4: 0.03535 | DQ4: 0.0354 | DR4: 0.03546 | DS4: 0.03552 | DT4: 0.03557 | DU4: 0.03562 | DV4: 0.03567 | DW4: 0.03573 | DX4: 0.03578 | DY4: 0.03583 | DZ4: 0.03587 | EA4: 0.03592 | EB4: 0.03597 | EC4: 0.03602 | ED4: 0.03606 | EE4: 0.03611 | EF4: 0.03615 | EG4: 0.0362 | EH4: 0.03624 | EI4: 0.03628 | EJ4: 0.03632 | EK4: 0.03636 | EL4: 0.03641 | EM4: 0.03645 | EN4: 0.03649 | EO4: 0.03652 | EP4: 0.03656 | EQ4: 0.0366 | ER4: 0.03664 | ES4: 0.03668 | ET4: 0.03671 | EU4: 0.03675 | EV4: 0.03678 | EW4: 0.03682 | EX4: 0.03685 | EY4: 1.002546468 | EZ4: 1.005522771 | FA4: 1.006719949 | FB4: 1.005418274 | FC4: 1.001150794 | FD4: 0.9940805279 | FE4: 0.9844595539 | FF4: 0.972358384 | FG4: 0.9586771578 | FH4: 0.9438080715 | FI4: 0.9281640098 | FJ4: 0.9119545204 | FK4: 0.8953427918 | FL4: 0.8793016255 | FM4: 0.8642970752 | FN4: 0.8509320833 | FO4: 0.8382895543 | FP4: 0.8255091139 | FQ4: 0.8117112733 | FR4: 0.7963640111 | FT4: -0.00154 | FU4: -0.001750289117 | FV4: -0.00122899455 | FW4: -0.0003477598794 | FX4: 0.000770820191 | FY4: 0.001984046606 | FZ4: 0.003220095964 | GA4: 0.004467226021 | GB4: 0.005626934062 | GC4: 0.00669047057 | GD4: 0.007649691335 | GE4: 0.008515708764 | GF4: 0.009299406908 | GG4: =FromParToForwards(FT4:GF4,$FS$2:$GF$2,20,20,0.0000000001) -> -0.001540000006 | GH4: -0.001960166042 | GI4: -0.0001876226455 | GJ4: 0.002299962069 | GK4: 0.005273864491 | GL4: 0.008130909575 | GM4: 0.01079962317 | GN4: 0.01348174558 | GO4: 0.01531540135 | GP4: 0.01680623321 | GQ4: 0.01278799543 | GR4: 0.01278799543 | GS4: 0.01230044518 | GT4: 0.01230044518 | GU4: 0.01230044518 | GV4: 0.01194815943 | GW4: 0.01194815943 | GX4: 0.01194815943 | GY4: 0.01194815943 | GZ4: 0.01194815943
A5: 0.042 | B5: 0.001 | C5: 0.0033 | D5: 2016-02-29 | E5: -0.0029 | F5: -0.00317 | G5: -0.00284 | H5: -0.00216 | I5: -0.0013 | J5: -0.00028 | K5: 0.00087 | L5: 0.00202 | M5: 0.0031 | N5: 0.00408 | O5: 0.00497 | P5: 0.00577 | Q5: 0.0065 | R5: 0.0071 | S5: 0.00753 | T5: 0.0078 | U5: 0.008 | V5: 0.0082 | W5: 0.00848 | X5: 0.00887 | Y5: 0.00938 | Z5: 0.00998 | AA5: 0.01065 | AB5: 0.01135 | AC5: 0.01208 | AD5: 0.01281 | AE5: 0.01354 | AF5: 0.01426 | AG5: 0.01496 | AH5: 0.01565 | AI5: 0.01632 | AJ5: 0.01697 | AK5: 0.0176 | AL5: 0.01821 | AM5: 0.01879 | AN5: 0.01936 | AO5: 0.0199 | AP5: 0.02042 | AQ5: 0.02092 | AR5: 0.02141 | AS5: 0.02187 | AT5: 0.02232 | AU5: 0.02275 | AV5: 0.02316 | AW5: 0.02356 | AX5: 0.02394 | AY5: 0.02431 | AZ5: 0.02466 | BA5: 0.025 | BB5: 0.02533 | BC5: 0.02565 | BD5: 0.02595 | BE5: 0.02625 | BF5: 0.02654 | BG5: 0.02681 | BH5: 0.02708 | BI5: 0.02733 | BJ5: 0.02758 | BK5: 0.02782 | BL5: 0.02806 | BM5: 0.02828 | BN5: 0.0285 | BO5: 0.02871 | BP5: 0.02892 | BQ5: 0.02912 | BR5: 0.02931 | BS5: 0.0295 | BT5: 0.02968 | BU5: 0.02986 | BV5: 0.03003 | BW5: 0.0302 | BX5: 0.03036 | BY5: 0.03052 | BZ5: 0.03067 | CA5: 0.03082 | CB5: 0.03097 | CC5: 0.03111 | CD5: 0.03125 | CE5: 0.03138 | CF5: 0.03151 | CG5: 0.03164 | CH5: 0.03177 | CI5: 0.03189 | CJ5: 0.03201 | CK5: 0.03213 | CL5: 0.03224 | CM5: 0.03235 | CN5: 0.03246 | CO5: 0.03257 | CP5: 0.03267 | CQ5: 0.03278 | CR5: 0.03288 | CS5: 0.03297 | CT5: 0.03307 | CU5: 0.03316 | CV5: 0.03325 | CW5: 0.03334 | CX5: 0.03343 | CY5: 0.03352 | CZ5: 0.0336 | DA5: 0.03369 | DB5: 0.03377 | DC5: 0.03385 | DD5: 0.03392 | DE5: 0.034 | DF5: 0.03408 | DG5: 0.03415 | DH5: 0.03422 | DI5: 0.03429 | DJ5: 0.03436 | DK5: 0.03443 | DL5: 0.0345 | DM5: 0.03457 | DN5: 0.03463 | DO5: 0.03469 | DP5: 0.03476 | DQ5: 0.03482 | DR5: 0.03488 | DS5: 0.03494 | DT5: 0.035 | DU5: 0.03506 | DV5: 0.03511 | DW5: 0.03517 | DX5: 0.03522 | DY5: 0.03528 | DZ5: 0.03533 | EA5: 0.03538 | EB5: 0.03543 | EC5: 0.03548 | ED5: 0.03553 | EE5: 0.03558 | EF5: 0.03563 | EG5: 0.03568 | EH5: 0.03573 | EI5: 0.03577 | EJ5: 0.03582 | EK5: 0.03586 | EL5: 0.03591 | EM5: 0.03595 | EN5: 0.036 | EO5: 0.03604 | EP5: 0.03608 | EQ5: 0.03612 | ER5: 0.03616 | ES5: 0.0362 | ET5: 0.03624 | EU5: 0.03628 | EV5: 0.03632 | EW5: 0.03636 | EX5: 0.03639 | EY5: 1.002908434 | EZ5: 1.006370275 | FA5: 1.008568624 | FB5: 1.008686858 | FC5: 1.006525427 | FD5: 1.001681648 | FE5: 0.993931138 | FF5: 0.9839859108 | FG5: 0.9725275798 | FH5: 0.9601008061 | FI5: 0.9469257508 | FJ5: 0.9332884073 | FK5: 0.919222974 | FL5: 0.9056985166 | FM5: 0.89357334 | FN5: 0.8831009169 | FO5: 0.8733150694 | FP5: 0.8632955935 | FQ5: 0.8517683414 | FR5: 0.838100001 | FT5: -0.0019 | FU5: -0.002170428571 | FV5: -0.001839316472 | FW5: -0.001157403342 | FX5: -0.0002965129743 | FY5: 0.0007213389015 | FZ5: 0.00186344357 | GA5: 0.002998598791 | GB5: 0.00405752385 | GC5: 0.005011869655 | GD5: 0.005872678479 | GE5: 0.006641333378 | GF5: 0.007338075822 | GG5: =FromParToForwards(FT5:GF5,$FS$2:$GF$2,20,20,0.0000000001) -> -0.001900000013 | GH5: -0.002440197266 | GI5: -0.001178679817 | GJ5: 0.0008868779179 | GK5: 0.003156069867 | GL5: 0.005851104885 | GM5: 0.00882238034 | GN5: 0.01114004406 | GO5: 0.01282212196 | GP5: 0.01398907361 | GQ5: 0.01042189129 | GR5: 0.01042189129 | GS5: 0.009943275325 | GT5: 0.009943275325 | GU5: 0.009943275325 | GV5: 0.009639093062 | GW5: 0.009639093062 | GX5: 0.009639093062 | GY5: 0.009639093062 | GZ5: 0.009639093062
A6: 0.042 | B6: 0.001 | C6: 0.0022 | D6: 2016-03-31 | E6: -0.00248 | F6: -0.00249 | G6: -0.00216 | H6: -0.00151 | I6: -0.00071 | J6: 0.00029 | K6: 0.0014 | L6: 0.00255 | M6: 0.00353 | N6: 0.00464 | O6: 0.00549 | P6: 0.00622 | Q6: 0.007 | R6: 0.00771 | S6: 0.00823 | T6: 0.00851 | U6: 0.00866 | V6: 0.00879 | W6: 0.00899 | X6: 0.00931 | Y6: 0.00976 | Z6: 0.01032 | AA6: 0.01095 | AB6: 0.01162 | AC6: 0.01232 | AD6: 0.01303 | AE6: 0.01374 | AF6: 0.01445 | AG6: 0.01514 | AH6: 0.01582 | AI6: 0.01648 | AJ6: 0.01712 | AK6: 0.01774 | AL6: 0.01834 | AM6: 0.01892 | AN6: 0.01948 | AO6: 0.02002 | AP6: 0.02054 | AQ6: 0.02104 | AR6: 0.02152 | AS6: 0.02198 | AT6: 0.02242 | AU6: 0.02285 | AV6: 0.02326 | AW6: 0.02365 | AX6: 0.02403 | AY6: 0.0244 | AZ6: 0.02475 | BA6: 0.02509 | BB6: 0.02542 | BC6: 0.02573 | BD6: 0.02604 | BE6: 0.02633 | BF6: 0.02661 | BG6: 0.02689 | BH6: 0.02715 | BI6: 0.02741 | BJ6: 0.02766 | BK6: 0.02789 | BL6: 0.02813 | BM6: 0.02835 | BN6: 0.02857 | BO6: 0.02878 | BP6: 0.02898 | BQ6: 0.02918 | BR6: 0.02937 | BS6: 0.02956 | BT6: 0.02974 | BU6: 0.02992 | BV6: 0.03009 | BW6: 0.03026 | BX6: 0.03042 | BY6: 0.03057 | BZ6: 0.03073 | CA6: 0.03088 | CB6: 0.03102 | CC6: 0.03116 | CD6: 0.0313 | CE6: 0.03144 | CF6: 0.03157 | CG6: 0.0317 | CH6: 0.03182 | CI6: 0.03194 | CJ6: 0.03206 | CK6: 0.03218 | CL6: 0.03229 | CM6: 0.0324 | CN6: 0.03251 | CO6: 0.03262 | CP6: 0.03272 | CQ6: 0.03282 | CR6: 0.03292 | CS6: 0.03302 | CT6: 0.03311 | CU6: 0.03321 | CV6: 0.0333 | CW6: 0.03339 | CX6: 0.03348 | CY6: 0.03356 | CZ6: 0.03365 | DA6: 0.03373 | DB6: 0.03381 | DC6: 0.03389 | DD6: 0.03397 | DE6: 0.03404 | DF6: 0.03412 | DG6: 0.03419 | DH6: 0.03426 | DI6: 0.03433 | DJ6: 0.0344 | DK6: 0.03447 | DL6: 0.03454 | DM6: 0.0346 | DN6: 0.03467 | DO6: 0.03473 | DP6: 0.03479 | DQ6: 0.03486 | DR6: 0.03492 | DS6: 0.03498 | DT6: 0.03503 | DU6: 0.03509 | DV6: 0.03515 | DW6: 0.0352 | DX6: 0.03526 | DY6: 0.03531 | DZ6: 0.03536 | EA6: 0.03542 | EB6: 0.03547 | EC6: 0.03552 | ED6: 0.03557 | EE6: 0.03562 | EF6: 0.03566 | EG6: 0.03571 | EH6: 0.03576 | EI6: 0.03581 | EJ6: 0.03585 | EK6: 0.0359 | EL6: 0.03594 | EM6: 0.03598 | EN6: 0.03603 | EO6: 0.03607 | EP6: 0.03611 | EQ6: 0.03615 | ER6: 0.03619 | ES6: 0.03623 | ET6: 0.03627 | EU6: 0.03631 | EV6: 0.03635 | EW6: 0.03639 | EX6: 0.03642 | EY6: 1.002486166 | EZ6: 1.004998662 | FA6: 1.006508095 | FB6: 1.00606287 | FC6: 1.003557574 | FD6: 0.9982617647 | FE6: 0.9902546503 | FF6: 0.9798321141 | FG6: 0.9687835588 | FH6: 0.9547624777 | FI6: 0.941552817 | FJ6: 0.9282921047 | FK6: 0.913307203 | FL6: 0.8980531568 | FM6: 0.8843124988 | FN6: 0.8732058933 | FO6: 0.8636512876 | FP6: 0.8542523207 | FQ6: 0.843625351 | FR6: 0.830822935 | FT6: -0.00148 | FU6: -0.001490012465 | FV6: -0.001159293293 | FW6: -0.0005081556959 | FX6: 0.0002918296483 | FY6: 0.001288653489 | FZ6: 0.002389784558 | GA6: 0.003523521278 | GB6: 0.004483687975 | GC6: 0.005562300042 | GD6: 0.006383333883 | GE6: 0.007084492858 | GF6: 0.007826924782 | GG6: =FromParToForwards(FT6:GF6,$FS$2:$GF$2,20,20,0.0000000001) -> -0.001480000005 | GH6: -0.001500009912 | GI6: -0.0004986806257 | GJ6: 0.001446454619 | GK6: 0.003504461533 | GL6: 0.006320186229 | GM6: 0.009109608198 | GN6: 0.01167003614 | GO6: 0.01244095405 | GP6: 0.01573742932 | GQ6: 0.01073557407 | GR6: 0.01073557407 | GS6: 0.01010565195 | GT6: 0.01010565195 | GU6: 0.01010565195 | GV6: 0.01029000732 | GW6: 0.01029000732 | GX6: 0.01029000732 | GY6: 0.01029000732 | GZ6: 0.01029000732
A7: 0.042 | B7: 0.001 | C7: 0.0021 | D7: 2016-04-30 | E7: -0.00245 | F7: -0.00237 | G7: -0.00197 | H7: -0.00119 | I7: -0.00022 | J7: 0.00096 | K7: 0.00219 | L7: 0.00346 | M7: 0.00468 | N7: 0.00576 | O7: 0.00676 | P7: 0.0077 | Q7: 0.00855 | R7: 0.00925 | S7: 0.00976 | T7: 0.01009 | U7: 0.01033 | V7: 0.01055 | W7: 0.01083 | X7: 0.0112 | Y7: 0.01168 | Z7: 0.01224 | AA7: 0.01286 | AB7: 0.01352 | AC7: 0.01419 | AD7: 0.01486 | AE7: 0.01554 | AF7: 0.0162 | AG7: 0.01686 | AH7: 0.0175 | AI7: 0.01812 | AJ7: 0.01872 | AK7: 0.0193 | AL7: 0.01986 | AM7: 0.02041 | AN7: 0.02093 | AO7: 0.02143 | AP7: 0.02192 | AQ7: 0.02238 | AR7: 0.02283 | AS7: 0.02326 | AT7: 0.02368 | AU7: 0.02408 | AV7: 0.02446 | AW7: 0.02483 | AX7: 0.02519 | AY7: 0.02553 | AZ7: 0.02586 | BA7: 0.02617 | BB7: 0.02648 | BC7: 0.02678 | BD7: 0.02706 | BE7: 0.02734 | BF7: 0.0276 | BG7: 0.02786 | BH7: 0.0281 | BI7: 0.02834 | BJ7: 0.02857 | BK7: 0.0288 | BL7: 0.02902 | BM7: 0.02923 | BN7: 0.02943 | BO7: 0.02963 | BP7: 0.02982 | BQ7: 0.03 | BR7: 0.03018 | BS7: 0.03036 | BT7: 0.03053 | BU7: 0.03069 | BV7: 0.03085 | BW7: 0.03101 | BX7: 0.03116 | BY7: 0.03131 | BZ7: 0.03145 | CA7: 0.03159 | CB7: 0.03173 | CC7: 0.03186 | CD7: 0.03199 | CE7: 0.03211 | CF7: 0.03224 | CG7: 0.03236 | CH7: 0.03247 | CI7: 0.03259 | CJ7: 0.0327 | CK7: 0.03281 | CL7: 0.03292 | CM7: 0.03302 | CN7: 0.03312 | CO7: 0.03322 | CP7: 0.03332 | CQ7: 0.03341 | CR7: 0.0335 | CS7: 0.0336 | CT7: 0.03368 | CU7: 0.03377 | CV7: 0.03386 | CW7: 0.03394 | CX7: 0.03402 | CY7: 0.0341 | CZ7: 0.03418 | DA7: 0.03426 | DB7: 0.03433 | DC7: 0.03441 | DD7: 0.03448 | DE7: 0.03455 | DF7: 0.03462 | DG7: 0.03469 | DH7: 0.03476 | DI7: 0.03483 | DJ7: 0.03489 | DK7: 0.03495 | DL7: 0.03502 | DM7: 0.03508 | DN7: 0.03514 | DO7: 0.0352 | DP7: 0.03526 | DQ7: 0.03531 | DR7: 0.03537 | DS7: 0.03543 | DT7: 0.03548 | DU7: 0.03553 | DV7: 0.03559 | DW7: 0.03564 | DX7: 0.03569 | DY7: 0.03574 | DZ7: 0.03579 | EA7: 0.03584 | EB7: 0.03589 | EC7: 0.03593 | ED7: 0.03598 | EE7: 0.03603 | EF7: 0.03607 | EG7: 0.03612 | EH7: 0.03616 | EI7: 0.0362 | EJ7: 0.03625 | EK7: 0.03629 | EL7: 0.03633 | EM7: 0.03637 | EN7: 0.03641 | EO7: 0.03645 | EP7: 0.03649 | EQ7: 0.03653 | ER7: 0.03656 | ES7: 0.0366 | ET7: 0.03664 | EU7: 0.03668 | EV7: 0.03671 | EW7: 0.03675 | EX7: 0.03678 | EY7: 1.002456017 | EZ7: 1.004756904 | FA7: 1.005933362 | FB7: 1.004774195 | FC7: 1.001100726 | FD7: 0.9942593042 | FE7: 0.9848034133 | FF7: 0.9727460539 | FG7: 0.9588489296 | FH7: 0.9441834999 | FI7: 0.9285697404 | FJ7: 0.9120631247 | FK7: 0.8952273909 | FL7: 0.8790577089 | FM7: 0.8644254756 | FN7: 0.8516062791 | FO7: 0.8397011933 | FP7: 0.8278649286 | FQ7: 0.8149212994 | FR7: 0.8003109909 | FT7: -0.00145 | FU7: -0.001369905084 | FV7: -0.0009691583223 | FW7: -0.000188225302 | FX7: 0.0007806890372 | FY7: 0.001954669557 | FZ7: 0.003171535359 | GA7: 0.00441921057 | GB7: 0.005608348281 | GC7: 0.006652955028 | GD7: 0.007612423816 | GE7: 0.008506672144 | GF7: 0.009308874979 | GG7: =FromParToForwards(FT7:GF7,$FS$2:$GF$2,20,20,0.0000000001) -> -0.001450000004 | GH7: -0.001289913481 | GI7: -0.0001683165429 | GJ7: 0.00215835754 | GK7: 0.004679197966 | GL7: 0.007898844279 | GM7: 0.01062813171 | GN7: 0.01343172229 | GO7: 0.01553910933 | GP7: 0.0165833033 | GQ7: 0.01274925108 | GR7: 0.01274925108 | GS7: 0.01241378375 | GT7: 0.01241378375 | GU7: 0.01241378375 | GV7: 0.01202048708 | GW7: 0.01202048708 | GX7: 0.01202048708 | GY7: 0.01202048708 | GZ7: 0.01202048708
A8: 0.042 | B8: 0.001 | C8: 0.0021 | D8: 2016-05-31 | E8: -0.00261 | F8: -0.00261 | G8: -0.00229 | H8: -0.00176 | I8: -0.00096 | J8: 0 | K8: 0.0011 | L8: 0.00226 | M8: 0.00341 | N8: 0.00447 | O8: 0.00544 | P8: 0.00634 | Q8: 0.00716 | R8: 0.00784 | S8: 0.00835 | T8: 0.00868 | U8: 0.00892 | V8: 0.00915 | W8: 0.00945 | X8: 0.00984 | Y8: 0.01035 | Z8: 0.01095 | AA8: 0.0116 | AB8: 0.01229 | AC8: 0.01299 | AD8: 0.0137 | AE8: 0.01441 | AF8: 0.01511 | AG8: 0.01579 | AH8: 0.01646 | AI8: 0.01711 | AJ8: 0.01774 | AK8: 0.01835 | AL8: 0.01894 | AM8: 0.01951 | AN8: 0.02005 | AO8: 0.02058 | AP8: 0.02108 | AQ8: 0.02157 | AR8: 0.02204 | AS8: 0.02249 | AT8: 0.02292 | AU8: 0.02333 | AV8: 0.02373 | AW8: 0.02412 | AX8: 0.02449 | AY8: 0.02485 | AZ8: 0.02519 | BA8: 0.02552 | BB8: 0.02584 | BC8: 0.02615 | BD8: 0.02644 | BE8: 0.02673 | BF8: 0.02701 | BG8: 0.02727 | BH8: 0.02753 | BI8: 0.02778 | BJ8: 0.02802 | BK8: 0.02825 | BL8: 0.02848 | BM8: 0.0287 | BN8: 0.02891 | BO8: 0.02912 | BP8: 0.02931 | BQ8: 0.02951 | BR8: 0.0297 | BS8: 0.02988 | BT8: 0.03005 | BU8: 0.03023 | BV8: 0.03039 | BW8: 0.03055 | BX8: 0.03071 | BY8: 0.03087 | BZ8: 0.03102 | CA8: 0.03116 | CB8: 0.0313 | CC8: 0.03144 | CD8: 0.03158 | CE8: 0.03171 | CF8: 0.03183 | CG8: 0.03196 | CH8: 0.03208 | CI8: 0.0322 | CJ8: 0.03232 | CK8: 0.03243 | CL8: 0.03254 | CM8: 0.03265 | CN8: 0.03275 | CO8: 0.03286 | CP8: 0.03296 | CQ8: 0.03306 | CR8: 0.03315 | CS8: 0.03325 | CT8: 0.03334 | CU8: 0.03343 | CV8: 0.03352 | CW8: 0.03361 | CX8: 0.03369 | CY8: 0.03378 | CZ8: 0.03386 | DA8: 0.03394 | DB8: 0.03402 | DC8: 0.0341 | DD8: 0.03417 | DE8: 0.03425 | DF8: 0.03432 | DG8: 0.03439 | DH8: 0.03446 | DI8: 0.03453 | DJ8: 0.0346 | DK8: 0.03466 | DL8: 0.03473 | DM8: 0.03479 | DN8: 0.03486 | DO8: 0.03492 | DP8: 0.03498 | DQ8: 0.03504 | DR8: 0.0351 | DS8: 0.03515 | DT8: 0.03521 | DU8: 0.03527 | DV8: 0.03532 | DW8: 0.03538 | DX8: 0.03543 | DY8: 0.03548 | DZ8: 0.03553 | EA8: 0.03558 | EB8: 0.03563 | EC8: 0.03568 | ED8: 0.03573 | EE8: 0.03578 | EF8: 0.03583 | EG8: 0.03587 | EH8: 0.03592 | EI8: 0.03596 | EJ8: 0.03601 | EK8: 0.03605 | EL8: 0.03609 | EM8: 0.03614 | EN8: 0.03618 | EO8: 0.03622 | EP8: 0.03626 | EQ8: 0.0363 | ER8: 0.03634 | ES8: 0.03638 | ET8: 0.03642 | EU8: 0.03645 | EV8: 0.03649 | EW8: 0.03653 | EX8: 0.03657 | EY8: 1.00261683 | EZ8: 1.005240508 | FA8: 1.006901585 | FB8: 1.007071085 | FC8: 1.004813855 | FD8: 1 | FE8: 0.9923337685 | FF8: 0.982102497 | FG8: 0.9698267883 | FH8: 0.9563795822 | FI8: 0.9420679972 | FJ8: 0.9269646565 | FK8: 0.9114228258 | FL8: 0.8964327735 | FM8: 0.8827352318 | FN8: 0.8708541859 | FO8: 0.8598754888 | FP8: 0.8487835582 | FQ8: 0.83635097 | FR8: 0.822145371 | FT8: -0.00161 | FU8: -0.00161 | FV8: -0.001289266001 | FW8: -0.0007581760935 | FX8: 4.233218894e-05 | FY8: 0.001 | FZ8: 0.002092214835 | GA8: 0.003236885862 | GB8: 0.004363451654 | GC8: 0.005393992034 | GD8: 0.006329847579 | GE8: 0.007191367205 | GF8: 0.0079703315 | GG8: =FromParToForwards(FT8:GF8,$FS$2:$GF$2,20,20,0.0000000001) -> -0.001610000007 | GH8: -0.00161 | GI8: -0.0006487301836 | GJ8: 0.00083487896 | GK8: 0.00325446159 | GL8: 0.005828396208 | GM8: 0.008748922721 | GN8: 0.01145096308 | GO8: 0.01370036302 | GP8: 0.01511021974 | GQ8: 0.0112923407 | GR8: 0.0112923407 | GS8: 0.01091142687 | GT8: 0.01091142687 | GU8: 0.01091142687 | GV8: 0.01056326608 | GW8: 0.01056326608 | GX8: 0.01056326608 | GY8: 0.01056326608 | GZ8: 0.01056326608
A9: 0.042 | B9: 0.001 | C9: 0.0018 | D9: 2016-06-30 | E9: -0.00292 | F9: -0.00304 | G9: -0.00295 | H9: -0.00251 | I9: -0.00183 | J9: -0.00091 | K9: 0.0001 | L9: 0.00116 | M9: 0.00219 | N9: 0.00324 | O9: 0.00412 | P9: 0.00489 | Q9: 0.0056 | R9: 0.00619 | S9: 0.00661 | T9: 0.00685 | U9: 0.00702 | V9: 0.0072 | W9: 0.00746 | X9: 0.00783 | Y9: 0.00834 | Z9: 0.00896 | AA9: 0.00964 | AB9: 0.01036 | AC9: 0.0111 | AD9: 0.01186 | AE9: 0.01261 | AF9: 0.01335 | AG9: 0.01408 | AH9: 0.01479 | AI9: 0.01548 | AJ9: 0.01616 | AK9: 0.01681 | AL9: 0.01743 | AM9: 0.01804 | AN9: 0.01862 | AO9: 0.01918 | AP9: 0.01972 | AQ9: 0.02024 | AR9: 0.02074 | AS9: 0.02122 | AT9: 0.02168 | AU9: 0.02212 | AV9: 0.02255 | AW9: 0.02296 | AX9: 0.02335 | AY9: 0.02373 | AZ9: 0.0241 | BA9: 0.02445 | BB9: 0.02479 | BC9: 0.02512 | BD9: 0.02543 | BE9: 0.02574 | BF9: 0.02603 | BG9: 0.02632 | BH9: 0.02659 | BI9: 0.02686 | BJ9: 0.02711 | BK9: 0.02736 | BL9: 0.0276 | BM9: 0.02784 | BN9: 0.02806 | BO9: 0.02828 | BP9: 0.02849 | BQ9: 0.0287 | BR9: 0.0289 | BS9: 0.02909 | BT9: 0.02928 | BU9: 0.02946 | BV9: 0.02964 | BW9: 0.02981 | BX9: 0.02998 | BY9: 0.03014 | BZ9: 0.0303 | CA9: 0.03046 | CB9: 0.03061 | CC9: 0.03076 | CD9: 0.0309 | CE9: 0.03104 | CF9: 0.03117 | CG9: 0.03131 | CH9: 0.03144 | CI9: 0.03156 | CJ9: 0.03169 | CK9: 0.03181 | CL9: 0.03193 | CM9: 0.03204 | CN9: 0.03215 | CO9: 0.03226 | CP9: 0.03237 | CQ9: 0.03248 | CR9: 0.03258 | CS9: 0.03268 | CT9: 0.03278 | CU9: 0.03288 | CV9: 0.03297 | CW9: 0.03306 | CX9: 0.03315 | CY9: 0.03324 | CZ9: 0.03333 | DA9: 0.03342 | DB9: 0.0335 | DC9: 0.03358 | DD9: 0.03366 | DE9: 0.03374 | DF9: 0.03382 | DG9: 0.03389 | DH9: 0.03397 | DI9: 0.03404 | DJ9: 0.03412 | DK9: 0.03419 | DL9: 0.03426 | DM9: 0.03432 | DN9: 0.03439 | DO9: 0.03446 | DP9: 0.03452 | DQ9: 0.03459 | DR9: 0.03465 | DS9: 0.03471 | DT9: 0.03477 | DU9: 0.03483 | DV9: 0.03489 | DW9: 0.03495 | DX9: 0.035 | DY9: 0.03506 | DZ9: 0.03511 | EA9: 0.03517 | EB9: 0.03522 | EC9: 0.03527 | ED9: 0.03532 | EE9: 0.03538 | EF9: 0.03543 | EG9: 0.03547 | EH9: 0.03552 | EI9: 0.03557 | EJ9: 0.03562 | EK9: 0.03566 | EL9: 0.03571 | EM9: 0.03576 | EN9: 0.0358 | EO9: 0.03584 | EP9: 0.03589 | EQ9: 0.03593 | ER9: 0.03597 | ES9: 0.03601 | ET9: 0.03605 | EU9: 0.03609 | EV9: 0.03613 | EW9: 0.03617 | EX9: 0.03621 | EY9: 1.002928551 | EZ9: 1.006107838 | FA9: 1.008902473 | FB9: 1.010103319 | FC9: 1.009200449 | FD9: 1.005477432 | FE9: 0.9993002799 | FF9: 0.9907682549 | FG9: 0.9805041028 | FH9: 0.9681699634 | FI9: 0.955780594 | FJ9: 0.9431433497 | FK9: 0.9299756111 | FL9: 0.9172337893 | FM9: 0.9059023627 | FN9: 0.8965274875 | FO9: 0.8878761054 | FP9: 0.8788547255 | FQ9: 0.8683035404 | FR9: 0.8555676667 | FT9: -0.00192 | FU9: -0.002040182667 | FV9: -0.001949851959 | FW9: -0.001508245497 | FX9: -0.0008264851352 | FY9: 9.354854591e-05 | FZ9: 0.001099363542 | GA9: 0.00214925782 | GB9: 0.003163016103 | GC9: 0.00418891506 | GD9: 0.005043012023 | GE9: 0.005785757587 | GF9: 0.006466230207 | GG9: =FromParToForwards(FT9:GF9,$FS$2:$GF$2,20,20,0.0000000001) -> -0.001920000014 | GH9: -0.002160105734 | GI9: -0.001769705028 | GJ9: -0.0001861875507 | GK9: 0.0019014704 | GL9: 0.004716653762 | GM9: 0.007202978679 | GN9: 0.009641806586 | GO9: 0.0115063486 | GP9: 0.01378863212 | GQ9: 0.009529435946 | GR9: 0.009529435946 | GS9: 0.008952550102 | GT9: 0.008952550102 | GU9: 0.008952550102 | GV9: 0.008691445406 | GW9: 0.008691445406 | GX9: 0.008691445406 | GY9: 0.008691445406 | GZ9: 0.008691445406
A10: 0.042 | B10: 0.001 | C10: 0.0014 | D10: 2016-07-31 | E10: -0.00301 | F10: -0.00315 | G10: -0.00317 | H10: -0.00296 | I10: -0.00249 | J10: -0.00182 | K10: -0.00099 | L10: -5e-05 | M10: 0.00088 | N10: 0.00177 | O10: 0.00258 | P10: 0.00332 | Q10: 0.00401 | R10: 0.00458 | S10: 0.00498 | T10: 0.0052 | U10: 0.00535 | V10: 0.00553 | W10: 0.00579 | X10: 0.00618 | Y10: 0.00671 | Z10: 0.00736 | AA10: 0.00808 | AB10: 0.00884 | AC10: 0.00962 | AD10: 0.01041 | AE10: 0.0112 | AF10: 0.01198 | AG10: 0.01275 | AH10: 0.0135 | AI10: 0.01423 | AJ10: 0.01493 | AK10: 0.01561 | AL10: 0.01627 | AM10: 0.01691 | AN10: 0.01752 | AO10: 0.01811 | AP10: 0.01867 | AQ10: 0.01921 | AR10: 0.01974 | AS10: 0.02024 | AT10: 0.02072 | AU10: 0.02119 | AV10: 0.02164 | AW10: 0.02207 | AX10: 0.02248 | AY10: 0.02288 | AZ10: 0.02326 | BA10: 0.02363 | BB10: 0.02399 | BC10: 0.02433 | BD10: 0.02466 | BE10: 0.02498 | BF10: 0.02529 | BG10: 0.02558 | BH10: 0.02587 | BI10: 0.02615 | BJ10: 0.02642 | BK10: 0.02668 | BL10: 0.02693 | BM10: 0.02717 | BN10: 0.02741 | BO10: 0.02764 | BP10: 0.02786 | BQ10: 0.02808 | BR10: 0.02828 | BS10: 0.02849 | BT10: 0.02868 | BU10: 0.02888 | BV10: 0.02906 | BW10: 0.02924 | BX10: 0.02942 | BY10: 0.02959 | BZ10: 0.02976 | CA10: 0.02992 | CB10: 0.03008 | CC10: 0.03023 | CD10: 0.03038 | CE10: 0.03053 | CF10: 0.03067 | CG10: 0.03081 | CH10: 0.03094 | CI10: 0.03108 | CJ10: 0.0312 | CK10: 0.03133 | CL10: 0.03145 | CM10: 0.03157 | CN10: 0.03169 | CO10: 0.03181 | CP10: 0.03192 | CQ10: 0.03203 | CR10: 0.03214 | CS10: 0.03224 | CT10: 0.03235 | CU10: 0.03245 | CV10: 0.03255 | CW10: 0.03264 | CX10: 0.03274 | CY10: 0.03283 | CZ10: 0.03292 | DA10: 0.03301 | DB10: 0.0331 | DC10: 0.03319 | DD10: 0.03327 | DE10: 0.03335 | DF10: 0.03344 | DG10: 0.03352 | DH10: 0.03359 | DI10: 0.03367 | DJ10: 0.03375 | DK10: 0.03382 | DL10: 0.03389 | DM10: 0.03396 | DN10: 0.03403 | DO10: 0.0341 | DP10: 0.03417 | DQ10: 0.03424 | DR10: 0.0343 | DS10: 0.03437 | DT10: 0.03443 | DU10: 0.03449 | DV10: 0.03455 | DW10: 0.03461 | DX10: 0.03467 | DY10: 0.03473 | DZ10: 0.03479 | EA10: 0.03485 | EB10: 0.0349 | EC10: 0.03496 | ED10: 0.03501 | EE10: 0.03506 | EF10: 0.03512 | EG10: 0.03517 | EH10: 0.03522 | EI10: 0.03527 | EJ10: 0.03532 | EK10: 0.03537 | EL10: 0.03542 | EM10: 0.03546 | EN10: 0.03551 | EO10: 0.03555 | EP10: 0.0356 | EQ10: 0.03564 | ER10: 0.03569 | ES10: 0.03573 | ET10: 0.03577 | EU10: 0.03582 | EV10: 0.03586 | EW10: 0.0359 | EX10: 0.03594 | EY10: 1.003019087 | EZ10: 1.006329893 | FA10: 1.009570613 | FB10: 1.011928137 | FC10: 1.012543545 | FD10: 1.010989899 | FE10: 1.006957525 | FF10: 1.00040009 | FG10: 0.9921147359 | FH10: 0.9824710965 | FI10: 0.9720544548 | FJ10: 0.9610065909 | FK10: 0.9493044144 | FL10: 0.9380297519 | FM10: 0.928193911 | FN10: 0.92036548 | FO10: 0.913284741 | FP10: 0.9055020096 | FQ10: 0.896109427 | FR10: 0.8840694622 | FT10: -0.00201 | FU10: -0.002150220832 | FV10: -0.002170211453 | FW10: -0.001959213094 | FX10: -0.001487125003 | FY10: -0.0008151977996 | FZ10: 1.470177213e-05 | GA10: 0.0009503717467 | GB10: 0.001870929061 | GC10: 0.002746546084 | GD10: 0.003538570394 | GE10: 0.004257761939 | GF10: 0.004924204797 | GG10: =FromParToForwards(FT10:GF10,$FS$2:$GF$2,20,20,0.0000000001) -> -0.002010000016 | GH10: -0.002290120553 | GI10: -0.002210058649 | GJ10: -0.001328471815 | GK10: 0.0003969322146 | GL10: 0.002546865823 | GM10: 0.005022119829 | GN10: 0.00758154968 | GO10: 0.009385430575 | GP10: 0.01085692547 | GQ10: 0.007649324845 | GR10: 0.007649324845 | GS10: 0.007280553775 | GT10: 0.007280553775 | GU10: 0.007280553775 | GV10: 0.007064530644 | GW10: 0.007064530644 | GX10: 0.007064530644 | GY10: 0.007064530644 | GZ10: 0.007064530644
A11: 0.042 | B11: 0.001 | C11: 0.0011 | D11: 2016-08-31 | E11: -0.00302 | F11: -0.00308 | G11: -0.00295 | H11: -0.00269 | I11: -0.00223 | J11: -0.00159 | K11: -0.00079 | L11: 0.00013 | M11: 0.00106 | N11: 0.00196 | O11: 0.00277 | P11: 0.00351 | Q11: 0.00419 | R11: 0.00476 | S11: 0.00517 | T11: 0.00542 | U11: 0.0056 | V11: 0.0058 | W11: 0.00608 | X11: 0.00649 | Y11: 0.00704 | Z11: 0.00769 | AA11: 0.00841 | AB11: 0.00917 | AC11: 0.00995 | AD11: 0.01073 | AE11: 0.01152 | AF11: 0.01229 | AG11: 0.01305 | AH11: 0.0138 | AI11: 0.01452 | AJ11: 0.01522 | AK11: 0.01589 | AL11: 0.01654 | AM11: 0.01717 | AN11: 0.01778 | AO11: 0.01836 | AP11: 0.01892 | AQ11: 0.01946 | AR11: 0.01997 | AS11: 0.02047 | AT11: 0.02095 | AU11: 0.02141 | AV11: 0.02185 | AW11: 0.02228 | AX11: 0.02269 | AY11: 0.02308 | AZ11: 0.02346 | BA11: 0.02382 | BB11: 0.02418 | BC11: 0.02452 | BD11: 0.02484 | BE11: 0.02516 | BF11: 0.02546 | BG11: 0.02576 | BH11: 0.02604 | BI11: 0.02632 | BJ11: 0.02658 | BK11: 0.02684 | BL11: 0.02709 | BM11: 0.02733 | BN11: 0.02756 | BO11: 0.02779 | BP11: 0.02801 | BQ11: 0.02822 | BR11: 0.02843 | BS11: 0.02863 | BT11: 0.02882 | BU11: 0.02901 | BV11: 0.0292 | BW11: 0.02938 | BX11: 0.02955 | BY11: 0.02972 | BZ11: 0.02988 | CA11: 0.03005 | CB11: 0.0302 | CC11: 0.03035 | CD11: 0.0305 | CE11: 0.03065 | CF11: 0.03079 | CG11: 0.03093 | CH11: 0.03106 | CI11: 0.03119 | CJ11: 0.03132 | CK11: 0.03144 | CL11: 0.03157 | CM11: 0.03169 | CN11: 0.0318 | CO11: 0.03192 | CP11: 0.03203 | CQ11: 0.03214 | CR11: 0.03224 | CS11: 0.03235 | CT11: 0.03245 | CU11: 0.03255 | CV11: 0.03265 | CW11: 0.03274 | CX11: 0.03284 | CY11: 0.03293 | CZ11: 0.03302 | DA11: 0.03311 | DB11: 0.0332 | DC11: 0.03328 | DD11: 0.03336 | DE11: 0.03345 | DF11: 0.03353 | DG11: 0.03361 | DH11: 0.03368 | DI11: 0.03376 | DJ11: 0.03383 | DK11: 0.03391 | DL11: 0.03398 | DM11: 0.03405 | DN11: 0.03412 | DO11: 0.03419 | DP11: 0.03425 | DQ11: 0.03432 | DR11: 0.03438 | DS11: 0.03445 | DT11: 0.03451 | DU11: 0.03457 | DV11: 0.03463 | DW11: 0.03469 | DX11: 0.03475 | DY11: 0.03481 | DZ11: 0.03487 | EA11: 0.03492 | EB11: 0.03498 | EC11: 0.03503 | ED11: 0.03509 | EE11: 0.03514 | EF11: 0.03519 | EG11: 0.03524 | EH11: 0.03529 | EI11: 0.03534 | EJ11: 0.03539 | EK11: 0.03544 | EL11: 0.03548 | EM11: 0.03553 | EN11: 0.03558 | EO11: 0.03562 | EP11: 0.03567 | EQ11: 0.03571 | ER11: 0.03576 | ES11: 0.0358 | ET11: 0.03584 | EU11: 0.03588 | EV11: 0.03592 | EW11: 0.03596 | EX11: 0.036 | EY11: 1.003029148 | EZ11: 1.006188577 | FA11: 1.008902473 | FB11: 1.010832752 | FC11: 1.011224983 | FD11: 1.009593316 | FE11: 1.005547516 | FF11: 0.9989606081 | FG11: 0.9905103661 | FH11: 0.980609642 | FI11: 0.9700303912 | FJ11: 0.958825432 | FK11: 0.9470946883 | FL11: 0.9356798531 | FM11: 0.9255656438 | FN11: 0.9171485405 | FO11: 0.9094325631 | FP11: 0.9011366162 | FQ11: 0.891214414 | FR11: 0.8786394807 | FT11: -0.00202 | FU11: -0.00208009254 | FV11: -0.001949674725 | FW11: -0.001688726396 | FX11: -0.001227100615 | FY11: -0.0005857320244 | FZ11: 0.0002137114591 | GA11: 0.0011290484 | GB11: 0.002049182366 | GC11: 0.002934123247 | GD11: 0.003725642326 | GE11: 0.004444344065 | GF11: 0.005100757836 | GG11: =FromParToForwards(FT11:GF11,$FS$2:$GF$2,20,20,0.0000000001) -> -0.002020000017 | GH11: -0.002140056482 | GI11: -0.001689558411 | GJ11: -0.0009080302149 | GK11: 0.0006167376513 | GL11: 0.002625819276 | GM11: 0.005040448161 | GN11: 0.007619928762 | GO11: 0.009565428499 | GP11: 0.01113820263 | GQ11: 0.007838248755 | GR11: 0.007838248755 | GS11: 0.007469250432 | GT11: 0.007469250432 | GU11: 0.007469250432 | GV11: 0.007212551046 | GW11: 0.007212551046 | GX11: 0.007212551046 | GY11: 0.007212551046 | GZ11: 0.007212551046
A12: 0.042 | B12: 0.001 | C12: 0.001 | D12: 2016-09-30 | E12: -0.00307 | F12: -0.00322 | G12: -0.00309 | H12: -0.0029 | I12: -0.00239 | J12: -0.0017 | K12: -0.00086 | L12: 9e-05 | M12: 0.00105 | N12: 0.00187 | O12: 0.00275 | P12: 0.00361 | Q12: 0.00437 | R12: 0.00496 | S12: 0.00536 | T12: 0.00558 | U12: 0.00573 | V12: 0.00589 | W12: 0.00614 | X12: 0.00652 | Y12: 0.00704 | Z12: 0.00768 | AA12: 0.00838 | AB12: 0.00913 | AC12: 0.0099 | AD12: 0.01069 | AE12: 0.01147 | AF12: 0.01224 | AG12: 0.013 | AH12: 0.01374 | AI12: 0.01446 | AJ12: 0.01516 | AK12: 0.01583 | AL12: 0.01649 | AM12: 0.01711 | AN12: 0.01772 | AO12: 0.0183 | AP12: 0.01886 | AQ12: 0.0194 | AR12: 0.01992 | AS12: 0.02042 | AT12: 0.0209 | AU12: 0.02136 | AV12: 0.0218 | AW12: 0.02223 | AX12: 0.02264 | AY12: 0.02303 | AZ12: 0.02341 | BA12: 0.02378 | BB12: 0.02413 | BC12: 0.02447 | BD12: 0.0248 | BE12: 0.02512 | BF12: 0.02542 | BG12: 0.02572 | BH12: 0.026 | BI12: 0.02628 | BJ12: 0.02655 | BK12: 0.0268 | BL12: 0.02705 | BM12: 0.0273 | BN12: 0.02753 | BO12: 0.02776 | BP12: 0.02798 | BQ12: 0.02819 | BR12: 0.0284 | BS12: 0.0286 | BT12: 0.02879 | BU12: 0.02898 | BV12: 0.02917 | BW12: 0.02935 | BX12: 0.02952 | BY12: 0.02969 | BZ12: 0.02986 | CA12: 0.03002 | CB12: 0.03017 | CC12: 0.03033 | CD12: 0.03047 | CE12: 0.03062 | CF12: 0.03076 | CG12: 0.0309 | CH12: 0.03103 | CI12: 0.03116 | CJ12: 0.03129 | CK12: 0.03142 | CL12: 0.03154 | CM12: 0.03166 | CN12: 0.03178 | CO12: 0.03189 | CP12: 0.032 | CQ12: 0.03211 | CR12: 0.03222 | CS12: 0.03232 | CT12: 0.03243 | CU12: 0.03253 | CV12: 0.03263 | CW12: 0.03272 | CX12: 0.03282 | CY12: 0.03291 | CZ12: 0.033 | DA12: 0.03309 | DB12: 0.03317 | DC12: 0.03326 | DD12: 0.03334 | DE12: 0.03343 | DF12: 0.03351 | DG12: 0.03358 | DH12: 0.03366 | DI12: 0.03374 | DJ12: 0.03381 | DK12: 0.03389 | DL12: 0.03396 | DM12: 0.03403 | DN12: 0.0341 | DO12: 0.03417 | DP12: 0.03424 | DQ12: 0.0343 | DR12: 0.03437 | DS12: 0.03443 | DT12: 0.03449 | DU12: 0.03456 | DV12: 0.03462 | DW12: 0.03468 | DX12: 0.03473 | DY12: 0.03479 | DZ12: 0.03485 | EA12: 0.03491 | EB12: 0.03496 | EC12: 0.03502 | ED12: 0.03507 | EE12: 0.03512 | EF12: 0.03517 | EG12: 0.03522 | EH12: 0.03528 | EI12: 0.03532 | EJ12: 0.03537 | EK12: 0.03542 | EL12: 0.03547 | EM12: 0.03552 | EN12: 0.03556 | EO12: 0.03561 | EP12: 0.03565 | EQ12: 0.0357 | ER12: 0.03574 | ES12: 0.03578 | ET12: 0.03583 | EU12: 0.03587 | EV12: 0.03591 | EW12: 0.03595 | EX12: 0.03599 | EY12: 1.003079454 | EZ12: 1.006471239 | FA12: 1.009327585 | FB12: 1.01168459 | FC12: 1.012036162 | FD12: 1.010260966 | FE12: 1.006040762 | FF12: 0.9992802915 | FG12: 0.9905994221 | FH12: 0.9814908996 | FI12: 0.9702432339 | FJ12: 0.9576796083 | FK12: 0.9448905006 | FL12: 0.9330762497 | FM12: 0.9229453135 | FN12: 0.9148164531 | FO12: 0.9074362331 | FP12: 0.8996864262 | FQ12: 0.8902051715 | FR12: 0.8781158602 | FT12: -0.00207 | FU12: -0.002220241871 | FV12: -0.002089751938 | FW12: -0.00189899715 | FX12: -0.001386896428 | FY12: -0.0006952260899 | FZ12: 0.0001442346974 | GA12: 0.001089314013 | GB12: 0.002038877884 | GC12: 0.002845323994 | GD12: 0.003705034009 | GE12: 0.004539028633 | GF12: 0.005271032907 | GG12: =FromParToForwards(FT12:GF12,$FS$2:$GF$2,20,20,0.0000000001) -> -0.002070000018 | GH12: -0.002370127663 | GI12: -0.00182955824 | GJ12: -0.001328640864 | GK12: 0.0006577279315 | GL12: 0.002767579194 | GM12: 0.005212688012 | GN12: 0.007792373589 | GO12: 0.009798605139 | GP12: 0.01031827588 | GQ12: 0.008172322079 | GR12: 0.008172322079 | GS12: 0.008054081631 | GT12: 0.008054081631 | GU12: 0.008054081631 | GV12: 0.007632984225 | GW12: 0.007632984225 | GX12: 0.007632984225 | GY12: 0.007632984225 | GZ12: 0.007632984225
A13: 0.042 | B13: 0.001 | C13: 0.0011 | D13: 2016-10-31 | E13: -0.00293 | F13: -0.00261 | G13: -0.00217 | H13: -0.00161 | I13: -0.00087 | J13: 4e-05 | K13: 0.0011 | L13: 0.00219 | M13: 0.00326 | N13: 0.00413 | O13: 0.00506 | P13: 0.00597 | Q13: 0.00675 | R13: 0.00735 | S13: 0.00777 | T13: 0.00801 | U13: 0.00816 | V13: 0.00833 | W13: 0.00857 | X13: 0.00892 | Y13: 0.00941 | Z13: 0.01 | AA13: 0.01065 | AB13: 0.01134 | AC13: 0.01206 | AD13: 0.01279 | AE13: 0.01351 | AF13: 0.01423 | AG13: 0.01493 | AH13: 0.01562 | AI13: 0.01629 | AJ13: 0.01694 | AK13: 0.01757 | AL13: 0.01817 | AM13: 0.01876 | AN13: 0.01932 | AO13: 0.01986 | AP13: 0.02039 | AQ13: 0.02089 | AR13: 0.02137 | AS13: 0.02184 | AT13: 0.02228 | AU13: 0.02271 | AV13: 0.02313 | AW13: 0.02352 | AX13: 0.02391 | AY13: 0.02428 | AZ13: 0.02463 | BA13: 0.02497 | BB13: 0.0253 | BC13: 0.02562 | BD13: 0.02593 | BE13: 0.02622 | BF13: 0.02651 | BG13: 0.02678 | BH13: 0.02705 | BI13: 0.02731 | BJ13: 0.02756 | BK13: 0.0278 | BL13: 0.02803 | BM13: 0.02826 | BN13: 0.02848 | BO13: 0.02869 | BP13: 0.02889 | BQ13: 0.02909 | BR13: 0.02929 | BS13: 0.02947 | BT13: 0.02966 | BU13: 0.02983 | BV13: 0.03001 | BW13: 0.03017 | BX13: 0.03034 | BY13: 0.0305 | BZ13: 0.03065 | CA13: 0.0308 | CB13: 0.03095 | CC13: 0.03109 | CD13: 0.03123 | CE13: 0.03136 | CF13: 0.0315 | CG13: 0.03163 | CH13: 0.03175 | CI13: 0.03187 | CJ13: 0.03199 | CK13: 0.03211 | CL13: 0.03223 | CM13: 0.03234 | CN13: 0.03245 | CO13: 0.03255 | CP13: 0.03266 | CQ13: 0.03276 | CR13: 0.03286 | CS13: 0.03296 | CT13: 0.03305 | CU13: 0.03315 | CV13: 0.03324 | CW13: 0.03333 | CX13: 0.03342 | CY13: 0.0335 | CZ13: 0.03359 | DA13: 0.03367 | DB13: 0.03375 | DC13: 0.03383 | DD13: 0.03391 | DE13: 0.03399 | DF13: 0.03406 | DG13: 0.03414 | DH13: 0.03421 | DI13: 0.03428 | DJ13: 0.03435 | DK13: 0.03442 | DL13: 0.03449 | DM13: 0.03455 | DN13: 0.03462 | DO13: 0.03468 | DP13: 0.03474 | DQ13: 0.03481 | DR13: 0.03487 | DS13: 0.03493 | DT13: 0.03499 | DU13: 0.03504 | DV13: 0.0351 | DW13: 0.03516 | DX13: 0.03521 | DY13: 0.03526 | DZ13: 0.03532 | EA13: 0.03537 | EB13: 0.03542 | EC13: 0.03547 | ED13: 0.03552 | EE13: 0.03557 | EF13: 0.03562 | EG13: 0.03567 | EH13: 0.03572 | EI13: 0.03576 | EJ13: 0.03581 | EK13: 0.03585 | EL13: 0.0359 | EM13: 0.03594 | EN13: 0.03598 | EO13: 0.03603 | EP13: 0.03607 | EQ13: 0.03611 | ER13: 0.03615 | ES13: 0.03619 | ET13: 0.03623 | EU13: 0.03627 | EV13: 0.03631 | EW13: 0.03635 | EX13: 0.03638 | EY13: 1.00293861 | EZ13: 1.005240508 | FA13: 1.006538356 | FB13: 1.006466005 | FC13: 1.004361377 | FD13: 0.9997600336 | FE13: 0.9923337685 | FF13: 0.9826514067 | FG13: 0.9711325809 | FH13: 0.9596228372 | FI13: 0.9459934315 | FJ13: 0.931064241 | FK13: 0.9162599469 | FL13: 0.9025567722 | FM13: 0.8903865941 | FN13: 0.8801618713 | FO13: 0.870961868 | FP13: 0.8612943643 | FQ13: 0.8503253531 | FR13: 0.8372697017 | FT13: -0.00193 | FU13: -0.001609581787 | FV13: -0.00116881216 | FW13: -0.0006079854939 | FX13: 0.0001321584597 | FY13: 0.001039826433 | FZ13: 0.002092423231 | GA13: 0.003168495533 | GB13: 0.004217708082 | GC13: 0.005065751469 | GD13: 0.005965190339 | GE13: 0.006838004468 | GF13: 0.007581080124 | GG13: =FromParToForwards(FT13:GF13,$FS$2:$GF$2,20,20,0.0000000001) -> -0.001930000014 | GH13: -0.001289576767 | GI13: -0.0002880951134 | GJ13: 0.001075256313 | GK13: 0.003102929148 | GL13: 0.00561622745 | GM13: 0.00850623964 | GN13: 0.01088450888 | GO13: 0.01290093007 | GP13: 0.01303468866 | GQ13: 0.01071614742 | GR13: 0.01071614742 | GS13: 0.01059113273 | GT13: 0.01059113273 | GU13: 0.01059113273 | GV13: 0.01004161049 | GW13: 0.01004161049 | GX13: 0.01004161049 | GY13: 0.01004161049 | GZ13: 0.01004161049
A14: 0.042 | B14: 0.001 | C14: 0.0016 | D14: 2016-11-30 | E14: -0.00301 | F14: -0.00262 | G14: -0.00203 | H14: -0.00121 | I14: -0.0002 | J14: 0.00105 | K14: 0.00233 | L14: 0.00358 | M14: 0.00479 | N14: 0.00587 | O14: 0.00683 | P14: 0.0077 | Q14: 0.00846 | R14: 0.0091 | S14: 0.00958 | T14: 0.00991 | U14: 0.01016 | V14: 0.01041 | W14: 0.01071 | X14: 0.01111 | Y14: 0.01161 | Z14: 0.01219 | AA14: 0.01282 | AB14: 0.01348 | AC14: 0.01416 | AD14: 0.01485 | AE14: 0.01552 | AF14: 0.01619 | AG14: 0.01685 | AH14: 0.01749 | AI14: 0.01812 | AJ14: 0.01872 | AK14: 0.0193 | AL14: 0.01987 | AM14: 0.02041 | AN14: 0.02093 | AO14: 0.02144 | AP14: 0.02192 | AQ14: 0.02239 | AR14: 0.02284 | AS14: 0.02327 | AT14: 0.02368 | AU14: 0.02408 | AV14: 0.02447 | AW14: 0.02484 | AX14: 0.02519 | AY14: 0.02553 | AZ14: 0.02586 | BA14: 0.02618 | BB14: 0.02649 | BC14: 0.02678 | BD14: 0.02707 | BE14: 0.02734 | BF14: 0.02761 | BG14: 0.02786 | BH14: 0.02811 | BI14: 0.02835 | BJ14: 0.02858 | BK14: 0.0288 | BL14: 0.02902 | BM14: 0.02923 | BN14: 0.02943 | BO14: 0.02963 | BP14: 0.02982 | BQ14: 0.03001 | BR14: 0.03019 | BS14: 0.03036 | BT14: 0.03053 | BU14: 0.0307 | BV14: 0.03086 | BW14: 0.03101 | BX14: 0.03116 | BY14: 0.03131 | BZ14: 0.03145 | CA14: 0.03159 | CB14: 0.03173 | CC14: 0.03186 | CD14: 0.03199 | CE14: 0.03212 | CF14: 0.03224 | CG14: 0.03236 | CH14: 0.03248 | CI14: 0.03259 | CJ14: 0.0327 | CK14: 0.03281 | CL14: 0.03292 | CM14: 0.03302 | CN14: 0.03312 | CO14: 0.03322 | CP14: 0.03332 | CQ14: 0.03341 | CR14: 0.03351 | CS14: 0.0336 | CT14: 0.03369 | CU14: 0.03377 | CV14: 0.03386 | CW14: 0.03394 | CX14: 0.03403 | CY14: 0.03411 | CZ14: 0.03418 | DA14: 0.03426 | DB14: 0.03434 | DC14: 0.03441 | DD14: 0.03448 | DE14: 0.03456 | DF14: 0.03463 | DG14: 0.03469 | DH14: 0.03476 | DI14: 0.03483 | DJ14: 0.03489 | DK14: 0.03496 | DL14: 0.03502 | DM14: 0.03508 | DN14: 0.03514 | DO14: 0.0352 | DP14: 0.03526 | DQ14: 0.03532 | DR14: 0.03537 | DS14: 0.03543 | DT14: 0.03548 | DU14: 0.03554 | DV14: 0.03559 | DW14: 0.03564 | DX14: 0.03569 | DY14: 0.03574 | DZ14: 0.03579 | EA14: 0.03584 | EB14: 0.03589 | EC14: 0.03594 | ED14: 0.03598 | EE14: 0.03603 | EF14: 0.03607 | EG14: 0.03612 | EH14: 0.03616 | EI14: 0.03621 | EJ14: 0.03625 | EK14: 0.03629 | EL14: 0.03633 | EM14: 0.03637 | EN14: 0.03641 | EO14: 0.03645 | EP14: 0.03649 | EQ14: 0.03653 | ER14: 0.03657 | ES14: 0.0366 | ET14: 0.03664 | EU14: 0.03668 | EV14: 0.03671 | EW14: 0.03675 | EX14: 0.03678 | EY14: 1.003019087 | EZ14: 1.005260665 | FA14: 1.006114809 | FB14: 1.004854677 | FC14: 1.0010006 | FD14: 0.9937230878 | FE14: 0.9838409528 | FF14: 0.9718159382 | FG14: 0.957904608 | FH14: 0.943151467 | FI14: 0.9278598388 | FJ14: 0.9120631247 | FK14: 0.8962665765 | FL14: 0.8808888514 | FM14: 0.8667401648 | FN14: 0.8540380872 | FO14: 0.8421067591 | FP14: 0.8299320879 | FQ14: 0.8167615971 | FR14: 0.8017369273 | FT14: -0.00201 | FU14: -0.00161948833 | FV14: -0.001028536472 | FW14: -0.0002078565469 | FX14: 0.0008006871546 | FY14: 0.002043721389 | FZ14: 0.003309156469 | GA14: 0.004536432987 | GB14: 0.005715231551 | GC14: 0.006759329555 | GD14: 0.007680544118 | GE14: 0.008509163392 | GF14: 0.009228321449 | GG14: =FromParToForwards(FT14:GF14,$FS$2:$GF$2,20,20,0.0000000001) -> -0.002010000016 | GH14: -0.001229456762 | GI14: 0.0001528212054 | GJ14: 0.00225898489 | GK14: 0.00486039922 | GL14: 0.008342479821 | GM14: 0.01107186706 | GN14: 0.013409754 | GO14: 0.0155678848 | GP14: 0.01669333321 | GQ14: 0.0126154065 | GR14: 0.0126154065 | GS14: 0.01212901912 | GT14: 0.01212901912 | GU14: 0.01212901912 | GV14: 0.0116556494 | GW14: 0.0116556494 | GX14: 0.0116556494 | GY14: 0.0116556494 | GZ14: 0.0116556494
A15: 0.042 | B15: 0.001 | C15: 0.0013 | D15: 2016-12-31 | E15: -0.00302 | F15: -0.00261 | G15: -0.00208 | H15: -0.00123 | I15: -0.00024 | J15: 0.00092 | K15: 0.00215 | L15: 0.00341 | M15: 0.00461 | N15: 0.00571 | O15: 0.00671 | P15: 0.0076 | Q15: 0.00841 | R15: 0.00908 | S15: 0.00958 | T15: 0.00993 | U15: 0.01019 | V15: 0.01046 | W15: 0.01077 | X15: 0.01117 | Y15: 0.01167 | Z15: 0.01226 | AA15: 0.01289 | AB15: 0.01355 | AC15: 0.01423 | AD15: 0.01492 | AE15: 0.01559 | AF15: 0.01626 | AG15: 0.01692 | AH15: 0.01756 | AI15: 0.01818 | AJ15: 0.01878 | AK15: 0.01937 | AL15: 0.01993 | AM15: 0.02047 | AN15: 0.02099 | AO15: 0.02149 | AP15: 0.02198 | AQ15: 0.02244 | AR15: 0.02289 | AS15: 0.02332 | AT15: 0.02373 | AU15: 0.02413 | AV15: 0.02451 | AW15: 0.02488 | AX15: 0.02524 | AY15: 0.02558 | AZ15: 0.02591 | BA15: 0.02622 | BB15: 0.02653 | BC15: 0.02682 | BD15: 0.02711 | BE15: 0.02738 | BF15: 0.02764 | BG15: 0.0279 | BH15: 0.02815 | BI15: 0.02839 | BJ15: 0.02862 | BK15: 0.02884 | BL15: 0.02906 | BM15: 0.02927 | BN15: 0.02947 | BO15: 0.02966 | BP15: 0.02986 | BQ15: 0.03004 | BR15: 0.03022 | BS15: 0.03039 | BT15: 0.03056 | BU15: 0.03073 | BV15: 0.03089 | BW15: 0.03104 | BX15: 0.03119 | BY15: 0.03134 | BZ15: 0.03148 | CA15: 0.03162 | CB15: 0.03176 | CC15: 0.03189 | CD15: 0.03202 | CE15: 0.03215 | CF15: 0.03227 | CG15: 0.03239 | CH15: 0.0325 | CI15: 0.03262 | CJ15: 0.03273 | CK15: 0.03284 | CL15: 0.03294 | CM15: 0.03305 | CN15: 0.03315 | CO15: 0.03325 | CP15: 0.03334 | CQ15: 0.03344 | CR15: 0.03353 | CS15: 0.03362 | CT15: 0.03371 | CU15: 0.0338 | CV15: 0.03388 | CW15: 0.03397 | CX15: 0.03405 | CY15: 0.03413 | CZ15: 0.03421 | DA15: 0.03428 | DB15: 0.03436 | DC15: 0.03443 | DD15: 0.0345 | DE15: 0.03458 | DF15: 0.03465 | DG15: 0.03471 | DH15: 0.03478 | DI15: 0.03485 | DJ15: 0.03491 | DK15: 0.03498 | DL15: 0.03504 | DM15: 0.0351 | DN15: 0.03516 | DO15: 0.03522 | DP15: 0.03528 | DQ15: 0.03533 | DR15: 0.03539 | DS15: 0.03545 | DT15: 0.0355 | DU15: 0.03555 | DV15: 0.03561 | DW15: 0.03566 | DX15: 0.03571 | DY15: 0.03576 | DZ15: 0.03581 | EA15: 0.03586 | EB15: 0.03591 | EC15: 0.03595 | ED15: 0.036 | EE15: 0.03605 | EF15: 0.03609 | EG15: 0.03613 | EH15: 0.03618 | EI15: 0.03622 | EJ15: 0.03626 | EK15: 0.03631 | EL15: 0.03635 | EM15: 0.03639 | EN15: 0.03643 | EO15: 0.03647 | EP15: 0.03651 | EQ15: 0.03654 | ER15: 0.03658 | ES15: 0.03662 | ET15: 0.03666 | EU15: 0.03669 | EV15: 0.03673 | EW15: 0.03676 | EX15: 0.0368 | EY15: 1.003029148 | EZ15: 1.005240508 | FA15: 1.006266049 | FB15: 1.004935166 | FC15: 1.001200864 | FD15: 0.9944977309 | FE15: 0.9850785996 | FF15: 0.9731338976 | FG15: 0.9594504 | FH15: 0.9446530163 | FI15: 0.9290771757 | FJ15: 0.9131499383 | FK15: 0.8968444631 | FL15: 0.8811333124 | FM15: 0.8667401648 | FN15: 0.8537675223 | FO15: 0.8416817178 | FP15: 0.8291931919 | FQ15: 0.8158409021 | FR15: 0.8007860069 | FT15: -0.00202 | FU15: -0.001609464141 | FV15: -0.001078611529 | FW15: -0.000227814918 | FX15: 0.000760815973 | FY15: 0.001914732186 | FZ15: 0.003131553085 | GA15: 0.004369473893 | GB15: 0.005539388891 | GC15: 0.006603347569 | GD15: 0.007562940243 | GE15: 0.008410596615 | GF15: 0.009176203483 | GG15: =FromParToForwards(FT15:GF15,$FS$2:$GF$2,20,20,0.0000000001) -> -0.002020000017 | GH15: -0.001199420672 | GI15: -1.756165457e-05 | GJ15: 0.002329467822 | GK15: 0.00473979577 | GL15: 0.007757839122 | GM15: 0.01058813668 | GN15: 0.01331072814 | GO15: 0.01530661506 | GP15: 0.01671620809 | GQ15: 0.01269938435 | GR15: 0.01269938435 | GS15: 0.01211120932 | GT15: 0.01211120932 | GU15: 0.01211120932 | GV15: 0.01175968499 | GW15: 0.01175968499 | GX15: 0.01175968499 | GY15: 0.01175968499 | GZ15: 0.01175968499
A16: 0.042 | B16: 0.001 | C16: 0.0016 | D16: 2017-01-31 | E16: -0.00319 | F16: -0.00252 | G16: -0.00154 | H16: -0.00041 | I16: 0.00081 | J16: 0.0022 | K16: 0.0036 | L16: 0.00495 | M16: 0.00621 | N16: 0.00738 | O16: 0.00844 | P16: 0.00938 | Q16: 0.01022 | R16: 0.01092 | S16: 0.01146 | T16: 0.01185 | U16: 0.01215 | V16: 0.01245 | W16: 0.01278 | X16: 0.01319 | Y16: 0.01368 | Z16: 0.01424 | AA16: 0.01484 | AB16: 0.01546 | AC16: 0.0161 | AD16: 0.01674 | AE16: 0.01737 | AF16: 0.018 | AG16: 0.01861 | AH16: 0.0192 | AI16: 0.01978 | AJ16: 0.02034 | AK16: 0.02089 | AL16: 0.02141 | AM16: 0.02191 | AN16: 0.0224 | AO16: 0.02287 | AP16: 0.02332 | AQ16: 0.02375 | AR16: 0.02417 | AS16: 0.02457 | AT16: 0.02496 | AU16: 0.02533 | AV16: 0.02568 | AW16: 0.02603 | AX16: 0.02636 | AY16: 0.02667 | AZ16: 0.02698 | BA16: 0.02728 | BB16: 0.02756 | BC16: 0.02783 | BD16: 0.0281 | BE16: 0.02835 | BF16: 0.0286 | BG16: 0.02884 | BH16: 0.02907 | BI16: 0.02929 | BJ16: 0.02951 | BK16: 0.02972 | BL16: 0.02992 | BM16: 0.03011 | BN16: 0.0303 | BO16: 0.03049 | BP16: 0.03066 | BQ16: 0.03084 | BR16: 0.031 | BS16: 0.03117 | BT16: 0.03132 | BU16: 0.03148 | BV16: 0.03163 | BW16: 0.03177 | BX16: 0.03191 | BY16: 0.03205 | BZ16: 0.03218 | CA16: 0.03231 | CB16: 0.03244 | CC16: 0.03256 | CD16: 0.03268 | CE16: 0.0328 | CF16: 0.03292 | CG16: 0.03303 | CH16: 0.03314 | CI16: 0.03324 | CJ16: 0.03335 | CK16: 0.03345 | CL16: 0.03355 | CM16: 0.03364 | CN16: 0.03374 | CO16: 0.03383 | CP16: 0.03392 | CQ16: 0.03401 | CR16: 0.0341 | CS16: 0.03418 | CT16: 0.03426 | CU16: 0.03434 | CV16: 0.03442 | CW16: 0.0345 | CX16: 0.03458 | CY16: 0.03465 | CZ16: 0.03473 | DA16: 0.0348 | DB16: 0.03487 | DC16: 0.03494 | DD16: 0.035 | DE16: 0.03507 | DF16: 0.03514 | DG16: 0.0352 | DH16: 0.03526 | DI16: 0.03532 | DJ16: 0.03539 | DK16: 0.03544 | DL16: 0.0355 | DM16: 0.03556 | DN16: 0.03562 | DO16: 0.03567 | DP16: 0.03573 | DQ16: 0.03578 | DR16: 0.03583 | DS16: 0.03588 | DT16: 0.03593 | DU16: 0.03598 | DV16: 0.03603 | DW16: 0.03608 | DX16: 0.03613 | DY16: 0.03618 | DZ16: 0.03622 | EA16: 0.03627 | EB16: 0.03631 | EC16: 0.03636 | ED16: 0.0364 | EE16: 0.03644 | EF16: 0.03648 | EG16: 0.03653 | EH16: 0.03657 | EI16: 0.03661 | EJ16: 0.03665 | EK16: 0.03669 | EL16: 0.03672 | EM16: 0.03676 | EN16: 0.0368 | EO16: 0.03684 | EP16: 0.03687 | EQ16: 0.03691 | ER16: 0.03694 | ES16: 0.03698 | ET16: 0.03701 | EU16: 0.03705 | EV16: 0.03708 | EW16: 0.03711 | EX16: 0.03714 | EY16: 1.003200209 | EZ16: 1.005059115 | FA16: 1.004634266 | FB16: 1.001641682 | FC16: 0.9959598229 | FD16: 0.9869010467 | FE16: 0.9751589959 | FF16: 0.9612677313 | FG16: 0.9458065942 | FH16: 0.9291091915 | FI16: 0.9116944246 | FJ16: 0.8940126342 | FK16: 0.8761782948 | FL16: 0.8589442135 | FM16: 0.8428869164 | FN16: 0.8282125815 | FO16: 0.8143986582 | FP16: 0.8003417547 | FQ16: 0.7856204631 | FR16: 0.7694530144 | FT16: -0.00219 | FU16: -0.001519154451 | FV16: -0.0005381446667 | FW16: 0.0005910653991 | FX16: 0.001806342885 | FY16: 0.003184106742 | FZ16: 0.004562683065 | GA16: 0.005881917498 | GB16: 0.007103115674 | GC16: 0.008227311377 | GD16: 0.009237127617 | GE16: 0.01012547774 | GF16: 0.01091317208 | GG16: =FromParToForwards(FT16:GF16,$FS$2:$GF$2,20,20,0.0000000001) -> -0.002190000023 | GH16: -0.0008488783449 | GI16: 0.001425838475 | GJ16: 0.00399449672 | GK16: 0.006717225698 | GL16: 0.01020019657 | GM16: 0.01307126962 | GN16: 0.01549003974 | GO16: 0.01739437734 | GP16: 0.01902695876 | GQ16: 0.01471092367 | GR16: 0.01471092367 | GS16: 0.0140641785 | GT16: 0.0140641785 | GU16: 0.0140641785 | GV16: 0.0136249411 | GW16: 0.0136249411 | GX16: 0.0136249411 | GY16: 0.0136249411 | GZ16: 0.0136249411
A17: 0.042 | B17: 0.001 | C17: 0.0014 | D17: 2017-02-28 | E17: -0.00316 | F17: -0.00269 | G17: -0.00203 | H17: -0.00122 | I17: -0.00022 | J17: 0.00092 | K17: 0.00215 | L17: 0.00342 | M17: 0.00465 | N17: 0.00581 | O17: 0.00684 | P17: 0.00777 | Q17: 0.00861 | R17: 0.00933 | S17: 0.00989 | T17: 0.0103 | U17: 0.01061 | V17: 0.01092 | W17: 0.01127 | X17: 0.0117 | Y17: 0.01222 | Z17: 0.01281 | AA17: 0.01345 | AB17: 0.01411 | AC17: 0.01478 | AD17: 0.01546 | AE17: 0.01613 | AF17: 0.01679 | AG17: 0.01743 | AH17: 0.01806 | AI17: 0.01867 | AJ17: 0.01926 | AK17: 0.01983 | AL17: 0.02038 | AM17: 0.02092 | AN17: 0.02143 | AO17: 0.02192 | AP17: 0.02239 | AQ17: 0.02285 | AR17: 0.02329 | AS17: 0.02371 | AT17: 0.02411 | AU17: 0.0245 | AV17: 0.02488 | AW17: 0.02524 | AX17: 0.02558 | AY17: 0.02592 | AZ17: 0.02624 | BA17: 0.02655 | BB17: 0.02685 | BC17: 0.02714 | BD17: 0.02742 | BE17: 0.02768 | BF17: 0.02794 | BG17: 0.02819 | BH17: 0.02843 | BI17: 0.02867 | BJ17: 0.02889 | BK17: 0.02911 | BL17: 0.02932 | BM17: 0.02953 | BN17: 0.02973 | BO17: 0.02992 | BP17: 0.03011 | BQ17: 0.03029 | BR17: 0.03046 | BS17: 0.03063 | BT17: 0.0308 | BU17: 0.03096 | BV17: 0.03112 | BW17: 0.03127 | BX17: 0.03142 | BY17: 0.03156 | BZ17: 0.0317 | CA17: 0.03184 | CB17: 0.03197 | CC17: 0.0321 | CD17: 0.03223 | CE17: 0.03235 | CF17: 0.03247 | CG17: 0.03259 | CH17: 0.0327 | CI17: 0.03281 | CJ17: 0.03292 | CK17: 0.03303 | CL17: 0.03313 | CM17: 0.03323 | CN17: 0.03333 | CO17: 0.03343 | CP17: 0.03352 | CQ17: 0.03362 | CR17: 0.03371 | CS17: 0.0338 | CT17: 0.03388 | CU17: 0.03397 | CV17: 0.03405 | CW17: 0.03413 | CX17: 0.03421 | CY17: 0.03429 | CZ17: 0.03437 | DA17: 0.03444 | DB17: 0.03452 | DC17: 0.03459 | DD17: 0.03466 | DE17: 0.03473 | DF17: 0.0348 | DG17: 0.03487 | DH17: 0.03493 | DI17: 0.035 | DJ17: 0.03506 | DK17: 0.03512 | DL17: 0.03518 | DM17: 0.03524 | DN17: 0.0353 | DO17: 0.03536 | DP17: 0.03542 | DQ17: 0.03547 | DR17: 0.03553 | DS17: 0.03558 | DT17: 0.03564 | DU17: 0.03569 | DV17: 0.03574 | DW17: 0.03579 | DX17: 0.03584 | DY17: 0.03589 | DZ17: 0.03594 | EA17: 0.03599 | EB17: 0.03603 | EC17: 0.03608 | ED17: 0.03612 | EE17: 0.03617 | EF17: 0.03621 | EG17: 0.03626 | EH17: 0.0363 | EI17: 0.03634 | EJ17: 0.03638 | EK17: 0.03642 | EL17: 0.03646 | EM17: 0.0365 | EN17: 0.03654 | EO17: 0.03658 | EP17: 0.03662 | EQ17: 0.03666 | ER17: 0.03669 | ES17: 0.03673 | ET17: 0.03677 | EU17: 0.0368 | EV17: 0.03684 | EW17: 0.03687 | EX17: 0.03691 | EY17: 1.003170017 | EZ17: 1.005401786 | FA17: 1.006114809 | FB17: 1.00489492 | FC17: 1.001100726 | FD17: 0.9944977309 | FE17: 0.9850785996 | FF17: 0.973056315 | FG17: 0.9591066513 | FH17: 0.9437142401 | FI17: 0.9277584727 | FJ17: 0.911303189 | FK17: 0.8945353214 | FL17: 0.8780827676 | FM17: 0.8627578567 | FN17: 0.8487784649 | FO17: 0.8357549324 | FP17: 0.8224278406 | FQ17: 0.8082107969 | FR17: 0.7924374652 | FT17: -0.00216 | FU17: -0.001689366849 | FV17: -0.001028339955 | FW17: -0.0002177686543 | FX17: 0.0007807615946 | FY17: 0.001914730586 | FZ17: 0.00313154988 | GA17: 0.004379232521 | GB17: 0.005578080921 | GC17: 0.006699168283 | GD17: 0.007686619244 | GE17: 0.008571089719 | GF17: 0.009363752065 | GG17: =FromParToForwards(FT17:GF17,$FS$2:$GF$2,20,20,0.0000000001) -> -0.002160000022 | GH17: -0.001219307525 | GI17: 0.0002932953556 | GJ17: 0.002218826485 | GK17: 0.004800096795 | GL17: 0.007656842081 | GM17: 0.0105881363 | GN17: 0.01339172805 | GO17: 0.01559037539 | GP17: 0.01736517725 | GQ17: 0.01297891982 | GR17: 0.01297891982 | GS17: 0.0124396054 | GT17: 0.0124396054 | GU17: 0.0124396054 | GV17: 0.01204571062 | GW17: 0.01204571062 | GX17: 0.01204571062 | GY17: 0.01204571062 | GZ17: 0.01204571062
A18: 0.042 | B18: 0.001 | C18: 0.0013 | D18: 2017-03-31 | E18: -0.00318 | F18: -0.0023 | G18: -0.00139 | H18: -0.00032 | I18: 0.00082 | J18: 0.00205 | K18: 0.00328 | L18: 0.00452 | M18: 0.00571 | N18: 0.00677 | O18: 0.00777 | P18: 0.00871 | Q18: 0.00954 | R18: 0.01024 | S18: 0.01078 | T18: 0.01116 | U18: 0.01147 | V18: 0.01177 | W18: 0.01211 | X18: 0.01252 | Y18: 0.01303 | Z18: 0.0136 | AA18: 0.01422 | AB18: 0.01486 | AC18: 0.01551 | AD18: 0.01616 | AE18: 0.01681 | AF18: 0.01745 | AG18: 0.01808 | AH18: 0.01869 | AI18: 0.01929 | AJ18: 0.01986 | AK18: 0.02042 | AL18: 0.02095 | AM18: 0.02147 | AN18: 0.02197 | AO18: 0.02244 | AP18: 0.02291 | AQ18: 0.02335 | AR18: 0.02377 | AS18: 0.02418 | AT18: 0.02458 | AU18: 0.02496 | AV18: 0.02532 | AW18: 0.02567 | AX18: 0.02601 | AY18: 0.02634 | AZ18: 0.02665 | BA18: 0.02695 | BB18: 0.02724 | BC18: 0.02752 | BD18: 0.02779 | BE18: 0.02805 | BF18: 0.02831 | BG18: 0.02855 | BH18: 0.02879 | BI18: 0.02901 | BJ18: 0.02923 | BK18: 0.02945 | BL18: 0.02965 | BM18: 0.02985 | BN18: 0.03005 | BO18: 0.03023 | BP18: 0.03041 | BQ18: 0.03059 | BR18: 0.03076 | BS18: 0.03093 | BT18: 0.03109 | BU18: 0.03125 | BV18: 0.0314 | BW18: 0.03155 | BX18: 0.03169 | BY18: 0.03183 | BZ18: 0.03197 | CA18: 0.0321 | CB18: 0.03223 | CC18: 0.03236 | CD18: 0.03248 | CE18: 0.0326 | CF18: 0.03272 | CG18: 0.03283 | CH18: 0.03294 | CI18: 0.03305 | CJ18: 0.03316 | CK18: 0.03326 | CL18: 0.03336 | CM18: 0.03346 | CN18: 0.03356 | CO18: 0.03365 | CP18: 0.03374 | CQ18: 0.03383 | CR18: 0.03392 | CS18: 0.03401 | CT18: 0.03409 | CU18: 0.03418 | CV18: 0.03426 | CW18: 0.03434 | CX18: 0.03441 | CY18: 0.03449 | CZ18: 0.03457 | DA18: 0.03464 | DB18: 0.03471 | DC18: 0.03478 | DD18: 0.03485 | DE18: 0.03492 | DF18: 0.03499 | DG18: 0.03505 | DH18: 0.03511 | DI18: 0.03518 | DJ18: 0.03524 | DK18: 0.0353 | DL18: 0.03536 | DM18: 0.03542 | DN18: 0.03548 | DO18: 0.03553 | DP18: 0.03559 | DQ18: 0.03564 | DR18: 0.0357 | DS18: 0.03575 | DT18: 0.0358 | DU18: 0.03585 | DV18: 0.0359 | DW18: 0.03595 | DX18: 0.036 | DY18: 0.03605 | DZ18: 0.0361 | EA18: 0.03614 | EB18: 0.03619 | EC18: 0.03623 | ED18: 0.03628 | EE18: 0.03632 | EF18: 0.03636 | EG18: 0.03641 | EH18: 0.03645 | EI18: 0.03649 | EJ18: 0.03653 | EK18: 0.03657 | EL18: 0.03661 | EM18: 0.03665 | EN18: 0.03668 | EO18: 0.03672 | EP18: 0.03676 | EQ18: 0.0368 | ER18: 0.03683 | ES18: 0.03687 | ET18: 0.0369 | EU18: 0.03694 | EV18: 0.03697 | EW18: 0.037 | EX18: 0.03704 | EY18: 1.003190145 | EZ18: 1.004615919 | FA18: 1.00418162 | FB18: 1.001281025 | FC18: 0.9959100667 | FD18: 0.9877877723 | FE18: 0.9773382952 | FF18: 0.9645645492 | FG18: 0.950046985 | FH18: 0.93475402 | FI18: 0.9183840147 | FJ18: 0.9011645196 | FK18: 0.8838816015 | FL18: 0.8670739867 | FM18: 0.8514328435 | FN18: 0.83730156 | FO18: 0.8237565758 | FP18: 0.810079489 | FQ18: 0.7955608419 | FR18: 0.7797004607 | FT18: -0.00218 | FU18: -0.001298986387 | FV18: -0.0003883255685 | FW18: 0.0006808026701 | FX18: 0.001816487782 | FY18: 0.003036400843 | FZ18: 0.004249313779 | GA18: 0.005463538703 | GB18: 0.006619696806 | GC18: 0.007641711033 | GD18: 0.008597800396 | GE18: 0.009488673191 | GF18: 0.01026937548 | GG18: =FromParToForwards(FT18:GF18,$FS$2:$GF$2,20,20,0.0000000001) -> -0.002180000023 | GH18: -0.0004183413164 | GI18: 0.001435228564 | GJ18: 0.003903338112 | GK18: 0.006404519277 | GL18: 0.009241434532 | GM18: 0.01171816205 | GN18: 0.01427878996 | GO18: 0.01632544757 | GP18: 0.01741053082 | GQ18: 0.01374952254 | GR18: 0.01374952254 | GS18: 0.01341180824 | GT18: 0.01341180824 | GU18: 0.01341180824 | GV18: 0.01293508341 | GW18: 0.01293508341 | GX18: 0.01293508341 | GY18: 0.01293508341 | GZ18: 0.01293508341
A19: 0.042 | B19: 0.001 | C19: 0.001 | D19: 2017-04-30 | E19: -0.00328 | F19: -0.00235 | G19: -0.00146 | H19: -0.00032 | I19: 0.00091 | J19: 0.00218 | K19: 0.00344 | L19: 0.0047 | M19: 0.00591 | N19: 0.00702 | O19: 0.00802 | P19: 0.00893 | Q19: 0.00976 | R19: 0.01046 | S19: 0.01101 | T19: 0.01141 | U19: 0.01172 | V19: 0.01202 | W19: 0.01236 | X19: 0.01278 | Y19: 0.01328 | Z19: 0.01385 | AA19: 0.01446 | AB19: 0.01509 | AC19: 0.01574 | AD19: 0.01639 | AE19: 0.01704 | AF19: 0.01767 | AG19: 0.01829 | AH19: 0.0189 | AI19: 0.01948 | AJ19: 0.02005 | AK19: 0.0206 | AL19: 0.02114 | AM19: 0.02165 | AN19: 0.02214 | AO19: 0.02261 | AP19: 0.02307 | AQ19: 0.02351 | AR19: 0.02393 | AS19: 0.02434 | AT19: 0.02473 | AU19: 0.02511 | AV19: 0.02547 | AW19: 0.02581 | AX19: 0.02615 | AY19: 0.02647 | AZ19: 0.02678 | BA19: 0.02708 | BB19: 0.02737 | BC19: 0.02765 | BD19: 0.02792 | BE19: 0.02818 | BF19: 0.02843 | BG19: 0.02867 | BH19: 0.0289 | BI19: 0.02913 | BJ19: 0.02934 | BK19: 0.02955 | BL19: 0.02976 | BM19: 0.02996 | BN19: 0.03015 | BO19: 0.03033 | BP19: 0.03051 | BQ19: 0.03069 | BR19: 0.03086 | BS19: 0.03102 | BT19: 0.03118 | BU19: 0.03134 | BV19: 0.03149 | BW19: 0.03164 | BX19: 0.03178 | BY19: 0.03192 | BZ19: 0.03205 | CA19: 0.03219 | CB19: 0.03231 | CC19: 0.03244 | CD19: 0.03256 | CE19: 0.03268 | CF19: 0.0328 | CG19: 0.03291 | CH19: 0.03302 | CI19: 0.03313 | CJ19: 0.03323 | CK19: 0.03334 | CL19: 0.03344 | CM19: 0.03353 | CN19: 0.03363 | CO19: 0.03372 | CP19: 0.03381 | CQ19: 0.0339 | CR19: 0.03399 | CS19: 0.03408 | CT19: 0.03416 | CU19: 0.03424 | CV19: 0.03432 | CW19: 0.0344 | CX19: 0.03448 | CY19: 0.03456 | CZ19: 0.03463 | DA19: 0.0347 | DB19: 0.03477 | DC19: 0.03484 | DD19: 0.03491 | DE19: 0.03498 | DF19: 0.03505 | DG19: 0.03511 | DH19: 0.03517 | DI19: 0.03524 | DJ19: 0.0353 | DK19: 0.03536 | DL19: 0.03542 | DM19: 0.03548 | DN19: 0.03553 | DO19: 0.03559 | DP19: 0.03564 | DQ19: 0.0357 | DR19: 0.03575 | DS19: 0.0358 | DT19: 0.03585 | DU19: 0.03591 | DV19: 0.03596 | DW19: 0.036 | DX19: 0.03605 | DY19: 0.0361 | DZ19: 0.03615 | EA19: 0.03619 | EB19: 0.03624 | EC19: 0.03628 | ED19: 0.03633 | EE19: 0.03637 | EF19: 0.03641 | EG19: 0.03645 | EH19: 0.0365 | EI19: 0.03654 | EJ19: 0.03658 | EK19: 0.03662 | EL19: 0.03665 | EM19: 0.03669 | EN19: 0.03673 | EO19: 0.03677 | EP19: 0.0368 | EQ19: 0.03684 | ER19: 0.03688 | ES19: 0.03691 | ET19: 0.03695 | EU19: 0.03698 | EV19: 0.03701 | EW19: 0.03705 | EX19: 0.03708 | EY19: 1.003290794 | EZ19: 1.00471662 | FA19: 1.004392821 | FB19: 1.001281025 | FC19: 0.9954623952 | FD19: 0.9870192231 | FE19: 0.9762479505 | FF19: 0.9631829405 | FG19: 0.9483482991 | FH19: 0.9324360162 | FI19: 0.9158816571 | FJ19: 0.8988093283 | FK19: 0.881381404 | FL19: 0.864434781 | FM19: 0.8485320116 | FN19: 0.8339962689 | FO19: 0.8203029985 | FP19: 0.8064849816 | FQ19: 0.7918363496 | FR19: 0.7757069285 | FT19: -0.00228 | FU19: -0.001348905454 | FV19: -0.0004582460657 | FW19: 0.0006808354792 | FX19: 0.001905864383 | FY19: 0.003164847287 | FZ19: 0.004406576296 | GA19: 0.005639483901 | GB19: 0.006814051973 | GC19: 0.007882781327 | GD19: 0.00883789667 | GE19: 0.009700031883 | GF19: 0.0104800452 | GG19: =FromParToForwards(FT19:GF19,$FS$2:$GF$2,20,20,0.0000000001) -> -0.002280000027 | GH19: -0.0004182002643 | GI19: 0.001325060094 | GJ19: 0.004114693196 | GK19: 0.006857572006 | GL19: 0.009573556111 | GM19: 0.01206039318 | GN19: 0.01460079401 | GO19: 0.01668796385 | GP19: 0.01811783498 | GQ19: 0.01399523096 | GR19: 0.01399523096 | GS19: 0.01350453004 | GT19: 0.01350453004 | GU19: 0.01350453004 | GV19: 0.01314985455 | GW19: 0.01314985455 | GX19: 0.01314985455 | GY19: 0.01314985455 | GZ19: 0.01314985455
A20: 0.042 | B20: 0.001 | C20: 0.0008 | D20: 2017-05-31 | E20: -0.00337 | F20: -0.00263 | G20: -0.00169 | H20: -0.00058 | I20: 0.00065 | J20: 0.00191 | K20: 0.00323 | L20: 0.00451 | M20: 0.00576 | N20: 0.00692 | O20: 0.00799 | P20: 0.00897 | Q20: 0.00984 | R20: 0.01059 | S20: 0.01118 | T20: 0.01162 | U20: 0.01198 | V20: 0.01232 | W20: 0.0127 | X20: 0.01314 | Y20: 0.01366 | Z20: 0.01423 | AA20: 0.01485 | AB20: 0.01549 | AC20: 0.01613 | AD20: 0.01678 | AE20: 0.01742 | AF20: 0.01805 | AG20: 0.01866 | AH20: 0.01926 | AI20: 0.01984 | AJ20: 0.0204 | AK20: 0.02095 | AL20: 0.02147 | AM20: 0.02197 | AN20: 0.02246 | AO20: 0.02293 | AP20: 0.02338 | AQ20: 0.02381 | AR20: 0.02422 | AS20: 0.02462 | AT20: 0.02501 | AU20: 0.02538 | AV20: 0.02573 | AW20: 0.02608 | AX20: 0.02641 | AY20: 0.02672 | AZ20: 0.02703 | BA20: 0.02732 | BB20: 0.02761 | BC20: 0.02788 | BD20: 0.02814 | BE20: 0.0284 | BF20: 0.02864 | BG20: 0.02888 | BH20: 0.02911 | BI20: 0.02933 | BJ20: 0.02955 | BK20: 0.02976 | BL20: 0.02996 | BM20: 0.03015 | BN20: 0.03034 | BO20: 0.03052 | BP20: 0.0307 | BQ20: 0.03087 | BR20: 0.03104 | BS20: 0.0312 | BT20: 0.03136 | BU20: 0.03151 | BV20: 0.03166 | BW20: 0.0318 | BX20: 0.03195 | BY20: 0.03208 | BZ20: 0.03222 | CA20: 0.03235 | CB20: 0.03247 | CC20: 0.03259 | CD20: 0.03271 | CE20: 0.03283 | CF20: 0.03295 | CG20: 0.03306 | CH20: 0.03316 | CI20: 0.03327 | CJ20: 0.03337 | CK20: 0.03348 | CL20: 0.03357 | CM20: 0.03367 | CN20: 0.03376 | CO20: 0.03386 | CP20: 0.03395 | CQ20: 0.03403 | CR20: 0.03412 | CS20: 0.03421 | CT20: 0.03429 | CU20: 0.03437 | CV20: 0.03445 | CW20: 0.03453 | CX20: 0.0346 | CY20: 0.03468 | CZ20: 0.03475 | DA20: 0.03482 | DB20: 0.03489 | DC20: 0.03496 | DD20: 0.03503 | DE20: 0.03509 | DF20: 0.03516 | DG20: 0.03522 | DH20: 0.03528 | DI20: 0.03535 | DJ20: 0.03541 | DK20: 0.03547 | DL20: 0.03552 | DM20: 0.03558 | DN20: 0.03564 | DO20: 0.03569 | DP20: 0.03575 | DQ20: 0.0358 | DR20: 0.03585 | DS20: 0.0359 | DT20: 0.03595 | DU20: 0.036 | DV20: 0.03605 | DW20: 0.0361 | DX20: 0.03615 | DY20: 0.0362 | DZ20: 0.03624 | EA20: 0.03629 | EB20: 0.03633 | EC20: 0.03637 | ED20: 0.03642 | EE20: 0.03646 | EF20: 0.0365 | EG20: 0.03654 | EH20: 0.03658 | EI20: 0.03662 | EJ20: 0.03666 | EK20: 0.0367 | EL20: 0.03674 | EM20: 0.03678 | EN20: 0.03682 | EO20: 0.03685 | EP20: 0.03689 | EQ20: 0.03692 | ER20: 0.03696 | ES20: 0.03699 | ET20: 0.03703 | EU20: 0.03706 | EV20: 0.0371 | EW20: 0.03713 | EX20: 0.03716 | EY20: 1.003381395 | EZ20: 1.005280824 | FA20: 1.005087185 | FB20: 1.002323368 | FC20: 0.9967563279 | FD20: 0.9886162216 | FE20: 0.9776793132 | FF20: 0.9646413706 | FG20: 0.9496219968 | FH20: 0.9333624581 | FI20: 0.9161815469 | FJ20: 0.8983818285 | FK20: 0.8804741304 | FL20: 0.8628792971 | FM20: 0.8463946947 | FN20: 0.8312305378 | FO20: 0.816727536 | FP20: 0.8021937831 | FQ20: 0.7868004695 | FR20: 0.7702128441 | FT20: -0.00237 | FU20: -0.001629025257 | FV20: -0.0006879920354 | FW20: 0.0004214826179 | FX20: 0.001647074144 | FY20: 0.002896839481 | FZ20: 0.004198207215 | GA20: 0.005451116684 | GB20: 0.006664658189 | GC20: 0.007781238842 | GD20: 0.00880219525 | GE20: 0.009729098186 | GF20: 0.01054543152 | GG20: =FromParToForwards(FT20:GF20,$FS$2:$GF$2,20,20,0.0000000001) -> -0.002370000032 | GH20: -0.000888708993 | GI20: 0.001195487087 | GJ20: 0.003764106939 | GK20: 0.006597574025 | GL20: 0.009253024055 | GM20: 0.01221494662 | GN20: 0.01455280613 | GO20: 0.01686302622 | GP20: 0.01847534036 | GQ20: 0.01431804393 | GR20: 0.01431804393 | GS20: 0.01382451083 | GT20: 0.01382451083 | GU20: 0.01382451083 | GV20: 0.01334489061 | GW20: 0.01334489061 | GX20: 0.01334489061 | GY20: 0.01334489061 | GZ20: 0.01334489061
A21: 0.042 | B21: 0.001 | C21: 0.0009 | D21: 2017-06-30 | E21: -0.00335 | F21: -0.00225 | G21: -0.00098 | H21: 0.00037 | I21: 0.00172 | J21: 0.00312 | K21: 0.00446 | L21: 0.00577 | M21: 0.00702 | N21: 0.00817 | O21: 0.00919 | P21: 0.01011 | Q21: 0.01095 | R21: 0.01167 | S21: 0.01224 | T21: 0.01265 | U21: 0.01299 | V21: 0.01331 | W21: 0.01365 | X21: 0.01407 | Y21: 0.01456 | Z21: 0.01511 | AA21: 0.0157 | AB21: 0.01631 | AC21: 0.01693 | AD21: 0.01755 | AE21: 0.01816 | AF21: 0.01877 | AG21: 0.01936 | AH21: 0.01994 | AI21: 0.0205 | AJ21: 0.02104 | AK21: 0.02157 | AL21: 0.02208 | AM21: 0.02256 | AN21: 0.02303 | AO21: 0.02349 | AP21: 0.02392 | AQ21: 0.02434 | AR21: 0.02474 | AS21: 0.02513 | AT21: 0.0255 | AU21: 0.02586 | AV21: 0.02621 | AW21: 0.02654 | AX21: 0.02686 | AY21: 0.02717 | AZ21: 0.02746 | BA21: 0.02775 | BB21: 0.02802 | BC21: 0.02829 | BD21: 0.02855 | BE21: 0.02879 | BF21: 0.02903 | BG21: 0.02926 | BH21: 0.02949 | BI21: 0.0297 | BJ21: 0.02991 | BK21: 0.03011 | BL21: 0.03031 | BM21: 0.03049 | BN21: 0.03068 | BO21: 0.03086 | BP21: 0.03103 | BQ21: 0.03119 | BR21: 0.03136 | BS21: 0.03151 | BT21: 0.03167 | BU21: 0.03182 | BV21: 0.03196 | BW21: 0.0321 | BX21: 0.03224 | BY21: 0.03237 | BZ21: 0.0325 | CA21: 0.03262 | CB21: 0.03275 | CC21: 0.03287 | CD21: 0.03298 | CE21: 0.0331 | CF21: 0.03321 | CG21: 0.03332 | CH21: 0.03342 | CI21: 0.03352 | CJ21: 0.03362 | CK21: 0.03372 | CL21: 0.03382 | CM21: 0.03391 | CN21: 0.034 | CO21: 0.03409 | CP21: 0.03418 | CQ21: 0.03427 | CR21: 0.03435 | CS21: 0.03443 | CT21: 0.03451 | CU21: 0.03459 | CV21: 0.03467 | CW21: 0.03474 | CX21: 0.03482 | CY21: 0.03489 | CZ21: 0.03496 | DA21: 0.03503 | DB21: 0.0351 | DC21: 0.03516 | DD21: 0.03523 | DE21: 0.03529 | DF21: 0.03536 | DG21: 0.03542 | DH21: 0.03548 | DI21: 0.03554 | DJ21: 0.0356 | DK21: 0.03566 | DL21: 0.03571 | DM21: 0.03577 | DN21: 0.03582 | DO21: 0.03588 | DP21: 0.03593 | DQ21: 0.03598 | DR21: 0.03603 | DS21: 0.03608 | DT21: 0.03613 | DU21: 0.03618 | DV21: 0.03623 | DW21: 0.03627 | DX21: 0.03632 | DY21: 0.03636 | DZ21: 0.03641 | EA21: 0.03645 | EB21: 0.0365 | EC21: 0.03654 | ED21: 0.03658 | EE21: 0.03662 | EF21: 0.03666 | EG21: 0.0367 | EH21: 0.03674 | EI21: 0.03678 | EJ21: 0.03682 | EK21: 0.03686 | EL21: 0.03689 | EM21: 0.03693 | EN21: 0.03697 | EO21: 0.037 | EP21: 0.03704 | EQ21: 0.03707 | ER21: 0.03711 | ES21: 0.03714 | ET21: 0.03717 | EU21: 0.03721 | EV21: 0.03724 | EW21: 0.03727 | EX21: 0.0373 | EY21: 1.00336126 | EZ21: 1.004515233 | FA21: 1.002945772 | FB21: 0.998521368 | FC21: 0.9914441985 | FD21: 0.9814827335 | FE21: 0.9693295949 | FF21: 0.9550158532 | FG21: 0.9389817171 | FH21: 0.9218543292 | FI21: 0.9042690711 | FJ21: 0.8862902113 | FK21: 0.8679889656 | FL21: 0.8500721674 | FM21: 0.833196764 | FN21: 0.8178056889 | FO21: 0.8029940214 | FP21: 0.788203004 | FQ21: 0.7729075158 | FR21: 0.756208062 | FT21: -0.00235 | FU21: -0.001248760422 | FV21: 2.160553953e-05 | FW21: 0.001368796528 | FX21: 0.002710890718 | FY21: 0.004095357578 | FZ21: 0.005411992117 | GA21: 0.006689431073 | GB21: 0.007898152595 | GC21: 0.009000619843 | GD21: 0.009970523849 | GE21: 0.01083817937 | GF21: 0.01162377524 | GG21: =FromParToForwards(FT21:GF21,$FS$2:$GF$2,20,20,0.0000000001) -> -0.002350000031 | GH21: -0.0001476834485 | GI21: 0.002568675642 | GJ21: 0.005439110182 | GK21: 0.008151895238 | GL21: 0.01117077742 | GM21: 0.0135665325 | GN21: 0.01602591938 | GO21: 0.01812313364 | GP21: 0.01963398267 | GQ21: 0.01525126335 | GR21: 0.01525126335 | GS21: 0.01470541257 | GT21: 0.01470541257 | GU21: 0.01470541257 | GV21: 0.01434745355 | GW21: 0.01434745355 | GX21: 0.01434745355 | GY21: 0.01434745355 | GZ21: 0.01434745355
A22: 0.042 | B22: 0.001 | C22: 0.0005 | D22: 2017-07-31 | E22: -0.00348 | F22: -0.00253 | G22: -0.00122 | H22: 0.00027 | I22: 0.00182 | J22: 0.00332 | K22: 0.00476 | L22: 0.00615 | M22: 0.00745 | N22: 0.00863 | O22: 0.00972 | P22: 0.01072 | Q22: 0.01159 | R22: 0.01233 | S22: 0.01291 | T22: 0.01334 | U22: 0.0137 | V22: 0.01403 | W22: 0.0144 | X22: 0.01481 | Y22: 0.01531 | Z22: 0.01585 | AA22: 0.01643 | AB22: 0.01703 | AC22: 0.01764 | AD22: 0.01824 | AE22: 0.01884 | AF22: 0.01943 | AG22: 0.02001 | AH22: 0.02057 | AI22: 0.02112 | AJ22: 0.02164 | AK22: 0.02215 | AL22: 0.02265 | AM22: 0.02312 | AN22: 0.02358 | AO22: 0.02402 | AP22: 0.02444 | AQ22: 0.02485 | AR22: 0.02524 | AS22: 0.02561 | AT22: 0.02598 | AU22: 0.02632 | AV22: 0.02666 | AW22: 0.02698 | AX22: 0.02729 | AY22: 0.02759 | AZ22: 0.02788 | BA22: 0.02815 | BB22: 0.02842 | BC22: 0.02868 | BD22: 0.02893 | BE22: 0.02917 | BF22: 0.0294 | BG22: 0.02962 | BH22: 0.02984 | BI22: 0.03005 | BJ22: 0.03025 | BK22: 0.03045 | BL22: 0.03064 | BM22: 0.03082 | BN22: 0.031 | BO22: 0.03117 | BP22: 0.03134 | BQ22: 0.0315 | BR22: 0.03166 | BS22: 0.03181 | BT22: 0.03196 | BU22: 0.03211 | BV22: 0.03225 | BW22: 0.03238 | BX22: 0.03251 | BY22: 0.03264 | BZ22: 0.03277 | CA22: 0.03289 | CB22: 0.03301 | CC22: 0.03313 | CD22: 0.03324 | CE22: 0.03335 | CF22: 0.03346 | CG22: 0.03356 | CH22: 0.03366 | CI22: 0.03376 | CJ22: 0.03386 | CK22: 0.03396 | CL22: 0.03405 | CM22: 0.03414 | CN22: 0.03423 | CO22: 0.03432 | CP22: 0.0344 | CQ22: 0.03449 | CR22: 0.03457 | CS22: 0.03465 | CT22: 0.03472 | CU22: 0.0348 | CV22: 0.03488 | CW22: 0.03495 | CX22: 0.03502 | CY22: 0.03509 | CZ22: 0.03516 | DA22: 0.03523 | DB22: 0.03529 | DC22: 0.03536 | DD22: 0.03542 | DE22: 0.03548 | DF22: 0.03555 | DG22: 0.03561 | DH22: 0.03566 | DI22: 0.03572 | DJ22: 0.03578 | DK22: 0.03584 | DL22: 0.03589 | DM22: 0.03594 | DN22: 0.036 | DO22: 0.03605 | DP22: 0.0361 | DQ22: 0.03615 | DR22: 0.0362 | DS22: 0.03625 | DT22: 0.0363 | DU22: 0.03634 | DV22: 0.03639 | DW22: 0.03644 | DX22: 0.03648 | DY22: 0.03652 | DZ22: 0.03657 | EA22: 0.03661 | EB22: 0.03665 | EC22: 0.03669 | ED22: 0.03673 | EE22: 0.03677 | EF22: 0.03681 | EG22: 0.03685 | EH22: 0.03689 | EI22: 0.03693 | EJ22: 0.03697 | EK22: 0.037 | EL22: 0.03704 | EM22: 0.03707 | EN22: 0.03711 | EO22: 0.03714 | EP22: 0.03718 | EQ22: 0.03721 | ER22: 0.03725 | ES22: 0.03728 | ET22: 0.03731 | EU22: 0.03734 | EV22: 0.03737 | EW22: 0.0374 | EX22: 0.03743 | EY22: 1.003492153 | EZ22: 1.005079268 | FA22: 1.003668949 | FB22: 0.9989207286 | FC22: 0.9909494758 | FD22: 0.9803094363 | FE22: 0.9673054601 | FF22: 0.9521341622 | FG22: 0.9353808819 | FH22: 0.9176586998 | FI22: 0.8990616132 | FJ22: 0.8798926408 | FK22: 0.8608770743 | FL22: 0.8423459642 | FM22: 0.8249680303 | FN22: 0.8089413263 | FO22: 0.7934862576 | FP22: 0.778189797 | FQ22: 0.7621218794 | FR22: 0.7452555815 | FT22: -0.00248 | FU22: -0.001528796154 | FV22: -0.0002180132202 | FW22: 0.001269067077 | FX22: 0.002809341097 | FY22: 0.004291404423 | FZ22: 0.005704436178 | GA22: 0.007057540887 | GB22: 0.008312137541 | GC22: 0.009441020084 | GD22: 0.01047425924 | GE22: 0.01141346325 | GF22: 0.01222436065 | GG22: =FromParToForwards(FT22:GF22,$FS$2:$GF$2,20,20,0.0000000001) -> -0.002480000038 | GH22: -0.0005781422008 | GI22: 0.002409108606 | GJ22: 0.005762354839 | GK22: 0.009059749053 | GL22: 0.01187668827 | GM22: 0.01447457715 | GN22: 0.01697436474 | GO22: 0.0189597172 | GP22: 0.02036870444 | GQ22: 0.01612561926 | GR22: 0.01612561926 | GS22: 0.01562521663 | GT22: 0.01562521663 | GU22: 0.01562521663 | GV22: 0.01505829246 | GW22: 0.01505829246 | GX22: 0.01505829246 | GY22: 0.01505829246 | GZ22: 0.01505829246
A23: 0.042 | B23: 0.001 | C23: 0.0007 | D23: 2017-08-31 | E23: -0.0036 | F23: -0.0029 | G23: -0.00189 | H23: -0.00069 | I23: 0.00061 | J23: 0.00197 | K23: 0.00334 | L23: 0.00466 | M23: 0.00592 | N23: 0.00702 | O23: 0.00809 | P23: 0.0091 | Q23: 0.00999 | R23: 0.01073 | S23: 0.01131 | T23: 0.01175 | U23: 0.01211 | V23: 0.01245 | W23: 0.01282 | X23: 0.01326 | Y23: 0.01377 | Z23: 0.01435 | AA23: 0.01496 | AB23: 0.0156 | AC23: 0.01624 | AD23: 0.01688 | AE23: 0.01752 | AF23: 0.01815 | AG23: 0.01876 | AH23: 0.01935 | AI23: 0.01993 | AJ23: 0.02049 | AK23: 0.02103 | AL23: 0.02155 | AM23: 0.02205 | AN23: 0.02254 | AO23: 0.023 | AP23: 0.02345 | AQ23: 0.02388 | AR23: 0.0243 | AS23: 0.02469 | AT23: 0.02508 | AU23: 0.02544 | AV23: 0.0258 | AW23: 0.02614 | AX23: 0.02647 | AY23: 0.02678 | AZ23: 0.02709 | BA23: 0.02738 | BB23: 0.02766 | BC23: 0.02794 | BD23: 0.0282 | BE23: 0.02845 | BF23: 0.0287 | BG23: 0.02893 | BH23: 0.02916 | BI23: 0.02938 | BJ23: 0.0296 | BK23: 0.0298 | BL23: 0.03 | BM23: 0.0302 | BN23: 0.03039 | BO23: 0.03057 | BP23: 0.03074 | BQ23: 0.03092 | BR23: 0.03108 | BS23: 0.03124 | BT23: 0.0314 | BU23: 0.03155 | BV23: 0.0317 | BW23: 0.03185 | BX23: 0.03199 | BY23: 0.03212 | BZ23: 0.03225 | CA23: 0.03238 | CB23: 0.03251 | CC23: 0.03263 | CD23: 0.03275 | CE23: 0.03287 | CF23: 0.03298 | CG23: 0.03309 | CH23: 0.0332 | CI23: 0.03331 | CJ23: 0.03341 | CK23: 0.03351 | CL23: 0.03361 | CM23: 0.0337 | CN23: 0.0338 | CO23: 0.03389 | CP23: 0.03398 | CQ23: 0.03407 | CR23: 0.03415 | CS23: 0.03424 | CT23: 0.03432 | CU23: 0.0344 | CV23: 0.03448 | CW23: 0.03456 | CX23: 0.03463 | CY23: 0.03471 | CZ23: 0.03478 | DA23: 0.03485 | DB23: 0.03492 | DC23: 0.03499 | DD23: 0.03505 | DE23: 0.03512 | DF23: 0.03519 | DG23: 0.03525 | DH23: 0.03531 | DI23: 0.03537 | DJ23: 0.03543 | DK23: 0.03549 | DL23: 0.03555 | DM23: 0.03561 | DN23: 0.03566 | DO23: 0.03572 | DP23: 0.03577 | DQ23: 0.03582 | DR23: 0.03588 | DS23: 0.03593 | DT23: 0.03598 | DU23: 0.03603 | DV23: 0.03608 | DW23: 0.03612 | DX23: 0.03617 | DY23: 0.03622 | DZ23: 0.03626 | EA23: 0.03631 | EB23: 0.03635 | EC23: 0.0364 | ED23: 0.03644 | EE23: 0.03648 | EF23: 0.03652 | EG23: 0.03657 | EH23: 0.03661 | EI23: 0.03665 | EJ23: 0.03668 | EK23: 0.03672 | EL23: 0.03676 | EM23: 0.0368 | EN23: 0.03684 | EO23: 0.03687 | EP23: 0.03691 | EQ23: 0.03694 | ER23: 0.03698 | ES23: 0.03701 | ET23: 0.03705 | EU23: 0.03708 | EV23: 0.03711 | EW23: 0.03715 | EX23: 0.03718 | EY23: 1.003613007 | EZ23: 1.005825328 | FA23: 1.0056915 | FB23: 1.002764768 | FC23: 0.9969555736 | FD23: 0.9882610726 | FE23: 0.9769292529 | FF23: 0.9634897721 | FG23: 0.9482634534 | FH23: 0.9324360162 | FI23: 0.9151823306 | FJ23: 0.8969939749 | FK23: 0.8787757023 | FL23: 0.8612075137 | FM23: 0.8447641508 | FN23: 0.8295233034 | FO23: 0.8149459961 | FP23: 0.8003417547 | FQ23: 0.7850311586 | FR23: 0.7683905748 | FT23: -0.0026 | FU23: -0.001898983169 | FV23: -0.0008876468398 | FW23: 0.0003118864849 | FX23: 0.001607082231 | FY23: 0.002955473897 | FZ23: 0.004305245445 | GA23: 0.005596221908 | GB23: 0.006818460049 | GC23: 0.007877280513 | GD23: 0.008897794481 | GE23: 0.009852048015 | GF23: 0.01068617956 | GG23: =FromParToForwards(FT23:GF23,$FS$2:$GF$2,20,20,0.0000000001) -> -0.002600000046 | GH23: -0.001198806677 | GI23: 0.001136110023 | GJ23: 0.003925905233 | GK23: 0.006840064397 | GL23: 0.009818504837 | GM23: 0.01262887842 | GN23: 0.01498691939 | GO23: 0.01710436108 | GP23: 0.01802645369 | GQ23: 0.01441612363 | GR23: 0.01441612363 | GS23: 0.01407371971 | GT23: 0.01407371971 | GU23: 0.01407371971 | GV23: 0.01355212149 | GW23: 0.01355212149 | GX23: 0.01355212149 | GY23: 0.01355212149 | GZ23: 0.01355212149
A24: 0.042 | B24: 0.001 | C24: 0.0007 | D24: 2017-09-30 | E24: -0.00356 | F24: -0.00266 | G24: -0.0014 | H24: 4e-05 | I24: 0.00157 | J24: 0.00294 | K24: 0.00436 | L24: 0.00573 | M24: 0.00706 | N24: 0.00828 | O24: 0.00936 | P24: 0.01033 | Q24: 0.01121 | R24: 0.01197 | S24: 0.01259 | T24: 0.01305 | U24: 0.01344 | V24: 0.0138 | W24: 0.01419 | X24: 0.01463 | Y24: 0.01514 | Z24: 0.0157 | AA24: 0.0163 | AB24: 0.0169 | AC24: 0.01752 | AD24: 0.01813 | AE24: 0.01874 | AF24: 0.01934 | AG24: 0.01992 | AH24: 0.02048 | AI24: 0.02103 | AJ24: 0.02156 | AK24: 0.02208 | AL24: 0.02257 | AM24: 0.02305 | AN24: 0.02351 | AO24: 0.02395 | AP24: 0.02437 | AQ24: 0.02478 | AR24: 0.02518 | AS24: 0.02555 | AT24: 0.02592 | AU24: 0.02627 | AV24: 0.0266 | AW24: 0.02693 | AX24: 0.02724 | AY24: 0.02754 | AZ24: 0.02783 | BA24: 0.02811 | BB24: 0.02837 | BC24: 0.02863 | BD24: 0.02888 | BE24: 0.02912 | BF24: 0.02936 | BG24: 0.02958 | BH24: 0.0298 | BI24: 0.03001 | BJ24: 0.03021 | BK24: 0.03041 | BL24: 0.0306 | BM24: 0.03078 | BN24: 0.03096 | BO24: 0.03113 | BP24: 0.0313 | BQ24: 0.03147 | BR24: 0.03162 | BS24: 0.03178 | BT24: 0.03193 | BU24: 0.03207 | BV24: 0.03221 | BW24: 0.03235 | BX24: 0.03248 | BY24: 0.03261 | BZ24: 0.03274 | CA24: 0.03286 | CB24: 0.03298 | CC24: 0.0331 | CD24: 0.03321 | CE24: 0.03332 | CF24: 0.03343 | CG24: 0.03353 | CH24: 0.03364 | CI24: 0.03374 | CJ24: 0.03383 | CK24: 0.03393 | CL24: 0.03402 | CM24: 0.03411 | CN24: 0.0342 | CO24: 0.03429 | CP24: 0.03438 | CQ24: 0.03446 | CR24: 0.03454 | CS24: 0.03462 | CT24: 0.0347 | CU24: 0.03478 | CV24: 0.03485 | CW24: 0.03492 | CX24: 0.035 | CY24: 0.03507 | CZ24: 0.03514 | DA24: 0.0352 | DB24: 0.03527 | DC24: 0.03534 | DD24: 0.0354 | DE24: 0.03546 | DF24: 0.03552 | DG24: 0.03558 | DH24: 0.03564 | DI24: 0.0357 | DJ24: 0.03576 | DK24: 0.03581 | DL24: 0.03587 | DM24: 0.03592 | DN24: 0.03598 | DO24: 0.03603 | DP24: 0.03608 | DQ24: 0.03613 | DR24: 0.03618 | DS24: 0.03623 | DT24: 0.03628 | DU24: 0.03632 | DV24: 0.03637 | DW24: 0.03642 | DX24: 0.03646 | DY24: 0.0365 | DZ24: 0.03655 | EA24: 0.03659 | EB24: 0.03663 | EC24: 0.03667 | ED24: 0.03672 | EE24: 0.03676 | EF24: 0.0368 | EG24: 0.03683 | EH24: 0.03687 | EI24: 0.03691 | EJ24: 0.03695 | EK24: 0.03699 | EL24: 0.03702 | EM24: 0.03706 | EN24: 0.03709 | EO24: 0.03713 | EP24: 0.03716 | EQ24: 0.0372 | ER24: 0.03723 | ES24: 0.03726 | ET24: 0.03729 | EU24: 0.03733 | EV24: 0.03736 | EW24: 0.03739 | EX24: 0.03742 | EY24: 1.003572719 | EZ24: 1.005341302 | FA24: 1.004211787 | FB24: 0.999840016 | FC24: 0.9921868385 | FD24: 0.9825401019 | FE24: 0.9700053819 | FF24: 0.9553197594 | FG24: 0.9386461068 | FH24: 0.9208491104 | FI24: 0.9025951788 | FJ24: 0.8839770998 | FK24: 0.8650921579 | FL24: 0.8465508857 | FM24: 0.8288873049 | FN24: 0.8126544275 | FO24: 0.796954067 | FP24: 0.781373784 | FQ24: 0.7651257937 | FR24: 0.7479042776 | FT24: -0.00256 | FU24: -0.001658800864 | FV24: -0.0003978133557 | FW24: 0.001039866774 | FX24: 0.002561023619 | FY24: 0.003915964263 | FZ24: 0.005310997327 | GA24: 0.006646422278 | GB24: 0.007931340046 | GC24: 0.00909933828 | GD24: 0.01012448084 | GE24: 0.0110373772 | GF24: 0.01185849276 | GG24: =FromParToForwards(FT24:GF24,$FS$2:$GF$2,20,20,0.0000000001) -> -0.002560000043 | GH24: -0.0007582850511 | GI24: 0.002128571622 | GJ24: 0.005381171367 | GK24: 0.008728929624 | GL24: 0.01083908188 | GM24: 0.01395292247 | GN24: 0.01641220308 | GO24: 0.01881364148 | GP24: 0.02038487443 | GQ24: 0.01571885841 | GR24: 0.01571885841 | GS24: 0.01511843985 | GT24: 0.01511843985 | GU24: 0.01511843985 | GV24: 0.01471654314 | GW24: 0.01471654314 | GX24: 0.01471654314 | GY24: 0.01471654314 | GZ24: 0.01471654314
A25: 0.042 | B25: 0.001 | C25: 0.0003 | D25: 2017-10-31 | E25: -0.00366 | F25: -0.00298 | G25: -0.00182 | H25: -0.00047 | I25: 0.00086 | J25: 0.00234 | K25: 0.00373 | L25: 0.00506 | M25: 0.00633 | N25: 0.00751 | O25: 0.00859 | P25: 0.00957 | Q25: 0.01043 | R25: 0.01117 | S25: 0.01178 | T25: 0.01224 | U25: 0.01264 | V25: 0.01302 | W25: 0.01343 | X25: 0.0139 | Y25: 0.01443 | Z25: 0.01501 | AA25: 0.01563 | AB25: 0.01626 | AC25: 0.01689 | AD25: 0.01753 | AE25: 0.01815 | AF25: 0.01877 | AG25: 0.01936 | AH25: 0.01995 | AI25: 0.02051 | AJ25: 0.02106 | AK25: 0.02158 | AL25: 0.02209 | AM25: 0.02258 | AN25: 0.02305 | AO25: 0.02351 | AP25: 0.02394 | AQ25: 0.02436 | AR25: 0.02477 | AS25: 0.02515 | AT25: 0.02553 | AU25: 0.02588 | AV25: 0.02623 | AW25: 0.02656 | AX25: 0.02688 | AY25: 0.02719 | AZ25: 0.02748 | BA25: 0.02777 | BB25: 0.02804 | BC25: 0.02831 | BD25: 0.02856 | BE25: 0.02881 | BF25: 0.02905 | BG25: 0.02928 | BH25: 0.0295 | BI25: 0.02972 | BJ25: 0.02993 | BK25: 0.03013 | BL25: 0.03032 | BM25: 0.03051 | BN25: 0.03069 | BO25: 0.03087 | BP25: 0.03104 | BQ25: 0.03121 | BR25: 0.03137 | BS25: 0.03153 | BT25: 0.03168 | BU25: 0.03183 | BV25: 0.03197 | BW25: 0.03211 | BX25: 0.03225 | BY25: 0.03238 | BZ25: 0.03251 | CA25: 0.03264 | CB25: 0.03276 | CC25: 0.03288 | CD25: 0.033 | CE25: 0.03311 | CF25: 0.03322 | CG25: 0.03333 | CH25: 0.03343 | CI25: 0.03354 | CJ25: 0.03364 | CK25: 0.03373 | CL25: 0.03383 | CM25: 0.03392 | CN25: 0.03401 | CO25: 0.0341 | CP25: 0.03419 | CQ25: 0.03428 | CR25: 0.03436 | CS25: 0.03444 | CT25: 0.03452 | CU25: 0.0346 | CV25: 0.03468 | CW25: 0.03475 | CX25: 0.03483 | CY25: 0.0349 | CZ25: 0.03497 | DA25: 0.03504 | DB25: 0.03511 | DC25: 0.03517 | DD25: 0.03524 | DE25: 0.0353 | DF25: 0.03537 | DG25: 0.03543 | DH25: 0.03549 | DI25: 0.03555 | DJ25: 0.03561 | DK25: 0.03566 | DL25: 0.03572 | DM25: 0.03578 | DN25: 0.03583 | DO25: 0.03588 | DP25: 0.03594 | DQ25: 0.03599 | DR25: 0.03604 | DS25: 0.03609 | DT25: 0.03614 | DU25: 0.03619 | DV25: 0.03623 | DW25: 0.03628 | DX25: 0.03633 | DY25: 0.03637 | DZ25: 0.03642 | EA25: 0.03646 | EB25: 0.0365 | EC25: 0.03655 | ED25: 0.03659 | EE25: 0.03663 | EF25: 0.03667 | EG25: 0.03671 | EH25: 0.03675 | EI25: 0.03679 | EJ25: 0.03683 | EK25: 0.03686 | EL25: 0.0369 | EM25: 0.03694 | EN25: 0.03697 | EO25: 0.03701 | EP25: 0.03704 | EQ25: 0.03708 | ER25: 0.03711 | ES25: 0.03715 | ET25: 0.03718 | EU25: 0.03721 | EV25: 0.03724 | EW25: 0.03728 | EX25: 0.03731 | EY25: 1.003673445 | EZ25: 1.005986747 | FA25: 1.005479935 | FB25: 1.001882211 | FC25: 0.9957110718 | FD25: 0.9860742738 | FE25: 0.9742752423 | FF25: 0.9604263968 | FG25: 0.9447920324 | FH25: 0.9279110487 | FI25: 0.9102040493 | FJ25: 0.891995696 | FK25: 0.8738139685 | FL25: 0.8559758914 | FM25: 0.8388970053 | FN25: 0.8231217537 | FO25: 0.8077252667 | FP25: 0.7922744405 | FQ25: 0.7761016914 | FR25: 0.7587479643 | FT25: -0.00266 | FU25: -0.001978984941 | FV25: -0.0008174726944 | FW25: 0.000531441222 | FX25: 0.001855606687 | FY25: 0.003321415671 | FZ25: 0.004689151261 | GA25: 0.005988158653 | GB25: 0.007218302963 | GC25: 0.008351355276 | GD25: 0.009379289022 | GE25: 0.01030396876 | GF25: 0.01110925698 | GG25: =FromParToForwards(FT25:GF25,$FS$2:$GF$2,20,20,0.0000000001) -> -0.00266000005 | GH25: -0.001298854375 | GI25: 0.001507542947 | GJ25: 0.004599117459 | GK25: 0.007211162225 | GL25: 0.01079547836 | GM25: 0.01314049425 | GN25: 0.01545798838 | GO25: 0.01759570189 | GP25: 0.01924853987 | GQ25: 0.01495910911 | GR25: 0.01495910911 | GS25: 0.01441190876 | GT25: 0.01441190876 | GU25: 0.01441190876 | GV25: 0.013889215 | GW25: 0.013889215 | GX25: 0.013889215 | GY25: 0.013889215 | GZ25: 0.013889215
A26: 0.042 | B26: 0.001 | C26: 0.0003 | D26: 2017-11-30 | E26: -0.00354 | F26: -0.0026 | G26: -0.00143 | H26: 1e-05 | I26: 0.00141 | J26: 0.00275 | K26: 0.00404 | L26: 0.00529 | M26: 0.00649 | N26: 0.00743 | O26: 0.00839 | P26: 0.00936 | Q26: 0.01027 | R26: 0.01106 | S26: 0.01169 | T26: 0.01215 | U26: 0.01252 | V26: 0.01286 | W26: 0.01322 | X26: 0.01365 | Y26: 0.01415 | Z26: 0.01472 | AA26: 0.01532 | AB26: 0.01595 | AC26: 0.01658 | AD26: 0.01721 | AE26: 0.01784 | AF26: 0.01845 | AG26: 0.01906 | AH26: 0.01964 | AI26: 0.02021 | AJ26: 0.02076 | AK26: 0.0213 | AL26: 0.02181 | AM26: 0.02231 | AN26: 0.02278 | AO26: 0.02324 | AP26: 0.02368 | AQ26: 0.02411 | AR26: 0.02452 | AS26: 0.02491 | AT26: 0.02529 | AU26: 0.02565 | AV26: 0.026 | AW26: 0.02634 | AX26: 0.02666 | AY26: 0.02697 | AZ26: 0.02727 | BA26: 0.02756 | BB26: 0.02784 | BC26: 0.02811 | BD26: 0.02837 | BE26: 0.02862 | BF26: 0.02886 | BG26: 0.0291 | BH26: 0.02932 | BI26: 0.02954 | BJ26: 0.02975 | BK26: 0.02996 | BL26: 0.03015 | BM26: 0.03035 | BN26: 0.03053 | BO26: 0.03071 | BP26: 0.03088 | BQ26: 0.03105 | BR26: 0.03122 | BS26: 0.03138 | BT26: 0.03153 | BU26: 0.03168 | BV26: 0.03183 | BW26: 0.03197 | BX26: 0.03211 | BY26: 0.03224 | BZ26: 0.03238 | CA26: 0.0325 | CB26: 0.03263 | CC26: 0.03275 | CD26: 0.03287 | CE26: 0.03298 | CF26: 0.03309 | CG26: 0.0332 | CH26: 0.03331 | CI26: 0.03341 | CJ26: 0.03352 | CK26: 0.03361 | CL26: 0.03371 | CM26: 0.03381 | CN26: 0.0339 | CO26: 0.03399 | CP26: 0.03408 | CQ26: 0.03417 | CR26: 0.03425 | CS26: 0.03433 | CT26: 0.03441 | CU26: 0.03449 | CV26: 0.03457 | CW26: 0.03465 | CX26: 0.03472 | CY26: 0.0348 | CZ26: 0.03487 | DA26: 0.03494 | DB26: 0.03501 | DC26: 0.03507 | DD26: 0.03514 | DE26: 0.03521 | DF26: 0.03527 | DG26: 0.03533 | DH26: 0.03539 | DI26: 0.03545 | DJ26: 0.03551 | DK26: 0.03557 | DL26: 0.03563 | DM26: 0.03569 | DN26: 0.03574 | DO26: 0.0358 | DP26: 0.03585 | DQ26: 0.0359 | DR26: 0.03595 | DS26: 0.036 | DT26: 0.03605 | DU26: 0.0361 | DV26: 0.03615 | DW26: 0.0362 | DX26: 0.03624 | DY26: 0.03629 | DZ26: 0.03634 | EA26: 0.03638 | EB26: 0.03642 | EC26: 0.03647 | ED26: 0.03651 | EE26: 0.03655 | EF26: 0.03659 | EG26: 0.03663 | EH26: 0.03667 | EI26: 0.03671 | EJ26: 0.03675 | EK26: 0.03679 | EL26: 0.03683 | EM26: 0.03686 | EN26: 0.0369 | EO26: 0.03694 | EP26: 0.03697 | EQ26: 0.03701 | ER26: 0.03704 | ES26: 0.03708 | ET26: 0.03711 | EU26: 0.03714 | EV26: 0.03718 | EW26: 0.03721 | EX26: 0.03724 | EY26: =(1+E26)^(-EY$2) -> 1.003552576 | EZ26: =(1+F26)^(-EZ$2) -> 1.005220351 | FA26: 1.004302299 | FB26: 0.999960001 | FC26: 0.9929797237 | FD26: 0.983657655 | FE26: 0.9721715214 | FF26: 0.9586699185 | FG26: 0.9434411638 | FH26: 0.9286481661 | FI26: 0.9121918078 | FJ26: 0.8942252307 | FK26: 0.8756147357 | FL26: 0.8572805968 | FM26: 0.8400171275 | FN26: 0.8242936019 | FO26: 0.8093541953 | FP26: 0.7945302476 | FQ26: 0.7791636412 | FR26: 0.762499399 | FT26: =(1-OFFSET($EY26,0,EY$2-1))/SUM(OFFSET($EY26,0,0,1,EY$2))+$B26 -> -0.00254 | FU26: =(1-OFFSET($EY26,0,EZ$2-1))/SUM(OFFSET($EY26,0,0,1,EZ$2))+$B26 -> -0.001598775832 | FV26: -0.0004278763002 | FW26: 0.001009967269 | FX26: 0.002402368232 | FY26: 0.003728420406 | FZ26: 0.00499728551 | GA26: 0.006218105958 | GB26: 0.007380767377 | GC26: 0.008286298769 | GD26: 0.009202697078 | GE26: 0.01011928469 | GF26: 0.01097105429 | GG26: =FromParToForwards(FT26:GF26,$FS$2:$GF$2,20,20,0.0000000001) -> -0.002540000042 | GH26: -0.0006581711083 | GI26: 0.00191764135 | GJ26: 0.00535117124 | GK26: 0.008043787004 | GL26: 0.01049739256 | GM26: 0.01284268379 | GN26: 0.01511985275 | GO26: 0.01718678904 | GP26: 0.01697419592 | GQ26: 0.01416032363 | GR26: 0.01416032363 | GS26: 0.01417620443 | GT26: 0.01417620443 | GU26: 0.01417620443 | GV26: 0.01390201123 | GW26: 0.01390201123 | GX26: 0.01390201123 | GY26: 0.01390201123 | GZ26: 0.01390201123
A27: 0.042 | B27: 0.001 | C27: 0.0004 | D27: 2017-12-31 | E27: -0.00358 | F27: -0.0025 | G27: -0.00088 | H27: 0.00069 | I27: 0.00209 | J27: 0.00347 | K27: 0.00469 | L27: 0.00585 | M27: 0.00695 | N27: 0.00802 | O27: 0.00897 | P27: 0.00982 | Q27: 0.01059 | R27: 0.01125 | S27: 0.01177 | T27: 0.01217 | U27: 0.01249 | V27: 0.0128 | W27: 0.01316 | X27: 0.01357 | Y27: 0.01408 | Z27: 0.01464 | AA27: 0.01524 | AB27: 0.01586 | AC27: 0.01649 | AD27: 0.01713 | AE27: 0.01775 | AF27: 0.01837 | AG27: 0.01897 | AH27: 0.01956 | AI27: 0.02013 | AJ27: 0.02069 | AK27: 0.02122 | AL27: 0.02174 | AM27: 0.02223 | AN27: 0.02271 | AO27: 0.02317 | AP27: 0.02362 | AQ27: 0.02404 | AR27: 0.02445 | AS27: 0.02485 | AT27: 0.02523 | AU27: 0.02559 | AV27: 0.02594 | AW27: 0.02628 | AX27: 0.0266 | AY27: 0.02692 | AZ27: 0.02722 | BA27: 0.02751 | BB27: 0.02779 | BC27: 0.02806 | BD27: 0.02832 | BE27: 0.02857 | BF27: 0.02881 | BG27: 0.02905 | BH27: 0.02928 | BI27: 0.02949 | BJ27: 0.02971 | BK27: 0.02991 | BL27: 0.03011 | BM27: 0.0303 | BN27: 0.03049 | BO27: 0.03067 | BP27: 0.03084 | BQ27: 0.03101 | BR27: 0.03118 | BS27: 0.03134 | BT27: 0.03149 | BU27: 0.03164 | BV27: 0.03179 | BW27: 0.03193 | BX27: 0.03207 | BY27: 0.03221 | BZ27: 0.03234 | CA27: 0.03247 | CB27: 0.03259 | CC27: 0.03271 | CD27: 0.03283 | CE27: 0.03295 | CF27: 0.03306 | CG27: 0.03317 | CH27: 0.03328 | CI27: 0.03338 | CJ27: 0.03348 | CK27: 0.03358 | CL27: 0.03368 | CM27: 0.03378 | CN27: 0.03387 | CO27: 0.03396 | CP27: 0.03405 | CQ27: 0.03414 | CR27: 0.03422 | CS27: 0.0343 | CT27: 0.03439 | CU27: 0.03447 | CV27: 0.03454 | CW27: 0.03462 | CX27: 0.0347 | CY27: 0.03477 | CZ27: 0.03484 | DA27: 0.03491 | DB27: 0.03498 | DC27: 0.03505 | DD27: 0.03512 | DE27: 0.03518 | DF27: 0.03525 | DG27: 0.03531 | DH27: 0.03537 | DI27: 0.03543 | DJ27: 0.03549 | DK27: 0.03555 | DL27: 0.03561 | DM27: 0.03566 | DN27: 0.03572 | DO27: 0.03577 | DP27: 0.03583 | DQ27: 0.03588 | DR27: 0.03593 | DS27: 0.03598 | DT27: 0.03603 | DU27: 0.03608 | DV27: 0.03613 | DW27: 0.03618 | DX27: 0.03622 | DY27: 0.03627 | DZ27: 0.03631 | EA27: 0.03636 | EB27: 0.0364 | EC27: 0.03645 | ED27: 0.03649 | EE27: 0.03653 | EF27: 0.03657 | EG27: 0.03661 | EH27: 0.03665 | EI27: 0.03669 | EJ27: 0.03673 | EK27: 0.03677 | EL27: 0.03681 | EM27: 0.03684 | EN27: 0.03688 | EO27: 0.03692 | EP27: 0.03695 | EQ27: 0.03699 | ER27: 0.03702 | ES27: 0.03706 | ET27: 0.03709 | EU27: 0.03712 | EV27: 0.03716 | EW27: 0.03719 | EX27: 0.03722 | EY27: 1.003592862 | EZ27: =(1+F27)^(-EZ$2) -> 1.005018813 | FA27: 1.002644653 | FB27: 0.9972447544 | FC27: 0.9896152033 | FD27: 0.9794305373 | FE27: 0.9677773258 | FF27: 0.9544083669 | FG27: 0.939569356 | FH27: 0.923227028 | FI27: 0.9064403135 | FJ27: =(1+P27)^(-FJ$2) -> 0.8893493369 | FK27: 0.8720171888 | FL27: 0.8550283511 | FM27: 0.8390213846 | FN27: 0.824033038 | FO27: 0.8097619706 | FP27: 0.7953779223 | FQ27: 0.7800408177 | FR27: 0.7637039673 | FT27: -0.00258 | FU27: =(1-OFFSET($EY27,0,EZ$2-1))/SUM(OFFSET($EY27,0,0,1,EZ$2))+$B27 -> -0.001498647577 | FV27: 0.0001217442372 | FW27: 0.001687350585 | FX27: 0.003077742114 | FY27: 0.004441121141 | FZ27: 0.00563947737 | GA27: 0.006771288201 | GB27: 0.007836585615 | GC27: 0.008864045554 | GD27: 0.009769327627 | GE27: 0.01057324914 | GF27: 0.01129600598 | GG27: =FromParToForwards(FT27:GF27,$FS$2:$GF$2,20,20,0.0000000001) -> -0.002580000045 | GH27: -0.0004177468416 | GI27: 0.003372779117 | GJ27: 0.006424311743 | GK27: 0.008723786758 | GL27: 0.01141964606 | GM27: 0.01306749446 | GN27: 0.01504117984 | GO27: 0.01683474972 | GP27: 0.01875207892 | GQ27: 0.01468425655 | GR27: 0.01468425655 | GS27: 0.01414288522 | GT27: 0.01414288522 | GU27: 0.01414288522 | GV27: 0.01378860914 | GW27: 0.01378860914 | GX27: 0.01378860914 | GY27: 0.01378860914 | GZ27: 0.01378860914
A28: 0.0405 | B28: 0.001 | C28: 0 | D28: 2018-01-31 | E28: -0.00363 | F28: -0.00225 | G28: -0.0002 | H28: 0.0019 | I28: 0.0038 | J28: 0.00537 | K28: 0.0067 | L28: 0.00791 | M28: 0.00899 | N28: 0.00987 | O28: 0.01075 | P28: 0.01159 | Q28: 0.01232 | R28: 0.01291 | S28: 0.01334 | T28: 0.01363 | U28: 0.01384 | V28: 0.01405 | W28: 0.01429 | X28: 0.01461 | Y28: 0.01501 | Z28: 0.01548 | AA28: 0.01599 | AB28: 0.01653 | AC28: 0.01709 | AD28: 0.01765 | AE28: 0.01821 | AF28: 0.01876 | AG28: 0.0193 | AH28: 0.01983 | AI28: 0.02035 | AJ28: 0.02085 | AK28: 0.02134 | AL28: 0.02181 | AM28: 0.02226 | AN28: 0.0227 | AO28: 0.02312 | AP28: 0.02353 | AQ28: 0.02392 | AR28: 0.0243 | AS28: 0.02466 | AT28: 0.02501 | AU28: 0.02534 | AV28: 0.02567 | AW28: 0.02598 | AX28: 0.02628 | AY28: 0.02657 | AZ28: 0.02684 | BA28: 0.02711 | BB28: 0.02737 | BC28: 0.02762 | BD28: 0.02786 | BE28: 0.02809 | BF28: 0.02832 | BG28: 0.02853 | BH28: 0.02874 | BI28: 0.02894 | BJ28: 0.02914 | BK28: 0.02933 | BL28: 0.02951 | BM28: 0.02969 | BN28: 0.02986 | BO28: 0.03003 | BP28: 0.03019 | BQ28: 0.03035 | BR28: 0.0305 | BS28: 0.03065 | BT28: 0.03079 | BU28: 0.03093 | BV28: 0.03107 | BW28: 0.0312 | BX28: 0.03133 | BY28: 0.03145 | BZ28: 0.03157 | CA28: 0.03169 | CB28: 0.03181 | CC28: 0.03192 | CD28: 0.03203 | CE28: 0.03214 | CF28: 0.03224 | CG28: 0.03234 | CH28: 0.03244 | CI28: 0.03254 | CJ28: 0.03263 | CK28: 0.03272 | CL28: 0.03281 | CM28: 0.0329 | CN28: 0.03299 | CO28: 0.03307 | CP28: 0.03315 | CQ28: 0.03323 | CR28: 0.03331 | CS28: 0.03339 | CT28: 0.03346 | CU28: 0.03354 | CV28: 0.03361 | CW28: 0.03368 | CX28: 0.03375 | CY28: 0.03382 | CZ28: 0.03389 | DA28: 0.03395 | DB28: 0.03401 | DC28: 0.03408 | DD28: 0.03414 | DE28: 0.0342 | DF28: 0.03426 | DG28: 0.03432 | DH28: 0.03437 | DI28: 0.03443 | DJ28: 0.03448 | DK28: 0.03454 | DL28: 0.03459 | DM28: 0.03464 | DN28: 0.0347 | DO28: 0.03475 | DP28: 0.0348 | DQ28: 0.03484 | DR28: 0.03489 | DS28: 0.03494 | DT28: 0.03498 | DU28: 0.03503 | DV28: 0.03508 | DW28: 0.03512 | DX28: 0.03516 | DY28: 0.0352 | DZ28: 0.03525 | EA28: 0.03529 | EB28: 0.03533 | EC28: 0.03537 | ED28: 0.03541 | EE28: 0.03545 | EF28: 0.03549 | EG28: 0.03552 | EH28: 0.03556 | EI28: 0.0356 | EJ28: 0.03563 | EK28: 0.03567 | EL28: 0.0357 | EM28: 0.03574 | EN28: 0.03577 | EO28: 0.0358 | EP28: 0.03584 | EQ28: 0.03587 | ER28: 0.0359 | ES28: 0.03593 | ET28: 0.03596 | EU28: 0.036 | EV28: 0.03603 | EW28: 0.03606 | EX28: 0.03609 | EY28: 1.003643225 | EZ28: 1.004515233 | FA28: 1.00060024 | FB28: 0.9924359633 | FC28: 0.981214694 | FD28: 0.9683770067 | FE28: 0.9543320729 | FF28: 0.9389143297 | FG28: 0.9226101793 | FH28: 0.9064530008 | FI28: 0.8890347771 | FJ28: 0.8708546395 | FK28: 0.8528416024 | FL28: 0.8356183676 | FM28: 0.8197326035 | FN28: 0.8052462458 | FO28: 0.7916255966 | FP28: 0.7779135765 | FQ28: 0.763693807 | FR28: 0.7481991867 | FT28: -0.00263 | FU28: -0.001248444675 | FV28: 0.0008005024197 | FW28: 0.002890444571 | FX28: 0.004770325697 | FY28: 0.006314086466 | FZ28: 0.007613634147 | GA28: 0.008787533799 | GB28: 0.009827760093 | GC28: 0.01067084372 | GD28: 0.01150595054 | GE28: 0.01229585636 | GF28: 0.01297789925 | GG28: =FromParToForwards(FT28:GF28,$FS$2:$GF$2,20,20,0.0000000001) -> -0.002630000048 | GH28: 0.0001332948531 | GI28: 0.004918827902 | GJ28: 0.009239232033 | GK28: 0.01245541826 | GL28: 0.0142810292 | GM28: 0.01574586926 | GN28: 0.01745611923 | GO28: 0.01871267615 | GP28: 0.01886674958 | GQ28: 0.01609102454 | GR28: 0.01609102454 | GS28: 0.01585102485 | GT28: 0.01585102485 | GU28: 0.01585102485 | GV28: 0.01537134897 | GW28: 0.01537134897 | GX28: 0.01537134897 | GY28: 0.01537134897 | GZ28: 0.01537134897
A29: 0.0405 | B29: 0.001 | C29: 0.0001 | D29: 2018-02-28 | E29: -0.00352 | F29: -0.0022 | G29: -0.00022 | H29: 0.00178 | I29: 0.00361 | J29: 0.00521 | K29: 0.00666 | L29: 0.00793 | M29: 0.00906 | N29: 0.01007 | O29: 0.01097 | P29: 0.01177 | Q29: 0.0125 | R29: 0.01312 | S29: 0.01361 | T29: 0.01396 | U29: 0.01424 | V29: 0.01451 | W29: 0.0148 | X29: 0.01516 | Y29: 0.01559 | Z29: 0.01607 | AA29: 0.0166 | AB29: 0.01714 | AC29: 0.01769 | AD29: 0.01825 | AE29: 0.0188 | AF29: 0.01934 | AG29: 0.01988 | AH29: 0.0204 | AI29: 0.0209 | AJ29: 0.02139 | AK29: 0.02187 | AL29: 0.02233 | AM29: 0.02277 | AN29: 0.0232 | AO29: 0.02361 | AP29: 0.024 | AQ29: 0.02438 | AR29: 0.02475 | AS29: 0.0251 | AT29: 0.02544 | AU29: 0.02577 | AV29: 0.02608 | AW29: 0.02638 | AX29: 0.02667 | AY29: 0.02695 | AZ29: 0.02723 | BA29: 0.02749 | BB29: 0.02774 | BC29: 0.02798 | BD29: 0.02821 | BE29: 0.02844 | BF29: 0.02866 | BG29: 0.02887 | BH29: 0.02907 | BI29: 0.02927 | BJ29: 0.02946 | BK29: 0.02964 | BL29: 0.02982 | BM29: 0.02999 | BN29: 0.03016 | BO29: 0.03032 | BP29: 0.03048 | BQ29: 0.03063 | BR29: 0.03078 | BS29: 0.03092 | BT29: 0.03106 | BU29: 0.0312 | BV29: 0.03133 | BW29: 0.03146 | BX29: 0.03158 | BY29: 0.0317 | BZ29: 0.03182 | CA29: 0.03194 | CB29: 0.03205 | CC29: 0.03216 | CD29: 0.03226 | CE29: 0.03237 | CF29: 0.03247 | CG29: 0.03257 | CH29: 0.03266 | CI29: 0.03276 | CJ29: 0.03285 | CK29: 0.03294 | CL29: 0.03303 | CM29: 0.03311 | CN29: 0.0332 | CO29: 0.03328 | CP29: 0.03336 | CQ29: 0.03344 | CR29: 0.03351 | CS29: 0.03359 | CT29: 0.03366 | CU29: 0.03373 | CV29: 0.0338 | CW29: 0.03387 | CX29: 0.03394 | CY29: 0.034 | CZ29: 0.03407 | DA29: 0.03413 | DB29: 0.0342 | DC29: 0.03426 | DD29: 0.03432 | DE29: 0.03437 | DF29: 0.03443 | DG29: 0.03449 | DH29: 0.03454 | DI29: 0.0346 | DJ29: 0.03465 | DK29: 0.03471 | DL29: 0.03476 | DM29: 0.03481 | DN29: 0.03486 | DO29: 0.03491 | DP29: 0.03495 | DQ29: 0.035 | DR29: 0.03505 | DS29: 0.03509 | DT29: 0.03514 | DU29: 0.03518 | DV29: 0.03523 | DW29: 0.03527 | DX29: 0.03531 | DY29: 0.03535 | DZ29: 0.03539 | EA29: 0.03543 | EB29: 0.03547 | EC29: 0.03551 | ED29: 0.03555 | EE29: 0.03559 | EF29: 0.03562 | EG29: 0.03566 | EH29: 0.0357 | EI29: 0.03573 | EJ29: 0.03577 | EK29: 0.0358 | EL29: 0.03584 | EM29: 0.03587 | EN29: 0.0359 | EO29: 0.03594 | EP29: 0.03597 | EQ29: 0.036 | ER29: 0.03603 | ES29: 0.03606 | ET29: 0.03609 | EU29: 0.03612 | EV29: 0.03615 | EW29: 0.03618 | EX29: 0.03621 | EY29: 1.003532434 | EZ29: 1.004414563 | FA29: 1.000660291 | FB29: 0.9929115716 | FC29: 0.9821438467 | FD29: 0.9693021984 | FE29: 0.9545975497 | FF29: 0.9387652957 | FG29: 0.9220343135 | FH29: 0.9046597672 | FI29: 0.8869089724 | FJ29: 0.868997294 | FK29: 0.8508726918 | FL29: 0.8331967287 | FM29: 0.8164633641 | FN29: 0.8010633018 | FO29: 0.7863348335 | FP29: 0.7715889866 | FQ29: 0.7564344291 | FR29: 0.7401334947 | FT29: -0.00252 | FU29: -0.001198545438 | FV29: 0.0007805328368 | FW29: 0.002771434471 | FX29: 0.004582937761 | FY29: 0.006156724771 | FZ29: 0.007572861355 | GA29: 0.008804250122 | GB29: 0.009891704742 | GC29: 0.01085630287 | GD29: 0.01170944779 | GE29: 0.01246237906 | GF29: 0.01314411462 | GG29: =FromParToForwards(FT29:GF29,$FS$2:$GF$2,20,20,0.0000000001) -> -0.002520000041 | GH29: 0.0001230717987 | GI29: 0.004757766097 | GJ29: 0.008816155537 | GK29: 0.01198208526 | GL29: 0.01427291043 | GM29: 0.01643546954 | GN29: 0.01790204444 | GO29: 0.01918856867 | GP29: 0.02025400294 | GQ29: 0.01640501774 | GR29: 0.01640501774 | GS29: 0.01585872747 | GT29: 0.01585872747 | GU29: 0.01585872747 | GV29: 0.01554208722 | GW29: 0.01554208722 | GX29: 0.01554208722 | GY29: 0.01554208722 | GZ29: 0.01554208722
A30: 0.0405 | B30: 0.001 | C30: 0.0002 | D30: 2018-03-31 | E30: -0.00362 | F30: -0.00258 | G30: -0.00083 | H30: 0.00104 | I30: 0.00285 | J30: 0.00418 | K30: 0.00556 | L30: 0.00672 | M30: 0.00783 | N30: 0.00884 | O30: 0.00975 | P30: 0.01056 | Q30: 0.01127 | R30: 0.01186 | S30: 0.01233 | T30: 0.01266 | U30: 0.01293 | V30: 0.0132 | W30: 0.0135 | X30: 0.01387 | Y30: 0.01431 | Z30: 0.01482 | AA30: 0.01537 | AB30: 0.01595 | AC30: 0.01653 | AD30: 0.01711 | AE30: 0.0177 | AF30: 0.01827 | AG30: 0.01883 | AH30: 0.01938 | AI30: 0.01991 | AJ30: 0.02043 | AK30: 0.02093 | AL30: 0.02141 | AM30: 0.02188 | AN30: 0.02233 | AO30: 0.02276 | AP30: 0.02318 | AQ30: 0.02358 | AR30: 0.02396 | AS30: 0.02433 | AT30: 0.02469 | AU30: 0.02503 | AV30: 0.02536 | AW30: 0.02568 | AX30: 0.02599 | AY30: 0.02628 | AZ30: 0.02657 | BA30: 0.02684 | BB30: 0.0271 | BC30: 0.02736 | BD30: 0.0276 | BE30: 0.02784 | BF30: 0.02807 | BG30: 0.02829 | BH30: 0.0285 | BI30: 0.02871 | BJ30: 0.02891 | BK30: 0.0291 | BL30: 0.02929 | BM30: 0.02947 | BN30: 0.02965 | BO30: 0.02982 | BP30: 0.02998 | BQ30: 0.03014 | BR30: 0.0303 | BS30: 0.03045 | BT30: 0.03059 | BU30: 0.03074 | BV30: 0.03087 | BW30: 0.03101 | BX30: 0.03114 | BY30: 0.03127 | BZ30: 0.03139 | CA30: 0.03151 | CB30: 0.03163 | CC30: 0.03174 | CD30: 0.03186 | CE30: 0.03196 | CF30: 0.03207 | CG30: 0.03217 | CH30: 0.03228 | CI30: 0.03237 | CJ30: 0.03247 | CK30: 0.03256 | CL30: 0.03266 | CM30: 0.03275 | CN30: 0.03283 | CO30: 0.03292 | CP30: 0.033 | CQ30: 0.03309 | CR30: 0.03317 | CS30: 0.03324 | CT30: 0.03332 | CU30: 0.0334 | CV30: 0.03347 | CW30: 0.03354 | CX30: 0.03361 | CY30: 0.03368 | CZ30: 0.03375 | DA30: 0.03382 | DB30: 0.03388 | DC30: 0.03395 | DD30: 0.03401 | DE30: 0.03407 | DF30: 0.03413 | DG30: 0.03419 | DH30: 0.03425 | DI30: 0.03431 | DJ30: 0.03436 | DK30: 0.03442 | DL30: 0.03447 | DM30: 0.03452 | DN30: 0.03458 | DO30: 0.03463 | DP30: 0.03468 | DQ30: 0.03473 | DR30: 0.03478 | DS30: 0.03483 | DT30: 0.03487 | DU30: 0.03492 | DV30: 0.03496 | DW30: 0.03501 | DX30: 0.03505 | DY30: 0.0351 | DZ30: 0.03514 | EA30: 0.03518 | EB30: 0.03522 | EC30: 0.03526 | ED30: 0.0353 | EE30: 0.03534 | EF30: 0.03538 | EG30: 0.03542 | EH30: 0.03546 | EI30: 0.0355 | EJ30: 0.03553 | EK30: 0.03557 | EL30: 0.0356 | EM30: 0.03564 | EN30: 0.03567 | EO30: 0.03571 | EP30: 0.03574 | EQ30: 0.03578 | ER30: 0.03581 | ES30: 0.03584 | ET30: 0.03587 | EU30: 0.0359 | EV30: 0.03593 | EW30: 0.03597 | EX30: 0.036 | EY30: 1.003633152 | EZ30: =(1+F30)^(-EZ$2) -> 1.005180038 | FA30: 1.002494139 | FB30: 0.9958507935 | FC30: 0.9858710319 | FD30: 0.9752828686 | FE30: 0.9619313412 | FF30: 0.9478299489 | FG30: 0.9322115159 | FH30: 0.915750291 | FI30: 0.8987678313 | FJ30: 0.8815658376 | FK30: 0.8644251434 | FL30: 0.8478402043 | FM30: 0.8320863396 | FN30: 0.8176764854 | FO30: 0.8038030034 | FP30: 0.7897447361 | FQ30: 0.7750838583 | FR30: 0.7591971114 | FT30: -0.00262 | FU30: =(1-OFFSET($EY30,0,EZ$2-1))/SUM(OFFSET($EY30,0,0,1,EZ$2))+$B30 -> -0.001578655965 | FV30: 0.0001717420866 | FW30: 0.002035448647 | FX30: 0.003829738759 | FY30: 0.005141393965 | FZ30: 0.006493120058 | GA30: 0.007622184003 | GB30: 0.008694244335 | GC30: 0.009662287144 | GD30: 0.01052791023 | GE30: 0.01129292251 | GF30: 0.01195926885 | GG30: =FromParToForwards(FT30:GF30,$FS$2:$GF$2,20,20,0.0000000001) -> -0.002620000047 | GH30: -0.0005378719934 | GI30: 0.003684491887 | GJ30: 0.007682346518 | GK30: 0.01114116004 | GL30: 0.01187687434 | GM30: 0.01490974063 | GN30: 0.01591127074 | GO30: 0.01779603994 | GP30: 0.01902378281 | GQ30: 0.01525216858 | GR30: 0.01525216858 | GS30: 0.01470959209 | GT30: 0.01470959209 | GU30: 0.01470959209 | GV30: 0.01427284421 | GW30: 0.01427284421 | GX30: 0.01427284421 | GY30: 0.01427284421 | GZ30: 0.01427284421
A31: 0.0405 | B31: 0.001 | C31: 0.0003 | D31: 2018-04-30 | E31: -0.00358 | F31: -0.00244 | G31: -0.00065 | H31: 0.0012 | I31: 0.00286 | J31: 0.00441 | K31: 0.00577 | L31: 0.00698 | M31: 0.00809 | N31: 0.00911 | O31: 0.00999 | P31: 0.01078 | Q31: 0.01152 | R31: 0.01215 | S31: 0.01266 | T31: 0.01303 | U31: 0.01332 | V31: 0.0136 | W31: 0.01391 | X31: 0.01428 | Y31: 0.01473 | Z31: 0.01524 | AA31: 0.01578 | AB31: 0.01635 | AC31: 0.01693 | AD31: 0.0175 | AE31: 0.01808 | AF31: 0.01864 | AG31: 0.01919 | AH31: 0.01973 | AI31: 0.02026 | AJ31: 0.02077 | AK31: 0.02126 | AL31: 0.02173 | AM31: 0.02219 | AN31: 0.02263 | AO31: 0.02306 | AP31: 0.02347 | AQ31: 0.02386 | AR31: 0.02424 | AS31: 0.0246 | AT31: 0.02495 | AU31: 0.02529 | AV31: 0.02562 | AW31: 0.02593 | AX31: 0.02623 | AY31: 0.02652 | AZ31: 0.0268 | BA31: 0.02707 | BB31: 0.02733 | BC31: 0.02758 | BD31: 0.02782 | BE31: 0.02805 | BF31: 0.02827 | BG31: 0.02849 | BH31: 0.0287 | BI31: 0.0289 | BJ31: 0.0291 | BK31: 0.02929 | BL31: 0.02947 | BM31: 0.02965 | BN31: 0.02983 | BO31: 0.02999 | BP31: 0.03016 | BQ31: 0.03031 | BR31: 0.03047 | BS31: 0.03061 | BT31: 0.03076 | BU31: 0.0309 | BV31: 0.03103 | BW31: 0.03117 | BX31: 0.0313 | BY31: 0.03142 | BZ31: 0.03154 | CA31: 0.03166 | CB31: 0.03178 | CC31: 0.03189 | CD31: 0.032 | CE31: 0.03211 | CF31: 0.03221 | CG31: 0.03231 | CH31: 0.03241 | CI31: 0.03251 | CJ31: 0.0326 | CK31: 0.0327 | CL31: 0.03279 | CM31: 0.03287 | CN31: 0.03296 | CO31: 0.03305 | CP31: 0.03313 | CQ31: 0.03321 | CR31: 0.03329 | CS31: 0.03336 | CT31: 0.03344 | CU31: 0.03351 | CV31: 0.03359 | CW31: 0.03366 | CX31: 0.03373 | CY31: 0.0338 | CZ31: 0.03386 | DA31: 0.03393 | DB31: 0.03399 | DC31: 0.03406 | DD31: 0.03412 | DE31: 0.03418 | DF31: 0.03424 | DG31: 0.0343 | DH31: 0.03435 | DI31: 0.03441 | DJ31: 0.03446 | DK31: 0.03452 | DL31: 0.03457 | DM31: 0.03462 | DN31: 0.03468 | DO31: 0.03473 | DP31: 0.03478 | DQ31: 0.03482 | DR31: 0.03487 | DS31: 0.03492 | DT31: 0.03497 | DU31: 0.03501 | DV31: 0.03506 | DW31: 0.0351 | DX31: 0.03514 | DY31: 0.03519 | DZ31: 0.03523 | EA31: 0.03527 | EB31: 0.03531 | EC31: 0.03535 | ED31: 0.03539 | EE31: 0.03543 | EF31: 0.03547 | EG31: 0.03551 | EH31: 0.03554 | EI31: 0.03558 | EJ31: 0.03562 | EK31: 0.03565 | EL31: 0.03569 | EM31: 0.03572 | EN31: 0.03575 | EO31: 0.03579 | EP31: 0.03582 | EQ31: 0.03585 | ER31: 0.03589 | ES31: 0.03592 | ET31: 0.03595 | EU31: 0.03598 | EV31: 0.03601 | EW31: 0.03604 | EX31: 0.03607 | EY31: 1.003592862 | EZ31: =(1+F31)^(-EZ$2) -> 1.004897919 | FA31: 1.001952538 | FB31: 0.9952143655 | FC31: 0.9858218799 | FD31: 0.9739436544 | FE31: 0.9605262946 | FF31: 0.9458738966 | FG31: 0.9300498776 | FH31: 0.9133030346 | FI31: 0.8964213427 | FJ31: 0.8792660792 | FK31: 0.8616518721 | FL31: 0.8444456207 | FM31: 0.8280282697 | FN31: 0.8129111701 | FO31: 0.7985600033 | FP31: 0.7841536463 | FQ31: 0.7691504131 | FR31: 0.7530828554 | FT31: -0.00258 | FU31: =(1-OFFSET($EY31,0,EZ$2-1))/SUM(OFFSET($EY31,0,0,1,EZ$2))+$B31 -> -0.001438606704 | FV31: 0.0003514118879 | FW31: 0.002194718786 | FX31: 0.003840464422 | FY31: 0.005367895555 | FZ31: 0.006699392593 | GA31: 0.007875929578 | GB31: 0.008947185794 | GC31: 0.009923869471 | GD31: 0.01076089186 | GE31: 0.01150694912 | GF31: 0.0121999962 | GG31: =FromParToForwards(FT31:GF31,$FS$2:$GF$2,20,20,0.0000000001) -> -0.002580000045 | GH31: -0.0002975529885 | GI31: 0.003945037727 | GJ31: 0.007781774152 | GK31: 0.01054440963 | GL31: 0.01321976326 | GM31: 0.0149981716 | GN31: 0.01652605953 | GO31: 0.01805608109 | GP31: 0.01938522034 | GQ31: 0.01533677027 | GR31: 0.01533677027 | GS31: 0.01484474142 | GT31: 0.01484474142 | GU31: 0.01484474142 | GV31: 0.01461240949 | GW31: 0.01461240949 | GX31: 0.01461240949 | GY31: 0.01461240949 | GZ31: 0.01461240949
A32: 0.0405 | B32: 0.001 | C32: 0.001 | D32: 2018-05-31 | E32: -0.00331 | F32: -0.00236 | G32: -0.00098 | H32: 0.00057 | I32: 0.00213 | J32: 0.00356 | K32: 0.0049 | L32: 0.00613 | M32: 0.00725 | N32: 0.00824 | O32: 0.00915 | P32: 0.00999 | Q32: 0.01078 | R32: 0.01146 | S32: 0.01199 | T32: 0.01237 | U32: 0.01265 | V32: 0.01292 | W32: 0.01322 | X32: 0.01358 | Y32: 0.01403 | Z32: 0.01454 | AA32: 0.01509 | AB32: 0.01567 | AC32: 0.01625 | AD32: 0.01685 | AE32: 0.01743 | AF32: 0.01801 | AG32: 0.01858 | AH32: 0.01914 | AI32: 0.01967 | AJ32: 0.0202 | AK32: 0.0207 | AL32: 0.02119 | AM32: 0.02166 | AN32: 0.02212 | AO32: 0.02255 | AP32: 0.02298 | AQ32: 0.02338 | AR32: 0.02377 | AS32: 0.02415 | AT32: 0.02451 | AU32: 0.02485 | AV32: 0.02519 | AW32: 0.02551 | AX32: 0.02582 | AY32: 0.02612 | AZ32: 0.0264 | BA32: 0.02668 | BB32: 0.02695 | BC32: 0.0272 | BD32: 0.02745 | BE32: 0.02769 | BF32: 0.02792 | BG32: 0.02815 | BH32: 0.02836 | BI32: 0.02857 | BJ32: 0.02877 | BK32: 0.02897 | BL32: 0.02916 | BM32: 0.02934 | BN32: 0.02952 | BO32: 0.02969 | BP32: 0.02986 | BQ32: 0.03002 | BR32: 0.03018 | BS32: 0.03033 | BT32: 0.03048 | BU32: 0.03062 | BV32: 0.03076 | BW32: 0.0309 | BX32: 0.03103 | BY32: 0.03116 | BZ32: 0.03129 | CA32: 0.03141 | CB32: 0.03153 | CC32: 0.03164 | CD32: 0.03176 | CE32: 0.03187 | CF32: 0.03197 | CG32: 0.03208 | CH32: 0.03218 | CI32: 0.03228 | CJ32: 0.03238 | CK32: 0.03247 | CL32: 0.03257 | CM32: 0.03266 | CN32: 0.03274 | CO32: 0.03283 | CP32: 0.03292 | CQ32: 0.033 | CR32: 0.03308 | CS32: 0.03316 | CT32: 0.03324 | CU32: 0.03331 | CV32: 0.03339 | CW32: 0.03346 | CX32: 0.03353 | CY32: 0.0336 | CZ32: 0.03367 | DA32: 0.03374 | DB32: 0.03381 | DC32: 0.03387 | DD32: 0.03393 | DE32: 0.034 | DF32: 0.03406 | DG32: 0.03412 | DH32: 0.03418 | DI32: 0.03423 | DJ32: 0.03429 | DK32: 0.03435 | DL32: 0.0344 | DM32: 0.03446 | DN32: 0.03451 | DO32: 0.03456 | DP32: 0.03461 | DQ32: 0.03466 | DR32: 0.03471 | DS32: 0.03476 | DT32: 0.03481 | DU32: 0.03485 | DV32: 0.0349 | DW32: 0.03495 | DX32: 0.03499 | DY32: 0.03503 | DZ32: 0.03508 | EA32: 0.03512 | EB32: 0.03516 | EC32: 0.0352 | ED32: 0.03524 | EE32: 0.03528 | EF32: 0.03532 | EG32: 0.03536 | EH32: 0.0354 | EI32: 0.03544 | EJ32: 0.03548 | EK32: 0.03551 | EL32: 0.03555 | EM32: 0.03558 | EN32: 0.03562 | EO32: 0.03565 | EP32: 0.03569 | EQ32: 0.03572 | ER32: 0.03575 | ES32: 0.03579 | ET32: 0.03582 | EU32: 0.03585 | EV32: 0.03588 | EW32: 0.03591 | EX32: 0.03594 | EY32: =(1+E32)^(-EY$2) -> 1.003320992 | EZ32: 1.004736762 | FA32: 1.002945772 | FB32: 0.9977232453 | FC32: 0.9894177167 | FD32: 0.9789036391 | FE32: 0.9663625173 | FF32: 0.952285586 | FG32: 0.9370537769 | FH32: 0.9212145049 | FI32: 0.9046634201 | FJ32: 0.8875546716 | FK32: 0.8698886793 | FL32: 0.8525464005 | FM32: 0.8362895778 | FN32: 0.821432208 | FO32: 0.8075896794 | FP32: 0.7936835265 | FQ32: 0.7791636412 | FR32: 0.7635532871 | FT32: =(1-OFFSET($EY32,0,EY$2-1))/SUM(OFFSET($EY32,0,0,1,EY$2))+$B32 -> -0.00231 | FU32: -0.00135887714 | FV32: 2.166443829e-05 | FW32: 0.001567949584 | FX32: 0.003117242372 | FY32: 0.004529561828 | FZ32: 0.005844518706 | GA32: 0.007043091397 | GB32: 0.008126458135 | GC32: 0.009077279241 | GD32: 0.00994454526 | GE32: 0.01073874503 | GF32: 0.01147926657 | GG32: =FromParToForwards(FT32:GF32,$FS$2:$GF$2,20,20,0.0000000001) -> -0.002310000029 | GH32: -0.0004081424458 | GI32: 0.002789885612 | GJ32: 0.006243814203 | GK32: 0.009410159945 | GL32: 0.01176252946 | GM32: 0.01400655935 | GN32: 0.01581793757 | GO32: 0.01729716928 | GP32: 0.01824097149 | GQ32: 0.01465906246 | GR32: 0.01465906246 | GS32: 0.01426983395 | GT32: 0.01426983395 | GU32: 0.01426983395 | GV32: 0.01403806003 | GW32: 0.01403806003 | GX32: 0.01403806003 | GY32: 0.01403806003 | GZ32: 0.01403806003
A33: 0.0405 | B33: 0.001 | C33: 0.001 | D33: 2018-06-30 | E33: -0.00353 | F33: -0.00275 | G33: -0.00136 | H33: 0.00016 | I33: 0.00165 | J33: 0.00308 | K33: 0.00444 | L33: 0.00571 | M33: 0.0069 | N33: 0.00789 | O33: 0.00887 | P33: 0.00981 | Q33: 0.01062 | R33: 0.01128 | S33: 0.01179 | T33: 0.01215 | U33: 0.01243 | V33: 0.0127 | W33: 0.013 | X33: 0.01338 | Y33: 0.01383 | Z33: 0.01435 | AA33: 0.01491 | AB33: 0.01549 | AC33: 0.01609 | AD33: 0.01668 | AE33: 0.01728 | AF33: 0.01786 | AG33: 0.01844 | AH33: 0.01899 | AI33: 0.01954 | AJ33: 0.02006 | AK33: 0.02057 | AL33: 0.02107 | AM33: 0.02154 | AN33: 0.022 | AO33: 0.02244 | AP33: 0.02286 | AQ33: 0.02327 | AR33: 0.02366 | AS33: 0.02404 | AT33: 0.0244 | AU33: 0.02475 | AV33: 0.02509 | AW33: 0.02541 | AX33: 0.02572 | AY33: 0.02602 | AZ33: 0.02631 | BA33: 0.02659 | BB33: 0.02686 | BC33: 0.02712 | BD33: 0.02737 | BE33: 0.02761 | BF33: 0.02784 | BG33: 0.02807 | BH33: 0.02829 | BI33: 0.0285 | BJ33: 0.0287 | BK33: 0.0289 | BL33: 0.02909 | BM33: 0.02927 | BN33: 0.02945 | BO33: 0.02962 | BP33: 0.02979 | BQ33: 0.02995 | BR33: 0.03011 | BS33: 0.03027 | BT33: 0.03042 | BU33: 0.03056 | BV33: 0.0307 | BW33: 0.03084 | BX33: 0.03097 | BY33: 0.0311 | BZ33: 0.03123 | CA33: 0.03135 | CB33: 0.03147 | CC33: 0.03159 | CD33: 0.0317 | CE33: 0.03181 | CF33: 0.03192 | CG33: 0.03202 | CH33: 0.03213 | CI33: 0.03223 | CJ33: 0.03233 | CK33: 0.03242 | CL33: 0.03252 | CM33: 0.03261 | CN33: 0.0327 | CO33: 0.03278 | CP33: 0.03287 | CQ33: 0.03295 | CR33: 0.03303 | CS33: 0.03311 | CT33: 0.03319 | CU33: 0.03327 | CV33: 0.03334 | CW33: 0.03342 | CX33: 0.03349 | CY33: 0.03356 | CZ33: 0.03363 | DA33: 0.0337 | DB33: 0.03376 | DC33: 0.03383 | DD33: 0.03389 | DE33: 0.03396 | DF33: 0.03402 | DG33: 0.03408 | DH33: 0.03414 | DI33: 0.03419 | DJ33: 0.03425 | DK33: 0.03431 | DL33: 0.03436 | DM33: 0.03442 | DN33: 0.03447 | DO33: 0.03452 | DP33: 0.03457 | DQ33: 0.03462 | DR33: 0.03467 | DS33: 0.03472 | DT33: 0.03477 | DU33: 0.03482 | DV33: 0.03486 | DW33: 0.03491 | DX33: 0.03496 | DY33: 0.035 | DZ33: 0.03504 | EA33: 0.03509 | EB33: 0.03513 | EC33: 0.03517 | ED33: 0.03521 | EE33: 0.03525 | EF33: 0.03529 | EG33: 0.03533 | EH33: 0.03537 | EI33: 0.03541 | EJ33: 0.03544 | EK33: 0.03548 | EL33: 0.03552 | EM33: 0.03555 | EN33: 0.03559 | EO33: 0.03562 | EP33: 0.03566 | EQ33: 0.03569 | ER33: 0.03572 | ES33: 0.03576 | ET33: 0.03579 | EU33: 0.03582 | EV33: 0.03585 | EW33: 0.03588 | EX33: 0.03591 | EY33: =(1+E33)^(-EY$2) -> 1.003542505 | EZ33: 1.005522771 | FA33: 1.004091123 | FB33: 0.9993602559 | FC33: 0.9917906808 | FD33: 0.9817175895 | FE33: 0.9694647092 | FF33: 0.9554717533 | FG33: 0.9399893482 | FH33: 0.9244185191 | FI33: =(1+O33)^(-FI$2) -> 0.9074291214 | FJ33: 0.8894550278 | FK33: 0.8716807358 | FL33: 0.8546733132 | FM33: 0.8387726457 | FN33: 0.8242936019 | FO33: 0.8105781741 | FP33: 0.7967928354 | FQ33: 0.7823850408 | FR33: 0.7665728319 | FT33: =(1-OFFSET($EY33,0,EY$2-1))/SUM(OFFSET($EY33,0,0,1,EY$2))+$B33 -> -0.00253 | FU33: -0.001748925603 | FV33: -0.000357753221 | FW33: 0.001159437116 | FX33: 0.002640450647 | FY33: 0.004054182162 | FZ33: 0.005390099385 | GA33: 0.006628677034 | GB33: 0.007780136232 | GC33: 0.008731828732 | GD33: 0.009665414744 | GE33: 0.01055258828 | GF33: 0.01131179229 | GG33: =FromParToForwards(FT33:GF33,$FS$2:$GF$2,20,20,0.0000000001) -> -0.002530000041 | GH33: -0.0009686077194 | GI33: 0.002430001836 | GJ33: 0.005743082512 | GK33: 0.008647312214 | GL33: 0.01128252943 | GM33: 0.01366812221 | GN33: 0.01568189151 | GO33: 0.01751561701 | GP33: 0.01789097906 | GQ33: 0.01473452919 | GR33: 0.01473452919 | GS33: 0.01449504897 | GT33: 0.01449504897 | GU33: 0.01449504897 | GV33: 0.01393384262 | GW33: 0.01393384262 | GX33: 0.01393384262 | GY33: 0.01393384262 | GZ33: 0.01393384262
A34: 0.0405 | B34: 0.001 | C34: 0.0008 | D34: 2018-07-31 | E34: -0.00352 | F34: -0.00244 | G34: -0.00087 | H34: 0.00078 | I34: 0.00235 | J34: 0.00377 | K34: 0.00513 | L34: 0.0064 | M34: 0.00753 | N34: 0.00857 | O34: 0.00952 | P34: 0.01037 | Q34: 0.01113 | R34: 0.01178 | S34: 0.01229 | T34: 0.01268 | U34: 0.013 | V34: 0.0133 | W34: 0.01363 | X34: 0.01403 | Y34: 0.0145 | Z34: 0.01502 | AA34: 0.01557 | AB34: 0.01615 | AC34: 0.01674 | AD34: 0.01732 | AE34: 0.01791 | AF34: 0.01848 | AG34: 0.01904 | AH34: 0.01958 | AI34: 0.02011 | AJ34: 0.02063 | AK34: 0.02112 | AL34: 0.0216 | AM34: 0.02206 | AN34: 0.02251 | AO34: 0.02294 | AP34: 0.02335 | AQ34: 0.02375 | AR34: 0.02413 | AS34: 0.02449 | AT34: 0.02485 | AU34: 0.02519 | AV34: 0.02551 | AW34: 0.02583 | AX34: 0.02613 | AY34: 0.02642 | AZ34: 0.0267 | BA34: 0.02698 | BB34: 0.02724 | BC34: 0.02749 | BD34: 0.02773 | BE34: 0.02797 | BF34: 0.02819 | BG34: 0.02841 | BH34: 0.02862 | BI34: 0.02883 | BJ34: 0.02902 | BK34: 0.02922 | BL34: 0.0294 | BM34: 0.02958 | BN34: 0.02975 | BO34: 0.02992 | BP34: 0.03009 | BQ34: 0.03024 | BR34: 0.0304 | BS34: 0.03055 | BT34: 0.03069 | BU34: 0.03083 | BV34: 0.03097 | BW34: 0.0311 | BX34: 0.03123 | BY34: 0.03136 | BZ34: 0.03148 | CA34: 0.0316 | CB34: 0.03172 | CC34: 0.03183 | CD34: 0.03194 | CE34: 0.03205 | CF34: 0.03216 | CG34: 0.03226 | CH34: 0.03236 | CI34: 0.03246 | CJ34: 0.03255 | CK34: 0.03264 | CL34: 0.03273 | CM34: 0.03282 | CN34: 0.03291 | CO34: 0.033 | CP34: 0.03308 | CQ34: 0.03316 | CR34: 0.03324 | CS34: 0.03332 | CT34: 0.03339 | CU34: 0.03347 | CV34: 0.03354 | CW34: 0.03361 | CX34: 0.03368 | CY34: 0.03375 | CZ34: 0.03382 | DA34: 0.03388 | DB34: 0.03395 | DC34: 0.03401 | DD34: 0.03407 | DE34: 0.03414 | DF34: 0.0342 | DG34: 0.03425 | DH34: 0.03431 | DI34: 0.03437 | DJ34: 0.03442 | DK34: 0.03448 | DL34: 0.03453 | DM34: 0.03458 | DN34: 0.03464 | DO34: 0.03469 | DP34: 0.03474 | DQ34: 0.03479 | DR34: 0.03483 | DS34: 0.03488 | DT34: 0.03493 | DU34: 0.03497 | DV34: 0.03502 | DW34: 0.03506 | DX34: 0.03511 | DY34: 0.03515 | DZ34: 0.03519 | EA34: 0.03524 | EB34: 0.03528 | EC34: 0.03532 | ED34: 0.03536 | EE34: 0.0354 | EF34: 0.03543 | EG34: 0.03547 | EH34: 0.03551 | EI34: 0.03555 | EJ34: 0.03558 | EK34: 0.03562 | EL34: 0.03565 | EM34: 0.03569 | EN34: 0.03572 | EO34: 0.03576 | EP34: 0.03579 | EQ34: 0.03582 | ER34: 0.03586 | ES34: 0.03589 | ET34: 0.03592 | EU34: 0.03595 | EV34: 0.03598 | EW34: 0.03601 | EX34: 0.03604 | EY34: 1.003532434 | EZ34: 1.004897919 | FA34: 1.002614548 | FB34: 0.9968860745 | FC34: 0.9883323854 | FD34: 0.9776754955 | FE34: 0.9648156765 | FF34: 0.950243648 | FG34: 0.9347126533 | FH34: 0.9182047627 | FI34: 0.9010228383 | FJ34: 0.8835572371 | FK34: 0.8659823729 | FL34: 0.848779212 | FM34: 0.8325796665 | FN34: 0.8174181434 | FO34: 0.8028592749 | FP34: 0.7883430301 | FQ34: 0.7731973228 | FR34: 0.7568048819 | FT34: -0.00252 | FU34: -0.001438680075 | FV34: 0.0001316808353 | FW34: 0.001776940895 | FX34: 0.003335268131 | FY34: 0.004736982417 | FZ34: 0.00607069724 | GA34: 0.007307055836 | GB34: 0.008399080495 | GC34: 0.009396216995 | GD34: 0.01029979651 | GE34: 0.0111021825 | GF34: 0.01181443329 | GG34: =FromParToForwards(FT34:GF34,$FS$2:$GF$2,20,20,0.0000000001) -> -0.002520000041 | GH34: -0.0003577469487 | GI34: 0.003282147332 | GJ34: 0.00675634735 | GK34: 0.009670577508 | GL34: 0.01192195286 | GM34: 0.01435813563 | GN34: 0.01637191921 | GO34: 0.01765839332 | GP34: 0.01902795665 | GQ34: 0.01522586823 | GR34: 0.01522586823 | GS34: 0.01468225139 | GT34: 0.01468225139 | GU34: 0.01468225139 | GV34: 0.01428543082 | GW34: 0.01428543082 | GX34: 0.01428543082 | GY34: 0.01428543082 | GZ34: 0.01428543082
A35: 0.0405 | B35: 0.001 | C35: 0.0015 | D35: 2018-08-31 | E35: -0.00347 | F35: -0.00248 | G35: -0.00109 | H35: 0.00034 | I35: 0.00174 | J35: 0.00312 | K35: 0.00443 | L35: 0.00567 | M35: 0.00682 | N35: 0.00787 | O35: 0.00882 | P35: 0.00969 | Q35: 0.01047 | R35: 0.01114 | S35: 0.01168 | T35: 0.01207 | U35: 0.0124 | V35: 0.01271 | W35: 0.01306 | X35: 0.01346 | Y35: 0.01394 | Z35: 0.01448 | AA35: 0.01505 | AB35: 0.01564 | AC35: 0.01624 | AD35: 0.01684 | AE35: 0.01744 | AF35: 0.01802 | AG35: 0.01859 | AH35: 0.01915 | AI35: 0.01969 | AJ35: 0.02022 | AK35: 0.02073 | AL35: 0.02122 | AM35: 0.02169 | AN35: 0.02214 | AO35: 0.02258 | AP35: 0.023 | AQ35: 0.02341 | AR35: 0.0238 | AS35: 0.02417 | AT35: 0.02453 | AU35: 0.02488 | AV35: 0.02521 | AW35: 0.02553 | AX35: 0.02584 | AY35: 0.02614 | AZ35: 0.02643 | BA35: 0.0267 | BB35: 0.02697 | BC35: 0.02723 | BD35: 0.02747 | BE35: 0.02771 | BF35: 0.02794 | BG35: 0.02817 | BH35: 0.02838 | BI35: 0.02859 | BJ35: 0.02879 | BK35: 0.02899 | BL35: 0.02918 | BM35: 0.02936 | BN35: 0.02954 | BO35: 0.02971 | BP35: 0.02988 | BQ35: 0.03004 | BR35: 0.0302 | BS35: 0.03035 | BT35: 0.0305 | BU35: 0.03064 | BV35: 0.03078 | BW35: 0.03092 | BX35: 0.03105 | BY35: 0.03118 | BZ35: 0.0313 | CA35: 0.03142 | CB35: 0.03154 | CC35: 0.03166 | CD35: 0.03177 | CE35: 0.03188 | CF35: 0.03199 | CG35: 0.03209 | CH35: 0.03219 | CI35: 0.03229 | CJ35: 0.03239 | CK35: 0.03249 | CL35: 0.03258 | CM35: 0.03267 | CN35: 0.03276 | CO35: 0.03284 | CP35: 0.03293 | CQ35: 0.03301 | CR35: 0.03309 | CS35: 0.03317 | CT35: 0.03325 | CU35: 0.03333 | CV35: 0.0334 | CW35: 0.03347 | CX35: 0.03355 | CY35: 0.03362 | CZ35: 0.03368 | DA35: 0.03375 | DB35: 0.03382 | DC35: 0.03388 | DD35: 0.03395 | DE35: 0.03401 | DF35: 0.03407 | DG35: 0.03413 | DH35: 0.03419 | DI35: 0.03424 | DJ35: 0.0343 | DK35: 0.03436 | DL35: 0.03441 | DM35: 0.03447 | DN35: 0.03452 | DO35: 0.03457 | DP35: 0.03462 | DQ35: 0.03467 | DR35: 0.03472 | DS35: 0.03477 | DT35: 0.03482 | DU35: 0.03486 | DV35: 0.03491 | DW35: 0.03495 | DX35: 0.035 | DY35: 0.03504 | DZ35: 0.03509 | EA35: 0.03513 | EB35: 0.03517 | EC35: 0.03521 | ED35: 0.03525 | EE35: 0.03529 | EF35: 0.03533 | EG35: 0.03537 | EH35: 0.03541 | EI35: 0.03545 | EJ35: 0.03548 | EK35: 0.03552 | EL35: 0.03556 | EM35: 0.03559 | EN35: 0.03563 | EO35: 0.03566 | EP35: 0.0357 | EQ35: 0.03573 | ER35: 0.03576 | ES35: 0.03579 | ET35: 0.03583 | EU35: 0.03586 | EV35: 0.03589 | EW35: 0.03592 | EX35: 0.03595 | EY35: =(1+E35)^(-EY$2) -> 1.003482083 | EZ35: 1.004978512 | FA35: 1.003277142 | FB35: 0.9986411552 | FC35: 0.9913452303 | FD35: 0.9814827335 | FE35: 0.9695322745 | FF35: 0.9557758228 | FG35: 0.9406617698 | FH35: 0.9246019755 | FI35: =(1+O35)^(-FI$2) -> 0.9079239666 | FJ35: 0.8907243806 | FK35: 0.8733644001 | FL35: 0.856331509 | FM35: 0.840141684 | FN35: 0.8253367328 | FO35: 0.8109866025 | FP35: 0.7966512246 | FQ35: 0.7815050893 | FR35: 0.7653635121 | FT35: =(1-OFFSET($EY35,0,EY$2-1))/SUM(OFFSET($EY35,0,0,1,EY$2))+$B35 -> -0.00247 | FU35: -0.001478770265 | FV35: -8.812315609e-05 | FW35: 0.001338832021 | FX35: 0.002730357279 | FY35: 0.004094873197 | FZ35: 0.005382118321 | GA35: 0.006591969856 | GB35: 0.007705508554 | GC35: 0.008714316722 | GD35: 0.009619977195 | GE35: 0.01044275726 | GF35: 0.01117497364 | GG35: =FromParToForwards(FT35:GF35,$FS$2:$GF$2,20,20,0.0000000001) -> -0.002470000037 | GH35: -0.0004880242365 | GI35: 0.002700000001 | GJ35: 0.005650935387 | GK35: 0.008373784903 | GL35: 0.01106964135 | GM35: 0.01335421756 | GN35: 0.01542888273 | GO35: 0.01711070078 | GP35: 0.01841926506 | GQ35: 0.01453422839 | GR35: 0.01453422839 | GS35: 0.01409379252 | GT35: 0.01409379252 | GU35: 0.01409379252 | GV35: 0.01369808818 | GW35: 0.01369808818 | GX35: 0.01369808818 | GY35: 0.01369808818 | GZ35: 0.01369808818
A36: 0.0405 | B36: 0.001 | C36: 0.0013 | D36: 2018-09-30 | E36: -0.00342 | F36: -0.00207 | G36: -0.00032 | H36: 0.00136 | I36: 0.00292 | J36: 0.00439 | K36: 0.00571 | L36: 0.00691 | M36: 0.00803 | N36: 0.00907 | O36: 0.00998 | P36: 0.01077 | Q36: 0.0115 | R36: 0.01212 | S36: 0.01262 | T36: 0.01299 | U36: 0.01329 | V36: 0.01358 | W36: 0.0139 | X36: 0.01428 | Y36: 0.01473 | Z36: 0.01524 | AA36: 0.01579 | AB36: 0.01636 | AC36: 0.01694 | AD36: 0.01751 | AE36: 0.01809 | AF36: 0.01865 | AG36: 0.01921 | AH36: 0.01975 | AI36: 0.02027 | AJ36: 0.02078 | AK36: 0.02127 | AL36: 0.02175 | AM36: 0.02221 | AN36: 0.02265 | AO36: 0.02307 | AP36: 0.02348 | AQ36: 0.02387 | AR36: 0.02425 | AS36: 0.02462 | AT36: 0.02497 | AU36: 0.0253 | AV36: 0.02563 | AW36: 0.02594 | AX36: 0.02624 | AY36: 0.02653 | AZ36: 0.02681 | BA36: 0.02708 | BB36: 0.02734 | BC36: 0.02759 | BD36: 0.02783 | BE36: 0.02806 | BF36: 0.02828 | BG36: 0.0285 | BH36: 0.02871 | BI36: 0.02891 | BJ36: 0.02911 | BK36: 0.0293 | BL36: 0.02948 | BM36: 0.02966 | BN36: 0.02983 | BO36: 0.03 | BP36: 0.03016 | BQ36: 0.03032 | BR36: 0.03047 | BS36: 0.03062 | BT36: 0.03077 | BU36: 0.03091 | BV36: 0.03104 | BW36: 0.03117 | BX36: 0.0313 | BY36: 0.03143 | BZ36: 0.03155 | CA36: 0.03167 | CB36: 0.03178 | CC36: 0.0319 | CD36: 0.03201 | CE36: 0.03211 | CF36: 0.03222 | CG36: 0.03232 | CH36: 0.03242 | CI36: 0.03252 | CJ36: 0.03261 | CK36: 0.0327 | CL36: 0.03279 | CM36: 0.03288 | CN36: 0.03297 | CO36: 0.03305 | CP36: 0.03313 | CQ36: 0.03321 | CR36: 0.03329 | CS36: 0.03337 | CT36: 0.03345 | CU36: 0.03352 | CV36: 0.03359 | CW36: 0.03366 | CX36: 0.03373 | CY36: 0.0338 | CZ36: 0.03387 | DA36: 0.03393 | DB36: 0.034 | DC36: 0.03406 | DD36: 0.03412 | DE36: 0.03418 | DF36: 0.03424 | DG36: 0.0343 | DH36: 0.03436 | DI36: 0.03441 | DJ36: 0.03447 | DK36: 0.03452 | DL36: 0.03458 | DM36: 0.03463 | DN36: 0.03468 | DO36: 0.03473 | DP36: 0.03478 | DQ36: 0.03483 | DR36: 0.03488 | DS36: 0.03492 | DT36: 0.03497 | DU36: 0.03502 | DV36: 0.03506 | DW36: 0.03511 | DX36: 0.03515 | DY36: 0.03519 | DZ36: 0.03523 | EA36: 0.03527 | EB36: 0.03532 | EC36: 0.03536 | ED36: 0.03539 | EE36: 0.03543 | EF36: 0.03547 | EG36: 0.03551 | EH36: 0.03555 | EI36: 0.03558 | EJ36: 0.03562 | EK36: 0.03566 | EL36: 0.03569 | EM36: 0.03572 | EN36: 0.03576 | EO36: 0.03579 | EP36: 0.03583 | EQ36: 0.03586 | ER36: 0.03589 | ES36: 0.03592 | ET36: 0.03595 | EU36: 0.03598 | EV36: 0.03601 | EW36: 0.03604 | EX36: 0.03607 | EY36: 1.003431737 | EZ36: 1.00415289 | FA36: 1.000960615 | FB36: 0.9945784458 | FC36: 0.9855270297 | FD36: 0.9740600226 | FE36: 0.960927497 | FF36: 0.9464000789 | FG36: 0.9305482225 | FH36: 0.9136651367 | FI36: 0.8965189795 | FJ36: 0.8793704726 | FK36: 0.8618733808 | FL36: 0.8447961083 | FM36: 0.8285190306 | FN36: 0.8134249138 | FO36: 0.7989620226 | FP36: 0.7844322061 | FQ36: 0.769294561 | FR36: 0.7530828554 | FT36: -0.00242 | FU36: -0.001068600355 | FV36: 0.0006807045762 | FW36: 0.002354330921 | FX36: 0.003901179328 | FY36: 0.005350366552 | FZ36: 0.006643348429 | GA36: 0.007810630255 | GB36: 0.008891721448 | GC36: 0.009887443537 | GD36: 0.01075245096 | GE36: 0.01149852444 | GF36: 0.01218251757 | GG36: =FromParToForwards(FT36:GF36,$FS$2:$GF$2,20,20,0.0000000001) -> -0.002420000035 | GH36: 0.0002831820173 | GI36: 0.00419448676 | GJ36: 0.007427124395 | GK36: 0.01020015666 | GL36: 0.01279488999 | GM36: 0.01469502775 | GN36: 0.01638505746 | GO36: 0.0180772146 | GP36: 0.01952797414 | GQ36: 0.01547998414 | GR36: 0.01547998414 | GS36: 0.01483577092 | GT36: 0.01483577092 | GU36: 0.01483577092 | GV36: 0.01456268685 | GW36: 0.01456268685 | GX36: 0.01456268685 | GY36: 0.01456268685 | GZ36: 0.01456268685
A37: 0.0405 | B37: 0.001 | C37: 0.0016 | D37: 2018-10-31 | E37: -0.0034 | F37: -0.0021 | G37: -0.00064 | H37: 0.00098 | I37: 0.00248 | J37: 0.00398 | K37: 0.00525 | L37: 0.00655 | M37: 0.0077 | N37: 0.00875 | O37: 0.00968 | P37: 0.0105 | Q37: 0.01125 | R37: 0.01189 | S37: 0.0124 | T37: 0.01277 | U37: 0.01307 | V37: 0.01336 | W37: 0.01368 | X37: 0.01406 | Y37: 0.01452 | Z37: 0.01504 | AA37: 0.01559 | AB37: 0.01616 | AC37: 0.01674 | AD37: 0.01733 | AE37: 0.0179 | AF37: 0.01848 | AG37: 0.01903 | AH37: 0.01958 | AI37: 0.02011 | AJ37: 0.02062 | AK37: 0.02112 | AL37: 0.0216 | AM37: 0.02206 | AN37: 0.0225 | AO37: 0.02293 | AP37: 0.02334 | AQ37: 0.02374 | AR37: 0.02412 | AS37: 0.02449 | AT37: 0.02484 | AU37: 0.02518 | AV37: 0.02551 | AW37: 0.02582 | AX37: 0.02613 | AY37: 0.02642 | AZ37: 0.0267 | BA37: 0.02697 | BB37: 0.02723 | BC37: 0.02748 | BD37: 0.02773 | BE37: 0.02796 | BF37: 0.02819 | BG37: 0.02841 | BH37: 0.02862 | BI37: 0.02882 | BJ37: 0.02902 | BK37: 0.02921 | BL37: 0.0294 | BM37: 0.02958 | BN37: 0.02975 | BO37: 0.02992 | BP37: 0.03008 | BQ37: 0.03024 | BR37: 0.03039 | BS37: 0.03054 | BT37: 0.03069 | BU37: 0.03083 | BV37: 0.03097 | BW37: 0.0311 | BX37: 0.03123 | BY37: 0.03136 | BZ37: 0.03148 | CA37: 0.0316 | CB37: 0.03171 | CC37: 0.03183 | CD37: 0.03194 | CE37: 0.03205 | CF37: 0.03215 | CG37: 0.03225 | CH37: 0.03235 | CI37: 0.03245 | CJ37: 0.03255 | CK37: 0.03264 | CL37: 0.03273 | CM37: 0.03282 | CN37: 0.03291 | CO37: 0.03299 | CP37: 0.03307 | CQ37: 0.03316 | CR37: 0.03324 | CS37: 0.03331 | CT37: 0.03339 | CU37: 0.03346 | CV37: 0.03354 | CW37: 0.03361 | CX37: 0.03368 | CY37: 0.03375 | CZ37: 0.03381 | DA37: 0.03388 | DB37: 0.03395 | DC37: 0.03401 | DD37: 0.03407 | DE37: 0.03413 | DF37: 0.03419 | DG37: 0.03425 | DH37: 0.03431 | DI37: 0.03437 | DJ37: 0.03442 | DK37: 0.03448 | DL37: 0.03453 | DM37: 0.03458 | DN37: 0.03463 | DO37: 0.03468 | DP37: 0.03473 | DQ37: 0.03478 | DR37: 0.03483 | DS37: 0.03488 | DT37: 0.03493 | DU37: 0.03497 | DV37: 0.03502 | DW37: 0.03506 | DX37: 0.03511 | DY37: 0.03515 | DZ37: 0.03519 | EA37: 0.03523 | EB37: 0.03527 | EC37: 0.03531 | ED37: 0.03535 | EE37: 0.03539 | EF37: 0.03543 | EG37: 0.03547 | EH37: 0.03551 | EI37: 0.03554 | EJ37: 0.03558 | EK37: 0.03562 | EL37: 0.03565 | EM37: 0.03569 | EN37: 0.03572 | EO37: 0.03575 | EP37: 0.03579 | EQ37: 0.03582 | ER37: 0.03585 | ES37: 0.03588 | ET37: 0.03592 | EU37: 0.03595 | EV37: 0.03598 | EW37: 0.03601 | EX37: 0.03604 | EY37: 1.003411599 | EZ37: 1.004213267 | FA37: 1.00192246 | FB37: 0.9960895852 | FC37: 0.9876917248 | FD37: 0.9764491493 | FE37: 0.9640097526 | FF37: 0.9491113666 | FG37: 0.9332944279 | FH37: 0.9165676454 | FI37: 0.8994534853 | FJ37: 0.8821941748 | FK37: 0.86464742 | FL37: 0.8474883634 | FM37: 0.8312237676 | FN37: 0.8162566774 | FO37: 0.8019167195 | FP37: 0.7875032672 | FQ37: 0.7724730198 | FR37: 0.7563572206 | FT37: -0.0024 | FU37: -0.001098632674 | FV37: 0.0003612128286 | FW37: 0.00197622797 | FX37: 0.003464943951 | FY37: 0.004945012961 | FZ37: 0.006190561025 | GA37: 0.007455573512 | GB37: 0.00856625559 | GC37: 0.009572321336 | GD37: 0.01045678015 | GE37: 0.01123116591 | GF37: 0.01193399847 | GG37: =FromParToForwards(FT37:GF37,$FS$2:$GF$2,20,20,0.0000000001) -> -0.002400000033 | GH37: 0.0002029988622 | GI37: 0.003290809302 | GJ37: 0.006865570972 | GK37: 0.009517706532 | GL37: 0.01253668403 | GM37: 0.01393121434 | GN37: 0.01673493762 | GO37: 0.01799078571 | GP37: 0.01929938251 | GQ37: 0.01528309628 | GR37: 0.01528309628 | GS37: 0.0146891649 | GT37: 0.0146891649 | GU37: 0.0146891649 | GV37: 0.01437462527 | GW37: 0.01437462527 | GX37: 0.01437462527 | GY37: 0.01437462527 | GZ37: 0.01437462527
A38: 0.0405 | B38: 0.001 | C38: 0.0022 | D38: 2018-11-30 | E38: -0.00341 | F38: -0.00252 | G38: -0.00118 | H38: 0.0003 | I38: 0.00173 | J38: 0.00315 | K38: 0.00447 | L38: 0.00572 | M38: 0.00689 | N38: 0.00795 | O38: 0.0089 | P38: 0.00976 | Q38: 0.01054 | R38: 0.01121 | S38: 0.01174 | T38: 0.01213 | U38: 0.01245 | V38: 0.01275 | W38: 0.01309 | X38: 0.01349 | Y38: 0.01396 | Z38: 0.01449 | AA38: 0.01506 | AB38: 0.01564 | AC38: 0.01624 | AD38: 0.01684 | AE38: 0.01744 | AF38: 0.01802 | AG38: 0.01859 | AH38: 0.01915 | AI38: 0.01969 | AJ38: 0.02021 | AK38: 0.02072 | AL38: 0.02121 | AM38: 0.02168 | AN38: 0.02214 | AO38: 0.02257 | AP38: 0.023 | AQ38: 0.0234 | AR38: 0.02379 | AS38: 0.02417 | AT38: 0.02453 | AU38: 0.02487 | AV38: 0.02521 | AW38: 0.02553 | AX38: 0.02584 | AY38: 0.02613 | AZ38: 0.02642 | BA38: 0.0267 | BB38: 0.02696 | BC38: 0.02722 | BD38: 0.02747 | BE38: 0.02771 | BF38: 0.02794 | BG38: 0.02816 | BH38: 0.02838 | BI38: 0.02859 | BJ38: 0.02879 | BK38: 0.02898 | BL38: 0.02917 | BM38: 0.02936 | BN38: 0.02953 | BO38: 0.02971 | BP38: 0.02987 | BQ38: 0.03003 | BR38: 0.03019 | BS38: 0.03034 | BT38: 0.03049 | BU38: 0.03064 | BV38: 0.03078 | BW38: 0.03091 | BX38: 0.03104 | BY38: 0.03117 | BZ38: 0.0313 | CA38: 0.03142 | CB38: 0.03154 | CC38: 0.03165 | CD38: 0.03177 | CE38: 0.03188 | CF38: 0.03198 | CG38: 0.03209 | CH38: 0.03219 | CI38: 0.03229 | CJ38: 0.03239 | CK38: 0.03248 | CL38: 0.03258 | CM38: 0.03267 | CN38: 0.03276 | CO38: 0.03284 | CP38: 0.03293 | CQ38: 0.03301 | CR38: 0.03309 | CS38: 0.03317 | CT38: 0.03325 | CU38: 0.03332 | CV38: 0.0334 | CW38: 0.03347 | CX38: 0.03354 | CY38: 0.03361 | CZ38: 0.03368 | DA38: 0.03375 | DB38: 0.03381 | DC38: 0.03388 | DD38: 0.03394 | DE38: 0.034 | DF38: 0.03407 | DG38: 0.03413 | DH38: 0.03418 | DI38: 0.03424 | DJ38: 0.0343 | DK38: 0.03435 | DL38: 0.03441 | DM38: 0.03446 | DN38: 0.03452 | DO38: 0.03457 | DP38: 0.03462 | DQ38: 0.03467 | DR38: 0.03472 | DS38: 0.03477 | DT38: 0.03481 | DU38: 0.03486 | DV38: 0.03491 | DW38: 0.03495 | DX38: 0.035 | DY38: 0.03504 | DZ38: 0.03508 | EA38: 0.03513 | EB38: 0.03517 | EC38: 0.03521 | ED38: 0.03525 | EE38: 0.03529 | EF38: 0.03533 | EG38: 0.03537 | EH38: 0.03541 | EI38: 0.03544 | EJ38: 0.03548 | EK38: 0.03552 | EL38: 0.03555 | EM38: 0.03559 | EN38: 0.03562 | EO38: 0.03566 | EP38: 0.03569 | EQ38: 0.03573 | ER38: 0.03576 | ES38: 0.03579 | ET38: 0.03582 | EU38: 0.03586 | EV38: 0.03589 | EW38: 0.03592 | EX38: 0.03595 | EY38: =(1+E38)^(-EY$2) -> 1.003421668 | EZ38: 1.005059115 | FA38: 1.003548371 | FB38: 0.9988008995 | FC38: 0.9913947129 | FD38: 0.9813066345 | FE38: 0.9692620458 | FF38: 0.955395753 | FG38: 0.9400733717 | FH38: 0.9238683901 | FI38: =(1+O38)^(-FI$2) -> 0.9071323556 | FJ38: 0.8899836865 | FK38: 0.8725782547 | FL38: 0.8555019807 | FM38: 0.8393946406 | FN38: 0.8245542532 | FO38: 0.8103060096 | FP38: 0.7960850471 | FQ38: 0.7810655043 | FR38: 0.7649105338 | FT38: =(1-OFFSET($EY38,0,EY$2-1))/SUM(OFFSET($EY38,0,0,1,EY$2))+$B38 -> -0.00241 | FU38: -0.001518876683 | FV38: -0.0001780665717 | FW38: 0.001298965681 | FX38: 0.002720291969 | FY38: 0.004124135941 | FZ38: 0.00542095029 | GA38: 0.006640260483 | GB38: 0.007772700042 | GC38: 0.008790686617 | GD38: 0.009696072161 | GE38: 0.01050937546 | GF38: 0.0112414029 | GG38: =FromParToForwards(FT38:GF38,$FS$2:$GF$2,20,20,0.0000000001) -> -0.002410000034 | GH38: -0.0006283132377 | GI38: 0.002509438411 | GJ38: 0.005762114998 | GK38: 0.008484941977 | GL38: 0.01130194124 | GM38: 0.01345499408 | GN38: 0.01554988175 | GO38: 0.0173431404 | GP38: 0.01859071616 | GQ38: 0.01461248122 | GR38: 0.01461248122 | GS38: 0.0141209549 | GT38: 0.0141209549 | GU38: 0.0141209549 | GV38: 0.01376591786 | GW38: 0.01376591786 | GX38: 0.01376591786 | GY38: 0.01376591786 | GZ38: 0.01376591786
A39: 0.0405 | B39: 0.001 | C39: 0.0024 | D39: 2018-12-31 | E39: -0.00333 | F39: -0.00275 | G39: -0.00177 | H39: -0.00046 | I39: 0.00099 | J39: 0.00238 | K39: 0.00372 | L39: 0.00499 | M39: 0.00618 | N39: 0.00726 | O39: 0.00822 | P39: 0.00909 | Q39: 0.00987 | R39: 0.01054 | S39: 0.01105 | T39: 0.01143 | U39: 0.01173 | V39: 0.01202 | W39: 0.01235 | X39: 0.01275 | Y39: 0.01322 | Z39: 0.01376 | AA39: 0.01434 | AB39: 0.01494 | AC39: 0.01555 | AD39: 0.01617 | AE39: 0.01678 | AF39: 0.01738 | AG39: 0.01797 | AH39: 0.01854 | AI39: 0.0191 | AJ39: 0.01964 | AK39: 0.02016 | AL39: 0.02066 | AM39: 0.02115 | AN39: 0.02162 | AO39: 0.02207 | AP39: 0.0225 | AQ39: 0.02292 | AR39: 0.02332 | AS39: 0.0237 | AT39: 0.02407 | AU39: 0.02443 | AV39: 0.02477 | AW39: 0.0251 | AX39: 0.02542 | AY39: 0.02573 | AZ39: 0.02602 | BA39: 0.02631 | BB39: 0.02658 | BC39: 0.02685 | BD39: 0.0271 | BE39: 0.02735 | BF39: 0.02759 | BG39: 0.02782 | BH39: 0.02804 | BI39: 0.02825 | BJ39: 0.02846 | BK39: 0.02866 | BL39: 0.02885 | BM39: 0.02904 | BN39: 0.02923 | BO39: 0.0294 | BP39: 0.02957 | BQ39: 0.02974 | BR39: 0.0299 | BS39: 0.03006 | BT39: 0.03021 | BU39: 0.03036 | BV39: 0.0305 | BW39: 0.03064 | BX39: 0.03078 | BY39: 0.03091 | BZ39: 0.03104 | CA39: 0.03116 | CB39: 0.03129 | CC39: 0.0314 | CD39: 0.03152 | CE39: 0.03163 | CF39: 0.03174 | CG39: 0.03185 | CH39: 0.03196 | CI39: 0.03206 | CJ39: 0.03216 | CK39: 0.03226 | CL39: 0.03235 | CM39: 0.03245 | CN39: 0.03254 | CO39: 0.03263 | CP39: 0.03271 | CQ39: 0.0328 | CR39: 0.03288 | CS39: 0.03296 | CT39: 0.03304 | CU39: 0.03312 | CV39: 0.0332 | CW39: 0.03327 | CX39: 0.03335 | CY39: 0.03342 | CZ39: 0.03349 | DA39: 0.03356 | DB39: 0.03363 | DC39: 0.03369 | DD39: 0.03376 | DE39: 0.03382 | DF39: 0.03388 | DG39: 0.03395 | DH39: 0.03401 | DI39: 0.03407 | DJ39: 0.03412 | DK39: 0.03418 | DL39: 0.03424 | DM39: 0.03429 | DN39: 0.03435 | DO39: 0.0344 | DP39: 0.03445 | DQ39: 0.0345 | DR39: 0.03456 | DS39: 0.03461 | DT39: 0.03465 | DU39: 0.0347 | DV39: 0.03475 | DW39: 0.0348 | DX39: 0.03484 | DY39: 0.03489 | DZ39: 0.03493 | EA39: 0.03498 | EB39: 0.03502 | EC39: 0.03506 | ED39: 0.0351 | EE39: 0.03514 | EF39: 0.03518 | EG39: 0.03522 | EH39: 0.03526 | EI39: 0.0353 | EJ39: 0.03534 | EK39: 0.03538 | EL39: 0.03541 | EM39: 0.03545 | EN39: 0.03549 | EO39: 0.03552 | EP39: 0.03556 | EQ39: 0.03559 | ER39: 0.03563 | ES39: 0.03566 | ET39: 0.03569 | EU39: 0.03573 | EV39: 0.03576 | EW39: 0.03579 | EX39: 0.03582 | EY39: =(1+E39)^(-EY$2) -> 1.003341126 | EZ39: 1.005522771 | FA39: 1.005328853 | FB39: 1.001842118 | FC39: 0.9950646676 | FD39: 0.9858382015 | FE39: 0.9743431909 | FF39: 0.9609616956 | FG39: 0.9460604238 | FH39: 0.9302166801 | FI39: 0.9138851263 | FJ39: 0.8971006504 | FK39: 0.8801341622 | FL39: 0.8634772049 | FM39: 0.8480285961 | FN39: 0.8337324452 | FO39: 0.8201651747 | FP39: 0.8064849816 | FQ39: 0.7919849763 | FR39: 0.7761666226 | FT39: -0.00233 | FU39: -0.001749201169 | FV39: -0.000767920449 | FW39: 0.0005413092742 | FX39: 0.001984880136 | FY39: 0.003361505013 | FZ39: 0.004680357943 | GA39: 0.005921471298 | GB39: 0.007075437604 | GC39: 0.008114561814 | GD39: 0.009031302203 | GE39: 0.009855742576 | GF39: 0.01058954346 | GG39: =FromParToForwards(FT39:GF39,$FS$2:$GF$2,20,20,0.0000000001) -> -0.00233000003 | GH39: -0.001169081312 | GI39: 0.001195839331 | GJ39: 0.004488232836 | GK39: 0.007825725557 | GL39: 0.01038021171 | GM39: 0.01282653187 | GN39: 0.01496185054 | GO39: 0.01679555444 | GP39: 0.01808353431 | GQ39: 0.01398923554 | GR39: 0.01398923554 | GS39: 0.01349868984 | GT39: 0.01349868984 | GU39: 0.01349868984 | GV39: 0.01310351845 | GW39: 0.01310351845 | GX39: 0.01310351845 | GY39: 0.01310351845 | GZ39: 0.01310351845
A40: 0.039 | B40: 0.001 | C40: 0.0021 | D40: 2019-01-31 | E40: -0.00324 | F40: -0.00269 | G40: -0.00187 | H40: -0.00087 | I40: 0.00023 | J40: 0.00136 | K40: 0.00249 | L40: 0.00362 | M40: 0.0047 | N40: 0.00573 | O40: 0.00665 | P40: 0.00747 | Q40: 0.00823 | R40: 0.00888 | S40: 0.0094 | T40: 0.00978 | U40: 0.01009 | V40: 0.01039 | W40: 0.01073 | X40: 0.01113 | Y40: 0.01162 | Z40: 0.01216 | AA40: 0.01274 | AB40: 0.01335 | AC40: 0.01397 | AD40: 0.01459 | AE40: 0.0152 | AF40: 0.0158 | AG40: 0.01639 | AH40: 0.01697 | AI40: 0.01753 | AJ40: 0.01807 | AK40: 0.0186 | AL40: 0.0191 | AM40: 0.01959 | AN40: 0.02006 | AO40: 0.02051 | AP40: 0.02094 | AQ40: 0.02136 | AR40: 0.02177 | AS40: 0.02215 | AT40: 0.02252 | AU40: 0.02288 | AV40: 0.02323 | AW40: 0.02356 | AX40: 0.02388 | AY40: 0.02418 | AZ40: 0.02448 | BA40: 0.02477 | BB40: 0.02504 | BC40: 0.02531 | BD40: 0.02556 | BE40: 0.02581 | BF40: 0.02605 | BG40: 0.02628 | BH40: 0.0265 | BI40: 0.02672 | BJ40: 0.02692 | BK40: 0.02712 | BL40: 0.02732 | BM40: 0.02751 | BN40: 0.02769 | BO40: 0.02787 | BP40: 0.02804 | BQ40: 0.02821 | BR40: 0.02837 | BS40: 0.02853 | BT40: 0.02868 | BU40: 0.02883 | BV40: 0.02897 | BW40: 0.02911 | BX40: 0.02925 | BY40: 0.02938 | BZ40: 0.02951 | CA40: 0.02964 | CB40: 0.02976 | CC40: 0.02988 | CD40: 0.02999 | CE40: 0.03011 | CF40: 0.03022 | CG40: 0.03033 | CH40: 0.03043 | CI40: 0.03053 | CJ40: 0.03063 | CK40: 0.03073 | CL40: 0.03083 | CM40: 0.03092 | CN40: 0.03101 | CO40: 0.0311 | CP40: 0.03119 | CQ40: 0.03128 | CR40: 0.03136 | CS40: 0.03144 | CT40: 0.03152 | CU40: 0.0316 | CV40: 0.03168 | CW40: 0.03175 | CX40: 0.03182 | CY40: 0.0319 | CZ40: 0.03197 | DA40: 0.03204 | DB40: 0.03211 | DC40: 0.03217 | DD40: 0.03224 | DE40: 0.0323 | DF40: 0.03236 | DG40: 0.03243 | DH40: 0.03249 | DI40: 0.03255 | DJ40: 0.03261 | DK40: 0.03266 | DL40: 0.03272 | DM40: 0.03277 | DN40: 0.03283 | DO40: 0.03288 | DP40: 0.03294 | DQ40: 0.03299 | DR40: 0.03304 | DS40: 0.03309 | DT40: 0.03314 | DU40: 0.03318 | DV40: 0.03323 | DW40: 0.03328 | DX40: 0.03333 | DY40: 0.03337 | DZ40: 0.03342 | EA40: 0.03346 | EB40: 0.0335 | EC40: 0.03354 | ED40: 0.03359 | EE40: 0.03363 | EF40: 0.03367 | EG40: 0.03371 | EH40: 0.03375 | EI40: 0.03379 | EJ40: 0.03382 | EK40: 0.03386 | EL40: 0.0339 | EM40: 0.03394 | EN40: 0.03397 | EO40: 0.03401 | EP40: 0.03404 | EQ40: 0.03408 | ER40: 0.03411 | ES40: 0.03415 | ET40: 0.03418 | EU40: 0.03421 | EV40: 0.03424 | EW40: 0.03428 | EX40: 0.03431 | EY40: =(1+E40)^(-EY$2) -> 1.003250532 | EZ40: =(1+F40)^(-EZ$2) -> 1.005401786 | FA40: 1.005631047 | FB40: 1.003487582 | FC40: 0.9988507931 | FD40: 0.9918787012 | FE40: 0.982742314 | FF40: 0.971506122 | FG40: 0.9586771578 | FH40: 0.9444651789 | FI40: 0.9296864974 | FJ40: 0.9145648939 | FK40: 0.8989281796 | FL40: 0.8835819236 | FM40: 0.8690614664 | FN40: 0.8557989812 | FO40: 0.8430994061 | FP40: 0.8302278408 | FQ40: 0.8164545773 | FR40: 0.8014198222 | FT40: =(1-OFFSET($EY40,0,EY$2-1))/SUM(OFFSET($EY40,0,0,1,EY$2))+$B40 -> -0.00224 | FU40: =(1-OFFSET($EY40,0,EZ$2-1))/SUM(OFFSET($EY40,0,0,1,EZ$2))+$B40 -> -0.001689259049 | FV40: =(1-OFFSET($EY40,0,FA$2-1))/SUM(OFFSET($EY40,0,0,1,FA$2))+$B40 -> -0.0008681213057 | FW40: =(1-OFFSET($EY40,0,FB$2-1))/SUM(OFFSET($EY40,0,0,1,FB$2))+$B40 -> 0.0001319609216 | FX40: =(1-OFFSET($EY40,0,FC$2-1))/SUM(OFFSET($EY40,0,0,1,FC$2))+$B40 -> 0.001229079844 | FY40: =(1-OFFSET($EY40,0,FD$2-1))/SUM(OFFSET($EY40,0,0,1,FD$2))+$B40 -> 0.00235163489 | FZ40: =(1-OFFSET($EY40,0,FE$2-1))/SUM(OFFSET($EY40,0,0,1,FE$2))+$B40 -> 0.003468471857 | GA40: =(1-OFFSET($EY40,0,FF$2-1))/SUM(OFFSET($EY40,0,0,1,FF$2))+$B40 -> 0.00457839716 | GB40: =(1-OFFSET($EY40,0,FG$2-1))/SUM(OFFSET($EY40,0,0,1,FG$2))+$B40 -> 0.005631865131 | GC40: =(1-OFFSET($EY40,0,FH$2-1))/SUM(OFFSET($EY40,0,0,1,FH$2))+$B40 -> 0.006628971562 | GD40: =(1-OFFSET($EY40,0,FI$2-1))/SUM(OFFSET($EY40,0,0,1,FI$2))+$B40 -> 0.007513176454 | GE40: =(1-OFFSET($EY40,0,FJ$2-1))/SUM(OFFSET($EY40,0,0,1,FJ$2))+$B40 -> 0.008295821154 | GF40: =(1-OFFSET($EY40,0,FK$2-1))/SUM(OFFSET($EY40,0,0,1,FK$2))+$B40 -> 0.009015802443 | GG40: =FromParToForwards(FT40:GF40,$FS$2:$GF$2,20,20,0.0000000001) -> -0.002240000025 | GH40: -0.001139145449 | GI40: 0.0007744899885 | GJ40: 0.003142044688 | GK40: 0.005653217314 | GL40: 0.008046354582 | GM40: 0.01032102355 | GN40: 0.0125982454 | GO40: 0.01442221866 | GP40: 0.01609610939 | GQ40: 0.01223821472 | GR40: 0.01223821472 | GS40: 0.01170430891 | GT40: 0.01170430891 | GU40: 0.01170430891 | GV40: 0.01143723876 | GW40: 0.01143723876 | GX40: 0.01143723876 | GY40: 0.01143723876 | GZ40: 0.01143723876
A41: 0.039 | B41: 0.001 | C41: 0.0017 | D41: 2019-02-28 | E41: -0.00311 | F41: -0.00238 | G41: -0.00146 | H41: -0.00038 | I41: 0.00071 | J41: 0.00182 | K41: 0.00294 | L41: 0.00406 | M41: 0.00513 | N41: 0.00611 | O41: 0.00702 | P41: 0.00789 | Q41: 0.00869 | R41: 0.00938 | S41: 0.00993 | T41: 0.01033 | U41: 0.01065 | V41: 0.01096 | W41: 0.01129 | X41: 0.01169 | Y41: 0.01217 | Z41: 0.0127 | AA41: 0.01328 | AB41: 0.01387 | AC41: 0.01448 | AD41: 0.01508 | AE41: 0.01568 | AF41: 0.01627 | AG41: 0.01685 | AH41: 0.01742 | AI41: 0.01796 | AJ41: 0.01849 | AK41: 0.01901 | AL41: 0.0195 | AM41: 0.01998 | AN41: 0.02044 | AO41: 0.02088 | AP41: 0.02131 | AQ41: 0.02172 | AR41: 0.02211 | AS41: 0.02249 | AT41: 0.02285 | AU41: 0.0232 | AV41: 0.02354 | AW41: 0.02387 | AX41: 0.02418 | AY41: 0.02448 | AZ41: 0.02477 | BA41: 0.02505 | BB41: 0.02532 | BC41: 0.02558 | BD41: 0.02583 | BE41: 0.02607 | BF41: 0.02631 | BG41: 0.02653 | BH41: 0.02675 | BI41: 0.02696 | BJ41: 0.02716 | BK41: 0.02736 | BL41: 0.02755 | BM41: 0.02774 | BN41: 0.02792 | BO41: 0.02809 | BP41: 0.02826 | BQ41: 0.02842 | BR41: 0.02858 | BS41: 0.02874 | BT41: 0.02888 | BU41: 0.02903 | BV41: 0.02917 | BW41: 0.02931 | BX41: 0.02944 | BY41: 0.02957 | BZ41: 0.0297 | CA41: 0.02982 | CB41: 0.02994 | CC41: 0.03006 | CD41: 0.03017 | CE41: 0.03028 | CF41: 0.03039 | CG41: 0.0305 | CH41: 0.0306 | CI41: 0.0307 | CJ41: 0.0308 | CK41: 0.0309 | CL41: 0.03099 | CM41: 0.03108 | CN41: 0.03117 | CO41: 0.03126 | CP41: 0.03135 | CQ41: 0.03143 | CR41: 0.03151 | CS41: 0.03159 | CT41: 0.03167 | CU41: 0.03175 | CV41: 0.03182 | CW41: 0.0319 | CX41: 0.03197 | CY41: 0.03204 | CZ41: 0.03211 | DA41: 0.03218 | DB41: 0.03224 | DC41: 0.03231 | DD41: 0.03237 | DE41: 0.03244 | DF41: 0.0325 | DG41: 0.03256 | DH41: 0.03262 | DI41: 0.03268 | DJ41: 0.03273 | DK41: 0.03279 | DL41: 0.03284 | DM41: 0.0329 | DN41: 0.03295 | DO41: 0.033 | DP41: 0.03306 | DQ41: 0.03311 | DR41: 0.03316 | DS41: 0.03321 | DT41: 0.03325 | DU41: 0.0333 | DV41: 0.03335 | DW41: 0.03339 | DX41: 0.03344 | DY41: 0.03348 | DZ41: 0.03353 | EA41: 0.03357 | EB41: 0.03361 | EC41: 0.03365 | ED41: 0.03369 | EE41: 0.03373 | EF41: 0.03377 | EG41: 0.03381 | EH41: 0.03385 | EI41: 0.03389 | EJ41: 0.03393 | EK41: 0.03396 | EL41: 0.034 | EM41: 0.03404 | EN41: 0.03407 | EO41: 0.03411 | EP41: 0.03414 | EQ41: 0.03418 | ER41: 0.03421 | ES41: 0.03424 | ET41: 0.03427 | EU41: 0.03431 | EV41: 0.03434 | EW41: 0.03437 | EX41: 0.0344 | EY41: =(1+E41)^(-EY$2) -> 1.003119702 | EZ41: =(1+F41)^(-EZ$2) -> 1.004777047 | FA41: =(1+G41)^(-FA$2) -> 1.004392821 | FB41: =(1+H41)^(-FB$2) -> 1.001521445 | FC41: =(1+I41)^(-FC$2) -> 0.996457549 | FD41: =(1+J41)^(-FD$2) -> 0.9891492242 | FE41: =(1+K41)^(-FE$2) -> 0.9796599018 | FF41: =(1+L41)^(-FF$2) -> 0.9681054676 | FG41: =(1+M41)^(-FG$2) -> 0.9549923229 | FH41: =(1+N41)^(-FH$2) -> 0.9409040634 | FI41: =(1+O41)^(-FI$2) -> 0.9259359459 | FJ41: =(1+P41)^(-FJ$2) -> 0.9100020374 | FK41: =(1+Q41)^(-FK$2) -> 0.8936134583 | FL41: =(1+R41)^(-FL$2) -> 0.8774740176 | FM41: =(1+S41)^(-FM$2) -> 0.8622454338 | FN41: =(1+T41)^(-FN$2) -> 0.8483753066 | FO41: =(1+U41)^(-FO$2) -> 0.8351927858 | FP41: =(1+V41)^(-FP$2) -> 0.8218423091 | FQ41: =(1+W41)^(-FQ$2) -> 0.8079071595 | FR41: =(1+X41)^(-FR$2) -> 0.7925941361 | FT41: =(1-OFFSET($EY41,0,EY$2-1))/SUM(OFFSET($EY41,0,0,1,EY$2))+$B41 -> -0.00211 | FU41: =(1-OFFSET($EY41,0,EZ$2-1))/SUM(OFFSET($EY41,0,0,1,EZ$2))+$B41 -> -0.001379129946 | FV41: =(1-OFFSET($EY41,0,FA$2-1))/SUM(OFFSET($EY41,0,0,1,FA$2))+$B41 -> -0.0004582996379 | FW41: =(1-OFFSET($EY41,0,FB$2-1))/SUM(OFFSET($EY41,0,0,1,FB$2))+$B41 -> 0.0006209475004 | FX41: =(1-OFFSET($EY41,0,FC$2-1))/SUM(OFFSET($EY41,0,0,1,FC$2))+$B41 -> 0.001707038148 | FY41: =(1-OFFSET($EY41,0,FD$2-1))/SUM(OFFSET($EY41,0,0,1,FD$2))+$B41 -> 0.002808638139 | FZ41: =(1-OFFSET($EY41,0,FE$2-1))/SUM(OFFSET($EY41,0,0,1,FE$2))+$B41 -> 0.003914439291 | GA41: =(1-OFFSET($EY41,0,FF$2-1))/SUM(OFFSET($EY41,0,0,1,FF$2))+$B41 -> 0.005013312865 | GB41: =(1-OFFSET($EY41,0,FG$2-1))/SUM(OFFSET($EY41,0,0,1,FG$2))+$B41 -> 0.006055806553 | GC41: =(1-OFFSET($EY41,0,FH$2-1))/SUM(OFFSET($EY41,0,0,1,FH$2))+$B41 -> 0.007003805653 | GD41: =(1-OFFSET($EY41,0,FI$2-1))/SUM(OFFSET($EY41,0,0,1,FI$2))+$B41 -> 0.007877513936 | GE41: =(1-OFFSET($EY41,0,FJ$2-1))/SUM(OFFSET($EY41,0,0,1,FJ$2))+$B41 -> 0.008705953206 | GF41: =(1-OFFSET($EY41,0,FK$2-1))/SUM(OFFSET($EY41,0,0,1,FK$2))+$B41 -> 0.009461756483 | GG41: =FromParToForwards(FT41:GF41,$FS$2:$GF$2,20,20,0.0000000001) -> -0.00211000002 | GH41: -0.0006487340131 | GI41: 0.001385314052 | GJ41: 0.003873528347 | GK41: 0.006092894999 | GL41: 0.008405375448 | GM41: 0.01071033703 | GN41: 0.01296733155 | GO41: 0.01477108243 | GP41: 0.01601924683 | GQ41: 0.01255548627 | GR41: 0.01255548627 | GS41: 0.01232474242 | GT41: 0.01232474242 | GU41: 0.01232474242 | GV41: 0.01201581179 | GW41: 0.01201581179 | GX41: 0.01201581179 | GY41: 0.01201581179 | GZ41: 0.01201581179
A42: 0.039 | B42: 0.001 | C42: 0.0014 | D42: 2019-03-31 | E42: -0.0033 | F42: -0.0029 | G42: -0.0024 | H42: -0.00168 | I42: -0.00088 | J42: 1e-05 | K42: 0.00095 | L42: 0.00191 | M42: 0.0029 | N42: 0.00378 | O42: 0.0046 | P42: 0.00541 | Q42: 0.00619 | R42: 0.00687 | S42: 0.00741 | T42: 0.00779 | U42: 0.00809 | V42: 0.00838 | W42: 0.00871 | X42: 0.00911 | Y42: 0.00962 | Z42: 0.01019 | AA42: 0.01081 | AB42: 0.01146 | AC42: 0.01212 | AD42: 0.01278 | AE42: 0.01344 | AF42: 0.01409 | AG42: 0.01473 | AH42: 0.01535 | AI42: 0.01595 | AJ42: 0.01653 | AK42: 0.01709 | AL42: 0.01764 | AM42: 0.01816 | AN42: 0.01867 | AO42: 0.01915 | AP42: 0.01962 | AQ42: 0.02007 | AR42: 0.0205 | AS42: 0.02092 | AT42: 0.02132 | AU42: 0.02171 | AV42: 0.02208 | AW42: 0.02243 | AX42: 0.02278 | AY42: 0.02311 | AZ42: 0.02342 | BA42: 0.02373 | BB42: 0.02402 | BC42: 0.02431 | BD42: 0.02458 | BE42: 0.02485 | BF42: 0.0251 | BG42: 0.02535 | BH42: 0.02559 | BI42: 0.02582 | BJ42: 0.02605 | BK42: 0.02626 | BL42: 0.02647 | BM42: 0.02667 | BN42: 0.02687 | BO42: 0.02706 | BP42: 0.02724 | BQ42: 0.02742 | BR42: 0.0276 | BS42: 0.02777 | BT42: 0.02793 | BU42: 0.02809 | BV42: 0.02824 | BW42: 0.02839 | BX42: 0.02854 | BY42: 0.02868 | BZ42: 0.02882 | CA42: 0.02896 | CB42: 0.02909 | CC42: 0.02921 | CD42: 0.02934 | CE42: 0.02946 | CF42: 0.02958 | CG42: 0.0297 | CH42: 0.02981 | CI42: 0.02992 | CJ42: 0.03003 | CK42: 0.03013 | CL42: 0.03023 | CM42: 0.03033 | CN42: 0.03043 | CO42: 0.03053 | CP42: 0.03062 | CQ42: 0.03071 | CR42: 0.0308 | CS42: 0.03089 | CT42: 0.03098 | CU42: 0.03106 | CV42: 0.03114 | CW42: 0.03122 | CX42: 0.0313 | CY42: 0.03138 | CZ42: 0.03146 | DA42: 0.03153 | DB42: 0.0316 | DC42: 0.03168 | DD42: 0.03175 | DE42: 0.03181 | DF42: 0.03188 | DG42: 0.03195 | DH42: 0.03201 | DI42: 0.03208 | DJ42: 0.03214 | DK42: 0.0322 | DL42: 0.03226 | DM42: 0.03232 | DN42: 0.03238 | DO42: 0.03244 | DP42: 0.03249 | DQ42: 0.03255 | DR42: 0.0326 | DS42: 0.03266 | DT42: 0.03271 | DU42: 0.03276 | DV42: 0.03281 | DW42: 0.03286 | DX42: 0.03291 | DY42: 0.03296 | DZ42: 0.03301 | EA42: 0.03306 | EB42: 0.0331 | EC42: 0.03315 | ED42: 0.03319 | EE42: 0.03324 | EF42: 0.03328 | EG42: 0.03332 | EH42: 0.03336 | EI42: 0.03341 | EJ42: 0.03345 | EK42: 0.03349 | EL42: 0.03353 | EM42: 0.03357 | EN42: 0.03361 | EO42: 0.03364 | EP42: 0.03368 | EQ42: 0.03372 | ER42: 0.03376 | ES42: 0.03379 | ET42: 0.03383 | EU42: 0.03386 | EV42: 0.0339 | EW42: 0.03393 | EX42: 0.03396 | EY42: 1.003310926 | EZ42: 1.005825328 | FA42: 1.007234699 | FB42: 1.006748319 | FC42: 1.00441164 | FD42: 0.9999400021 | FE42: 0.9933751982 | FF42: 0.9848504998 | FG42: 0.9742744606 | FH42: 0.9629741242 | FI42: 0.950769164 | FJ42: 0.9373064252 | FK42: 0.9229114665 | FL42: 0.9085992718 | FM42: 0.8951712732 | FN42: 0.8832411313 | FO42: 0.8719905665 | FP42: 0.8605259652 | FQ42: 0.8480858172 | FR42: 0.834122433 | FT42: -0.0023 | FU42: -0.001899419041 | FV42: -0.001398477791 | FW42: -0.0006773847993 | FX42: 0.0001225036761 | FY42: 0.001009954075 | FZ42: 0.001943590237 | GA42: 0.002892340031 | GB42: 0.003864768631 | GC42: 0.00472383384 | GD42: 0.005519196519 | GE42: 0.006299084153 | GF42: 0.007044295358 | GG42: =FromParToForwards(FT42:GF42,$FS$2:$GF$2,20,20,0.0000000001) -> -0.002300000028 | GH42: -0.001499438706 | GI42: -0.000397744611 | GJ42: 0.001487455064 | GK42: 0.003334463607 | GL42: 0.005485385696 | GM42: 0.007628614339 | GN42: 0.009683270432 | GO42: 0.01189195206 | GP42: 0.0127758667 | GQ42: 0.009704497332 | GR42: 0.009704497332 | GS42: 0.009633959214 | GT42: 0.009633959214 | GU42: 0.009633959214 | GV42: 0.009494450989 | GW42: 0.009494450989 | GX42: 0.009494450989 | GY42: 0.009494450989 | GZ42: 0.009494450989
A43: 0.039 | B43: 0.001 | C43: 0.0009 | D43: 2019-04-30 | E43: -0.00331 | F43: -0.00292 | G43: -0.00231 | H43: -0.00153 | I43: -0.00066 | J43: 0.00028 | K43: 0.00125 | L43: 0.00231 | M43: 0.00322 | N43: 0.0042 | O43: 0.00505 | P43: 0.00582 | Q43: 0.00656 | R43: 0.00724 | S43: 0.00778 | T43: 0.00818 | U43: 0.00851 | V43: 0.00882 | W43: 0.00918 | X43: 0.0096 | Y43: 0.01011 | Z43: 0.01069 | AA43: 0.01131 | AB43: 0.01196 | AC43: 0.01261 | AD43: 0.01326 | AE43: 0.01391 | AF43: 0.01455 | AG43: 0.01518 | AH43: 0.01579 | AI43: 0.01638 | AJ43: 0.01695 | AK43: 0.01751 | AL43: 0.01804 | AM43: 0.01856 | AN43: 0.01905 | AO43: 0.01953 | AP43: 0.01999 | AQ43: 0.02043 | AR43: 0.02085 | AS43: 0.02126 | AT43: 0.02165 | AU43: 0.02203 | AV43: 0.0224 | AW43: 0.02274 | AX43: 0.02308 | AY43: 0.0234 | AZ43: 0.02372 | BA43: 0.02402 | BB43: 0.02431 | BC43: 0.02459 | BD43: 0.02486 | BE43: 0.02512 | BF43: 0.02537 | BG43: 0.02561 | BH43: 0.02584 | BI43: 0.02607 | BJ43: 0.02629 | BK43: 0.0265 | BL43: 0.02671 | BM43: 0.02691 | BN43: 0.0271 | BO43: 0.02728 | BP43: 0.02747 | BQ43: 0.02764 | BR43: 0.02781 | BS43: 0.02798 | BT43: 0.02814 | BU43: 0.02829 | BV43: 0.02845 | BW43: 0.02859 | BX43: 0.02874 | BY43: 0.02888 | BZ43: 0.02901 | CA43: 0.02914 | CB43: 0.02927 | CC43: 0.0294 | CD43: 0.02952 | CE43: 0.02964 | CF43: 0.02976 | CG43: 0.02987 | CH43: 0.02998 | CI43: 0.03009 | CJ43: 0.03019 | CK43: 0.0303 | CL43: 0.0304 | CM43: 0.0305 | CN43: 0.03059 | CO43: 0.03069 | CP43: 0.03078 | CQ43: 0.03087 | CR43: 0.03096 | CS43: 0.03104 | CT43: 0.03113 | CU43: 0.03121 | CV43: 0.03129 | CW43: 0.03137 | CX43: 0.03145 | CY43: 0.03152 | CZ43: 0.0316 | DA43: 0.03167 | DB43: 0.03174 | DC43: 0.03181 | DD43: 0.03188 | DE43: 0.03195 | DF43: 0.03202 | DG43: 0.03208 | DH43: 0.03214 | DI43: 0.03221 | DJ43: 0.03227 | DK43: 0.03233 | DL43: 0.03239 | DM43: 0.03245 | DN43: 0.0325 | DO43: 0.03256 | DP43: 0.03262 | DQ43: 0.03267 | DR43: 0.03272 | DS43: 0.03278 | DT43: 0.03283 | DU43: 0.03288 | DV43: 0.03293 | DW43: 0.03298 | DX43: 0.03303 | DY43: 0.03307 | DZ43: 0.03312 | EA43: 0.03317 | EB43: 0.03321 | EC43: 0.03326 | ED43: 0.0333 | EE43: 0.03335 | EF43: 0.03339 | EG43: 0.03343 | EH43: 0.03347 | EI43: 0.03351 | EJ43: 0.03355 | EK43: 0.03359 | EL43: 0.03363 | EM43: 0.03367 | EN43: 0.03371 | EO43: 0.03375 | EP43: 0.03378 | EQ43: 0.03382 | ER43: 0.03385 | ES43: 0.03389 | ET43: 0.03392 | EU43: 0.03396 | EV43: 0.03399 | EW43: 0.03403 | EX43: 0.03406 | EY43: =(1+E43)^(-EY$2) -> 1.003320992 | EZ43: =(1+F43)^(-EZ$2) -> 1.005865679 | FA43: =(1+G43)^(-FA$2) -> 1.00696214 | FB43: =(1+H43)^(-FB$2) -> 1.006143481 | FC43: =(1+I43)^(-FC$2) -> 1.003306544 | FD43: =(1+J43)^(-FD$2) -> 0.9983216452 | FE43: =(1+K43)^(-FE$2) -> 0.9912935864 | FF43: =(1+L43)^(-FF$2) -> 0.9817106298 | FG43: =(1+M43)^(-FG$2) -> 0.971481122 | FH43: =(1+N43)^(-FH$2) -> 0.9589541205 | FI43: =(1+O43)^(-FI$2) -> 0.946096973 | FJ43: =(1+P43)^(-FJ$2) -> 0.9327318266 | FK43: =(1+Q43)^(-FK$2) -> 0.9185109076 | FL43: =(1+R43)^(-FL$2) -> 0.9039376988 | FM43: =(1+S43)^(-FM$2) -> 0.8902540764 | FN43: =(1+T43)^(-FN$2) -> 0.8777902561 | FO43: =(1+U43)^(-FO$2) -> 0.8658376152 | FP43: =(1+V43)^(-FP$2) -> 0.8537951731 | FQ43: =(1+W43)^(-FQ$2) -> 0.8406126747 | FR43: =(1+X43)^(-FR$2) -> 0.8260629844 | FT43: =(1-OFFSET($EY43,0,EY$2-1))/SUM(OFFSET($EY43,0,0,1,EY$2))+$B43 -> -0.00231 | FU43: =(1-OFFSET($EY43,0,EZ$2-1))/SUM(OFFSET($EY43,0,0,1,EZ$2))+$B43 -> -0.001919429656 | FV43: =(1-OFFSET($EY43,0,FA$2-1))/SUM(OFFSET($EY43,0,0,1,FA$2))+$B43 -> -0.001308288061 | FW43: =(1-OFFSET($EY43,0,FB$2-1))/SUM(OFFSET($EY43,0,0,1,FB$2))+$B43 -> -0.0005273581273 | FX43: =(1-OFFSET($EY43,0,FC$2-1))/SUM(OFFSET($EY43,0,0,1,FC$2))+$B43 -> 0.0003420596862 | FY43: =(1-OFFSET($EY43,0,FD$2-1))/SUM(OFFSET($EY43,0,0,1,FD$2))+$B43 -> 0.001278615037 | FZ43: =(1-OFFSET($EY43,0,FE$2-1))/SUM(OFFSET($EY43,0,0,1,FE$2))+$B43 -> 0.002241075962 | GA43: =(1-OFFSET($EY43,0,FF$2-1))/SUM(OFFSET($EY43,0,0,1,FF$2))+$B43 -> 0.003287050449 | GB43: =(1-OFFSET($EY43,0,FG$2-1))/SUM(OFFSET($EY43,0,0,1,FG$2))+$B43 -> 0.004179927239 | GC43: =(1-OFFSET($EY43,0,FH$2-1))/SUM(OFFSET($EY43,0,0,1,FH$2))+$B43 -> 0.005134621864 | GD43: =(1-OFFSET($EY43,0,FI$2-1))/SUM(OFFSET($EY43,0,0,1,FI$2))+$B43 -> 0.005957303587 | GE43: =(1-OFFSET($EY43,0,FJ$2-1))/SUM(OFFSET($EY43,0,0,1,FJ$2))+$B43 -> 0.006697704387 | GF43: =(1-OFFSET($EY43,0,FK$2-1))/SUM(OFFSET($EY43,0,0,1,FK$2))+$B43 -> 0.007404009102 | GG43: =FromParToForwards(FT43:GF43,$FS$2:$GF$2,20,20,0.0000000001) -> -0.002310000029 | GH43: -0.001529456649 | GI43: -8.704589357e-05 | GJ43: 0.001818359029 | GK43: 0.003836344066 | GL43: 0.006007527212 | GM43: 0.008110473676 | GN43: 0.01079184114 | GO43: 0.01156353449 | GP43: 0.01410898119 | GQ43: 0.01030156633 | GR43: 0.01030156633 | GS43: 0.009875533218 | GT43: 0.009875533218 | GU43: 0.009875533218 | GV43: 0.00973548151 | GW43: 0.00973548151 | GX43: 0.00973548151 | GY43: 0.00973548151 | GZ43: 0.00973548151
A44: 0.039 | B44: 0.001 | C44: 0.0014 | D44: 2019-05-31 | E44: -0.00378 | F44: -0.00377 | G44: -0.00335 | H44: -0.00272 | I44: -0.00197 | J44: -0.00116 | K44: -0.00026 | L44: 0.00053 | M44: 0.00146 | N44: 0.00239 | O44: 0.00322 | P44: 0.00398 | Q44: 0.0047 | R44: 0.00534 | S44: 0.00586 | T44: 0.00623 | U44: 0.00654 | V44: 0.00686 | W44: 0.00722 | X44: 0.00766 | Y44: 0.0082 | Z44: 0.00882 | AA44: 0.00948 | AB44: 0.01017 | AC44: 0.01086 | AD44: 0.01157 | AE44: 0.01226 | AF44: 0.01294 | AG44: 0.01361 | AH44: 0.01427 | AI44: 0.0149 | AJ44: 0.01551 | AK44: 0.0161 | AL44: 0.01667 | AM44: 0.01722 | AN44: 0.01775 | AO44: 0.01826 | AP44: 0.01875 | AQ44: 0.01922 | AR44: 0.01968 | AS44: 0.02011 | AT44: 0.02053 | AU44: 0.02093 | AV44: 0.02132 | AW44: 0.02169 | AX44: 0.02205 | AY44: 0.0224 | AZ44: 0.02273 | BA44: 0.02305 | BB44: 0.02336 | BC44: 0.02366 | BD44: 0.02394 | BE44: 0.02422 | BF44: 0.02449 | BG44: 0.02474 | BH44: 0.02499 | BI44: 0.02524 | BJ44: 0.02547 | BK44: 0.02569 | BL44: 0.02591 | BM44: 0.02612 | BN44: 0.02633 | BO44: 0.02653 | BP44: 0.02672 | BQ44: 0.02691 | BR44: 0.02709 | BS44: 0.02727 | BT44: 0.02744 | BU44: 0.0276 | BV44: 0.02776 | BW44: 0.02792 | BX44: 0.02807 | BY44: 0.02822 | BZ44: 0.02837 | CA44: 0.02851 | CB44: 0.02865 | CC44: 0.02878 | CD44: 0.02891 | CE44: 0.02904 | CF44: 0.02916 | CG44: 0.02928 | CH44: 0.0294 | CI44: 0.02951 | CJ44: 0.02963 | CK44: 0.02974 | CL44: 0.02984 | CM44: 0.02995 | CN44: 0.03005 | CO44: 0.03015 | CP44: 0.03025 | CQ44: 0.03034 | CR44: 0.03044 | CS44: 0.03053 | CT44: 0.03062 | CU44: 0.03071 | CV44: 0.03079 | CW44: 0.03088 | CX44: 0.03096 | CY44: 0.03104 | CZ44: 0.03112 | DA44: 0.0312 | DB44: 0.03127 | DC44: 0.03135 | DD44: 0.03142 | DE44: 0.03149 | DF44: 0.03156 | DG44: 0.03163 | DH44: 0.0317 | DI44: 0.03177 | DJ44: 0.03183 | DK44: 0.0319 | DL44: 0.03196 | DM44: 0.03202 | DN44: 0.03208 | DO44: 0.03214 | DP44: 0.0322 | DQ44: 0.03226 | DR44: 0.03232 | DS44: 0.03237 | DT44: 0.03243 | DU44: 0.03248 | DV44: 0.03254 | DW44: 0.03259 | DX44: 0.03264 | DY44: 0.03269 | DZ44: 0.03274 | EA44: 0.03279 | EB44: 0.03284 | EC44: 0.03289 | ED44: 0.03293 | EE44: 0.03298 | EF44: 0.03302 | EG44: 0.03307 | EH44: 0.03311 | EI44: 0.03316 | EJ44: 0.0332 | EK44: 0.03324 | EL44: 0.03328 | EM44: 0.03332 | EN44: 0.03337 | EO44: 0.03341 | EP44: 0.03344 | EQ44: 0.03348 | ER44: 0.03352 | ES44: 0.03356 | ET44: 0.0336 | EU44: 0.03363 | EV44: 0.03367 | EW44: 0.0337 | EX44: 0.03374 | EY44: =(1+E44)^(-EY$2) -> 1.003794343 | EZ44: =(1+F44)^(-EZ$2) -> 1.007582854 | FA44: =(1+G44)^(-FA$2) -> 1.010117713 | FB44: =(1+H44)^(-FB$2) -> 1.010954388 | FC44: =(1+I44)^(-FC$2) -> 1.009908482 | FD44: =(1+J44)^(-FD$2) -> 1.006988345 | FE44: =(1+K44)^(-FE$2) -> 1.001821894 | FF44: =(1+L44)^(-FF$2) -> 0.9957700946 | FG44: =(1+M44)^(-FG$2) -> 0.9869554107 | FH44: =(1+N44)^(-FH$2) -> 0.9764111853 | FI44: =(1+O44)^(-FI$2) -> 0.9652548725 | FJ44: =(1+P44)^(-FJ$2) -> 0.9534529411 | FK44: =(1+Q44)^(-FK$2) -> 0.9408638246 | FL44: =(1+R44)^(-FL$2) -> 0.9281507636 | FM44: =(1+S44)^(-FM$2) -> 0.9160874451 | FN44: =(1+T44)^(-FN$2) -> 0.9054069386 | FO44: =(1+U44)^(-FO$2) -> 0.8951016258 | FP44: =(1+V44)^(-FP$2) -> 0.8842120313 | FQ44: =(1+W44)^(-FQ$2) -> 0.8722430638 | FR44: =(1+X44)^(-FR$2) -> 0.8584591152 | FT44: =(1-OFFSET($EY44,0,EY$2-1))/SUM(OFFSET($EY44,0,0,1,EY$2))+$B44 -> -0.00278 | FU44: =(1-OFFSET($EY44,0,EZ$2-1))/SUM(OFFSET($EY44,0,0,1,EZ$2))+$B44 -> -0.002769981114 | FV44: =(1-OFFSET($EY44,0,FA$2-1))/SUM(OFFSET($EY44,0,0,1,FA$2))+$B44 -> -0.002348578487 | FW44: =(1-OFFSET($EY44,0,FB$2-1))/SUM(OFFSET($EY44,0,0,1,FB$2))+$B44 -> -0.001716559487 | FX44: =(1-OFFSET($EY44,0,FC$2-1))/SUM(OFFSET($EY44,0,0,1,FC$2))+$B44 -> -0.0009650494031 | FY44: =(1-OFFSET($EY44,0,FD$2-1))/SUM(OFFSET($EY44,0,0,1,FD$2))+$B44 -> -0.0001552232413 | FZ44: =(1-OFFSET($EY44,0,FE$2-1))/SUM(OFFSET($EY44,0,0,1,FE$2))+$B44 -> 0.0007416180876 | GA44: =(1-OFFSET($EY44,0,FF$2-1))/SUM(OFFSET($EY44,0,0,1,FF$2))+$B44 -> 0.001525654029 | GB44: =(1-OFFSET($EY44,0,FG$2-1))/SUM(OFFSET($EY44,0,0,1,FG$2))+$B44 -> 0.002443960926 | GC44: =(1-OFFSET($EY44,0,FH$2-1))/SUM(OFFSET($EY44,0,0,1,FH$2))+$B44 -> 0.003356453218 | GD44: =(1-OFFSET($EY44,0,FI$2-1))/SUM(OFFSET($EY44,0,0,1,FI$2))+$B44 -> 0.004165681642 | GE44: =(1-OFFSET($EY44,0,FJ$2-1))/SUM(OFFSET($EY44,0,0,1,FJ$2))+$B44 -> 0.004902004363 | GF44: =(1-OFFSET($EY44,0,FK$2-1))/SUM(OFFSET($EY44,0,0,1,FK$2))+$B44 -> 0.005594929567 | GG44: =FromParToForwards(FT44:GF44,$FS$2:$GF$2,20,20,0.0000000001) -> -0.00278000006 | GH44: -0.002759989879 | GI44: -0.001508205615 | GJ44: 0.0001761827619 | GK44: 0.002043183304 | GL44: 0.003912120027 | GM44: 0.006176194384 | GN44: 0.00709999994 | GO44: 0.009965470394 | GP44: 0.01184214238 | GQ44: 0.008385481423 | GR44: 0.008385481423 | GS44: 0.008014662583 | GT44: 0.008014662583 | GU44: 0.008014662583 | GV44: 0.007837449172 | GW44: 0.007837449172 | GX44: 0.007837449172 | GY44: 0.007837449172 | GZ44: 0.007837449172
A45: 0.039 | B45: 0.001 | C45: 0.0009 | D45: 2019-06-30 | E45: -0.00462 | F45: -0.00483 | G45: -0.00455 | H45: -0.00403 | I45: -0.00335 | J45: -0.00256 | K45: -0.00174 | L45: -0.00089 | M45: -5e-05 | N45: 0.00078 | O45: 0.00153 | P45: 0.00224 | Q45: 0.00292 | R45: 0.00353 | S45: 0.004 | T45: 0.00433 | U45: 0.00461 | V45: 0.00489 | W45: 0.00524 | X45: 0.00568 | Y45: 0.00624 | Z45: 0.00688 | AA45: 0.00758 | AB45: 0.0083 | AC45: 0.00904 | AD45: 0.00979 | AE45: 0.01053 | AF45: 0.01126 | AG45: 0.01197 | AH45: 0.01266 | AI45: 0.01334 | AJ45: 0.01399 | AK45: 0.01462 | AL45: 0.01523 | AM45: 0.01582 | AN45: 0.01638 | AO45: 0.01692 | AP45: 0.01745 | AQ45: 0.01795 | AR45: 0.01843 | AS45: 0.0189 | AT45: 0.01934 | AU45: 0.01977 | AV45: 0.02018 | AW45: 0.02058 | AX45: 0.02096 | AY45: 0.02133 | AZ45: 0.02168 | BA45: 0.02203 | BB45: 0.02235 | BC45: 0.02267 | BD45: 0.02298 | BE45: 0.02327 | BF45: 0.02356 | BG45: 0.02383 | BH45: 0.0241 | BI45: 0.02435 | BJ45: 0.0246 | BK45: 0.02484 | BL45: 0.02507 | BM45: 0.0253 | BN45: 0.02552 | BO45: 0.02573 | BP45: 0.02593 | BQ45: 0.02613 | BR45: 0.02633 | BS45: 0.02651 | BT45: 0.0267 | BU45: 0.02687 | BV45: 0.02704 | BW45: 0.02721 | BX45: 0.02737 | BY45: 0.02753 | BZ45: 0.02769 | CA45: 0.02784 | CB45: 0.02798 | CC45: 0.02812 | CD45: 0.02826 | CE45: 0.0284 | CF45: 0.02853 | CG45: 0.02866 | CH45: 0.02878 | CI45: 0.02891 | CJ45: 0.02902 | CK45: 0.02914 | CL45: 0.02926 | CM45: 0.02937 | CN45: 0.02948 | CO45: 0.02958 | CP45: 0.02969 | CQ45: 0.02979 | CR45: 0.02989 | CS45: 0.02999 | CT45: 0.03008 | CU45: 0.03017 | CV45: 0.03027 | CW45: 0.03036 | CX45: 0.03044 | CY45: 0.03053 | CZ45: 0.03061 | DA45: 0.0307 | DB45: 0.03078 | DC45: 0.03086 | DD45: 0.03094 | DE45: 0.03101 | DF45: 0.03109 | DG45: 0.03116 | DH45: 0.03123 | DI45: 0.0313 | DJ45: 0.03137 | DK45: 0.03144 | DL45: 0.03151 | DM45: 0.03158 | DN45: 0.03164 | DO45: 0.0317 | DP45: 0.03177 | DQ45: 0.03183 | DR45: 0.03189 | DS45: 0.03195 | DT45: 0.03201 | DU45: 0.03206 | DV45: 0.03212 | DW45: 0.03218 | DX45: 0.03223 | DY45: 0.03229 | DZ45: 0.03234 | EA45: 0.03239 | EB45: 0.03244 | EC45: 0.03249 | ED45: 0.03254 | EE45: 0.03259 | EF45: 0.03264 | EG45: 0.03269 | EH45: 0.03274 | EI45: 0.03278 | EJ45: 0.03283 | EK45: 0.03287 | EL45: 0.03292 | EM45: 0.03296 | EN45: 0.033 | EO45: 0.03305 | EP45: 0.03309 | EQ45: 0.03313 | ER45: 0.03317 | ES45: 0.03321 | ET45: 0.03325 | EU45: 0.03329 | EV45: 0.03333 | EW45: 0.03336 | EX45: 0.0334 | EY45: =(1+E45)^(-EY$2) -> 1.004641443 | EZ45: =(1+F45)^(-EZ$2) -> 1.00973044 | FA45: =(1+G45)^(-FA$2) -> 1.013775163 | FB45: =(1+H45)^(-FB$2) -> 1.016283727 | FC45: =(1+I45)^(-FC$2) -> 1.016919662 | FD45: =(1+J45)^(-FD$2) -> 1.015498571 | FE45: =(1+K45)^(-FE$2) -> 1.012265217 | FF45: =(1+L45)^(-FF$2) -> 1.0071486 | FG45: =(1+M45)^(-FG$2) -> 1.000450113 | FH45: =(1+N45)^(-FH$2) -> 0.9922333579 | FI45: =(1+O45)^(-FI$2) -> 0.9833234805 | FJ45: =(1+P45)^(-FJ$2) -> 0.9735073158 | FK45: =(1+Q45)^(-FK$2) -> 0.9628047052 | FL45: =(1+R45)^(-FL$2) -> 0.9518641267 | FM45: =(1+S45)^(-FM$2) -> 0.9418772516 | FN45: =(1+T45)^(-FN$2) -> 0.9332049445 | FO45: =(1+U45)^(-FO$2) -> 0.9247887828 | FP45: =(1+V45)^(-FP$2) -> 0.9159390186 | FQ45: =(1+W45)^(-FQ$2) -> 0.9054709712 | FR45: =(1+X45)^(-FR$2) -> 0.8929018697 | FT45: -0.00362 | FU45: -0.003830508324 | FV45: -0.003549040459 | FW45: -0.003026209921 | FX45: -0.002342914588 | FY45: -0.001550428774 | FZ45: -0.0007301480634 | GA45: 0.0001170493648 | GB45: 0.0009505192124 | GC45: 0.001769816977 | GD45: 0.002506151838 | GE45: 0.003199333761 | GF45: 0.003859288994 | GG45: =FromParToForwards(FT45:GF45,$FS$2:$GF$2,20,20,0.0000000001) -> -0.00362 | GH45: -0.004040166159 | GI45: -0.002988921159 | GJ45: -0.001465240189 | GK45: 0.0003814750758 | GL45: 0.00241133383 | GM45: 0.004211571551 | GN45: 0.006104452169 | GO45: 0.00772632556 | GP45: 0.009319415419 | GQ45: 0.0063024686 | GR45: 0.0063024686 | GS45: 0.006087789944 | GT45: 0.006087789944 | GU45: 0.006087789944 | GV45: 0.005954661917 | GW45: 0.005954661917 | GX45: 0.005954661917 | GY45: 0.005954661917 | GZ45: 0.005954661917
A46: 0.039 | B46: 0.001 | C46: 0.0006 | D46: 2019-07-31 | E46: -0.0052 | F46: -0.00548 | G46: -0.00538 | H46: -0.00498 | I46: -0.00445 | J46: -0.00384 | K46: -0.00315 | L46: -0.00242 | M46: -0.00167 | N46: -0.00095 | O46: -0.00027 | P46: 0.00038 | Q46: 0.00101 | R46: 0.00156 | S46: 0.00199 | T46: 0.0023 | U46: 0.00256 | V46: 0.00284 | W46: 0.00319 | X46: 0.00366 | Y46: 0.00425 | Z46: 0.00493 | AA46: 0.00567 | AB46: 0.00645 | AC46: 0.00724 | AD46: 0.00803 | AE46: 0.00882 | AF46: 0.00959 | AG46: 0.01035 | AH46: 0.01109 | AI46: 0.01181 | AJ46: 0.0125 | AK46: 0.01317 | AL46: 0.01382 | AM46: 0.01444 | AN46: 0.01504 | AO46: 0.01562 | AP46: 0.01617 | AQ46: 0.01671 | AR46: 0.01722 | AS46: 0.01771 | AT46: 0.01818 | AU46: 0.01864 | AV46: 0.01908 | AW46: 0.0195 | AX46: 0.0199 | AY46: 0.02029 | AZ46: 0.02067 | BA46: 0.02103 | BB46: 0.02138 | BC46: 0.02171 | BD46: 0.02203 | BE46: 0.02235 | BF46: 0.02265 | BG46: 0.02294 | BH46: 0.02322 | BI46: 0.02349 | BJ46: 0.02376 | BK46: 0.02401 | BL46: 0.02426 | BM46: 0.02449 | BN46: 0.02473 | BO46: 0.02495 | BP46: 0.02517 | BQ46: 0.02538 | BR46: 0.02558 | BS46: 0.02578 | BT46: 0.02597 | BU46: 0.02616 | BV46: 0.02634 | BW46: 0.02652 | BX46: 0.02669 | BY46: 0.02686 | BZ46: 0.02702 | CA46: 0.02718 | CB46: 0.02733 | CC46: 0.02748 | CD46: 0.02763 | CE46: 0.02777 | CF46: 0.02791 | CG46: 0.02805 | CH46: 0.02818 | CI46: 0.02831 | CJ46: 0.02844 | CK46: 0.02856 | CL46: 0.02868 | CM46: 0.0288 | CN46: 0.02892 | CO46: 0.02903 | CP46: 0.02914 | CQ46: 0.02925 | CR46: 0.02935 | CS46: 0.02946 | CT46: 0.02956 | CU46: 0.02966 | CV46: 0.02975 | CW46: 0.02985 | CX46: 0.02994 | CY46: 0.03003 | CZ46: 0.03012 | DA46: 0.03021 | DB46: 0.03029 | DC46: 0.03038 | DD46: 0.03046 | DE46: 0.03054 | DF46: 0.03062 | DG46: 0.0307 | DH46: 0.03078 | DI46: 0.03085 | DJ46: 0.03092 | DK46: 0.031 | DL46: 0.03107 | DM46: 0.03114 | DN46: 0.03121 | DO46: 0.03127 | DP46: 0.03134 | DQ46: 0.03141 | DR46: 0.03147 | DS46: 0.03153 | DT46: 0.0316 | DU46: 0.03166 | DV46: 0.03172 | DW46: 0.03178 | DX46: 0.03183 | DY46: 0.03189 | DZ46: 0.03195 | EA46: 0.032 | EB46: 0.03206 | EC46: 0.03211 | ED46: 0.03216 | EE46: 0.03222 | EF46: 0.03227 | EG46: 0.03232 | EH46: 0.03237 | EI46: 0.03242 | EJ46: 0.03246 | EK46: 0.03251 | EL46: 0.03256 | EM46: 0.0326 | EN46: 0.03265 | EO46: 0.03269 | EP46: 0.03274 | EQ46: 0.03278 | ER46: 0.03283 | ES46: 0.03287 | ET46: 0.03291 | EU46: 0.03295 | EV46: 0.03299 | EW46: 0.03303 | EX46: 0.03307 | EY46: =(1+E46)^(-EY$2) -> 1.005227181 | EZ46: 1.011050754 | FA46: 1.016315236 | FB46: 1.020170496 | FC46: 1.022550149 | FD46: 1.023352856 | FE46: 1.022330476 | FF46: 1.019572542 | FG46: 1.015156273 | FH46: 1.009549827 | FI46: 1.002974817 | FJ46: 0.9954512433 | FK46: 0.9869623622 | FL46: 0.978413416 | FM46: 0.9706199008 | FN46: 0.9639096192 | FO46: 0.9574666496 | FP46: 0.9502334889 | FQ46: 0.9412810314 | FR46: 0.9295391345 | FT46: -0.0042 | FU46: -0.004480769199 | FV46: -0.004379962081 | FW46: -0.003976973116 | FX46: -0.003443104451 | FY46: -0.00282917404 | FZ46: -0.002135863678 | GA46: -0.001404320978 | GB46: -0.0006553873398 | GC46: 6.054425847e-05 | GD46: 0.000733636257 | GE46: 0.001373961546 | GF46: 0.00199140527 | GG46: =FromParToForwards(FT46:GF46,$FS$2:$GF$2,20,20,0.0000000001) -> -0.0042 | GH46: -0.004760201881 | GI46: -0.004179668382 | GJ46: -0.002776627486 | GK46: -0.001321858566 | GL46: 0.0002248017417 | GM46: 0.002014640247 | GN46: 0.003725645148 | GO46: 0.005377737927 | GP46: 0.006586450518 | GQ46: 0.004159141071 | GR46: 0.004159141071 | GS46: 0.003999613504 | GT46: 0.003999613504 | GU46: 0.003999613504 | GV46: 0.00391085089 | GW46: 0.00391085089 | GX46: 0.00391085089 | GY46: 0.00391085089 | GZ46: 0.00391085089
A47: 0.039 | B47: 0.001 | C47: 0.001 | D47: 2019-08-31 | E47: -0.00597 | F47: -0.00656 | G47: -0.00666 | H47: -0.00653 | I47: -0.00626 | J47: -0.00585 | K47: -0.00537 | L47: -0.00483 | M47: -0.00426 | N47: -0.0038 | O47: -0.00329 | P47: -0.00275 | Q47: -0.00224 | R47: -0.00183 | S47: -0.00155 | T47: -0.0014 | U47: -0.0013 | V47: -0.00113 | W47: -0.00086 | X47: -0.00043 | Y47: 0.00017 | Z47: 0.00088 | AA47: 0.00168 | AB47: 0.00253 | AC47: 0.0034 | AD47: 0.00428 | AE47: 0.00516 | AF47: 0.00602 | AG47: 0.00687 | AH47: 0.0077 | AI47: 0.0085 | AJ47: 0.00928 | AK47: 0.01004 | AL47: 0.01076 | AM47: 0.01146 | AN47: 0.01214 | AO47: 0.01278 | AP47: 0.01341 | AQ47: 0.01401 | AR47: 0.01458 | AS47: 0.01513 | AT47: 0.01566 | AU47: 0.01618 | AV47: 0.01667 | AW47: 0.01714 | AX47: 0.01759 | AY47: 0.01803 | AZ47: 0.01845 | BA47: 0.01886 | BB47: 0.01925 | BC47: 0.01962 | BD47: 0.01999 | BE47: 0.02034 | BF47: 0.02067 | BG47: 0.021 | BH47: 0.02132 | BI47: 0.02162 | BJ47: 0.02191 | BK47: 0.0222 | BL47: 0.02248 | BM47: 0.02274 | BN47: 0.023 | BO47: 0.02325 | BP47: 0.0235 | BQ47: 0.02373 | BR47: 0.02396 | BS47: 0.02418 | BT47: 0.0244 | BU47: 0.02461 | BV47: 0.02481 | BW47: 0.02501 | BX47: 0.0252 | BY47: 0.02539 | BZ47: 0.02557 | CA47: 0.02575 | CB47: 0.02592 | CC47: 0.02609 | CD47: 0.02626 | CE47: 0.02642 | CF47: 0.02657 | CG47: 0.02673 | CH47: 0.02687 | CI47: 0.02702 | CJ47: 0.02716 | CK47: 0.0273 | CL47: 0.02744 | CM47: 0.02757 | CN47: 0.0277 | CO47: 0.02782 | CP47: 0.02795 | CQ47: 0.02807 | CR47: 0.02819 | CS47: 0.0283 | CT47: 0.02841 | CU47: 0.02853 | CV47: 0.02863 | CW47: 0.02874 | CX47: 0.02884 | CY47: 0.02895 | CZ47: 0.02905 | DA47: 0.02914 | DB47: 0.02924 | DC47: 0.02933 | DD47: 0.02943 | DE47: 0.02952 | DF47: 0.02961 | DG47: 0.02969 | DH47: 0.02978 | DI47: 0.02986 | DJ47: 0.02995 | DK47: 0.03003 | DL47: 0.03011 | DM47: 0.03019 | DN47: 0.03026 | DO47: 0.03034 | DP47: 0.03041 | DQ47: 0.03049 | DR47: 0.03056 | DS47: 0.03063 | DT47: 0.0307 | DU47: 0.03077 | DV47: 0.03083 | DW47: 0.0309 | DX47: 0.03097 | DY47: 0.03103 | DZ47: 0.03109 | EA47: 0.03115 | EB47: 0.03122 | EC47: 0.03128 | ED47: 0.03133 | EE47: 0.03139 | EF47: 0.03145 | EG47: 0.03151 | EH47: 0.03156 | EI47: 0.03162 | EJ47: 0.03167 | EK47: 0.03173 | EL47: 0.03178 | EM47: 0.03183 | EN47: 0.03188 | EO47: 0.03193 | EP47: 0.03198 | EQ47: 0.03203 | ER47: 0.03208 | ES47: 0.03213 | ET47: 0.03217 | EU47: 0.03222 | EV47: 0.03226 | EW47: 0.03231 | EX47: 0.03235 | EY47: =(1+E47)^(-EY$2) -> 1.006005855 | EZ47: 1.013250239 | FA47: 1.020249117 | FB47: 1.026552042 | FC47: 1.031896509 | FD47: 1.035830033 | FE47: 1.038410618 | FF47: 1.039493544 | FG47: 1.039169563 | FH47: 1.038806423 | FI47: 1.036914694 | FJ47: 1.033597524 | FK47: 1.029581762 | FL47: 1.025975093 | FM47: 1.02354085 | FN47: 1.022668814 | FO47: 1.022360713 | FP47: 1.020560005 | FQ47: 1.016481374 | FR47: 1.008638952 | FT47: -0.00497 | FU47: -0.00556194099 | FV47: -0.005661978204 | FW47: -0.00553016929 | FX47: -0.00525672774 | FY47: -0.0048414242 | FZ47: -0.004355490307 | GA47: -0.003809430624 | GB47: -0.003234154802 | GC47: -0.002771398439 | GD47: -0.002259121316 | GE47: -0.001718207523 | GF47: -0.001209282788 | GG47: =FromParToForwards(FT47:GF47,$FS$2:$GF$2,20,20,0.0000000001) -> -0.00497 | GH47: -0.0061502414 | GI47: -0.005860268495 | GJ47: -0.005139113387 | GK47: -0.004176559285 | GL47: -0.002791297377 | GM47: -0.001475021 | GN47: -2.659477733e-05 | GO47: 0.001332428597 | GP47: 0.001370421548 | GQ47: 0.0002906519057 | GR47: 0.0002906519057 | GS47: 0.0004394816844 | GT47: 0.0004394816844 | GU47: 0.0004394816844 | GV47: 0.0003162393596 | GW47: 0.0003162393596 | GX47: 0.0003162393596 | GY47: 0.0003162393596 | GZ47: 0.0003162393596
A48: 0.039 | B48: 0.001 | C48: 0.0011 | D48: 2019-09-30 | E48: -0.00525 | F48: -0.00553 | G48: -0.00559 | H48: -0.00534 | I48: -0.00505 | J48: -0.00467 | K48: -0.0042 | L48: -0.00366 | M48: -0.00309 | N48: -0.00254 | O48: -0.00202 | P48: -0.0015 | Q48: -0.00099 | R48: -0.00055 | S48: -0.00024 | T48: -7e-05 | U48: 6e-05 | V48: 0.00023 | W48: 0.0005 | X48: 0.00092 | Y48: 0.00149 | Z48: 0.00219 | AA48: 0.00295 | AB48: 0.00377 | AC48: 0.00461 | AD48: 0.00545 | AE48: 0.0063 | AF48: 0.00713 | AG48: 0.00795 | AH48: 0.00875 | AI48: 0.00953 | AJ48: 0.01028 | AK48: 0.01101 | AL48: 0.01171 | AM48: 0.01238 | AN48: 0.01303 | AO48: 0.01366 | AP48: 0.01426 | AQ48: 0.01484 | AR48: 0.01539 | AS48: 0.01593 | AT48: 0.01644 | AU48: 0.01693 | AV48: 0.01741 | AW48: 0.01786 | AX48: 0.0183 | AY48: 0.01873 | AZ48: 0.01913 | BA48: 0.01952 | BB48: 0.0199 | BC48: 0.02026 | BD48: 0.02062 | BE48: 0.02095 | BF48: 0.02128 | BG48: 0.0216 | BH48: 0.0219 | BI48: 0.0222 | BJ48: 0.02248 | BK48: 0.02276 | BL48: 0.02302 | BM48: 0.02328 | BN48: 0.02353 | BO48: 0.02377 | BP48: 0.02401 | BQ48: 0.02424 | BR48: 0.02446 | BS48: 0.02467 | BT48: 0.02488 | BU48: 0.02509 | BV48: 0.02528 | BW48: 0.02547 | BX48: 0.02566 | BY48: 0.02584 | BZ48: 0.02602 | CA48: 0.02619 | CB48: 0.02636 | CC48: 0.02652 | CD48: 0.02668 | CE48: 0.02683 | CF48: 0.02699 | CG48: 0.02713 | CH48: 0.02728 | CI48: 0.02742 | CJ48: 0.02755 | CK48: 0.02769 | CL48: 0.02782 | CM48: 0.02795 | CN48: 0.02807 | CO48: 0.02819 | CP48: 0.02831 | CQ48: 0.02843 | CR48: 0.02854 | CS48: 0.02866 | CT48: 0.02877 | CU48: 0.02887 | CV48: 0.02898 | CW48: 0.02908 | CX48: 0.02918 | CY48: 0.02928 | CZ48: 0.02938 | DA48: 0.02947 | DB48: 0.02956 | DC48: 0.02966 | DD48: 0.02975 | DE48: 0.02983 | DF48: 0.02992 | DG48: 0.03 | DH48: 0.03009 | DI48: 0.03017 | DJ48: 0.03025 | DK48: 0.03033 | DL48: 0.0304 | DM48: 0.03048 | DN48: 0.03055 | DO48: 0.03063 | DP48: 0.0307 | DQ48: 0.03077 | DR48: 0.03084 | DS48: 0.03091 | DT48: 0.03097 | DU48: 0.03104 | DV48: 0.03111 | DW48: 0.03117 | DX48: 0.03123 | DY48: 0.03129 | DZ48: 0.03136 | EA48: 0.03142 | EB48: 0.03147 | EC48: 0.03153 | ED48: 0.03159 | EE48: 0.03165 | EF48: 0.0317 | EG48: 0.03176 | EH48: 0.03181 | EI48: 0.03186 | EJ48: 0.03192 | EK48: 0.03197 | EL48: 0.03202 | EM48: 0.03207 | EN48: 0.03212 | EO48: 0.03217 | EP48: 0.03221 | EQ48: 0.03226 | ER48: 0.03231 | ES48: 0.03235 | ET48: 0.0324 | EU48: 0.03244 | EV48: 0.03249 | EW48: 0.03253 | EX48: 0.03257 | EY48: 1.005277708 | EZ48: 1.011152424 | FA48: 1.01695925 | FB48: 1.02164823 | FC48: 1.025637091 | FD48: 1.028483751 | FE48: 1.029900209 | FF48: 1.029768185 | FG48: 1.028244578 | FH48: 1.025758473 | FI48: 1.02249168 | FJ48: 1.018176735 | FK48: 1.012959632 | FL48: 1.007731856 | FM48: 1.003606921 | FN48: 1.001120667 | FO48: 0.9989805506 | FP48: 0.995869032 | FQ48: 0.9905473342 | FR48: 0.9817765511 | FT48: =(1-OFFSET($EY48,0,EY$2-1))/SUM(OFFSET($EY48,0,0,1,EY$2))+$B48 -> -0.00425 | FU48: =(1-OFFSET($EY48,0,EZ$2-1))/SUM(OFFSET($EY48,0,0,1,EZ$2))+$B48 -> -0.004530776237 | FV48: =(1-OFFSET($EY48,0,FA$2-1))/SUM(OFFSET($EY48,0,0,1,FA$2))+$B48 -> -0.004590858276 | FW48: =(1-OFFSET($EY48,0,FB$2-1))/SUM(OFFSET($EY48,0,0,1,FB$2))+$B48 -> -0.004338601572 | FX48: =(1-OFFSET($EY48,0,FC$2-1))/SUM(OFFSET($EY48,0,0,1,FC$2))+$B48 -> -0.004046001271 | FY48: =(1-OFFSET($EY48,0,FD$2-1))/SUM(OFFSET($EY48,0,0,1,FD$2))+$B48 -> -0.003662467191 | FZ48: =(1-OFFSET($EY48,0,FE$2-1))/SUM(OFFSET($EY48,0,0,1,FE$2))+$B48 -> -0.003188256569 | GA48: =(1-OFFSET($EY48,0,FF$2-1))/SUM(OFFSET($EY48,0,0,1,FF$2))+$B48 -> -0.002644119926 | GB48: =(1-OFFSET($EY48,0,FG$2-1))/SUM(OFFSET($EY48,0,0,1,FG$2))+$B48 -> -0.00207104042 | GC48: =(1-OFFSET($EY48,0,FH$2-1))/SUM(OFFSET($EY48,0,0,1,FH$2))+$B48 -> -0.001519700844 | GD48: =(1-OFFSET($EY48,0,FI$2-1))/SUM(OFFSET($EY48,0,0,1,FI$2))+$B48 -> -0.001000092246 | GE48: =(1-OFFSET($EY48,0,FJ$2-1))/SUM(OFFSET($EY48,0,0,1,FJ$2))+$B48 -> -0.0004821819171 | GF48: =(1-OFFSET($EY48,0,FK$2-1))/SUM(OFFSET($EY48,0,0,1,FK$2))+$B48 -> 2.38637149e-05 | GG48: =FromParToForwards(FT48:GF48,$FS$2:$GF$2,20,20,0.0000000001) -> -0.00425 | GH48: -0.004810201884 | GI48: -0.004710168716 | GJ48: -0.003588118014 | GK48: -0.002886249128 | GL48: -0.001762109744 | GM48: -0.0003654309743 | GN48: 0.001143415536 | GO48: 0.002502451531 | GP48: 0.00344870978 | GQ48: 0.001607217397 | GR48: 0.001607217397 | GS48: 0.00160396108 | GT48: 0.00160396108 | GU48: 0.00160396108 | GV48: 0.001560116365 | GW48: 0.001560116365 | GX48: 0.001560116365 | GY48: 0.001560116365 | GZ48: 0.001560116365
A49: 0.039 | B49: 0.001 | C49: 0.0007 | D49: 2019-10-31 | E49: -0.00461 | F49: -0.00466 | G49: -0.00444 | H49: -0.00409 | I49: -0.00368 | J49: -0.00316 | K49: -0.0026 | L49: -0.00196 | M49: -0.00135 | N49: -0.00076 | O49: -0.00021 | P49: 0.00032 | Q49: 0.00088 | R49: 0.00137 | S49: 0.00173 | T49: 0.00196 | U49: 0.00213 | V49: 0.00234 | W49: 0.00263 | X49: 0.00304 | Y49: 0.0036 | Z49: 0.00427 | AA49: 0.005 | AB49: 0.00577 | AC49: 0.00656 | AD49: 0.00736 | AE49: 0.00816 | AF49: 0.00894 | AG49: 0.00971 | AH49: 0.01046 | AI49: 0.0112 | AJ49: 0.0119 | AK49: 0.01259 | AL49: 0.01325 | AM49: 0.01388 | AN49: 0.0145 | AO49: 0.01509 | AP49: 0.01565 | AQ49: 0.0162 | AR49: 0.01672 | AS49: 0.01722 | AT49: 0.01771 | AU49: 0.01817 | AV49: 0.01862 | AW49: 0.01905 | AX49: 0.01946 | AY49: 0.01986 | AZ49: 0.02025 | BA49: 0.02062 | BB49: 0.02097 | BC49: 0.02132 | BD49: 0.02165 | BE49: 0.02197 | BF49: 0.02227 | BG49: 0.02257 | BH49: 0.02286 | BI49: 0.02314 | BJ49: 0.02341 | BK49: 0.02367 | BL49: 0.02392 | BM49: 0.02416 | BN49: 0.0244 | BO49: 0.02463 | BP49: 0.02485 | BQ49: 0.02507 | BR49: 0.02527 | BS49: 0.02548 | BT49: 0.02567 | BU49: 0.02587 | BV49: 0.02605 | BW49: 0.02623 | BX49: 0.02641 | BY49: 0.02658 | BZ49: 0.02675 | CA49: 0.02691 | CB49: 0.02707 | CC49: 0.02722 | CD49: 0.02737 | CE49: 0.02752 | CF49: 0.02766 | CG49: 0.0278 | CH49: 0.02793 | CI49: 0.02807 | CJ49: 0.0282 | CK49: 0.02832 | CL49: 0.02845 | CM49: 0.02857 | CN49: 0.02869 | CO49: 0.0288 | CP49: 0.02891 | CQ49: 0.02902 | CR49: 0.02913 | CS49: 0.02924 | CT49: 0.02934 | CU49: 0.02944 | CV49: 0.02954 | CW49: 0.02964 | CX49: 0.02973 | CY49: 0.02983 | CZ49: 0.02992 | DA49: 0.03001 | DB49: 0.03009 | DC49: 0.03018 | DD49: 0.03027 | DE49: 0.03035 | DF49: 0.03043 | DG49: 0.03051 | DH49: 0.03059 | DI49: 0.03066 | DJ49: 0.03074 | DK49: 0.03081 | DL49: 0.03089 | DM49: 0.03096 | DN49: 0.03103 | DO49: 0.0311 | DP49: 0.03117 | DQ49: 0.03123 | DR49: 0.0313 | DS49: 0.03136 | DT49: 0.03143 | DU49: 0.03149 | DV49: 0.03155 | DW49: 0.03161 | DX49: 0.03167 | DY49: 0.03173 | DZ49: 0.03178 | EA49: 0.03184 | EB49: 0.0319 | EC49: 0.03195 | ED49: 0.03201 | EE49: 0.03206 | EF49: 0.03211 | EG49: 0.03216 | EH49: 0.03221 | EI49: 0.03226 | EJ49: 0.03231 | EK49: 0.03236 | EL49: 0.03241 | EM49: 0.03246 | EN49: 0.0325 | EO49: 0.03255 | EP49: 0.0326 | EQ49: 0.03264 | ER49: 0.03268 | ES49: 0.03273 | ET49: 0.03277 | EU49: 0.03281 | EV49: 0.03285 | EW49: 0.0329 | EX49: 0.03294 | EY49: 1.004631351 | EZ49: 1.009385554 | FA49: 1.013439163 | FB49: 1.016528659 | FC49: 1.018604893 | FD49: 1.019171477 | FE49: 1.018390766 | FF49: 1.015819206 | FG49: 1.01223242 | FH49: 1.007631865 | FI49: 1.002312913 | FJ49: 0.9961679753 | FK49: 0.9886301614 | FL49: 0.9810156429 | FM49: 0.9744056544 | FN49: 0.9691563703 | FO49: 0.9644748805 | FP49: 0.9588018985 | FQ49: 0.9513203622 | FR49: 0.9410982159 | FT49: -0.00361 | FU49: -0.003660116769 | FV49: -0.003439094227 | FW49: -0.00308722098 | FX49: -0.002674975572 | FY49: -0.002152290429 | FZ49: -0.001590193335 | GA49: -0.0009491451981 | GB49: -0.000340068736 | GC49: 0.000247041359 | GD49: 0.0007923431081 | GE49: 0.00131580063 | GF49: 0.001866408978 | GG49: =FromParToForwards(FT49:GF49,$FS$2:$GF$2,20,20,0.0000000001) -> -0.00361 | GH49: -0.003710047603 | GI49: -0.002999192547 | GJ49: -0.00203715691 | GK49: -0.001034201524 | GL49: 0.0004519052092 | GM49: 0.001778443454 | GN49: 0.003549604094 | GO49: 0.004565682408 | GP49: 0.005592706953 | GQ49: 0.003562223698 | GR49: 0.003562223698 | GS49: 0.003455872651 | GT49: 0.003455872651 | GU49: 0.003455872651 | GV49: 0.003571350005 | GW49: 0.003571350005 | GX49: 0.003571350005 | GY49: 0.003571350005 | GZ49: 0.003571350005
